Workbook

Sheet Questions
B3: Project IRR vs Equity IRR
B5: Terminal Value for PLCR and Tail
B7: Need Dates as Starting Point; I used the timeline page
B9: Consistent Time Line on All Pages Except for Annual Summary
B11: Milestone Assumptions do not tie to Timeline page
B13: Can the Milestone Dates Change for Different Project Components
B15: The assumptions page does not tie to the EPC page (I think)
B17: Inflation per year
B19: Issue with Trimming Costs -- Bulk price vs completed prices
B21: Connect the chemical pricing page
B23: Paper Machine Sheet should be cleaned up
B25: Should not compute revenues and costs three at least three different times
B27: Start of Depreciation in Manual and a mess -- why not at COD
B29: Capacity Utilisation issue
B31: Need Depreciation Rates for all categories -- Contingenecy etc

Sheet Timeline
A1: 4GG Financial Model
A2: Project Timeline
C4: EPC Activities and Milestones
C5: Milestone
D6: Activity | E6: Start Date | F6: End | G6: Duration
D7: Land Purchase | E7: 2017-02-17 | F7: 2017-04-27 | G7: =F7-E7+1 -> 70
D8: Evaluate EPC Contractors | E8: 2017-06-09 | F8: 2017-06-15 | G8: =F8-E8+1 -> 7
D9: Final Selection of EPC Contractor | E9: =F8+1 -> 2017-06-16 | F9: =E9 -> 2017-06-16 | G9: 1
D10: Kickoff with EPC | E10: =F9 -> 2017-06-16 | F10: 2017-06-22 | G10: 7
D11: EPC engineering work | E11: 2017-06-23 | F11: 2017-10-05 | G11: 105
D12: EPC proposal | E12: 2017-10-20 | F12: 2017-10-26 | G12: 7
D13: Closing/Project Funded | E13: 2018-01-19 | F13: 2018-01-19 | G13: 1
D14: Project Kick-off Meeting/ Construction Start | E14: 2018-02-23 | F14: =E14+(21*30)+14 -> 2019-11-29 | G14: 645
D15: Equipment Manufacturing & Delivery | E15: 2018-03-02 | F15: 2019-06-27 | G15: 483
D16: Equipment Installation | E16: 2019-06-28 | F16: 2019-10-17 | G16: 112
D17: Commercial Operation Date | E17: 2019-11-29 | F17: 2019-11-29 | G17: 1
D18: Saleable Paper | E18: 2019-12-13 | F18: 2019-12-13 | G18: 1
D20: Construction Months | E20: =G14/30 -> 21.5
C22: Key Dates in Financial Model
D23: Financial Close | E23: =EOMONTH(E13,0)+1 -> 2018-02-01
D950: Financial Close
D951: Land Purchase | E951: 2017-02-17 | F951: 2017-04-27 | G951: 70
D952: Evaluate EPC Contractors | E952: 2017-06-09 | F952: 2017-06-15 | G952: 7
D953: Final Selection of EPC Contractor | E953: 2017-06-16 | F953: 2017-06-16 | G953: 1
D954: Kickoff with EPC | E954: 2017-06-16 | F954: 2017-06-22 | G954: 7
D955: EPC engineering work | E955: 2017-06-23 | F955: 2017-10-05 | G955: 105
D956: EPC proposal | E956: 2017-10-20 | F956: 2017-10-26 | G956: 7
D957: Project Funded | E957: 2018-01-19 | F957: 2018-01-19 | G957: 1
D958: project kick-off meeting | E958: 2018-02-23 | F958: 2018-03-01 | G958: 7
D959: equipment manufacturing & delivery | E959: 2018-03-02 | F959: 2019-06-27 | G959: 483
D960: equipment installation | E960: 2019-06-28 | F960: 2019-10-17 | G960: 112
D961: Startup | E961: 2019-11-29 | F961: 2019-11-29 | G961: 1
D962: saleable paper | E962: 2019-12-13 | F962: 13-Dec-19F15 | G962: 1

Sheet Assumptions Sheet
A1: Assumptions | H1: COMBINE WITH INPUT PARAMETERS TAB- DUPLICATE INFORMATION
G2: w/ Terminal | H2: w/o Terminal
E3: After-tax Project IRR | G3: ='Operating Analysis'!E275 -> 0.07012905777 | H3: ='Operating Analysis'!E273 -> 0.1687494218
E4: Equity IRR | G4: ='Project Financing'!E339 -> 0.07757224143 | H4: ='Project Financing'!E343 -> 0.22567541
A6: Key Dates
B7: Months per Period - Construction | E7: Months | F7: 1
B8: Months per Period - Operation | E8: Months | F8: 6
B10: Financial Close | E10: Date | F10: =Timeline!E23 -> 2018-02-01
B11: Milestone 1 Months from FC | E11: Months | F11: 1
B12: Milestone 1 Date | E12: Date | F12: =EDATE(F10,F11) -> 2018-03-01
B13: Milestone 2 Months from Milestone 1 | E13: Months | F13: 6
B14: Milestone 2 Date | E14: Date | F14: =EDATE(F12,F13) -> 2018-09-01
B15: Milestone 3 Months from Milestone 2 | E15: Months | F15: 6
B16: Milestone 3 Date | E16: Date | F16: =EDATE(F14,F15) -> 2019-03-01
B17: Milestone 4 Months from Milestone 3 | E17: Months | F17: 6
B18: Milestone 4 Date | E18: Date | F18: =EDATE(F16,F17) -> 2019-09-01
B19: Milestone 5 Months from Milestone 4 | E19: Months | F19: 5
B20: Milestone 5 Date | E20: Date | F20: =EDATE(F18,F19) -> 2020-02-01
B21: Months of Start-up Until COD | E21: Months | F21: 2
B22: Commercial Operation | E22: Date | F22: =EDATE(F20,F21) -> 2020-04-01
B24: Operating Years Modelled | E24: Years | F24: 9
B25: Terminal Date | E25: Date | F25: =EDATE(F22,F24*12) -> 2029-04-01
B27: Year - 1 Start | E27: Date | F27: =EDATE(F22,-12) -> 2019-04-01
B28: Year - 2 Start | E28: Date | F28: =EDATE(F27,-12) -> 2018-04-01
B30: Model Start | E30: Date | F30: =MIN(F28,F10) -> 2018-02-01
B31: Months Pre-COD | E31: Months | F31: =DAYS360(F30,F22)/30 -> 26
B33: Fiscal Month End | E33: Month | F33: =MONTH(F22)-1 -> 3
A35: Macro-Economic and Production Assumptions
B36: Exchange Jam$ to US$ | E36: J$/USD | F36: 121
B37: Income Tax Rate % | E37: % | F37: 0.25 | H37: 0.25
B38: VAT Rate % | E38: % | F38: 0.165
B39: Employer Payroll Tax Rate | E39: % | F39: 0.12
B40: Employee Benefits Rate | E40: % | F40: 0.12
B41: Custom Charges | E41: % | F41: 0.04
B43: Total Days Used for Analysis | E43: Days | F43: 365
B44: Downtime | E44: Days | F44: 12
B45: Up-time (days/yr) | E45: Days | F45: 353
B46: Up-time (days/yr) | E46: Days | F46: =F49-F44 -> 353
B47: Downtime Percent | E47: % | F47: =(F43-F45)/F43 -> 0.03287671233
B48: Required Vacation Days | E48: Days | F48: 0
B49: Non-Vacation Days | E49: Days | F49: =F43-F48 -> 365
B50: Uptime - Electricity | E50: Days | F50: 353
B51: Production capacity MT/day | E51: MT/Day | F51: ='Paper Machine'!J87 -> 113.4612765
B52: Production Capacity per Year | E52: MT/Year | F52: =F51*'Assumptions Sheet'!F45 -> 40051.83061
A54: Capital Expenditure Parameters
B55: Total Cost Input
C56: Current Case---> | F56: =EquipmentTrigger -> 1
C57: Total Cost Input | E57: USD | F57: =IF('Assumptions Sheet'!F56='Input Parameters'!C3,G57,H57) -> 158000000 | G57: 158000000 | H57: 169930193.6
B59: Paper Mill | F59: Cost | G59: In Detail | H59: In Other
C60: Land | E60: USD | F60: =EPC!E84 -> 520000 | H60: =F60 -> 520000
C61: Building & Infrastructure | E61: USD | F61: =EPC!E85 -> 25605125 | G61: =F61 -> 25605125
C62: Plant Equipment (incl. pulp line) | E62: USD | F62: =EPC!E86 -> 29750000 | G62: =F62 -> 29750000
C63: Installation | E63: USD | F63: =EPC!E87 -> 25000000 | G63: =F63 -> 25000000
C64: Water Treatment | E64: USD | F64: =EPC!E88 -> 6500000 | G64: =F64 -> 6500000
C65: Trade Vehicles | E65: USD | F65: =EPC!E89 -> 80000 | H65: =F65 -> 80000
C66: =SUM(F60:F65) -> 87455125
B67: Converting Process
C68: Building | E68: USD | F68: =EPC!E92 -> 2500000 | G68: =F68 -> 2500000
C69: Equipment | E69: USD | F69: =EPC!E93 -> 6000000 | G69: =F69 -> 6000000
B71: Power Plant
C72: Building & Infrastructure | E72: USD | F72: =EPC!E96 -> 1000000 | G72: =F72 -> 1000000
C73: Power Generation Plant | E73: USD | F73: =EPC!E97 -> 16000000 | G73: =F73 -> 16000000
B75: Admin Office
C76: Private Vehicles | E76: USD | F76: =EPC!E100 -> 150000 | H76: =F76 -> 150000
C77: Trade Vehicles | E77: USD | F77: =EPC!E101 -> 50000 | H77: 50000
C78: Office Equipment | E78: USD | F78: =EPC!E102 -> 75000 | H78: 75000
C79: Laboratory Equipment | E79: USD | F79: =EPC!E103 -> 100000 | H79: 100000
C80: Furniture & Fixtures | E80: USD | F80: =EPC!E104 -> 100000 | H80: 100000
C81: Computers Equipment | E81: USD | F81: =EPC!E105 -> 125000 | H81: 125000
C83: Grand Total Cost | F83: =SUM(F60:F81) -> 113555125 | G83: =SUM(G60:G81) -> 112355125 | H83: =SUM(H60:H81) -> 1200000
C84: Contengency Percent | F84: 0.15
C85: Total Contengency | F85: =F84*F83 -> 17033268.75 | H85: =F85 -> 17033268.75
C87: Contingency Input | F87: 24000000
C88: Contingency reserve (????) | F88: =F87-F85 -> 6966731.25
C90: Total with Contingency | F90: =F83+F85 -> 130588393.8
C92: Un Reconciled Other Costs ??????????????????? | F92: 0 | H92: =F92 -> 0
C93: Direct Project Cost (Why does this not Tie) | F93: =F90+F92 -> 130588393.8 | G93: =G83 -> 112355125 | H93: =SUM(H83:H92) -> 18233268.75
B95: COSTS pre-closing and at closing
C96: Contingent Closing Costs for Due Diligence | F96: 2090000
C97: Project Financing Fees | F97: 80000
C98: Engineering - EPC Contractor | F98: 280000
C99: Process Eng | F99: 120000
C100: Legal/Closing costs - Financial Institutions | F100: 220000
C101: Environmental Consultant - ESL | F101: 110000
C102: Architect | F102: 20000
C103: GeoTechnic | F103: 8000
C104: Surveyor | F104: 7500
C105: Water Supply Upgrade | F105: 12500
C106: Permit Fees | F106: 5000
C107: Misc. | F107: 1728500
C108: Others ( Includes Prepayment for PM) | F108: 1183500
C109: Contingency | F109: 145000
C110: Closing Costs | F110: ='Assumptions Sheet'!F111 -> 6010000
C111: Total Closing Costs | F111: =SUM(F96:F109) -> 6010000
G113: Milestone 1 | H113: Milestone 2 | I113: Milestone 3 | J113: Milestone 4 | K113: Milestone 5
B114: S-Curve | G114: =F12 -> 2018-03-01 | H114: =F14 -> 2018-09-01 | I114: =F16 -> 2019-03-01 | J114: =F18 -> 2019-09-01 | K114: =F20 -> 2020-02-01
C115: =C125 -> Civil + Building & Infrastructure - Pct of Expenditure | G115: 0.2 | H115: 0.2 | I115: 0.2 | J115: 0.2 | K115: 0.2 | P115: =SUM(G115:M115) -> 1
C116: Plant Equipment (incl. pulp line) (S-Curve) | G116: 0.2 | H116: 0.2 | I116: 0.2 | J116: 0.2 | K116: 0.2 | P116: 1
C117: Installation | G117: 0.2 | H117: 0.2 | I117: 0.2 | J117: 0.2 | K117: 0.2 | P117: 1
C118: Water Treatment | G118: 0.2 | H118: 0.2 | I118: 0.2 | J118: 0.2 | K118: 0.2 | P118: 1
C119: Converting Machinery | G119: 0.2 | H119: 0.2 | I119: 0.2 | J119: 0.2 | K119: 0.2 | P119: 1
C120: Packaging Machinery | G120: 0.2 | H120: 0.2 | I120: 0.2 | J120: 0.2 | K120: 0.2 | P120: 1
C121: Power Generation Plant | G121: 0.2 | H121: 0.2 | I121: 0.2 | J121: 0.2 | K121: 0.2 | P121: 1
C122: Other Costs | G122: 0.4076903486 | H122: 0.1307698838 | I122: 0.2346150581 | J122: 0.2 | K122: 0.02692470951
B124: Total Expenditures
C125: Civil + Building & Infrastructure - Pct of Expenditure
D126: =B59 -> Paper Mill | F126: =F61 -> 25605125
D127: =B67 -> Converting Process | F127: =F68 -> 2500000
D128: =B71 -> Power Plant | F128: =F72 -> 1000000
D129: Total Expenditure | F129: =SUM(F126:F128) -> 29105125 | G129: =$F129*G115 -> 5821025 | H129: 5821025 | I129: 5821025 | J129: 5821025 | K129: 5821025
C130: Plant Equipment (incl. pulp line) | F130: =F62 -> 29750000 | G130: 5950000 | H130: 5950000 | I130: 5950000 | J130: 5950000 | K130: 5950000
C131: Installation | F131: =F63 -> 25000000 | G131: 5000000 | H131: 5000000 | I131: 5000000 | J131: 5000000 | K131: 5000000
C132: Water Treatment | F132: =F64 -> 6500000 | G132: 1300000 | H132: 1300000 | I132: 1300000 | J132: 1300000 | K132: 1300000
C133: Converting Equipment | E133: =F69 -> 6000000
C134: Converting Machinery | E134: 0.7 | F134: =$E133*E134 -> 4200000 | G134: =$F134*G119 -> 840000 | H134: 840000 | I134: 840000 | J134: 840000 | K134: 840000
C135: Packaging Machinery | F135: =E133-F134 -> 1800000 | G135: 360000 | H135: 360000 | I135: 360000 | J135: 360000 | K135: 360000
C136: Power Generation Plant | F136: =F73 -> 16000000 | G136: 3200000 | H136: 3200000 | I136: 3200000 | J136: 3200000 | K136: 3200000
D137: Sub-total | F137: =SUM(F129:F136) -> 112355125 | G137: 22471025 | H137: 22471025 | I137: 22471025 | J137: 22471025 | K137: 22471025
C138: Land | F138: =H60 -> 520000 | G138: =$F$138*G122 -> 211998.9813 | H138: =$F$138*H122 -> 68000.33958 | I138: =$F$138*I122 -> 121999.8302 | J138: =$F$138*J122 -> 104000 | K138: =$F$138*K122 -> 14000.84895
C139: Land, Admin and Vehicles | F139: =H83-F138 -> 680000 | G139: =G$122*$F139 -> 277229.437 | H139: =H$122*$F139 -> 88923.52099 | I139: 159538.2395 | J139: 136000 | K139: 18308.80247
C140: Contingency | F140: =H85 -> 17033268.75 | G140: =G$122*$F140 -> 6944299.274 | H140: 2227438.575 | I140: 3996261.337 | J140: 3406653.75 | K140: 458615.8131
C141: Un-Reconciled | F141: =H92 -> 0 | G141: =G$122*$F141 -> 0 | H141: 0 | I141: 0 | J141: 0 | K141: 0
D142: Grand Total | F142: =SUM(F137:F141) -> 130588393.8 | G142: 29904552.69 | H142: 24855387.44 | I142: 26748824.41 | J142: 26117678.75 | K142: 22961950.46
G144: 0.26 | H144: 0.18 | I144: 0.21 | J144: 0.2 | K144: 0.15
D145: Project Funding (less Capitalised Finance Costs and IDC) | F145: =F93 -> 130588393.8 | G145: =$F145*G144 -> 33952982.38 | H145: =$F145*H144 -> 23505910.88 | I145: =$F145*I144 -> 27423562.69 | J145: =$F145*J144 -> 26117678.75 | K145: =$F145*K144 -> 19588259.06
A147: Revnue Parameters Including Production
B148: Sales (USD)
C149: Price Inflation (USD) | E149: % p.a. | F149: 0.03 | G149: ='Assumptions Sheet'!F149 -> 0.03 | H149: ='Assumptions Sheet'!F149 -> 0.03
C151: Bulk Rolls
D152: Bulk Rolls (% of total volume) | E152: % | F152: 0.7
D153: Export Sales in US$ | E153: % | F153: 1 | G153: currency only | H153: Krishna | I153: ='Assumptions Sheet'!F153 -> 1 | J153: ='Assumptions Sheet'!F154 -> 1
D154: Local Sales in J$ | E154: % | F154: 1 | G154: currency only | H154: Krishna
F155: -3 | G155: -2 | H155: -1 | I155: 1 | J155: 2 | K155: 3 | L155: 4 | M155: 5 | N155: 6 | O155: 7 | P155: 8 | Q155: 9
D156: Production from Paper Machine | E156: Tons/Yr | I156: ='Paper Machine'!G89 -> 31106.46073 | J156: ='Paper Machine'!H89 -> 38025.2563 | K156: ='Paper Machine'!I89 -> 39388.31515 | L156: ='Paper Machine'!J89 -> 40051.83061 | M156: ='Paper Machine'!K89 -> 40051.83061 | N156: ='Paper Machine'!L89 -> 40051.83061 | O156: ='Paper Machine'!M89 -> 40051.83061 | P156: ='Paper Machine'!N89 -> 40051.83061 | Q156: ='Paper Machine'!O89 -> 40051.83061
D157: Bulk Rolls | E157: % | G157: =$F$152 -> 0.7 | H157: =$F$152 -> 0.7 | I157: 0.7 | J157: 0.7 | K157: 0.7 | L157: 0.7 | M157: 0.7 | N157: 0.7 | O157: 0.7 | P157: 0.7 | Q157: 0.7
D158: Volume | G158: 0 | H158: ='Assumptions Sheet'!AD182 -> 0 | I158: =I156*I157 -> 21774.52251 | J158: =J156*J157 -> 26617.67941 | K158: 27571.82061 | L158: 28036.28143 | M158: 28036.28143 | N158: 28036.28143 | O158: 28036.28143 | P158: 28036.28143 | Q158: 28036.28143
D159: Price | G159: 1350 | H159: =G159*(1+$F149) -> 1390.5 | I159: 1432.215 | J159: 1475.18145 | K159: 1519.436894 | L159: 1565.02 | M159: 1611.9706 | N159: 1660.329718 | O159: 1710.13961 | P159: 1761.443798 | Q159: 1814.287112
F160: 1350 | H160: ='Assumptions Sheet'!I159 -> 1432.215 | I160: =('Assumptions Sheet'!F160+'Assumptions Sheet'!G172)/2 -> 2225
H161: ='Assumptions Sheet'!H158 -> 0 | I161: ='Assumptions Sheet'!I158 -> 21774.52251 | J161: ='Assumptions Sheet'!J158 -> 26617.67941 | K161: ='Assumptions Sheet'!K158 -> 27571.82061 | L161: ='Assumptions Sheet'!L158 -> 28036.28143 | M161: ='Assumptions Sheet'!M158 -> 28036.28143 | N161: ='Assumptions Sheet'!N158 -> 28036.28143 | O161: ='Assumptions Sheet'!O158 -> 28036.28143 | P161: ='Assumptions Sheet'!P158 -> 28036.28143 | Q161: ='Assumptions Sheet'!P158 -> 28036.28143
C163: Converted Product
D164: Converted Product (%of total volume) | E164: % | F164: 0.3
D165: Export Sales in US$ | E165: % | F165: 0.3 | H165: ='Assumptions Sheet'!F165 -> 0.3
D166: Local Sales in J$ | E166: % | F166: 0.7 | H166: ='Assumptions Sheet'!F166 -> 0.7
F167: =F155 -> -3 | G167: =G155 -> -2 | H167: -1 | I167: 1 | J167: 2 | K167: 3 | L167: 4 | M167: 5 | N167: 6 | O167: 7 | P167: 8 | Q167: 9
D168: Production from Paper Machine | I168: ='Paper Machine'!G89 -> 31106.46073 | J168: ='Paper Machine'!H89 -> 38025.2563 | K168: ='Paper Machine'!I89 -> 39388.31515 | L168: ='Paper Machine'!J89 -> 40051.83061 | M168: ='Paper Machine'!K89 -> 40051.83061 | N168: ='Paper Machine'!L89 -> 40051.83061 | O168: ='Paper Machine'!M89 -> 40051.83061 | P168: ='Paper Machine'!N89 -> 40051.83061 | Q168: ='Paper Machine'!O89 -> 40051.83061
D169: Percent Converted Product | G169: =$F$164 -> 0.3 | H169: =$F$164 -> 0.3 | I169: 0.3 | J169: 0.3 | K169: 0.3 | L169: 0.3 | M169: 0.3 | N169: 0.3 | O169: 0.3 | P169: 0.3 | Q169: 0.3
D170: Volume | G170: 0 | H170: ='Assumptions Sheet'!AD183+'Assumptions Sheet'!AD184 -> 0 | I170: =I168*I169 -> 9331.93822 | J170: =J168*J169 -> 11407.57689 | K170: 11816.49455 | L170: 12015.54918 | M170: 12015.54918 | N170: 12015.54918 | O170: 12015.54918 | P170: 12015.54918 | Q170: 12015.54918
D171: Price ($) | G171: 3100 | H171: =G171*(1+$F149) -> 3193 | I171: 3288.79 | J171: 3387.4537 | K171: 3489.077311 | L171: 3593.74963 | M171: 3701.562119 | N171: 3812.608983 | O171: 3926.987252 | P171: 4044.79687 | Q171: 4166.140776
G172: ='Assumptions Sheet'!G171 -> 3100
H173: ='Assumptions Sheet'!H170 -> 0 | I173: ='Assumptions Sheet'!I170 -> 9331.93822 | J173: ='Assumptions Sheet'!J170 -> 11407.57689 | K173: ='Assumptions Sheet'!K170 -> 11816.49455 | L173: ='Assumptions Sheet'!L170 -> 12015.54918 | M173: ='Assumptions Sheet'!M170 -> 12015.54918 | N173: ='Assumptions Sheet'!N170 -> 12015.54918 | O173: ='Assumptions Sheet'!O170 -> 12015.54918 | P173: ='Assumptions Sheet'!P170 -> 12015.54918 | Q173: ='Assumptions Sheet'!P170 -> 12015.54918
H174: =H173+H161 -> 0 | I174: 31106.46073 | J174: 38025.2563 | K174: 39388.31515 | L174: 40051.83061 | M174: 40051.83061 | N174: 40051.83061 | O174: 40051.83061 | P174: 40051.83061 | Q174: 40051.83061
D176: Total Sales Volume (MT) | G176: =G158+G170 -> 0 | H176: 0 | I176: 31106.46073 | J176: 38025.2563 | K176: 39388.31515 | L176: 40051.83061 | M176: 40051.83061 | N176: 40051.83061 | O176: 40051.83061 | P176: 40051.83061 | Q176: 40051.83061
A179: Products to be sold
E180: Month 1 US$ | F180: Month 2 US$ | G180: Month 3 US$ | H180: Month 4 US$ | I180: Month 5 US$ | J180: Month 6 US$ | K180: Month 7 US$ | L180: Month 8 US$ | M180: Month 9 US$ | N180: Month 10 US$ | O180: Month 11 US$ | P180: Month 12 US$ | Q180: Total | R180: Month 1 US$ | S180: Month 2 US$ | T180: Month 3 US$ | U180: Month 4 US$ | V180: Month 5 US$ | W180: Month 6 US$ | X180: Month 7 US$ | Y180: Month 8 US$ | Z180: Month 9 US$ | AA180: Month 10 US$ | AB180: Month 11 US$ | AC180: Month 12 US$ | AD180: Total
D182: Bulk Rolls [Tons] - Export Markets | E182: 0 | F182: 0 | G182: 0 | H182: 0 | I182: 0 | J182: 0 | K182: 0 | L182: 0 | M182: 0 | N182: 0 | O182: 0 | P182: 0 | Q182: =SUM(E182:P182) -> 0 | R182: 0 | S182: 0 | T182: 0 | U182: 0 | V182: 0 | W182: 0 | X182: 0 | Y182: 0 | Z182: =(('Paper Machine'!$F89)/12*'Assumptions Sheet'!$F152)/2 -> 0 | AA182: =('Paper Machine'!$F89)/12*'Assumptions Sheet'!$F152 -> 0 | AB182: =('Paper Machine'!$F89)/12*'Assumptions Sheet'!$F152 -> 0 | AC182: =('Paper Machine'!$F89)/12*'Assumptions Sheet'!$F152 -> 0 | AD182: =SUM(R182:AC182) -> 0
D183: Converted Product [Tons] - Export | E183: 0 | F183: 0 | G183: 0 | H183: 0 | I183: 0 | J183: 0 | K183: 0 | L183: 0 | M183: 0 | N183: 0 | O183: 0 | P183: 0 | Q183: =SUM(E183:P183) -> 0 | R183: 0 | S183: 0 | T183: 0 | U183: 0 | V183: 0 | W183: 0 | X183: 0 | Y183: 0 | Z183: =(('Paper Machine'!$F89)/12*'Assumptions Sheet'!$F164)/2*'Assumptions Sheet'!$F165 -> 0 | AA183: =(('Paper Machine'!$F89)/12*'Assumptions Sheet'!$F164)*'Assumptions Sheet'!$F165 -> 0 | AB183: =(('Paper Machine'!$F89)/12*'Assumptions Sheet'!$F164)*'Assumptions Sheet'!$F165 -> 0 | AC183: =(('Paper Machine'!$F89)/12*'Assumptions Sheet'!$F164)*'Assumptions Sheet'!$F165 -> 0 | AD183: =SUM(R183:AC183) -> 0
D184: Converted Product [Tons] - Local | E184: 0 | F184: 0 | G184: 0 | H184: 0 | I184: 0 | J184: 0 | K184: 0 | L184: 0 | M184: 0 | N184: 0 | O184: 0 | P184: 0 | Q184: =SUM(E184:P184) -> 0 | R184: 0 | S184: 0 | T184: 0 | U184: 0 | V184: 0 | W184: 0 | X184: =X182*0.2 -> 0 | Y184: =Y182*0.2 -> 0 | Z184: =(('Paper Machine'!$F89)/12*'Assumptions Sheet'!$F164)/2*'Assumptions Sheet'!$F166 -> 0 | AA184: =(('Paper Machine'!$F89)/12*'Assumptions Sheet'!$F164)*'Assumptions Sheet'!$F166 -> 0 | AB184: =(('Paper Machine'!$F89)/12*'Assumptions Sheet'!$F164)*'Assumptions Sheet'!$F166 -> 0 | AC184: =(('Paper Machine'!$F89)/12*'Assumptions Sheet'!$F164)*'Assumptions Sheet'!$F166 -> 0 | AD184: =SUM(R184:AC184) -> 0
A186: Operating Expenses
B187: Cost Inflation | E187: =F149 -> 0.03
B189: Variable Cost | F189: =F167 -> -3 | G189: =G167 -> -2 | H189: -1 | I189: 1 | J189: 2 | K189: 3 | L189: 4 | M189: 5 | N189: 6 | O189: 7 | P189: 8 | Q189: 9
C190: Virgin Pulp Ratio | G190: 0 | H190: 0.3 | I190: 0.3 | J190: 0.2 | K190: 0.1 | L190: 0.1 | M190: 0.1 | N190: 0.1 | O190: 0.1 | P190: 0.1
C191: Furnish Supply
C192: Recycled Mix Price (CIF) | H192: ='Assumptions Sheet'!F422 -> 493.0531732 | I192: =H192 -> 493.0531732 | J192: =I192*(1+'Assumptions Sheet'!$G$149) -> 507.8447684 | K192: =J192*(1+'Assumptions Sheet'!$G$149) -> 523.0801114 | L192: =K192*(1+'Assumptions Sheet'!$G$149) -> 538.7725148 | M192: =L192*(1+'Assumptions Sheet'!$G$149) -> 554.9356902 | N192: =M192*(1+'Assumptions Sheet'!$G$149) -> 571.5837609 | O192: =N192*(1+'Assumptions Sheet'!$G$149) -> 588.7312738 | P192: =O192*(1+'Assumptions Sheet'!$G$149) -> 606.393212 | Q192: =P192*(1+'Assumptions Sheet'!$G$149) -> 624.5850083
C193: Virgin Pulp Price (CIF) | H193: ='Pulp-prices'!F279 -> 750 | I193: =H193 -> 750 | J193: =I193*(1+'Assumptions Sheet'!$G$149) -> 772.5 | K193: =J193*(1+'Assumptions Sheet'!$G$149) -> 795.675 | L193: =K193*(1+'Assumptions Sheet'!$G$149) -> 819.54525 | M193: =L193*(1+'Assumptions Sheet'!$G$149) -> 844.1316075 | N193: =M193*(1+'Assumptions Sheet'!$G$149) -> 869.4555557 | O193: =N193*(1+'Assumptions Sheet'!$G$149) -> 895.5392224 | P193: =O193*(1+'Assumptions Sheet'!$G$149) -> 922.4053991 | Q193: =P193*(1+'Assumptions Sheet'!$G$149) -> 950.077561
C194: Virgin Pulp Ratio | H194: ='Assumptions Sheet'!H190 -> 0.3 | I194: ='Assumptions Sheet'!I190 -> 0.3 | J194: ='Assumptions Sheet'!J190 -> 0.2 | K194: ='Assumptions Sheet'!K190 -> 0.1 | L194: ='Assumptions Sheet'!L190 -> 0.1 | M194: ='Assumptions Sheet'!M190 -> 0.1 | N194: ='Assumptions Sheet'!N190 -> 0.1 | O194: ='Assumptions Sheet'!O190 -> 0.1 | P194: ='Assumptions Sheet'!P190 -> 0.1 | Q194: 0.1
C195: Furnish Cost | H195: =H192*(1-H194)+(H193*H194) -> 570.1372212 | I195: 570.1372212 | J195: 560.7758147 | K195: 550.3396003 | L195: 566.8497883 | M195: 583.8552819 | N195: 601.3709404 | O195: 619.4120686 | P195: 637.9944307 | Q195: 657.1342636
C197: Chemicals | F197: 75 | G197: =F197 -> 75 | H197: 75 | I197: 75 | J197: =I197*(1+$E$187) -> 77.25 | K197: 79.5675 | L197: 81.954525 | M197: 84.41316075 | N197: 86.94555557 | O197: 89.55392224 | P197: 92.24053991 | Q197: 95.0077561 | Z197: Please see Chemicals Tab
C198: Water Treatment | F198: 0 | G198: 0 | H198: 0 | I198: 0 | J198: 0 | K198: 0 | L198: 0 | M198: 0 | N198: 0 | O198: 0 | P198: 0 | Q198: 0 | Z198: Cost Included in Chemicals
C199: Trim Loss | F199: 0.03
C201: By-Product | F201: =F189 -> -3 | G201: -2 | H201: -1 | I201: 1 | J201: 2 | K201: 3 | L201: 4 | M201: 5 | N201: 6 | O201: 7 | P201: 8 | Q201: 9
D202: inflation = | E202: =E187 -> 0.03
D203: Yield | H203: ='Assumptions Sheet'!$F270 -> 0.685 | I203: ='Assumptions Sheet'!$F270 -> 0.685 | J203: ='Assumptions Sheet'!$F270 -> 0.685 | K203: ='Assumptions Sheet'!$F270 -> 0.685 | L203: ='Assumptions Sheet'!$F270 -> 0.685 | M203: ='Assumptions Sheet'!$F270 -> 0.685 | N203: ='Assumptions Sheet'!$F270 -> 0.685 | O203: ='Assumptions Sheet'!$F270 -> 0.685 | P203: ='Assumptions Sheet'!$F270 -> 0.685 | Q203: ='Assumptions Sheet'!$F270 -> 0.685
D204: Waste paper required in BDT | H204: =ROUND(('Assumptions Sheet'!H161+'Assumptions Sheet'!H173)/H203,0) -> 0 | I204: =ROUND(('Assumptions Sheet'!I161+'Assumptions Sheet'!I173)/I203,0) -> 45411 | J204: =ROUND(('Assumptions Sheet'!J161+'Assumptions Sheet'!J173)/J203,0) -> 55511 | K204: =ROUND(('Assumptions Sheet'!K161+'Assumptions Sheet'!K173)/K203,0) -> 57501 | L204: =ROUND(('Assumptions Sheet'!L161+'Assumptions Sheet'!L173)/L203,0) -> 58470 | M204: =ROUND(('Assumptions Sheet'!M161+'Assumptions Sheet'!M173)/M203,0) -> 58470 | N204: =ROUND(('Assumptions Sheet'!N161+'Assumptions Sheet'!N173)/N203,0) -> 58470 | O204: =ROUND(('Assumptions Sheet'!O161+'Assumptions Sheet'!O173)/O203,0) -> 58470 | P204: =ROUND(('Assumptions Sheet'!P161+'Assumptions Sheet'!P173)/P203,0) -> 58470 | Q204: =ROUND(('Assumptions Sheet'!Q161+'Assumptions Sheet'!Q173)/Q203,0) -> 58470
D205: By-Product production in BDT | H205: =H204-('Assumptions Sheet'!H161+'Assumptions Sheet'!H173) -> 0 | I205: =I204-('Assumptions Sheet'!I161+'Assumptions Sheet'!I173) -> 14304.53927 | J205: =J204-('Assumptions Sheet'!J161+'Assumptions Sheet'!J173) -> 17485.7437 | K205: =K204-('Assumptions Sheet'!K161+'Assumptions Sheet'!K173) -> 18112.68485 | L205: =L204-('Assumptions Sheet'!L161+'Assumptions Sheet'!L173) -> 18418.16939 | M205: =M204-('Assumptions Sheet'!M161+'Assumptions Sheet'!M173) -> 18418.16939 | N205: =N204-('Assumptions Sheet'!N161+'Assumptions Sheet'!N173) -> 18418.16939 | O205: =O204-('Assumptions Sheet'!O161+'Assumptions Sheet'!O173) -> 18418.16939 | P205: =P204-('Assumptions Sheet'!P161+'Assumptions Sheet'!P173) -> 18418.16939 | Q205: =Q204-('Assumptions Sheet'!Q161+'Assumptions Sheet'!Q173) -> 18418.16939
D206: By-Product dryness | H206: ='Assumptions Sheet'!$I267 -> 0.55 | I206: ='Assumptions Sheet'!$I267 -> 0.55 | J206: ='Assumptions Sheet'!$I267 -> 0.55 | K206: ='Assumptions Sheet'!$I267 -> 0.55 | L206: ='Assumptions Sheet'!$I267 -> 0.55 | M206: ='Assumptions Sheet'!$I267 -> 0.55 | N206: ='Assumptions Sheet'!$I267 -> 0.55 | O206: ='Assumptions Sheet'!$I267 -> 0.55 | P206: ='Assumptions Sheet'!$I267 -> 0.55 | Q206: ='Assumptions Sheet'!$I267 -> 0.55
D207: By-Product volume as is | H207: =ROUND(H205/H206,0) -> 0 | I207: 26008 | J207: 31792 | K207: 32932 | L207: 33488 | M207: 33488 | N207: 33488 | O207: 33488 | P207: 33488 | Q207: 33488
D208: By-Product Cost per Ton | H208: ='Assumptions Sheet'!$H268 -> 10 | I208: ='Assumptions Sheet'!$H268 -> 10 | J208: =ROUND(I208*(1+$E202),2) -> 10.3 | K208: 10.61 | L208: 10.93 | M208: 11.26 | N208: 11.6 | O208: 11.95 | P208: 12.31 | Q208: 12.68
D209: By-Product Cost | H209: =ROUND(H207*H208,0) -> 0 | I209: 260080 | J209: 327458 | K209: 349409 | L209: 366024 | M209: 377075 | N209: 388461 | O209: 400182 | P209: 412237 | Q209: 424628
C211: Fuel Costs | AN211: Year -1 | AO211: Year 1 | AP211: Year 2 | AQ211: Year 3 | AR211: Year 4 | AS211: Year 5 | AT211: Year 6 | AU211: Year 7 | AV211: Year 8
F212: Max Capacity | G212: Load Factor | H212: Usage(L) | I212: Cost/Litre | J212: Total Cost | K212: MT/Year | L212: Cost/MT | AM212: Unit Sales [MT]
D213: Propane | F213: 52857086 | G213: ='Assumptions Sheet'!F269 -> 0.681 | H213: =F213*G213 -> 35995675.57 | I213: ='Assumptions Sheet'!F266 -> 0.3 | J213: =H213*I213 -> 10798702.67 | K213: ='Paper Machine'!J89 -> 40051.83061 | L213: =J213/K213 -> 269.6182048 | AM213: Bulk Rolls | AN213: =#REF! ->  | AO213: =#REF! ->  | AP213: =#REF! ->  | AQ213: =#REF! ->  | AR213: =#REF! ->  | AS213: =#REF! ->  | AT213: =#REF! ->  | AU213: =#REF! ->  | AV213: =#REF! -> 
D214: Propane | F214: ='Assumptions Sheet'!F213 -> 52857086 | G214: ='Assumptions Sheet'!F269 -> 0.681 | H214: =F214*G214 -> 35995675.57 | I214: ='Assumptions Sheet'!F266 -> 0.3 | J214: =H214*I214 -> 10798702.67 | K214: ='Assumptions Sheet'!K213 -> 40051.83061 | L214: =J214/K214 -> 269.6182048
C216: Fixed Cost Inputs
D217: Fuel Cost per Ton | F217: =L213 -> 269.6182048 | G217: =F217 -> 269.6182048 | H217: 269.6182048 | I217: 269.6182048 | J217: =I217*(1+$E$187) -> 277.706751 | K217: 286.0379535 | L217: 294.6190921 | M217: 303.4576649 | N217: 312.5613948 | O217: 321.9382367 | P217: 331.5963838 | Q217: 341.5442753
D218: Accommodation | F218: 0 | G218: 0 | H218: 0 | I218: 0 | J218: 0 | K218: 0 | L218: 0 | M218: 0 | N218: 0 | O218: 0 | P218: 0 | Q218: 0 | Z218: Was $5 confirm with Krishna
D219: Repairs and Maintenance | F219: 32 | G219: 32 | H219: 32 | I219: 32 | J219: 32.96 | K219: 33.9488 | L219: 34.967264 | M219: 36.01628192 | N219: 37.09677038 | O219: 38.20967349 | P219: 39.35596369 | Q219: 40.5366426
D220: Reserved for Larger Repairs | F220: 25 | G220: =F220 -> 25 | H220: 25 | I220: 25 | J220: 25.75 | K220: 26.5225 | L220: 27.318175 | M220: 28.13772025 | N220: 28.98185186 | O220: 29.85130741 | P220: 30.74684664 | Q220: 31.66925203
D221: Store/Ship | F221: 26 | G221: 26 | H221: 26 | I221: 26 | J221: 26.78 | K221: 27.5834 | L221: 28.410902 | M221: 29.26322906 | N221: 30.14112593 | O221: 31.04535971 | P221: 31.9767205 | Q221: 32.93602212
D222: Insurance | F222: 20 | G222: 20 | H222: 20 | I222: 20 | J222: 20.6 | K222: 21.218 | L222: 21.85454 | M222: 22.5101762 | N222: 23.18548149 | O222: 23.88104593 | P222: 24.59747731 | Q222: 25.33540163
C224: Selling, General, & Administration | F224: =F201 -> -3 | G224: -2 | H224: -1 | I224: 1 | J224: 2 | K224: 3 | L224: 4 | M224: 5 | N224: 6 | O224: 7 | P224: 8 | Q224: 9
D225: inflation = | F225: =E187 -> 0.03
D227: Staff Salaries & Benefits
D228: Salaries | G228: ='Monthly Analysis'!R64 -> 628308.96 | H228: ='Monthly Analysis'!AE64 -> 1227730.76 | I228: =('Personnel (A)'!L113) -> 1630239 | J228: =('Personnel (A)'!M113) -> 1601120 | K228: =('Personnel (A)'!N113) -> 1627500.65 | L228: =('Personnel (A)'!O113) -> 1654671.54 | M228: =('Personnel (A)'!P113) -> 1575419.816 | N228: =('Personnel (A)'!Q113) -> 1604245.2 | O228: =('Personnel (A)'!R113) -> 1633938.006 | P228: =('Personnel (A)'!S113) -> 1664519.156 | Q228: =('Personnel (A)'!T113) -> 1696020.201
D229: Employee Benefits - Ex. Pats | G229: ='Monthly Analysis'!R65 -> 0 | H229: ='Monthly Analysis'!AE65 -> 24000 | I229: 48000 | J229: =I229*(1+$F$225) -> 49440 | K229: 50923.2 | L229: 52450.896 | M229: 54024.42288 | N229: 55645.15557 | O229: 57314.51023 | P229: 59033.94554 | Q229: 60804.96391
D230: Management Expenses | G230: ='Monthly Analysis'!R66 -> 45000 | H230: ='Monthly Analysis'!AE66 -> 54000 | I230: 72000 | J230: 74160 | K230: 76384.8 | L230: 78676.344 | M230: 81036.63432 | N230: 83467.73335 | O230: 85971.76535 | P230: 88550.91831 | Q230: 91207.44586
D231: Recruitment - Ex. Pats | G231: ='Monthly Analysis'!R67 -> 0 | H231: ='Monthly Analysis'!AE67 -> 50000 | I231: 0 | J231: =I231 -> 0 | K231: 0 | L231: 0 | M231: 0 | N231: 0 | O231: 0 | P231: 0 | Q231: 0
D232: Relocation - Ex. Pats | G232: ='Monthly Analysis'!R68 -> 0 | H232: ='Monthly Analysis'!AE68 -> 80000 | I232: 0 | J232: 0 | K232: 0 | L232: 0 | M232: 0 | N232: 0 | O232: 0 | P232: 0 | Q232: 0
D233: Accommodation | G233: ='Monthly Analysis'!R69 -> 18000 | H233: ='Monthly Analysis'!AE69 -> 68000 | I233: 180000 | J233: =I233*(1+$F$225) -> 185400 | K233: 190962 | L233: 196690.86 | M233: 202591.5858 | N233: 208669.3334 | O233: 214929.4134 | P233: 221377.2958 | Q233: 228018.6146
D234: Subtotal | G234: =SUM(G228:G233) -> 691308.96 | H234: 1503730.76 | I234: 1930239 | J234: 1910120 | K234: 1945770.65 | L234: 1982489.64 | M234: 1913072.459 | N234: 1952027.422 | O234: 1992153.695 | P234: 2033481.316 | Q234: 2076051.225
D235: Overhead | G235: =G234-G228 -> 63000 | H235: 276000 | I235: 300000 | J235: 309000 | K235: 318270 | L235: 327818.1 | M235: 337652.643 | N235: 347782.2223 | O235: 358215.689 | P235: 368962.1596 | Q235: 380031.0244
... 151 more rows

Sheet Operating Analysis
A1: Time Periods
B2: Period Number | K2: 1 | L2: 2 | M2: 3 | N2: 4 | O2: 5 | P2: 6 | Q2: 7 | R2: 8 | S2: 9 | T2: 10 | U2: 11 | V2: 12 | W2: 13 | X2: 14 | Y2: 15 | Z2: 16 | AA2: 17 | AB2: 18 | AC2: 19 | AD2: 20 | AE2: 21 | AF2: 22 | AG2: 23 | AH2: 24 | AI2: 25 | AJ2: 26 | AK2: 27 | AL2: 28 | AM2: 29 | AN2: 30 | AO2: 31 | AP2: 32 | AQ2: 33 | AR2: 34 | AS2: 35 | AT2: 36 | AU2: 37 | AV2: 38 | AW2: 39 | AX2: 40 | AY2: 41 | AZ2: 42 | BA2: 43 | BB2: 44 | BC2: 45 | BD2: 46 | BE2: 47 | BF2: 48 | BG2: 49 | BH2: 50 | BI2: 50 | BJ2: 50 | BK2: 50 | BL2: 50 | BM2: 50 | BN2: 50 | BO2: 50 | BP2: 50 | BQ2: 50 | BR2: 50 | BS2: 50 | BT2: 50 | BU2: 50 | BV2: 50 | BW2: 50 | BX2: 50 | BY2: 50 | BZ2: 50 | CA2: 50 | CB2: 50 | CC2: 50 | CD2: 50 | CE2: 50 | CF2: 50 | CG2: 50 | CH2: 50 | CI2: 50 | CJ2: 50 | CK2: 50 | CL2: 50 | CM2: 50 | CN2: 50 | CO2: 50
B3: Pre-COD Switch | F3: ='Assumptions Sheet'!F31 -> 26 | K3: =K2<=$F$3 -> TRUE | L3: =L2<=$F$3 -> TRUE | M3: TRUE | N3: TRUE | O3: TRUE | P3: TRUE | Q3: TRUE | R3: TRUE | S3: TRUE | T3: TRUE | U3: TRUE | V3: TRUE | W3: TRUE | X3: TRUE | Y3: TRUE | Z3: TRUE | AA3: TRUE | AB3: TRUE | AC3: TRUE | AD3: TRUE | AE3: TRUE | AF3: TRUE | AG3: TRUE | AH3: TRUE | AI3: TRUE | AJ3: TRUE | AK3: FALSE | AL3: FALSE | AM3: FALSE | AN3: FALSE | AO3: FALSE | AP3: FALSE | AQ3: FALSE | AR3: FALSE | AS3: FALSE | AT3: FALSE | AU3: FALSE | AV3: FALSE | AW3: FALSE | AX3: FALSE | AY3: FALSE | AZ3: FALSE | BA3: FALSE | BB3: FALSE | BC3: FALSE | BD3: FALSE | BE3: FALSE | BF3: FALSE | BG3: FALSE | BH3: FALSE | BI3: FALSE | BJ3: FALSE | BK3: FALSE | BL3: FALSE | BM3: FALSE | BN3: FALSE | BO3: FALSE | BP3: FALSE | BQ3: FALSE | BR3: FALSE | BS3: FALSE | BT3: FALSE | BU3: FALSE | BV3: FALSE | BW3: FALSE | BX3: =BX2<=$F$3 -> FALSE | BY3: FALSE | BZ3: FALSE | CA3: FALSE | CB3: FALSE | CC3: FALSE | CD3: FALSE | CE3: FALSE | CF3: FALSE | CG3: FALSE | CH3: FALSE | CI3: FALSE | CJ3: FALSE | CK3: FALSE | CL3: FALSE | CM3: FALSE | CN3: FALSE | CO3: FALSE
B4: Months in Period | F4: ='Assumptions Sheet'!F7 -> 1 | G4: ='Assumptions Sheet'!F8 -> 6 | K4: =IF(K3,$F$4,$G$4) -> 1 | L4: =IF(L3,$F$4,$G$4) -> 1 | M4: 1 | N4: 1 | O4: 1 | P4: 1 | Q4: 1 | R4: 1 | S4: 1 | T4: 1 | U4: 1 | V4: 1 | W4: 1 | X4: 1 | Y4: 1 | Z4: 1 | AA4: 1 | AB4: 1 | AC4: 1 | AD4: 1 | AE4: 1 | AF4: 1 | AG4: 1 | AH4: 1 | AI4: 1 | AJ4: 1 | AK4: 6 | AL4: 6 | AM4: 6 | AN4: 6 | AO4: 6 | AP4: 6 | AQ4: 6 | AR4: 6 | AS4: 6 | AT4: 6 | AU4: 6 | AV4: 6 | AW4: 6 | AX4: 6 | AY4: 6 | AZ4: 6 | BA4: 6 | BB4: 6 | BC4: 6 | BD4: 6 | BE4: 6 | BF4: 6 | BG4: 6 | BH4: 6 | BI4: 6 | BJ4: 6 | BK4: 6 | BL4: 6 | BM4: 6 | BN4: 6 | BO4: 6 | BP4: 6 | BQ4: 6 | BR4: 6 | BS4: 6 | BT4: 6 | BU4: 6 | BV4: 6 | BW4: 6 | BX4: =IF(BX3,$F$4,$G$4) -> 6 | BY4: 6 | BZ4: 6 | CA4: 6 | CB4: 6 | CC4: 6 | CD4: 6 | CE4: 6 | CF4: 6 | CG4: 6 | CH4: 6 | CI4: 6 | CJ4: 6 | CK4: 6 | CL4: 6 | CM4: 6 | CN4: 6 | CO4: 6
B5: Beginning of Period | K5: =J6+1 -> 2018-02-01 | L5: =K6+1 -> 2018-03-01 | M5: 2018-04-01 | N5: 2018-05-01 | O5: 2018-06-01 | P5: 2018-07-01 | Q5: 2018-08-01 | R5: 2018-09-01 | S5: 2018-10-01 | T5: 2018-11-01 | U5: 2018-12-01 | V5: 2019-01-01 | W5: 2019-02-01 | X5: 2019-03-01 | Y5: 2019-04-01 | Z5: 2019-05-01 | AA5: 2019-06-01 | AB5: 2019-07-01 | AC5: 2019-08-01 | AD5: 2019-09-01 | AE5: 2019-10-01 | AF5: 2019-11-01 | AG5: 2019-12-01 | AH5: 2020-01-01 | AI5: 2020-02-01 | AJ5: 2020-03-01 | AK5: 2020-04-01 | AL5: 2020-10-01 | AM5: 2021-04-01 | AN5: 2021-10-01 | AO5: 2022-04-01 | AP5: 2022-10-01 | AQ5: 2023-04-01 | AR5: 2023-10-01 | AS5: 2024-04-01 | AT5: 2024-10-01 | AU5: 2025-04-01 | AV5: 2025-10-01 | AW5: 2026-04-01 | AX5: 2026-10-01 | AY5: 2027-04-01 | AZ5: 2027-10-01 | BA5: 2028-04-01 | BB5: 2028-10-01 | BC5: 2029-04-01 | BD5: 2029-10-01 | BE5: 2030-04-01 | BF5: 2030-10-01 | BG5: 2031-04-01 | BH5: 2031-10-01 | BI5: 2032-04-01 | BJ5: 2032-10-01 | BK5: 2033-04-01 | BL5: 2033-10-01 | BM5: 2034-04-01 | BN5: 2034-10-01 | BO5: 2035-04-01 | BP5: 2035-10-01 | BQ5: 2036-04-01 | BR5: 2036-10-01 | BS5: 2037-04-01 | BT5: 2037-10-01 | BU5: 2038-04-01 | BV5: 2038-10-01 | BW5: 2039-04-01 | BX5: =BW6+1 -> 2039-10-01 | BY5: 2040-04-01 | BZ5: 2040-10-01 | CA5: 2041-04-01 | CB5: 2041-10-01 | CC5: 2042-04-01 | CD5: 2042-10-01 | CE5: 2043-04-01 | CF5: 2043-10-01 | CG5: 2044-04-01 | CH5: 2044-10-01 | CI5: 2045-04-01 | CJ5: 2045-10-01 | CK5: 2046-04-01 | CL5: 2046-10-01 | CM5: 2047-04-01 | CN5: 2047-10-01 | CO5: 2048-04-01
B6: End of Period | J6: ='Assumptions Sheet'!F30-1 -> 2018-01-31 | K6: =EDATE(K5,K4)-1 -> 2018-02-28 | L6: =EDATE(L5,L4)-1 -> 2018-03-31 | M6: 2018-04-30 | N6: 2018-05-31 | O6: 2018-06-30 | P6: 2018-07-31 | Q6: 2018-08-31 | R6: 2018-09-30 | S6: 2018-10-31 | T6: 2018-11-30 | U6: 2018-12-31 | V6: 2019-01-31 | W6: 2019-02-28 | X6: 2019-03-31 | Y6: 2019-04-30 | Z6: 2019-05-31 | AA6: 2019-06-30 | AB6: 2019-07-31 | AC6: 2019-08-31 | AD6: 2019-09-30 | AE6: 2019-10-31 | AF6: 2019-11-30 | AG6: 2019-12-31 | AH6: 2020-01-31 | AI6: 2020-02-29 | AJ6: 2020-03-31 | AK6: 2020-09-30 | AL6: 2021-03-31 | AM6: 2021-09-30 | AN6: 2022-03-31 | AO6: 2022-09-30 | AP6: 2023-03-31 | AQ6: 2023-09-30 | AR6: 2024-03-31 | AS6: 2024-09-30 | AT6: 2025-03-31 | AU6: 2025-09-30 | AV6: 2026-03-31 | AW6: 2026-09-30 | AX6: 2027-03-31 | AY6: 2027-09-30 | AZ6: 2028-03-31 | BA6: 2028-09-30 | BB6: 2029-03-31 | BC6: 2029-09-30 | BD6: 2030-03-31 | BE6: 2030-09-30 | BF6: 2031-03-31 | BG6: 2031-09-30 | BH6: 2032-03-31 | BI6: 2032-09-30 | BJ6: 2033-03-31 | BK6: 2033-09-30 | BL6: 2034-03-31 | BM6: 2034-09-30 | BN6: 2035-03-31 | BO6: 2035-09-30 | BP6: 2036-03-31 | BQ6: 2036-09-30 | BR6: 2037-03-31 | BS6: 2037-09-30 | BT6: 2038-03-31 | BU6: 2038-09-30 | BV6: 2039-03-31 | BW6: 2039-09-30 | BX6: =EDATE(BX5,BX4)-1 -> 2040-03-31 | BY6: 2040-09-30 | BZ6: 2041-03-31 | CA6: 2041-09-30 | CB6: 2042-03-31 | CC6: 2042-09-30 | CD6: 2043-03-31 | CE6: 2043-09-30 | CF6: 2044-03-31 | CG6: 2044-09-30 | CH6: 2045-03-31 | CI6: 2045-09-30 | CJ6: 2046-03-31 | CK6: 2046-09-30 | CL6: 2047-03-31 | CM6: 2047-09-30 | CN6: 2048-03-31 | CO6: 2048-09-30
B7: Operating Period | G7: ='Assumptions Sheet'!F22 -> 2020-04-01 | H7: ='Assumptions Sheet'!F25 -> 2029-04-01 | K7: =AND(K5>=$G$7,K5<$H$7) -> FALSE | L7: =AND(L5>=$G$7,L5<$H$7) -> FALSE | M7: FALSE | N7: FALSE | O7: FALSE | P7: FALSE | Q7: FALSE | R7: FALSE | S7: FALSE | T7: FALSE | U7: FALSE | V7: FALSE | W7: FALSE | X7: FALSE | Y7: FALSE | Z7: FALSE | AA7: FALSE | AB7: FALSE | AC7: FALSE | AD7: FALSE | AE7: FALSE | AF7: FALSE | AG7: FALSE | AH7: FALSE | AI7: FALSE | AJ7: FALSE | AK7: TRUE | AL7: TRUE | AM7: TRUE | AN7: TRUE | AO7: TRUE | AP7: TRUE | AQ7: TRUE | AR7: TRUE | AS7: TRUE | AT7: TRUE | AU7: TRUE | AV7: TRUE | AW7: TRUE | AX7: TRUE | AY7: TRUE | AZ7: TRUE | BA7: TRUE | BB7: TRUE | BC7: FALSE | BD7: FALSE | BE7: FALSE | BF7: FALSE | BG7: FALSE | BH7: FALSE | BI7: FALSE | BJ7: FALSE | BK7: FALSE | BL7: FALSE | BM7: FALSE | BN7: FALSE | BO7: FALSE | BP7: FALSE | BQ7: FALSE | BR7: FALSE | BS7: FALSE | BT7: FALSE | BU7: FALSE | BV7: FALSE | BW7: FALSE | BX7: =AND(BX5>=$G$7,BX5<$H$7) -> FALSE | BY7: FALSE | BZ7: FALSE | CA7: FALSE | CB7: FALSE | CC7: FALSE | CD7: FALSE | CE7: FALSE | CF7: FALSE | CG7: FALSE | CH7: FALSE | CI7: FALSE | CJ7: FALSE | CK7: FALSE | CL7: FALSE | CM7: FALSE | CN7: FALSE | CO7: FALSE
B8: Terminal Period | G8: ='Assumptions Sheet'!F25 -> 2029-04-01 | K8: =$G$8=K5 -> FALSE | L8: =$G$8=L5 -> FALSE | M8: FALSE | N8: FALSE | O8: FALSE | P8: FALSE | Q8: FALSE | R8: FALSE | S8: FALSE | T8: FALSE | U8: FALSE | V8: FALSE | W8: FALSE | X8: FALSE | Y8: FALSE | Z8: FALSE | AA8: FALSE | AB8: FALSE | AC8: FALSE | AD8: FALSE | AE8: FALSE | AF8: FALSE | AG8: FALSE | AH8: FALSE | AI8: FALSE | AJ8: FALSE | AK8: FALSE | AL8: FALSE | AM8: FALSE | AN8: FALSE | AO8: FALSE | AP8: FALSE | AQ8: FALSE | AR8: FALSE | AS8: FALSE | AT8: FALSE | AU8: FALSE | AV8: FALSE | AW8: FALSE | AX8: FALSE | AY8: FALSE | AZ8: FALSE | BA8: FALSE | BB8: FALSE | BC8: TRUE | BD8: FALSE | BE8: FALSE | BF8: FALSE | BG8: FALSE | BH8: FALSE | BI8: FALSE | BJ8: FALSE | BK8: FALSE | BL8: FALSE | BM8: FALSE | BN8: FALSE | BO8: FALSE | BP8: FALSE | BQ8: FALSE | BR8: FALSE | BS8: FALSE | BT8: FALSE | BU8: FALSE | BV8: FALSE | BW8: FALSE | BX8: =$G$8=BX5 -> FALSE | BY8: FALSE | BZ8: FALSE | CA8: FALSE | CB8: FALSE | CC8: FALSE | CD8: FALSE | CE8: FALSE | CF8: FALSE | CG8: FALSE | CH8: FALSE | CI8: FALSE | CJ8: FALSE | CK8: FALSE | CL8: FALSE | CM8: FALSE | CN8: FALSE | CO8: FALSE
B9: Period -2 Switch | G9: ='Assumptions Sheet'!F28 -> 2018-04-01 | H9: ='Assumptions Sheet'!F27 -> 2019-04-01 | K9: =AND(K$5>=$G9,K$5<$H9) -> FALSE | L9: =AND(L$5>=$G9,L$5<$H9) -> FALSE | M9: TRUE | N9: TRUE | O9: TRUE | P9: TRUE | Q9: TRUE | R9: TRUE | S9: TRUE | T9: TRUE | U9: TRUE | V9: TRUE | W9: TRUE | X9: TRUE | Y9: FALSE | Z9: FALSE | AA9: FALSE | AB9: FALSE | AC9: FALSE | AD9: FALSE | AE9: FALSE | AF9: FALSE | AG9: FALSE | AH9: FALSE | AI9: FALSE | AJ9: FALSE | AK9: FALSE | AL9: FALSE | AM9: FALSE | AN9: FALSE | AO9: FALSE | AP9: FALSE | AQ9: FALSE | AR9: FALSE | AS9: FALSE | AT9: FALSE | AU9: FALSE | AV9: FALSE | AW9: FALSE | AX9: FALSE | AY9: FALSE | AZ9: FALSE | BA9: FALSE | BB9: FALSE | BC9: FALSE | BD9: FALSE | BE9: FALSE | BF9: FALSE | BG9: FALSE | BH9: FALSE | BI9: FALSE | BJ9: FALSE | BK9: FALSE | BL9: FALSE | BM9: FALSE | BN9: FALSE | BO9: FALSE | BP9: FALSE | BQ9: FALSE | BR9: FALSE | BS9: FALSE | BT9: FALSE | BU9: FALSE | BV9: FALSE | BW9: FALSE | BX9: =AND(BX$5>=$G9,BX$5<$H9) -> FALSE | BY9: FALSE | BZ9: FALSE | CA9: FALSE | CB9: FALSE | CC9: FALSE | CD9: FALSE | CE9: FALSE | CF9: FALSE | CG9: FALSE | CH9: FALSE | CI9: FALSE | CJ9: FALSE | CK9: FALSE | CL9: FALSE | CM9: FALSE | CN9: FALSE | CO9: FALSE
B10: Period -1 Switch | G10: =H9 -> 2019-04-01 | H10: =G7 -> 2020-04-01 | K10: =AND(K$5>=$G10,K$5<$H10) -> FALSE | L10: FALSE | M10: FALSE | N10: FALSE | O10: FALSE | P10: FALSE | Q10: FALSE | R10: FALSE | S10: FALSE | T10: FALSE | U10: FALSE | V10: FALSE | W10: FALSE | X10: FALSE | Y10: TRUE | Z10: TRUE | AA10: TRUE | AB10: TRUE | AC10: TRUE | AD10: TRUE | AE10: TRUE | AF10: TRUE | AG10: TRUE | AH10: TRUE | AI10: TRUE | AJ10: TRUE | AK10: FALSE | AL10: FALSE | AM10: FALSE | AN10: FALSE | AO10: FALSE | AP10: FALSE | AQ10: FALSE | AR10: FALSE | AS10: FALSE | AT10: FALSE | AU10: FALSE | AV10: FALSE | AW10: FALSE | AX10: FALSE | AY10: FALSE | AZ10: FALSE | BA10: FALSE | BB10: FALSE | BC10: FALSE | BD10: FALSE | BE10: FALSE | BF10: FALSE | BG10: FALSE | BH10: FALSE | BI10: FALSE | BJ10: FALSE | BK10: FALSE | BL10: FALSE | BM10: FALSE | BN10: FALSE | BO10: FALSE | BP10: FALSE | BQ10: FALSE | BR10: FALSE | BS10: FALSE | BT10: FALSE | BU10: FALSE | BV10: FALSE | BW10: FALSE | BX10: FALSE | BY10: FALSE | BZ10: FALSE | CA10: FALSE | CB10: FALSE | CC10: FALSE | CD10: FALSE | CE10: FALSE | CF10: FALSE | CG10: FALSE | CH10: FALSE | CI10: FALSE | CJ10: FALSE | CK10: FALSE | CL10: FALSE | CM10: FALSE | CN10: FALSE | CO10: FALSE
B11: Pre-COD Time Switch | K11: =IF(K9,-2,IF(K10,-1,-3)) -> -3 | L11: =IF(L9,-2,IF(L10,-1,-3)) -> -3 | M11: -2 | N11: -2 | O11: -2 | P11: -2 | Q11: -2 | R11: -2 | S11: -2 | T11: -2 | U11: -2 | V11: -2 | W11: -2 | X11: -2 | Y11: -1 | Z11: -1 | AA11: -1 | AB11: -1 | AC11: -1 | AD11: -1 | AE11: -1 | AF11: -1 | AG11: -1 | AH11: -1 | AI11: -1 | AJ11: -1 | AK11: -3 | AL11: -3 | AM11: -3 | AN11: -3 | AO11: -3 | AP11: -3 | AQ11: -3 | AR11: -3 | AS11: -3 | AT11: -3 | AU11: -3 | AV11: -3 | AW11: -3 | AX11: -3 | AY11: -3 | AZ11: -3 | BA11: -3 | BB11: -3 | BC11: -3 | BD11: -3 | BE11: -3 | BF11: -3 | BG11: -3 | BH11: -3 | BI11: -3 | BJ11: -3 | BK11: -3 | BL11: -3 | BM11: -3 | BN11: -3 | BO11: -3 | BP11: -3 | BQ11: -3 | BR11: -3 | BS11: -3 | BT11: -3 | BU11: -3 | BV11: -3 | BW11: -3 | BX11: =IF(BX9,-2,IF(BX10,-1,-3)) -> -3 | BY11: -3 | BZ11: -3 | CA11: -3 | CB11: -3 | CC11: -3 | CD11: -3 | CE11: -3 | CF11: -3 | CG11: -3 | CH11: -3 | CI11: -3 | CJ11: -3 | CK11: -3 | CL11: -3 | CM11: -3 | CN11: -3 | CO11: -3
B12: Operating PEriod | K12: =J12+K7 -> 0 | L12: =K12+L7 -> 0 | M12: 0 | N12: 0 | O12: 0 | P12: 0 | Q12: 0 | R12: 0 | S12: 0 | T12: 0 | U12: 0 | V12: 0 | W12: 0 | X12: 0 | Y12: 0 | Z12: 0 | AA12: 0 | AB12: 0 | AC12: 0 | AD12: 0 | AE12: 0 | AF12: 0 | AG12: 0 | AH12: 0 | AI12: 0 | AJ12: 0 | AK12: 1 | AL12: 2 | AM12: 3 | AN12: 4 | AO12: 5 | AP12: 6 | AQ12: 7 | AR12: 8 | AS12: 9 | AT12: 10 | AU12: 11 | AV12: 12 | AW12: 13 | AX12: 14 | AY12: 15 | AZ12: 16 | BA12: 17 | BB12: 18 | BC12: 18 | BD12: 18 | BE12: 18 | BF12: 18 | BG12: 18 | BH12: 18 | BI12: 18 | BJ12: 18 | BK12: 18 | BL12: 18 | BM12: 18 | BN12: 18 | BO12: 18 | BP12: 18 | BQ12: 18 | BR12: 18 | BS12: 18 | BT12: 18 | BU12: 18 | BV12: 18 | BW12: 18 | BX12: =BW12+BX7 -> 18 | BY12: 18 | BZ12: 18 | CA12: 18 | CB12: 18 | CC12: 18 | CD12: 18 | CE12: 18 | CF12: 18 | CG12: 18 | CH12: 18 | CI12: 18 | CJ12: 18 | CK12: 18 | CL12: 18 | CM12: 18 | CN12: 18 | CO12: 18
B13: Operating Year | F13: =12/'Assumptions Sheet'!F8 -> 2 | K13: =ROUNDUP(K12/$F$13,0) -> 0 | L13: =ROUNDUP(L12/$F$13,0) -> 0 | M13: 0 | N13: 0 | O13: 0 | P13: 0 | Q13: 0 | R13: 0 | S13: 0 | T13: 0 | U13: 0 | V13: 0 | W13: 0 | X13: 0 | Y13: 0 | Z13: 0 | AA13: 0 | AB13: 0 | AC13: 0 | AD13: 0 | AE13: 0 | AF13: 0 | AG13: 0 | AH13: 0 | AI13: 0 | AJ13: 0 | AK13: 1 | AL13: 1 | AM13: 2 | AN13: 2 | AO13: 3 | AP13: 3 | AQ13: 4 | AR13: 4 | AS13: 5 | AT13: 5 | AU13: 6 | AV13: 6 | AW13: 7 | AX13: 7 | AY13: 8 | AZ13: 8 | BA13: 9 | BB13: 9 | BC13: 9 | BD13: 9 | BE13: 9 | BF13: 9 | BG13: 9 | BH13: 9 | BI13: 9 | BJ13: 9 | BK13: 9 | BL13: 9 | BM13: 9 | BN13: 9 | BO13: 9 | BP13: 9 | BQ13: 9 | BR13: 9 | BS13: 9 | BT13: 9 | BU13: 9 | BV13: 9 | BW13: 9 | BX13: =ROUNDUP(BX12/$F$13,0) -> 9 | BY13: 9 | BZ13: 9 | CA13: 9 | CB13: 9 | CC13: 9 | CD13: 9 | CE13: 9 | CF13: 9 | CG13: 9 | CH13: 9 | CI13: 9 | CJ13: 9 | CK13: 9 | CL13: 9 | CM13: 9 | CN13: 9 | CO13: 9
B14: Year Applied | K14: =IF(K7,K13,K11) -> -3 | L14: =IF(L7,L13,L11) -> -3 | M14: -2 | N14: -2 | O14: -2 | P14: -2 | Q14: -2 | R14: -2 | S14: -2 | T14: -2 | U14: -2 | V14: -2 | W14: -2 | X14: -2 | Y14: -1 | Z14: -1 | AA14: -1 | AB14: -1 | AC14: -1 | AD14: -1 | AE14: -1 | AF14: -1 | AG14: -1 | AH14: -1 | AI14: -1 | AJ14: -1 | AK14: 1 | AL14: 1 | AM14: 2 | AN14: 2 | AO14: 3 | AP14: 3 | AQ14: 4 | AR14: 4 | AS14: 5 | AT14: 5 | AU14: 6 | AV14: 6 | AW14: 7 | AX14: 7 | AY14: 8 | AZ14: 8 | BA14: 9 | BB14: 9 | BC14: -3 | BD14: -3 | BE14: -3 | BF14: -3 | BG14: -3 | BH14: -3 | BI14: -3 | BJ14: -3 | BK14: -3 | BL14: -3 | BM14: -3 | BN14: -3 | BO14: -3 | BP14: -3 | BQ14: -3 | BR14: -3 | BS14: -3 | BT14: -3 | BU14: -3 | BV14: -3 | BW14: -3 | BX14: =IF(BX7,BX13,BX11) -> -3 | BY14: -3 | BZ14: -3 | CA14: -3 | CB14: -3 | CC14: -3 | CD14: -3 | CE14: -3 | CF14: -3 | CG14: -3 | CH14: -3 | CI14: -3 | CJ14: -3 | CK14: -3 | CL14: -3 | CM14: -3 | CN14: -3 | CO14: -3
B15: Month from Start | K15: =IF(K14>-3,J15+1,0)*K3 -> 0 | L15: =IF(L14>-3,K15+1,0)*L3 -> 0 | M15: 1 | N15: 2 | O15: 3 | P15: 4 | Q15: 5 | R15: 6 | S15: 7 | T15: 8 | U15: 9 | V15: 10 | W15: 11 | X15: 12 | Y15: 13 | Z15: 14 | AA15: 15 | AB15: 16 | AC15: 17 | AD15: 18 | AE15: 19 | AF15: 20 | AG15: 21 | AH15: 22 | AI15: 23 | AJ15: 24 | AK15: 0 | AL15: 0 | AM15: 0 | AN15: 0 | AO15: 0 | AP15: 0 | AQ15: 0 | AR15: 0 | AS15: 0 | AT15: 0 | AU15: 0 | AV15: 0 | AW15: 0 | AX15: 0 | AY15: 0 | AZ15: 0 | BA15: 0 | BB15: 0 | BC15: 0 | BD15: 0 | BE15: 0 | BF15: 0 | BG15: 0 | BH15: 0 | BI15: 0 | BJ15: 0 | BK15: 0 | BL15: 0 | BM15: 0 | BN15: 0 | BO15: 0 | BP15: 0 | BQ15: 0 | BR15: 0 | BS15: 0 | BT15: 0 | BU15: 0 | BV15: 0 | BW15: 0 | BX15: =IF(BX14>-3,BW15+1,0)*BX3 -> 0 | BY15: 0 | BZ15: 0 | CA15: 0 | CB15: 0 | CC15: 0 | CD15: 0 | CE15: 0 | CF15: 0 | CG15: 0 | CH15: 0 | CI15: 0 | CJ15: 0 | CK15: 0 | CL15: 0 | CM15: 0 | CN15: 0 | CO15: 0
B16: Fiscal Year | F16: ='Assumptions Sheet'!F33 -> 3 | J16: =YEAR(J6) -> 2018 | K16: =IF(MONTH(J6)=$F$16,J16+1,J16) -> 2018 | L16: =IF(MONTH(K6)=$F$16,K16+1,K16) -> 2018 | M16: 2019 | N16: 2019 | O16: 2019 | P16: 2019 | Q16: 2019 | R16: 2019 | S16: 2019 | T16: 2019 | U16: 2019 | V16: 2019 | W16: 2019 | X16: 2019 | Y16: 2020 | Z16: 2020 | AA16: 2020 | AB16: 2020 | AC16: 2020 | AD16: 2020 | AE16: 2020 | AF16: 2020 | AG16: 2020 | AH16: 2020 | AI16: 2020 | AJ16: 2020 | AK16: 2021 | AL16: 2021 | AM16: 2022 | AN16: 2022 | AO16: 2023 | AP16: 2023 | AQ16: 2024 | AR16: 2024 | AS16: 2025 | AT16: 2025 | AU16: 2026 | AV16: 2026 | AW16: 2027 | AX16: 2027 | AY16: 2028 | AZ16: 2028 | BA16: 2029 | BB16: 2029 | BC16: 2030 | BD16: 2030 | BE16: 2031 | BF16: 2031 | BG16: 2032 | BH16: 2032 | BI16: 2033 | BJ16: 2033 | BK16: 2034 | BL16: 2034 | BM16: 2035 | BN16: 2035 | BO16: 2036 | BP16: 2036 | BQ16: 2037 | BR16: 2037 | BS16: 2038 | BT16: 2038 | BU16: 2039 | BV16: 2039 | BW16: 2040 | BX16: =IF(MONTH(BW6)=$F$16,BW16+1,BW16) -> 2040 | BY16: 2041 | BZ16: 2041 | CA16: 2042 | CB16: 2042 | CC16: 2043 | CD16: 2043 | CE16: 2044 | CF16: 2044 | CG16: 2045 | CH16: 2045 | CI16: 2046 | CJ16: 2046 | CK16: 2047 | CL16: 2047 | CM16: 2048 | CN16: 2048 | CO16: 2049
A18: Tissue Paper Mill Production
B19: Product to be sold
C20: Bulk Rolls - Annual | E20: Tons p.a. | K20: =LOOKUP(K14,'Assumptions Sheet'!$F$155:$Q$155,'Assumptions Sheet'!$F$158:$Q$158) -> 0 | L20: =LOOKUP(L14,'Assumptions Sheet'!$F$155:$Q$155,'Assumptions Sheet'!$F$158:$Q$158) -> 0 | M20: =LOOKUP(M14,'Assumptions Sheet'!$F$155:$Q$155,'Assumptions Sheet'!$F$158:$Q$158) -> 0 | N20: =LOOKUP(N14,'Assumptions Sheet'!$F$155:$Q$155,'Assumptions Sheet'!$F$158:$Q$158) -> 0 | O20: =LOOKUP(O14,'Assumptions Sheet'!$F$155:$Q$155,'Assumptions Sheet'!$F$158:$Q$158) -> 0 | P20: =LOOKUP(P14,'Assumptions Sheet'!$F$155:$Q$155,'Assumptions Sheet'!$F$158:$Q$158) -> 0 | Q20: =LOOKUP(Q14,'Assumptions Sheet'!$F$155:$Q$155,'Assumptions Sheet'!$F$158:$Q$158) -> 0 | R20: =LOOKUP(R14,'Assumptions Sheet'!$F$155:$Q$155,'Assumptions Sheet'!$F$158:$Q$158) -> 0 | S20: =LOOKUP(S14,'Assumptions Sheet'!$F$155:$Q$155,'Assumptions Sheet'!$F$158:$Q$158) -> 0 | T20: =LOOKUP(T14,'Assumptions Sheet'!$F$155:$Q$155,'Assumptions Sheet'!$F$158:$Q$158) -> 0 | U20: =LOOKUP(U14,'Assumptions Sheet'!$F$155:$Q$155,'Assumptions Sheet'!$F$158:$Q$158) -> 0 | V20: =LOOKUP(V14,'Assumptions Sheet'!$F$155:$Q$155,'Assumptions Sheet'!$F$158:$Q$158) -> 0 | W20: =LOOKUP(W14,'Assumptions Sheet'!$F$155:$Q$155,'Assumptions Sheet'!$F$158:$Q$158) -> 0 | X20: =LOOKUP(X14,'Assumptions Sheet'!$F$155:$Q$155,'Assumptions Sheet'!$F$158:$Q$158) -> 0 | Y20: =LOOKUP(Y14,'Assumptions Sheet'!$F$155:$Q$155,'Assumptions Sheet'!$F$158:$Q$158) -> 0 | Z20: =LOOKUP(Z14,'Assumptions Sheet'!$F$155:$Q$155,'Assumptions Sheet'!$F$158:$Q$158) -> 0 | AA20: =LOOKUP(AA14,'Assumptions Sheet'!$F$155:$Q$155,'Assumptions Sheet'!$F$158:$Q$158) -> 0 | AB20: =LOOKUP(AB14,'Assumptions Sheet'!$F$155:$Q$155,'Assumptions Sheet'!$F$158:$Q$158) -> 0 | AC20: =LOOKUP(AC14,'Assumptions Sheet'!$F$155:$Q$155,'Assumptions Sheet'!$F$158:$Q$158) -> 0 | AD20: =LOOKUP(AD14,'Assumptions Sheet'!$F$155:$Q$155,'Assumptions Sheet'!$F$158:$Q$158) -> 0 | AE20: =LOOKUP(AE14,'Assumptions Sheet'!$F$155:$Q$155,'Assumptions Sheet'!$F$158:$Q$158) -> 0 | AF20: =LOOKUP(AF14,'Assumptions Sheet'!$F$155:$Q$155,'Assumptions Sheet'!$F$158:$Q$158) -> 0 | AG20: =LOOKUP(AG14,'Assumptions Sheet'!$F$155:$Q$155,'Assumptions Sheet'!$F$158:$Q$158) -> 0 | AH20: =LOOKUP(AH14,'Assumptions Sheet'!$F$155:$Q$155,'Assumptions Sheet'!$F$158:$Q$158) -> 0 | AI20: =LOOKUP(AI14,'Assumptions Sheet'!$F$155:$Q$155,'Assumptions Sheet'!$F$158:$Q$158) -> 0 | AJ20: =LOOKUP(AJ14,'Assumptions Sheet'!$F$155:$Q$155,'Assumptions Sheet'!$F$158:$Q$158) -> 0 | AK20: =LOOKUP(AK14,'Assumptions Sheet'!$F$155:$Q$155,'Assumptions Sheet'!$F$158:$Q$158) -> 21774.52251 | AL20: =LOOKUP(AL14,'Assumptions Sheet'!$F$155:$Q$155,'Assumptions Sheet'!$F$158:$Q$158) -> 21774.52251 | AM20: =LOOKUP(AM14,'Assumptions Sheet'!$F$155:$Q$155,'Assumptions Sheet'!$F$158:$Q$158) -> 26617.67941 | AN20: =LOOKUP(AN14,'Assumptions Sheet'!$F$155:$Q$155,'Assumptions Sheet'!$F$158:$Q$158) -> 26617.67941 | AO20: =LOOKUP(AO14,'Assumptions Sheet'!$F$155:$Q$155,'Assumptions Sheet'!$F$158:$Q$158) -> 27571.82061 | AP20: =LOOKUP(AP14,'Assumptions Sheet'!$F$155:$Q$155,'Assumptions Sheet'!$F$158:$Q$158) -> 27571.82061 | AQ20: =LOOKUP(AQ14,'Assumptions Sheet'!$F$155:$Q$155,'Assumptions Sheet'!$F$158:$Q$158) -> 28036.28143 | AR20: =LOOKUP(AR14,'Assumptions Sheet'!$F$155:$Q$155,'Assumptions Sheet'!$F$158:$Q$158) -> 28036.28143 | AS20: =LOOKUP(AS14,'Assumptions Sheet'!$F$155:$Q$155,'Assumptions Sheet'!$F$158:$Q$158) -> 28036.28143 | AT20: =LOOKUP(AT14,'Assumptions Sheet'!$F$155:$Q$155,'Assumptions Sheet'!$F$158:$Q$158) -> 28036.28143 | AU20: =LOOKUP(AU14,'Assumptions Sheet'!$F$155:$Q$155,'Assumptions Sheet'!$F$158:$Q$158) -> 28036.28143 | AV20: =LOOKUP(AV14,'Assumptions Sheet'!$F$155:$Q$155,'Assumptions Sheet'!$F$158:$Q$158) -> 28036.28143 | AW20: =LOOKUP(AW14,'Assumptions Sheet'!$F$155:$Q$155,'Assumptions Sheet'!$F$158:$Q$158) -> 28036.28143 | AX20: =LOOKUP(AX14,'Assumptions Sheet'!$F$155:$Q$155,'Assumptions Sheet'!$F$158:$Q$158) -> 28036.28143 | AY20: =LOOKUP(AY14,'Assumptions Sheet'!$F$155:$Q$155,'Assumptions Sheet'!$F$158:$Q$158) -> 28036.28143 | AZ20: =LOOKUP(AZ14,'Assumptions Sheet'!$F$155:$Q$155,'Assumptions Sheet'!$F$158:$Q$158) -> 28036.28143 | BA20: =LOOKUP(BA14,'Assumptions Sheet'!$F$155:$Q$155,'Assumptions Sheet'!$F$158:$Q$158) -> 28036.28143 | BB20: =LOOKUP(BB14,'Assumptions Sheet'!$F$155:$Q$155,'Assumptions Sheet'!$F$158:$Q$158) -> 28036.28143 | BC20: =LOOKUP(BC14,'Assumptions Sheet'!$F$155:$Q$155,'Assumptions Sheet'!$F$158:$Q$158) -> 0 | BD20: =LOOKUP(BD14,'Assumptions Sheet'!$F$155:$Q$155,'Assumptions Sheet'!$F$158:$Q$158) -> 0 | BE20: =LOOKUP(BE14,'Assumptions Sheet'!$F$155:$Q$155,'Assumptions Sheet'!$F$158:$Q$158) -> 0 | BF20: =LOOKUP(BF14,'Assumptions Sheet'!$F$155:$Q$155,'Assumptions Sheet'!$F$158:$Q$158) -> 0 | BG20: =LOOKUP(BG14,'Assumptions Sheet'!$F$155:$Q$155,'Assumptions Sheet'!$F$158:$Q$158) -> 0 | BH20: =LOOKUP(BH14,'Assumptions Sheet'!$F$155:$Q$155,'Assumptions Sheet'!$F$158:$Q$158) -> 0 | BI20: =LOOKUP(BI14,'Assumptions Sheet'!$F$155:$Q$155,'Assumptions Sheet'!$F$158:$Q$158) -> 0 | BJ20: =LOOKUP(BJ14,'Assumptions Sheet'!$F$155:$Q$155,'Assumptions Sheet'!$F$158:$Q$158) -> 0 | BK20: =LOOKUP(BK14,'Assumptions Sheet'!$F$155:$Q$155,'Assumptions Sheet'!$F$158:$Q$158) -> 0 | BL20: =LOOKUP(BL14,'Assumptions Sheet'!$F$155:$Q$155,'Assumptions Sheet'!$F$158:$Q$158) -> 0 | BM20: =LOOKUP(BM14,'Assumptions Sheet'!$F$155:$Q$155,'Assumptions Sheet'!$F$158:$Q$158) -> 0 | BN20: =LOOKUP(BN14,'Assumptions Sheet'!$F$155:$Q$155,'Assumptions Sheet'!$F$158:$Q$158) -> 0 | BO20: =LOOKUP(BO14,'Assumptions Sheet'!$F$155:$Q$155,'Assumptions Sheet'!$F$158:$Q$158) -> 0 | BP20: =LOOKUP(BP14,'Assumptions Sheet'!$F$155:$Q$155,'Assumptions Sheet'!$F$158:$Q$158) -> 0 | BQ20: =LOOKUP(BQ14,'Assumptions Sheet'!$F$155:$Q$155,'Assumptions Sheet'!$F$158:$Q$158) -> 0 | BR20: =LOOKUP(BR14,'Assumptions Sheet'!$F$155:$Q$155,'Assumptions Sheet'!$F$158:$Q$158) -> 0 | BS20: =LOOKUP(BS14,'Assumptions Sheet'!$F$155:$Q$155,'Assumptions Sheet'!$F$158:$Q$158) -> 0 | BT20: =LOOKUP(BT14,'Assumptions Sheet'!$F$155:$Q$155,'Assumptions Sheet'!$F$158:$Q$158) -> 0 | BU20: =LOOKUP(BU14,'Assumptions Sheet'!$F$155:$Q$155,'Assumptions Sheet'!$F$158:$Q$158) -> 0 | BV20: =LOOKUP(BV14,'Assumptions Sheet'!$F$155:$Q$155,'Assumptions Sheet'!$F$158:$Q$158) -> 0 | BW20: =LOOKUP(BW14,'Assumptions Sheet'!$F$155:$Q$155,'Assumptions Sheet'!$F$158:$Q$158) -> 0 | BX20: =LOOKUP(BX14,'Assumptions Sheet'!$F$155:$Q$155,'Assumptions Sheet'!$F$158:$Q$158) -> 0 | BY20: =LOOKUP(BY14,'Assumptions Sheet'!$F$155:$Q$155,'Assumptions Sheet'!$F$158:$Q$158) -> 0 | BZ20: =LOOKUP(BZ14,'Assumptions Sheet'!$F$155:$Q$155,'Assumptions Sheet'!$F$158:$Q$158) -> 0 | CA20: =LOOKUP(CA14,'Assumptions Sheet'!$F$155:$Q$155,'Assumptions Sheet'!$F$158:$Q$158) -> 0 | CB20: =LOOKUP(CB14,'Assumptions Sheet'!$F$155:$Q$155,'Assumptions Sheet'!$F$158:$Q$158) -> 0 | CC20: =LOOKUP(CC14,'Assumptions Sheet'!$F$155:$Q$155,'Assumptions Sheet'!$F$158:$Q$158) -> 0 | CD20: =LOOKUP(CD14,'Assumptions Sheet'!$F$155:$Q$155,'Assumptions Sheet'!$F$158:$Q$158) -> 0 | CE20: =LOOKUP(CE14,'Assumptions Sheet'!$F$155:$Q$155,'Assumptions Sheet'!$F$158:$Q$158) -> 0 | CF20: =LOOKUP(CF14,'Assumptions Sheet'!$F$155:$Q$155,'Assumptions Sheet'!$F$158:$Q$158) -> 0 | CG20: =LOOKUP(CG14,'Assumptions Sheet'!$F$155:$Q$155,'Assumptions Sheet'!$F$158:$Q$158) -> 0 | CH20: =LOOKUP(CH14,'Assumptions Sheet'!$F$155:$Q$155,'Assumptions Sheet'!$F$158:$Q$158) -> 0 | CI20: =LOOKUP(CI14,'Assumptions Sheet'!$F$155:$Q$155,'Assumptions Sheet'!$F$158:$Q$158) -> 0 | CJ20: =LOOKUP(CJ14,'Assumptions Sheet'!$F$155:$Q$155,'Assumptions Sheet'!$F$158:$Q$158) -> 0 | CK20: =LOOKUP(CK14,'Assumptions Sheet'!$F$155:$Q$155,'Assumptions Sheet'!$F$158:$Q$158) -> 0 | CL20: =LOOKUP(CL14,'Assumptions Sheet'!$F$155:$Q$155,'Assumptions Sheet'!$F$158:$Q$158) -> 0 | CM20: =LOOKUP(CM14,'Assumptions Sheet'!$F$155:$Q$155,'Assumptions Sheet'!$F$158:$Q$158) -> 0 | CN20: =LOOKUP(CN14,'Assumptions Sheet'!$F$155:$Q$155,'Assumptions Sheet'!$F$158:$Q$158) -> 0 | CO20: =LOOKUP(CO14,'Assumptions Sheet'!$F$155:$Q$155,'Assumptions Sheet'!$F$158:$Q$158) -> 0
C21: Converted Products | E21: Tons p.a. | K21: =LOOKUP(K14,'Assumptions Sheet'!167:167,'Assumptions Sheet'!173:173) -> 0 | L21: =LOOKUP(L14,'Assumptions Sheet'!167:167,'Assumptions Sheet'!173:173) -> 0 | M21: =LOOKUP(M14,'Assumptions Sheet'!167:167,'Assumptions Sheet'!173:173) -> 0 | N21: =LOOKUP(N14,'Assumptions Sheet'!167:167,'Assumptions Sheet'!173:173) -> 0 | O21: =LOOKUP(O14,'Assumptions Sheet'!167:167,'Assumptions Sheet'!173:173) -> 0 | P21: =LOOKUP(P14,'Assumptions Sheet'!167:167,'Assumptions Sheet'!173:173) -> 0 | Q21: =LOOKUP(Q14,'Assumptions Sheet'!167:167,'Assumptions Sheet'!173:173) -> 0 | R21: =LOOKUP(R14,'Assumptions Sheet'!167:167,'Assumptions Sheet'!173:173) -> 0 | S21: =LOOKUP(S14,'Assumptions Sheet'!167:167,'Assumptions Sheet'!173:173) -> 0 | T21: =LOOKUP(T14,'Assumptions Sheet'!167:167,'Assumptions Sheet'!173:173) -> 0 | U21: =LOOKUP(U14,'Assumptions Sheet'!167:167,'Assumptions Sheet'!173:173) -> 0 | V21: =LOOKUP(V14,'Assumptions Sheet'!167:167,'Assumptions Sheet'!173:173) -> 0 | W21: =LOOKUP(W14,'Assumptions Sheet'!167:167,'Assumptions Sheet'!173:173) -> 0 | X21: =LOOKUP(X14,'Assumptions Sheet'!167:167,'Assumptions Sheet'!173:173) -> 0 | Y21: =LOOKUP(Y14,'Assumptions Sheet'!167:167,'Assumptions Sheet'!173:173) -> 0 | Z21: =LOOKUP(Z14,'Assumptions Sheet'!167:167,'Assumptions Sheet'!173:173) -> 0 | AA21: =LOOKUP(AA14,'Assumptions Sheet'!167:167,'Assumptions Sheet'!173:173) -> 0 | AB21: =LOOKUP(AB14,'Assumptions Sheet'!167:167,'Assumptions Sheet'!173:173) -> 0 | AC21: =LOOKUP(AC14,'Assumptions Sheet'!167:167,'Assumptions Sheet'!173:173) -> 0 | AD21: =LOOKUP(AD14,'Assumptions Sheet'!167:167,'Assumptions Sheet'!173:173) -> 0 | AE21: =LOOKUP(AE14,'Assumptions Sheet'!167:167,'Assumptions Sheet'!173:173) -> 0 | AF21: =LOOKUP(AF14,'Assumptions Sheet'!167:167,'Assumptions Sheet'!173:173) -> 0 | AG21: =LOOKUP(AG14,'Assumptions Sheet'!167:167,'Assumptions Sheet'!173:173) -> 0 | AH21: =LOOKUP(AH14,'Assumptions Sheet'!167:167,'Assumptions Sheet'!173:173) -> 0 | AI21: =LOOKUP(AI14,'Assumptions Sheet'!167:167,'Assumptions Sheet'!173:173) -> 0 | AJ21: =LOOKUP(AJ14,'Assumptions Sheet'!167:167,'Assumptions Sheet'!173:173) -> 0 | AK21: =LOOKUP(AK14,'Assumptions Sheet'!167:167,'Assumptions Sheet'!173:173) -> 9331.93822 | AL21: =LOOKUP(AL14,'Assumptions Sheet'!167:167,'Assumptions Sheet'!173:173) -> 9331.93822 | AM21: =LOOKUP(AM14,'Assumptions Sheet'!167:167,'Assumptions Sheet'!173:173) -> 11407.57689 | AN21: =LOOKUP(AN14,'Assumptions Sheet'!167:167,'Assumptions Sheet'!173:173) -> 11407.57689 | AO21: =LOOKUP(AO14,'Assumptions Sheet'!167:167,'Assumptions Sheet'!173:173) -> 11816.49455 | AP21: =LOOKUP(AP14,'Assumptions Sheet'!167:167,'Assumptions Sheet'!173:173) -> 11816.49455 | AQ21: =LOOKUP(AQ14,'Assumptions Sheet'!167:167,'Assumptions Sheet'!173:173) -> 12015.54918 | AR21: =LOOKUP(AR14,'Assumptions Sheet'!167:167,'Assumptions Sheet'!173:173) -> 12015.54918 | AS21: =LOOKUP(AS14,'Assumptions Sheet'!167:167,'Assumptions Sheet'!173:173) -> 12015.54918 | AT21: =LOOKUP(AT14,'Assumptions Sheet'!167:167,'Assumptions Sheet'!173:173) -> 12015.54918 | AU21: =LOOKUP(AU14,'Assumptions Sheet'!167:167,'Assumptions Sheet'!173:173) -> 12015.54918 | AV21: =LOOKUP(AV14,'Assumptions Sheet'!167:167,'Assumptions Sheet'!173:173) -> 12015.54918 | AW21: =LOOKUP(AW14,'Assumptions Sheet'!167:167,'Assumptions Sheet'!173:173) -> 12015.54918 | AX21: =LOOKUP(AX14,'Assumptions Sheet'!167:167,'Assumptions Sheet'!173:173) -> 12015.54918 | AY21: =LOOKUP(AY14,'Assumptions Sheet'!167:167,'Assumptions Sheet'!173:173) -> 12015.54918 | AZ21: =LOOKUP(AZ14,'Assumptions Sheet'!167:167,'Assumptions Sheet'!173:173) -> 12015.54918 | BA21: =LOOKUP(BA14,'Assumptions Sheet'!167:167,'Assumptions Sheet'!173:173) -> 12015.54918 | BB21: =LOOKUP(BB14,'Assumptions Sheet'!167:167,'Assumptions Sheet'!173:173) -> 12015.54918 | BC21: =LOOKUP(BC14,'Assumptions Sheet'!167:167,'Assumptions Sheet'!173:173) -> 0 | BD21: =LOOKUP(BD14,'Assumptions Sheet'!167:167,'Assumptions Sheet'!173:173) -> 0 | BE21: =LOOKUP(BE14,'Assumptions Sheet'!167:167,'Assumptions Sheet'!173:173) -> 0 | BF21: =LOOKUP(BF14,'Assumptions Sheet'!167:167,'Assumptions Sheet'!173:173) -> 0 | BG21: =LOOKUP(BG14,'Assumptions Sheet'!167:167,'Assumptions Sheet'!173:173) -> 0 | BH21: =LOOKUP(BH14,'Assumptions Sheet'!167:167,'Assumptions Sheet'!173:173) -> 0 | BI21: =LOOKUP(BI14,'Assumptions Sheet'!167:167,'Assumptions Sheet'!173:173) -> 0 | BJ21: =LOOKUP(BJ14,'Assumptions Sheet'!167:167,'Assumptions Sheet'!173:173) -> 0 | BK21: =LOOKUP(BK14,'Assumptions Sheet'!167:167,'Assumptions Sheet'!173:173) -> 0 | BL21: =LOOKUP(BL14,'Assumptions Sheet'!167:167,'Assumptions Sheet'!173:173) -> 0 | BM21: =LOOKUP(BM14,'Assumptions Sheet'!167:167,'Assumptions Sheet'!173:173) -> 0 | BN21: =LOOKUP(BN14,'Assumptions Sheet'!167:167,'Assumptions Sheet'!173:173) -> 0 | BO21: =LOOKUP(BO14,'Assumptions Sheet'!167:167,'Assumptions Sheet'!173:173) -> 0 | BP21: =LOOKUP(BP14,'Assumptions Sheet'!167:167,'Assumptions Sheet'!173:173) -> 0 | BQ21: =LOOKUP(BQ14,'Assumptions Sheet'!167:167,'Assumptions Sheet'!173:173) -> 0 | BR21: =LOOKUP(BR14,'Assumptions Sheet'!167:167,'Assumptions Sheet'!173:173) -> 0 | BS21: =LOOKUP(BS14,'Assumptions Sheet'!167:167,'Assumptions Sheet'!173:173) -> 0 | BT21: =LOOKUP(BT14,'Assumptions Sheet'!167:167,'Assumptions Sheet'!173:173) -> 0 | BU21: =LOOKUP(BU14,'Assumptions Sheet'!167:167,'Assumptions Sheet'!173:173) -> 0 | BV21: =LOOKUP(BV14,'Assumptions Sheet'!167:167,'Assumptions Sheet'!173:173) -> 0 | BW21: =LOOKUP(BW14,'Assumptions Sheet'!167:167,'Assumptions Sheet'!173:173) -> 0 | BX21: =LOOKUP(BX14,'Assumptions Sheet'!167:167,'Assumptions Sheet'!173:173) -> 0 | BY21: =LOOKUP(BY14,'Assumptions Sheet'!167:167,'Assumptions Sheet'!173:173) -> 0 | BZ21: =LOOKUP(BZ14,'Assumptions Sheet'!167:167,'Assumptions Sheet'!173:173) -> 0 | CA21: =LOOKUP(CA14,'Assumptions Sheet'!167:167,'Assumptions Sheet'!173:173) -> 0 | CB21: =LOOKUP(CB14,'Assumptions Sheet'!167:167,'Assumptions Sheet'!173:173) -> 0 | CC21: =LOOKUP(CC14,'Assumptions Sheet'!167:167,'Assumptions Sheet'!173:173) -> 0 | CD21: =LOOKUP(CD14,'Assumptions Sheet'!167:167,'Assumptions Sheet'!173:173) -> 0 | CE21: =LOOKUP(CE14,'Assumptions Sheet'!167:167,'Assumptions Sheet'!173:173) -> 0 | CF21: =LOOKUP(CF14,'Assumptions Sheet'!167:167,'Assumptions Sheet'!173:173) -> 0 | CG21: =LOOKUP(CG14,'Assumptions Sheet'!167:167,'Assumptions Sheet'!173:173) -> 0 | CH21: =LOOKUP(CH14,'Assumptions Sheet'!167:167,'Assumptions Sheet'!173:173) -> 0 | CI21: =LOOKUP(CI14,'Assumptions Sheet'!167:167,'Assumptions Sheet'!173:173) -> 0 | CJ21: =LOOKUP(CJ14,'Assumptions Sheet'!167:167,'Assumptions Sheet'!173:173) -> 0 | CK21: =LOOKUP(CK14,'Assumptions Sheet'!167:167,'Assumptions Sheet'!173:173) -> 0 | CL21: =LOOKUP(CL14,'Assumptions Sheet'!167:167,'Assumptions Sheet'!173:173) -> 0 | CM21: =LOOKUP(CM14,'Assumptions Sheet'!167:167,'Assumptions Sheet'!173:173) -> 0 | CN21: =LOOKUP(CN14,'Assumptions Sheet'!167:167,'Assumptions Sheet'!173:173) -> 0 | CO21: =LOOKUP(CO14,'Assumptions Sheet'!167:167,'Assumptions Sheet'!173:173) -> 0
D22: Total Production | E22: Tons p.a. | K22: =SUM(K20:K21) -> 0 | L22: =SUM(L20:L21) -> 0 | M22: 0 | N22: 0 | O22: 0 | P22: 0 | Q22: 0 | R22: 0 | S22: 0 | T22: 0 | U22: 0 | V22: 0 | W22: 0 | X22: 0 | Y22: 0 | Z22: 0 | AA22: 0 | AB22: 0 | AC22: 0 | AD22: 0 | AE22: 0 | AF22: 0 | AG22: 0 | AH22: 0 | AI22: 0 | AJ22: 0 | AK22: 31106.46073 | AL22: 31106.46073 | AM22: 38025.2563 | AN22: 38025.2563 | AO22: 39388.31515 | AP22: 39388.31515 | AQ22: 40051.83061 | AR22: 40051.83061 | AS22: 40051.83061 | AT22: 40051.83061 | AU22: 40051.83061 | AV22: 40051.83061 | AW22: 40051.83061 | AX22: 40051.83061 | AY22: 40051.83061 | AZ22: 40051.83061 | BA22: 40051.83061 | BB22: 40051.83061 | BC22: 0 | BD22: 0 | BE22: 0 | BF22: 0 | BG22: 0 | BH22: 0 | BI22: 0 | BJ22: 0 | BK22: 0 | BL22: 0 | BM22: 0 | BN22: 0 | BO22: 0 | BP22: 0 | BQ22: 0 | BR22: 0 | BS22: 0 | BT22: 0 | BU22: 0 | BV22: 0 | BW22: 0 | BX22: =SUM(BX20:BX21) -> 0 | BY22: 0 | BZ22: 0 | CA22: 0 | CB22: 0 | CC22: 0 | CD22: 0 | CE22: 0 | CF22: 0 | CG22: 0 | CH22: 0 | CI22: 0 | CJ22: 0 | CK22: 0 | CL22: 0 | CM22: 0 | CN22: 0 | CO22: 0
C24: Downtime Days | E24: Days | F24: ='Assumptions Sheet'!F44 -> 12 | K24: =$F$24*K7 -> 0 | L24: =$F$24*L7 -> 0 | M24: 0 | N24: 0 | O24: 0 | P24: 0 | Q24: 0 | R24: 0 | S24: 0 | T24: 0 | U24: 0 | V24: 0 | W24: 0 | X24: 0 | Y24: 0 | Z24: 0 | AA24: 0 | AB24: 0 | AC24: 0 | AD24: 0 | AE24: 0 | AF24: 0 | AG24: 0 | AH24: 0 | AI24: 0 | AJ24: 0 | AK24: 12 | AL24: 12 | AM24: 12 | AN24: 12 | AO24: 12 | AP24: 12 | AQ24: 12 | AR24: 12 | AS24: 12 | AT24: 12 | AU24: 12 | AV24: 12 | AW24: 12 | AX24: 12 | AY24: 12 | AZ24: 12 | BA24: 12 | BB24: 12 | BC24: 0 | BD24: 0 | BE24: 0 | BF24: 0 | BG24: 0 | BH24: 0 | BI24: 0 | BJ24: 0 | BK24: 0 | BL24: 0 | BM24: 0 | BN24: 0 | BO24: 0 | BP24: 0 | BQ24: 0 | BR24: 0 | BS24: 0 | BT24: 0 | BU24: 0 | BV24: 0 | BW24: 0 | BX24: =$F$24*BX7 -> 0 | BY24: 0 | BZ24: 0 | CA24: 0 | CB24: 0 | CC24: 0 | CD24: 0 | CE24: 0 | CF24: 0 | CG24: 0 | CH24: 0 | CI24: 0 | CJ24: 0 | CK24: 0 | CL24: 0 | CM24: 0 | CN24: 0 | CO24: 0
C25: Downtime Percent | E25: % | F25: ='Assumptions Sheet'!F47 -> 0.03287671233 | K25: =$F$25*K7 -> 0 | L25: =$F$25*L7 -> 0 | M25: 0 | N25: 0 | O25: 0 | P25: 0 | Q25: 0 | R25: 0 | S25: 0 | T25: 0 | U25: 0 | V25: 0 | W25: 0 | X25: 0 | Y25: 0 | Z25: 0 | AA25: 0 | AB25: 0 | AC25: 0 | AD25: 0 | AE25: 0 | AF25: 0 | AG25: 0 | AH25: 0 | AI25: 0 | AJ25: 0 | AK25: 0.03287671233 | AL25: 0.03287671233 | AM25: 0.03287671233 | AN25: 0.03287671233 | AO25: 0.03287671233 | AP25: 0.03287671233 | AQ25: 0.03287671233 | AR25: 0.03287671233 | AS25: 0.03287671233 | AT25: 0.03287671233 | AU25: 0.03287671233 | AV25: 0.03287671233 | AW25: 0.03287671233 | AX25: 0.03287671233 | AY25: 0.03287671233 | AZ25: 0.03287671233 | BA25: 0.03287671233 | BB25: 0.03287671233 | BC25: 0 | BD25: 0 | BE25: 0 | BF25: 0 | BG25: 0 | BH25: 0 | BI25: 0 | BJ25: 0 | BK25: 0 | BL25: 0 | BM25: 0 | BN25: 0 | BO25: 0 | BP25: 0 | BQ25: 0 | BR25: 0 | BS25: 0 | BT25: 0 | BU25: 0 | BV25: 0 | BW25: 0 | BX25: =$F$25*BX7 -> 0 | BY25: 0 | BZ25: 0 | CA25: 0 | CB25: 0 | CC25: 0 | CD25: 0 | CE25: 0 | CF25: 0 | CG25: 0 | CH25: 0 | CI25: 0 | CJ25: 0 | CK25: 0 | CL25: 0 | CM25: 0 | CN25: 0 | CO25: 0
C26: Days in Period | E26: Days | K26: =K6-K5+1 -> 28 | L26: =L6-L5+1 -> 31 | M26: 30 | N26: 31 | O26: 30 | P26: 31 | Q26: 31 | R26: 30 | S26: 31 | T26: 30 | U26: 31 | V26: 31 | W26: 28 | X26: 31 | Y26: 30 | Z26: 31 | AA26: 30 | AB26: 31 | AC26: 31 | AD26: 30 | AE26: 31 | AF26: 30 | AG26: 31 | AH26: 31 | AI26: 29 | AJ26: 31 | AK26: 183 | AL26: 182 | AM26: 183 | AN26: 182 | AO26: 183 | AP26: 182 | AQ26: 183 | AR26: 183 | AS26: 183 | AT26: 182 | AU26: 183 | AV26: 182 | AW26: 183 | AX26: 182 | AY26: 183 | AZ26: 183 | BA26: 183 | BB26: 182 | BC26: 183 | BD26: 182 | BE26: 183 | BF26: 182 | BG26: 183 | BH26: 183 | BI26: 183 | BJ26: 182 | BK26: 183 | BL26: 182 | BM26: 183 | BN26: 182 | BO26: 183 | BP26: 183 | BQ26: 183 | BR26: 182 | BS26: 183 | BT26: 182 | BU26: 183 | BV26: 182 | BW26: 183 | BX26: =BX6-BX5+1 -> 183 | BY26: 183 | BZ26: 182 | CA26: 183 | CB26: 182 | CC26: 183 | CD26: 182 | CE26: 183 | CF26: 183 | CG26: 183 | CH26: 182 | CI26: 183 | CJ26: 182 | CK26: 183 | CL26: 182 | CM26: 183 | CN26: 183 | CO26: 183
C27: Production capacity MT/day | E27: MT/day | F27: ='Assumptions Sheet'!F51 -> 113.4612765 | K27: =$F$27*K7 -> 0 | L27: =$F$27*L7 -> 0 | M27: 0 | N27: 0 | O27: 0 | P27: 0 | Q27: 0 | R27: 0 | S27: 0 | T27: 0 | U27: 0 | V27: 0 | W27: 0 | X27: 0 | Y27: 0 | Z27: 0 | AA27: 0 | AB27: 0 | AC27: 0 | AD27: 0 | AE27: 0 | AF27: 0 | AG27: 0 | AH27: 0 | AI27: 0 | AJ27: 0 | AK27: 113.4612765 | AL27: 113.4612765 | AM27: 113.4612765 | AN27: 113.4612765 | AO27: 113.4612765 | AP27: 113.4612765 | AQ27: 113.4612765 | AR27: 113.4612765 | AS27: 113.4612765 | AT27: 113.4612765 | AU27: 113.4612765 | AV27: 113.4612765 | AW27: 113.4612765 | AX27: 113.4612765 | AY27: 113.4612765 | AZ27: 113.4612765 | BA27: 113.4612765 | BB27: 113.4612765 | BC27: 0 | BD27: 0 | BE27: 0 | BF27: 0 | BG27: 0 | BH27: 0 | BI27: 0 | BJ27: 0 | BK27: 0 | BL27: 0 | BM27: 0 | BN27: 0 | BO27: 0 | BP27: 0 | BQ27: 0 | BR27: 0 | BS27: 0 | BT27: 0 | BU27: 0 | BV27: 0 | BW27: 0 | BX27: =$F$27*BX7 -> 0 | BY27: 0 | BZ27: 0 | CA27: 0 | CB27: 0 | CC27: 0 | CD27: 0 | CE27: 0 | CF27: 0 | CG27: 0 | CH27: 0 | CI27: 0 | CJ27: 0 | CK27: 0 | CL27: 0 | CM27: 0 | CN27: 0 | CO27: 0
C28: Production Capacity per Year | E28: MT/Year | K28: =K27*K26 -> 0 | L28: =L27*L26 -> 0 | M28: 0 | N28: 0 | O28: 0 | P28: 0 | Q28: 0 | R28: 0 | S28: 0 | T28: 0 | U28: 0 | V28: 0 | W28: 0 | X28: 0 | Y28: 0 | Z28: 0 | AA28: 0 | AB28: 0 | AC28: 0 | AD28: 0 | AE28: 0 | AF28: 0 | AG28: 0 | AH28: 0 | AI28: 0 | AJ28: 0 | AK28: 20763.4136 | AL28: 20649.95233 | AM28: 20763.4136 | AN28: 20649.95233 | AO28: 20763.4136 | AP28: 20649.95233 | AQ28: 20763.4136 | AR28: 20763.4136 | AS28: 20763.4136 | AT28: 20649.95233 | AU28: 20763.4136 | AV28: 20649.95233 | AW28: 20763.4136 | AX28: 20649.95233 | AY28: 20763.4136 | AZ28: 20763.4136 | BA28: 20763.4136 | BB28: 20649.95233 | BC28: 0 | BD28: 0 | BE28: 0 | BF28: 0 | BG28: 0 | BH28: 0 | BI28: 0 | BJ28: 0 | BK28: 0 | BL28: 0 | BM28: 0 | BN28: 0 | BO28: 0 | BP28: 0 | BQ28: 0 | BR28: 0 | BS28: 0 | BT28: 0 | BU28: 0 | BV28: 0 | BW28: 0 | BX28: =BX27*BX26 -> 0 | BY28: 0 | BZ28: 0 | CA28: 0 | CB28: 0 | CC28: 0 | CD28: 0 | CE28: 0 | CF28: 0 | CG28: 0 | CH28: 0 | CI28: 0 | CJ28: 0 | CK28: 0 | CL28: 0 | CM28: 0 | CN28: 0 | CO28: 0
C30: Fraction of Year for Period | E30: % | K30: =K4/12 -> 0.08333333333 | L30: =L4/12 -> 0.08333333333 | M30: 0.08333333333 | N30: 0.08333333333 | O30: 0.08333333333 | P30: 0.08333333333 | Q30: 0.08333333333 | R30: 0.08333333333 | S30: 0.08333333333 | T30: 0.08333333333 | U30: 0.08333333333 | V30: 0.08333333333 | W30: 0.08333333333 | X30: 0.08333333333 | Y30: 0.08333333333 | Z30: 0.08333333333 | AA30: 0.08333333333 | AB30: 0.08333333333 | AC30: 0.08333333333 | AD30: 0.08333333333 | AE30: 0.08333333333 | AF30: 0.08333333333 | AG30: 0.08333333333 | AH30: 0.08333333333 | AI30: 0.08333333333 | AJ30: 0.08333333333 | AK30: 0.5 | AL30: 0.5 | AM30: 0.5 | AN30: 0.5 | AO30: 0.5 | AP30: 0.5 | AQ30: 0.5 | AR30: 0.5 | AS30: 0.5 | AT30: 0.5 | AU30: 0.5 | AV30: 0.5 | AW30: 0.5 | AX30: 0.5 | AY30: 0.5 | AZ30: 0.5 | BA30: 0.5 | BB30: 0.5 | BC30: 0.5 | BD30: 0.5 | BE30: 0.5 | BF30: 0.5 | BG30: 0.5 | BH30: 0.5 | BI30: 0.5 | BJ30: 0.5 | BK30: 0.5 | BL30: 0.5 | BM30: 0.5 | BN30: 0.5 | BO30: 0.5 | BP30: 0.5 | BQ30: 0.5 | BR30: 0.5 | BS30: 0.5 | BT30: 0.5 | BU30: 0.5 | BV30: 0.5 | BW30: 0.5 | BX30: =BX4/12 -> 0.5 | BY30: 0.5 | BZ30: 0.5 | CA30: 0.5 | CB30: 0.5 | CC30: 0.5 | CD30: 0.5 | CE30: 0.5 | CF30: 0.5 | CG30: 0.5 | CH30: 0.5 | CI30: 0.5 | CJ30: 0.5 | CK30: 0.5 | CL30: 0.5 | CM30: 0.5 | CN30: 0.5 | CO30: 0.5
C31: Bulk Rolls - Periodic | E31: Tons p.p. | K31: =K20*K30 -> 0 | L31: =L20*L30 -> 0 | M31: 0 | N31: 0 | O31: 0 | P31: 0 | Q31: 0 | R31: 0 | S31: 0 | T31: 0 | U31: 0 | V31: 0 | W31: 0 | X31: 0 | Y31: 0 | Z31: 0 | AA31: 0 | AB31: 0 | AC31: 0 | AD31: 0 | AE31: 0 | AF31: 0 | AG31: 0 | AH31: 0 | AI31: 0 | AJ31: 0 | AK31: 10887.26126 | AL31: 10887.26126 | AM31: 13308.8397 | AN31: 13308.8397 | AO31: 13785.9103 | AP31: 13785.9103 | AQ31: 14018.14071 | AR31: 14018.14071 | AS31: 14018.14071 | AT31: 14018.14071 | AU31: 14018.14071 | AV31: 14018.14071 | AW31: 14018.14071 | AX31: 14018.14071 | AY31: 14018.14071 | AZ31: 14018.14071 | BA31: 14018.14071 | BB31: 14018.14071 | BC31: 0 | BD31: 0 | BE31: 0 | BF31: 0 | BG31: 0 | BH31: 0 | BI31: 0 | BJ31: 0 | BK31: 0 | BL31: 0 | BM31: 0 | BN31: 0 | BO31: 0 | BP31: 0 | BQ31: 0 | BR31: 0 | BS31: 0 | BT31: 0 | BU31: 0 | BV31: 0 | BW31: 0 | BX31: =BX20*BX30 -> 0 | BY31: 0 | BZ31: 0 | CA31: 0 | CB31: 0 | CC31: 0 | CD31: 0 | CE31: 0 | CF31: 0 | CG31: 0 | CH31: 0 | CI31: 0 | CJ31: 0 | CK31: 0 | CL31: 0 | CM31: 0 | CN31: 0 | CO31: 0
C32: Capacity Utilisation | E32: % | K32: =IF(K28,K31/K28)*1 -> 0 | L32: =IF(L28,L31/L28)*1 -> 0 | M32: 0 | N32: 0 | O32: 0 | P32: 0 | Q32: 0 | R32: 0 | S32: 0 | T32: 0 | U32: 0 | V32: 0 | W32: 0 | X32: 0 | Y32: 0 | Z32: 0 | AA32: 0 | AB32: 0 | AC32: 0 | AD32: 0 | AE32: 0 | AF32: 0 | AG32: 0 | AH32: 0 | AI32: 0 | AJ32: 0 | AK32: 0.5243483304 | AL32: 0.5272293652 | AM32: 0.6409755139 | AN32: 0.6444973573 | AO32: 0.6639520151 | AP32: 0.6676001031 | AQ32: 0.675136612 | AR32: 0.675136612 | AS32: 0.675136612 | AT32: 0.6788461538 | AU32: 0.675136612 | AV32: 0.6788461538 | AW32: 0.675136612 | AX32: 0.6788461538 | AY32: 0.675136612 | AZ32: 0.675136612 | BA32: 0.675136612 | BB32: 0.6788461538 | BC32: 0 | BD32: 0 | BE32: 0 | BF32: 0 | BG32: 0 | BH32: 0 | BI32: 0 | BJ32: 0 | BK32: 0 | BL32: 0 | BM32: 0 | BN32: 0 | BO32: 0 | BP32: 0 | BQ32: 0 | BR32: 0 | BS32: 0 | BT32: 0 | BU32: 0 | BV32: 0 | BW32: 0 | BX32: =IF(BX28,BX31/BX28)*1 -> 0 | BY32: 0 | BZ32: 0 | CA32: 0 | CB32: 0 | CC32: 0 | CD32: 0 | CE32: 0 | CF32: 0 | CG32: 0 | CH32: 0 | CI32: 0 | CJ32: 0 | CK32: 0 | CL32: 0 | CM32: 0 | CN32: 0 | CO32: 0
C34: Bulk Product Sold in Period | E34: Tons p.p. | K34: =K20*K30 -> 0 | L34: =L20*L30 -> 0 | M34: 0 | N34: 0 | O34: 0 | P34: 0 | Q34: 0 | R34: 0 | S34: 0 | T34: 0 | U34: 0 | V34: 0 | W34: 0 | X34: 0 | Y34: 0 | Z34: 0 | AA34: 0 | AB34: 0 | AC34: 0 | AD34: 0 | AE34: 0 | AF34: 0 | AG34: 0 | AH34: 0 | AI34: 0 | AJ34: 0 | AK34: 10887.26126 | AL34: 10887.26126 | AM34: 13308.8397 | AN34: 13308.8397 | AO34: 13785.9103 | AP34: 13785.9103 | AQ34: 14018.14071 | AR34: 14018.14071 | AS34: 14018.14071 | AT34: 14018.14071 | AU34: 14018.14071 | AV34: 14018.14071 | AW34: 14018.14071 | AX34: 14018.14071 | AY34: 14018.14071 | AZ34: 14018.14071 | BA34: 14018.14071 | BB34: 14018.14071 | BC34: 0 | BD34: 0 | BE34: 0 | BF34: 0 | BG34: 0 | BH34: 0 | BI34: 0 | BJ34: 0 | BK34: 0 | BL34: 0 | BM34: 0 | BN34: 0 | BO34: 0 | BP34: 0 | BQ34: 0 | BR34: 0 | BS34: 0 | BT34: 0 | BU34: 0 | BV34: 0 | BW34: 0 | BX34: =BX20*BX30 -> 0 | BY34: 0 | BZ34: 0 | CA34: 0 | CB34: 0 | CC34: 0 | CD34: 0 | CE34: 0 | CF34: 0 | CG34: 0 | CH34: 0 | CI34: 0 | CJ34: 0 | CK34: 0 | CL34: 0 | CM34: 0 | CN34: 0 | CO34: 0
C35: Converted Product [Tons] - Export | E35: Tons p.p. | F35: ='Assumptions Sheet'!H165 -> 0.3 | K35: =K21*$F$35*K30 -> 0 | L35: =L21*$F$35*L30 -> 0 | M35: 0 | N35: 0 | O35: 0 | P35: 0 | Q35: 0 | R35: 0 | S35: 0 | T35: 0 | U35: 0 | V35: 0 | W35: 0 | X35: 0 | Y35: 0 | Z35: 0 | AA35: 0 | AB35: 0 | AC35: 0 | AD35: 0 | AE35: 0 | AF35: 0 | AG35: 0 | AH35: 0 | AI35: 0 | AJ35: 0 | AK35: 1399.790733 | AL35: 1399.790733 | AM35: 1711.136533 | AN35: 1711.136533 | AO35: 1772.474182 | AP35: 1772.474182 | AQ35: 1802.332378 | AR35: 1802.332378 | AS35: 1802.332378 | AT35: 1802.332378 | AU35: 1802.332378 | AV35: 1802.332378 | AW35: 1802.332378 | AX35: 1802.332378 | AY35: 1802.332378 | AZ35: 1802.332378 | BA35: 1802.332378 | BB35: 1802.332378 | BC35: 0 | BD35: 0 | BE35: 0 | BF35: 0 | BG35: 0 | BH35: 0 | BI35: 0 | BJ35: 0 | BK35: 0 | BL35: 0 | BM35: 0 | BN35: 0 | BO35: 0 | BP35: 0 | BQ35: 0 | BR35: 0 | BS35: 0 | BT35: 0 | BU35: 0 | BV35: 0 | BW35: 0 | BX35: =BX21*$F$35*BX30 -> 0 | BY35: 0 | BZ35: 0 | CA35: 0 | CB35: 0 | CC35: 0 | CD35: 0 | CE35: 0 | CF35: 0 | CG35: 0 | CH35: 0 | CI35: 0 | CJ35: 0 | CK35: 0 | CL35: 0 | CM35: 0 | CN35: 0 | CO35: 0
C36: Converted Product [Tons] - Local | E36: Tons p.p. | F36: ='Assumptions Sheet'!F166 -> 0.7 | K36: =K21*$F$36*K30 -> 0 | L36: =L21*$F$36*L30 -> 0 | M36: 0 | N36: 0 | O36: 0 | P36: 0 | Q36: 0 | R36: 0 | S36: 0 | T36: 0 | U36: 0 | V36: 0 | W36: 0 | X36: 0 | Y36: 0 | Z36: 0 | AA36: 0 | AB36: 0 | AC36: 0 | AD36: 0 | AE36: 0 | AF36: 0 | AG36: 0 | AH36: 0 | AI36: 0 | AJ36: 0 | AK36: 3266.178377 | AL36: 3266.178377 | AM36: 3992.651911 | AN36: 3992.651911 | AO36: 4135.773091 | AP36: 4135.773091 | AQ36: 4205.442214 | AR36: 4205.442214 | AS36: 4205.442214 | AT36: 4205.442214 | AU36: 4205.442214 | AV36: 4205.442214 | AW36: 4205.442214 | AX36: 4205.442214 | AY36: 4205.442214 | AZ36: 4205.442214 | BA36: 4205.442214 | BB36: 4205.442214 | BC36: 0 | BD36: 0 | BE36: 0 | BF36: 0 | BG36: 0 | BH36: 0 | BI36: 0 | BJ36: 0 | BK36: 0 | BL36: 0 | BM36: 0 | BN36: 0 | BO36: 0 | BP36: 0 | BQ36: 0 | BR36: 0 | BS36: 0 | BT36: 0 | BU36: 0 | BV36: 0 | BW36: 0 | BX36: =BX21*$F$36*BX30 -> 0 | BY36: 0 | BZ36: 0 | CA36: 0 | CB36: 0 | CC36: 0 | CD36: 0 | CE36: 0 | CF36: 0 | CG36: 0 | CH36: 0 | CI36: 0 | CJ36: 0 | CK36: 0 | CL36: 0 | CM36: 0 | CN36: 0 | CO36: 0
A38: Capital Expenditures without Financing
C39: Closing Costs | E39: USD | F39: ='Assumptions Sheet'!F10 -> 2018-02-01 | G39: ='Assumptions Sheet'!F111 -> 6010000 | K39: =(K5=$F$39)*$G$39 -> 6010000 | L39: 0 | M39: 0 | N39: 0 | O39: 0 | P39: 0 | Q39: 0 | R39: 0 | S39: 0 | T39: 0 | U39: 0 | V39: 0 | W39: 0 | X39: 0 | Y39: 0 | Z39: 0 | AA39: 0 | AB39: 0 | AC39: 0 | AD39: 0 | AE39: 0 | AF39: 0 | AG39: 0 | AH39: 0 | AI39: 0 | AJ39: 0 | AK39: 0 | AL39: 0 | AM39: 0 | AN39: 0 | AO39: 0 | AP39: 0 | AQ39: =(AQ5=$F$39)*$G$39 -> 0 | AR39: 0 | AS39: 0 | AT39: 0 | AU39: 0 | AV39: 0 | AW39: 0 | AX39: 0 | AY39: 0 | AZ39: 0 | BA39: 0 | BB39: 0 | BC39: 0 | BD39: 0 | BE39: 0 | BF39: 0 | BG39: 0 | BH39: 0 | BI39: 0 | BJ39: 0 | BK39: 0 | BL39: 0 | BM39: 0 | BN39: 0 | BO39: 0 | BP39: 0 | BQ39: 0 | BR39: 0 | BS39: 0 | BT39: 0 | BU39: 0 | BV39: 0 | BW39: =(BW5=$F$39)*$G$39 -> 0 | BX39: 0 | BY39: 0 | BZ39: 0 | CA39: 0 | CB39: 0 | CC39: 0 | CD39: 0 | CE39: 0 | CF39: 0 | CG39: 0 | CH39: 0 | CI39: 0 | CJ39: 0 | CK39: 0 | CL39: 0 | CM39: 0 | CN39: 0 | CO39: 0
C40: Civil + Building & Infrastructure - Pct of Expenditure | E40: USD | G40: =SUM(K40:CO40) -> 29105125 | K40: =SUMIF('Assumptions Sheet'!$G$114:$K$114,'Operating Analysis'!K5,'Assumptions Sheet'!$G$129:$K$129) -> 0 | L40: =SUMIF('Assumptions Sheet'!$G$114:$K$114,'Operating Analysis'!L5,'Assumptions Sheet'!$G$129:$K$129) -> 5821025 | M40: =SUMIF('Assumptions Sheet'!$G$114:$K$114,'Operating Analysis'!M5,'Assumptions Sheet'!$G$129:$K$129) -> 0 | N40: =SUMIF('Assumptions Sheet'!$G$114:$K$114,'Operating Analysis'!N5,'Assumptions Sheet'!$G$129:$K$129) -> 0 | O40: =SUMIF('Assumptions Sheet'!$G$114:$K$114,'Operating Analysis'!O5,'Assumptions Sheet'!$G$129:$K$129) -> 0 | P40: =SUMIF('Assumptions Sheet'!$G$114:$K$114,'Operating Analysis'!P5,'Assumptions Sheet'!$G$129:$K$129) -> 0 | Q40: =SUMIF('Assumptions Sheet'!$G$114:$K$114,'Operating Analysis'!Q5,'Assumptions Sheet'!$G$129:$K$129) -> 0 | R40: =SUMIF('Assumptions Sheet'!$G$114:$K$114,'Operating Analysis'!R5,'Assumptions Sheet'!$G$129:$K$129) -> 5821025 | S40: =SUMIF('Assumptions Sheet'!$G$114:$K$114,'Operating Analysis'!S5,'Assumptions Sheet'!$G$129:$K$129) -> 0 | T40: =SUMIF('Assumptions Sheet'!$G$114:$K$114,'Operating Analysis'!T5,'Assumptions Sheet'!$G$129:$K$129) -> 0 | U40: =SUMIF('Assumptions Sheet'!$G$114:$K$114,'Operating Analysis'!U5,'Assumptions Sheet'!$G$129:$K$129) -> 0 | V40: =SUMIF('Assumptions Sheet'!$G$114:$K$114,'Operating Analysis'!V5,'Assumptions Sheet'!$G$129:$K$129) -> 0 | W40: =SUMIF('Assumptions Sheet'!$G$114:$K$114,'Operating Analysis'!W5,'Assumptions Sheet'!$G$129:$K$129) -> 0 | X40: =SUMIF('Assumptions Sheet'!$G$114:$K$114,'Operating Analysis'!X5,'Assumptions Sheet'!$G$129:$K$129) -> 5821025 | Y40: =SUMIF('Assumptions Sheet'!$G$114:$K$114,'Operating Analysis'!Y5,'Assumptions Sheet'!$G$129:$K$129) -> 0 | Z40: =SUMIF('Assumptions Sheet'!$G$114:$K$114,'Operating Analysis'!Z5,'Assumptions Sheet'!$G$129:$K$129) -> 0 | AA40: =SUMIF('Assumptions Sheet'!$G$114:$K$114,'Operating Analysis'!AA5,'Assumptions Sheet'!$G$129:$K$129) -> 0 | AB40: =SUMIF('Assumptions Sheet'!$G$114:$K$114,'Operating Analysis'!AB5,'Assumptions Sheet'!$G$129:$K$129) -> 0 | AC40: =SUMIF('Assumptions Sheet'!$G$114:$K$114,'Operating Analysis'!AC5,'Assumptions Sheet'!$G$129:$K$129) -> 0 | AD40: =SUMIF('Assumptions Sheet'!$G$114:$K$114,'Operating Analysis'!AD5,'Assumptions Sheet'!$G$129:$K$129) -> 5821025 | AE40: =SUMIF('Assumptions Sheet'!$G$114:$K$114,'Operating Analysis'!AE5,'Assumptions Sheet'!$G$129:$K$129) -> 0 | AF40: =SUMIF('Assumptions Sheet'!$G$114:$K$114,'Operating Analysis'!AF5,'Assumptions Sheet'!$G$129:$K$129) -> 0 | AG40: =SUMIF('Assumptions Sheet'!$G$114:$K$114,'Operating Analysis'!AG5,'Assumptions Sheet'!$G$129:$K$129) -> 0 | AH40: =SUMIF('Assumptions Sheet'!$G$114:$K$114,'Operating Analysis'!AH5,'Assumptions Sheet'!$G$129:$K$129) -> 0 | AI40: =SUMIF('Assumptions Sheet'!$G$114:$K$114,'Operating Analysis'!AI5,'Assumptions Sheet'!$G$129:$K$129) -> 5821025 | AJ40: =SUMIF('Assumptions Sheet'!$G$114:$K$114,'Operating Analysis'!AJ5,'Assumptions Sheet'!$G$129:$K$129) -> 0 | AK40: =SUMIF('Assumptions Sheet'!$G$114:$K$114,'Operating Analysis'!AK5,'Assumptions Sheet'!$G$129:$K$129) -> 0 | AL40: =SUMIF('Assumptions Sheet'!$G$114:$K$114,'Operating Analysis'!AL5,'Assumptions Sheet'!$G$129:$K$129) -> 0 | AM40: =SUMIF('Assumptions Sheet'!$G$114:$K$114,'Operating Analysis'!AM5,'Assumptions Sheet'!$G$129:$K$129) -> 0 | AN40: =SUMIF('Assumptions Sheet'!$G$114:$K$114,'Operating Analysis'!AN5,'Assumptions Sheet'!$G$129:$K$129) -> 0 | AO40: =SUMIF('Assumptions Sheet'!$G$114:$K$114,'Operating Analysis'!AO5,'Assumptions Sheet'!$G$129:$K$129) -> 0 | AP40: =SUMIF('Assumptions Sheet'!$G$114:$K$114,'Operating Analysis'!AP5,'Assumptions Sheet'!$G$129:$K$129) -> 0 | AQ40: =SUMIF('Assumptions Sheet'!$G$114:$K$114,'Operating Analysis'!AQ5,'Assumptions Sheet'!$G$129:$K$129) -> 0 | AR40: =SUMIF('Assumptions Sheet'!$G$114:$K$114,'Operating Analysis'!AR5,'Assumptions Sheet'!$G$129:$K$129) -> 0 | AS40: =SUMIF('Assumptions Sheet'!$G$114:$K$114,'Operating Analysis'!AS5,'Assumptions Sheet'!$G$129:$K$129) -> 0 | AT40: =SUMIF('Assumptions Sheet'!$G$114:$K$114,'Operating Analysis'!AT5,'Assumptions Sheet'!$G$129:$K$129) -> 0 | AU40: =SUMIF('Assumptions Sheet'!$G$114:$K$114,'Operating Analysis'!AU5,'Assumptions Sheet'!$G$129:$K$129) -> 0 | AV40: =SUMIF('Assumptions Sheet'!$G$114:$K$114,'Operating Analysis'!AV5,'Assumptions Sheet'!$G$129:$K$129) -> 0 | AW40: =SUMIF('Assumptions Sheet'!$G$114:$K$114,'Operating Analysis'!AW5,'Assumptions Sheet'!$G$129:$K$129) -> 0 | AX40: =SUMIF('Assumptions Sheet'!$G$114:$K$114,'Operating Analysis'!AX5,'Assumptions Sheet'!$G$129:$K$129) -> 0 | AY40: =SUMIF('Assumptions Sheet'!$G$114:$K$114,'Operating Analysis'!AY5,'Assumptions Sheet'!$G$129:$K$129) -> 0 | AZ40: =SUMIF('Assumptions Sheet'!$G$114:$K$114,'Operating Analysis'!AZ5,'Assumptions Sheet'!$G$129:$K$129) -> 0 | BA40: =SUMIF('Assumptions Sheet'!$G$114:$K$114,'Operating Analysis'!BA5,'Assumptions Sheet'!$G$129:$K$129) -> 0 | BB40: =SUMIF('Assumptions Sheet'!$G$114:$K$114,'Operating Analysis'!BB5,'Assumptions Sheet'!$G$129:$K$129) -> 0 | BC40: =SUMIF('Assumptions Sheet'!$G$114:$K$114,'Operating Analysis'!BC5,'Assumptions Sheet'!$G$129:$K$129) -> 0 | BD40: =SUMIF('Assumptions Sheet'!$G$114:$K$114,'Operating Analysis'!BD5,'Assumptions Sheet'!$G$129:$K$129) -> 0 | BE40: =SUMIF('Assumptions Sheet'!$G$114:$K$114,'Operating Analysis'!BE5,'Assumptions Sheet'!$G$129:$K$129) -> 0 | BF40: =SUMIF('Assumptions Sheet'!$G$114:$K$114,'Operating Analysis'!BF5,'Assumptions Sheet'!$G$129:$K$129) -> 0 | BG40: =SUMIF('Assumptions Sheet'!$G$114:$K$114,'Operating Analysis'!BG5,'Assumptions Sheet'!$G$129:$K$129) -> 0 | BH40: =SUMIF('Assumptions Sheet'!$G$114:$K$114,'Operating Analysis'!BH5,'Assumptions Sheet'!$G$129:$K$129) -> 0 | BI40: =SUMIF('Assumptions Sheet'!$G$114:$K$114,'Operating Analysis'!BI5,'Assumptions Sheet'!$G$129:$K$129) -> 0 | BJ40: =SUMIF('Assumptions Sheet'!$G$114:$K$114,'Operating Analysis'!BJ5,'Assumptions Sheet'!$G$129:$K$129) -> 0 | BK40: =SUMIF('Assumptions Sheet'!$G$114:$K$114,'Operating Analysis'!BK5,'Assumptions Sheet'!$G$129:$K$129) -> 0 | BL40: =SUMIF('Assumptions Sheet'!$G$114:$K$114,'Operating Analysis'!BL5,'Assumptions Sheet'!$G$129:$K$129) -> 0 | BM40: =SUMIF('Assumptions Sheet'!$G$114:$K$114,'Operating Analysis'!BM5,'Assumptions Sheet'!$G$129:$K$129) -> 0 | BN40: =SUMIF('Assumptions Sheet'!$G$114:$K$114,'Operating Analysis'!BN5,'Assumptions Sheet'!$G$129:$K$129) -> 0 | BO40: =SUMIF('Assumptions Sheet'!$G$114:$K$114,'Operating Analysis'!BO5,'Assumptions Sheet'!$G$129:$K$129) -> 0 | BP40: =SUMIF('Assumptions Sheet'!$G$114:$K$114,'Operating Analysis'!BP5,'Assumptions Sheet'!$G$129:$K$129) -> 0 | BQ40: =SUMIF('Assumptions Sheet'!$G$114:$K$114,'Operating Analysis'!BQ5,'Assumptions Sheet'!$G$129:$K$129) -> 0 | BR40: =SUMIF('Assumptions Sheet'!$G$114:$K$114,'Operating Analysis'!BR5,'Assumptions Sheet'!$G$129:$K$129) -> 0 | BS40: =SUMIF('Assumptions Sheet'!$G$114:$K$114,'Operating Analysis'!BS5,'Assumptions Sheet'!$G$129:$K$129) -> 0 | BT40: =SUMIF('Assumptions Sheet'!$G$114:$K$114,'Operating Analysis'!BT5,'Assumptions Sheet'!$G$129:$K$129) -> 0 | BU40: =SUMIF('Assumptions Sheet'!$G$114:$K$114,'Operating Analysis'!BU5,'Assumptions Sheet'!$G$129:$K$129) -> 0 | BV40: =SUMIF('Assumptions Sheet'!$G$114:$K$114,'Operating Analysis'!BV5,'Assumptions Sheet'!$G$129:$K$129) -> 0 | BW40: =SUMIF('Assumptions Sheet'!$G$114:$K$114,'Operating Analysis'!BW5,'Assumptions Sheet'!$G$129:$K$129) -> 0 | BX40: =SUMIF('Assumptions Sheet'!$G$114:$K$114,'Operating Analysis'!BX5,'Assumptions Sheet'!$G$129:$K$129) -> 0 | BY40: =SUMIF('Assumptions Sheet'!$G$114:$K$114,'Operating Analysis'!BY5,'Assumptions Sheet'!$G$129:$K$129) -> 0 | BZ40: =SUMIF('Assumptions Sheet'!$G$114:$K$114,'Operating Analysis'!BZ5,'Assumptions Sheet'!$G$129:$K$129) -> 0 | CA40: =SUMIF('Assumptions Sheet'!$G$114:$K$114,'Operating Analysis'!CA5,'Assumptions Sheet'!$G$129:$K$129) -> 0 | CB40: =SUMIF('Assumptions Sheet'!$G$114:$K$114,'Operating Analysis'!CB5,'Assumptions Sheet'!$G$129:$K$129) -> 0 | CC40: =SUMIF('Assumptions Sheet'!$G$114:$K$114,'Operating Analysis'!CC5,'Assumptions Sheet'!$G$129:$K$129) -> 0 | CD40: =SUMIF('Assumptions Sheet'!$G$114:$K$114,'Operating Analysis'!CD5,'Assumptions Sheet'!$G$129:$K$129) -> 0 | CE40: =SUMIF('Assumptions Sheet'!$G$114:$K$114,'Operating Analysis'!CE5,'Assumptions Sheet'!$G$129:$K$129) -> 0 | CF40: =SUMIF('Assumptions Sheet'!$G$114:$K$114,'Operating Analysis'!CF5,'Assumptions Sheet'!$G$129:$K$129) -> 0 | CG40: =SUMIF('Assumptions Sheet'!$G$114:$K$114,'Operating Analysis'!CG5,'Assumptions Sheet'!$G$129:$K$129) -> 0 | CH40: =SUMIF('Assumptions Sheet'!$G$114:$K$114,'Operating Analysis'!CH5,'Assumptions Sheet'!$G$129:$K$129) -> 0 | CI40: =SUMIF('Assumptions Sheet'!$G$114:$K$114,'Operating Analysis'!CI5,'Assumptions Sheet'!$G$129:$K$129) -> 0 | CJ40: =SUMIF('Assumptions Sheet'!$G$114:$K$114,'Operating Analysis'!CJ5,'Assumptions Sheet'!$G$129:$K$129) -> 0 | CK40: =SUMIF('Assumptions Sheet'!$G$114:$K$114,'Operating Analysis'!CK5,'Assumptions Sheet'!$G$129:$K$129) -> 0 | CL40: =SUMIF('Assumptions Sheet'!$G$114:$K$114,'Operating Analysis'!CL5,'Assumptions Sheet'!$G$129:$K$129) -> 0 | CM40: =SUMIF('Assumptions Sheet'!$G$114:$K$114,'Operating Analysis'!CM5,'Assumptions Sheet'!$G$129:$K$129) -> 0 | CN40: =SUMIF('Assumptions Sheet'!$G$114:$K$114,'Operating Analysis'!CN5,'Assumptions Sheet'!$G$129:$K$129) -> 0 | CO40: =SUMIF('Assumptions Sheet'!$G$114:$K$114,'Operating Analysis'!CO5,'Assumptions Sheet'!$G$129:$K$129) -> 0
C41: Plant Equipment (incl. pulp line) (S-Curve) | E41: USD | G41: =SUM(K41:CO41) -> 29750000 | K41: =SUMIF('Assumptions Sheet'!$G$114:$K$114,K5,'Assumptions Sheet'!$G$130:$K$130) -> 0 | L41: =SUMIF('Assumptions Sheet'!$G$114:$K$114,L5,'Assumptions Sheet'!$G$130:$K$130) -> 5950000 | M41: =SUMIF('Assumptions Sheet'!$G$114:$K$114,M5,'Assumptions Sheet'!$G$130:$K$130) -> 0 | N41: =SUMIF('Assumptions Sheet'!$G$114:$K$114,N5,'Assumptions Sheet'!$G$130:$K$130) -> 0 | O41: =SUMIF('Assumptions Sheet'!$G$114:$K$114,O5,'Assumptions Sheet'!$G$130:$K$130) -> 0 | P41: =SUMIF('Assumptions Sheet'!$G$114:$K$114,P5,'Assumptions Sheet'!$G$130:$K$130) -> 0 | Q41: =SUMIF('Assumptions Sheet'!$G$114:$K$114,Q5,'Assumptions Sheet'!$G$130:$K$130) -> 0 | R41: =SUMIF('Assumptions Sheet'!$G$114:$K$114,R5,'Assumptions Sheet'!$G$130:$K$130) -> 5950000 | S41: =SUMIF('Assumptions Sheet'!$G$114:$K$114,S5,'Assumptions Sheet'!$G$130:$K$130) -> 0 | T41: =SUMIF('Assumptions Sheet'!$G$114:$K$114,T5,'Assumptions Sheet'!$G$130:$K$130) -> 0 | U41: =SUMIF('Assumptions Sheet'!$G$114:$K$114,U5,'Assumptions Sheet'!$G$130:$K$130) -> 0 | V41: =SUMIF('Assumptions Sheet'!$G$114:$K$114,V5,'Assumptions Sheet'!$G$130:$K$130) -> 0 | W41: =SUMIF('Assumptions Sheet'!$G$114:$K$114,W5,'Assumptions Sheet'!$G$130:$K$130) -> 0 | X41: =SUMIF('Assumptions Sheet'!$G$114:$K$114,X5,'Assumptions Sheet'!$G$130:$K$130) -> 5950000 | Y41: =SUMIF('Assumptions Sheet'!$G$114:$K$114,Y5,'Assumptions Sheet'!$G$130:$K$130) -> 0 | Z41: =SUMIF('Assumptions Sheet'!$G$114:$K$114,Z5,'Assumptions Sheet'!$G$130:$K$130) -> 0 | AA41: =SUMIF('Assumptions Sheet'!$G$114:$K$114,AA5,'Assumptions Sheet'!$G$130:$K$130) -> 0 | AB41: =SUMIF('Assumptions Sheet'!$G$114:$K$114,AB5,'Assumptions Sheet'!$G$130:$K$130) -> 0 | AC41: =SUMIF('Assumptions Sheet'!$G$114:$K$114,AC5,'Assumptions Sheet'!$G$130:$K$130) -> 0 | AD41: =SUMIF('Assumptions Sheet'!$G$114:$K$114,AD5,'Assumptions Sheet'!$G$130:$K$130) -> 5950000 | AE41: =SUMIF('Assumptions Sheet'!$G$114:$K$114,AE5,'Assumptions Sheet'!$G$130:$K$130) -> 0 | AF41: =SUMIF('Assumptions Sheet'!$G$114:$K$114,AF5,'Assumptions Sheet'!$G$130:$K$130) -> 0 | AG41: =SUMIF('Assumptions Sheet'!$G$114:$K$114,AG5,'Assumptions Sheet'!$G$130:$K$130) -> 0 | AH41: =SUMIF('Assumptions Sheet'!$G$114:$K$114,AH5,'Assumptions Sheet'!$G$130:$K$130) -> 0 | AI41: =SUMIF('Assumptions Sheet'!$G$114:$K$114,AI5,'Assumptions Sheet'!$G$130:$K$130) -> 5950000 | AJ41: =SUMIF('Assumptions Sheet'!$G$114:$K$114,AJ5,'Assumptions Sheet'!$G$130:$K$130) -> 0 | AK41: =SUMIF('Assumptions Sheet'!$G$114:$K$114,AK5,'Assumptions Sheet'!$G$130:$K$130) -> 0 | AL41: =SUMIF('Assumptions Sheet'!$G$114:$K$114,AL5,'Assumptions Sheet'!$G$130:$K$130) -> 0 | AM41: =SUMIF('Assumptions Sheet'!$G$114:$K$114,AM5,'Assumptions Sheet'!$G$130:$K$130) -> 0 | AN41: =SUMIF('Assumptions Sheet'!$G$114:$K$114,AN5,'Assumptions Sheet'!$G$130:$K$130) -> 0 | AO41: =SUMIF('Assumptions Sheet'!$G$114:$K$114,AO5,'Assumptions Sheet'!$G$130:$K$130) -> 0 | AP41: =SUMIF('Assumptions Sheet'!$G$114:$K$114,AP5,'Assumptions Sheet'!$G$130:$K$130) -> 0 | AQ41: =SUMIF('Assumptions Sheet'!$G$114:$K$114,AQ5,'Assumptions Sheet'!$G$130:$K$130) -> 0 | AR41: =SUMIF('Assumptions Sheet'!$G$114:$K$114,AR5,'Assumptions Sheet'!$G$130:$K$130) -> 0 | AS41: =SUMIF('Assumptions Sheet'!$G$114:$K$114,AS5,'Assumptions Sheet'!$G$130:$K$130) -> 0 | AT41: =SUMIF('Assumptions Sheet'!$G$114:$K$114,AT5,'Assumptions Sheet'!$G$130:$K$130) -> 0 | AU41: =SUMIF('Assumptions Sheet'!$G$114:$K$114,AU5,'Assumptions Sheet'!$G$130:$K$130) -> 0 | AV41: =SUMIF('Assumptions Sheet'!$G$114:$K$114,AV5,'Assumptions Sheet'!$G$130:$K$130) -> 0 | AW41: =SUMIF('Assumptions Sheet'!$G$114:$K$114,AW5,'Assumptions Sheet'!$G$130:$K$130) -> 0 | AX41: =SUMIF('Assumptions Sheet'!$G$114:$K$114,AX5,'Assumptions Sheet'!$G$130:$K$130) -> 0 | AY41: =SUMIF('Assumptions Sheet'!$G$114:$K$114,AY5,'Assumptions Sheet'!$G$130:$K$130) -> 0 | AZ41: =SUMIF('Assumptions Sheet'!$G$114:$K$114,AZ5,'Assumptions Sheet'!$G$130:$K$130) -> 0 | BA41: =SUMIF('Assumptions Sheet'!$G$114:$K$114,BA5,'Assumptions Sheet'!$G$130:$K$130) -> 0 | BB41: =SUMIF('Assumptions Sheet'!$G$114:$K$114,BB5,'Assumptions Sheet'!$G$130:$K$130) -> 0 | BC41: =SUMIF('Assumptions Sheet'!$G$114:$K$114,BC5,'Assumptions Sheet'!$G$130:$K$130) -> 0 | BD41: =SUMIF('Assumptions Sheet'!$G$114:$K$114,BD5,'Assumptions Sheet'!$G$130:$K$130) -> 0 | BE41: =SUMIF('Assumptions Sheet'!$G$114:$K$114,BE5,'Assumptions Sheet'!$G$130:$K$130) -> 0 | BF41: =SUMIF('Assumptions Sheet'!$G$114:$K$114,BF5,'Assumptions Sheet'!$G$130:$K$130) -> 0 | BG41: =SUMIF('Assumptions Sheet'!$G$114:$K$114,BG5,'Assumptions Sheet'!$G$130:$K$130) -> 0 | BH41: =SUMIF('Assumptions Sheet'!$G$114:$K$114,BH5,'Assumptions Sheet'!$G$130:$K$130) -> 0 | BI41: =SUMIF('Assumptions Sheet'!$G$114:$K$114,BI5,'Assumptions Sheet'!$G$130:$K$130) -> 0 | BJ41: =SUMIF('Assumptions Sheet'!$G$114:$K$114,BJ5,'Assumptions Sheet'!$G$130:$K$130) -> 0 | BK41: =SUMIF('Assumptions Sheet'!$G$114:$K$114,BK5,'Assumptions Sheet'!$G$130:$K$130) -> 0 | BL41: =SUMIF('Assumptions Sheet'!$G$114:$K$114,BL5,'Assumptions Sheet'!$G$130:$K$130) -> 0 | BM41: =SUMIF('Assumptions Sheet'!$G$114:$K$114,BM5,'Assumptions Sheet'!$G$130:$K$130) -> 0 | BN41: =SUMIF('Assumptions Sheet'!$G$114:$K$114,BN5,'Assumptions Sheet'!$G$130:$K$130) -> 0 | BO41: =SUMIF('Assumptions Sheet'!$G$114:$K$114,BO5,'Assumptions Sheet'!$G$130:$K$130) -> 0 | BP41: =SUMIF('Assumptions Sheet'!$G$114:$K$114,BP5,'Assumptions Sheet'!$G$130:$K$130) -> 0 | BQ41: =SUMIF('Assumptions Sheet'!$G$114:$K$114,BQ5,'Assumptions Sheet'!$G$130:$K$130) -> 0 | BR41: =SUMIF('Assumptions Sheet'!$G$114:$K$114,BR5,'Assumptions Sheet'!$G$130:$K$130) -> 0 | BS41: =SUMIF('Assumptions Sheet'!$G$114:$K$114,BS5,'Assumptions Sheet'!$G$130:$K$130) -> 0 | BT41: =SUMIF('Assumptions Sheet'!$G$114:$K$114,BT5,'Assumptions Sheet'!$G$130:$K$130) -> 0 | BU41: =SUMIF('Assumptions Sheet'!$G$114:$K$114,BU5,'Assumptions Sheet'!$G$130:$K$130) -> 0 | BV41: =SUMIF('Assumptions Sheet'!$G$114:$K$114,BV5,'Assumptions Sheet'!$G$130:$K$130) -> 0 | BW41: =SUMIF('Assumptions Sheet'!$G$114:$K$114,BW5,'Assumptions Sheet'!$G$130:$K$130) -> 0 | BX41: =SUMIF('Assumptions Sheet'!$G$114:$K$114,BX5,'Assumptions Sheet'!$G$130:$K$130) -> 0 | BY41: =SUMIF('Assumptions Sheet'!$G$114:$K$114,BY5,'Assumptions Sheet'!$G$130:$K$130) -> 0 | BZ41: =SUMIF('Assumptions Sheet'!$G$114:$K$114,BZ5,'Assumptions Sheet'!$G$130:$K$130) -> 0 | CA41: =SUMIF('Assumptions Sheet'!$G$114:$K$114,CA5,'Assumptions Sheet'!$G$130:$K$130) -> 0 | CB41: =SUMIF('Assumptions Sheet'!$G$114:$K$114,CB5,'Assumptions Sheet'!$G$130:$K$130) -> 0 | CC41: =SUMIF('Assumptions Sheet'!$G$114:$K$114,CC5,'Assumptions Sheet'!$G$130:$K$130) -> 0 | CD41: =SUMIF('Assumptions Sheet'!$G$114:$K$114,CD5,'Assumptions Sheet'!$G$130:$K$130) -> 0 | CE41: =SUMIF('Assumptions Sheet'!$G$114:$K$114,CE5,'Assumptions Sheet'!$G$130:$K$130) -> 0 | CF41: =SUMIF('Assumptions Sheet'!$G$114:$K$114,CF5,'Assumptions Sheet'!$G$130:$K$130) -> 0 | CG41: =SUMIF('Assumptions Sheet'!$G$114:$K$114,CG5,'Assumptions Sheet'!$G$130:$K$130) -> 0 | CH41: =SUMIF('Assumptions Sheet'!$G$114:$K$114,CH5,'Assumptions Sheet'!$G$130:$K$130) -> 0 | CI41: =SUMIF('Assumptions Sheet'!$G$114:$K$114,CI5,'Assumptions Sheet'!$G$130:$K$130) -> 0 | CJ41: =SUMIF('Assumptions Sheet'!$G$114:$K$114,CJ5,'Assumptions Sheet'!$G$130:$K$130) -> 0 | CK41: =SUMIF('Assumptions Sheet'!$G$114:$K$114,CK5,'Assumptions Sheet'!$G$130:$K$130) -> 0 | CL41: =SUMIF('Assumptions Sheet'!$G$114:$K$114,CL5,'Assumptions Sheet'!$G$130:$K$130) -> 0 | CM41: =SUMIF('Assumptions Sheet'!$G$114:$K$114,CM5,'Assumptions Sheet'!$G$130:$K$130) -> 0 | CN41: =SUMIF('Assumptions Sheet'!$G$114:$K$114,CN5,'Assumptions Sheet'!$G$130:$K$130) -> 0 | CO41: =SUMIF('Assumptions Sheet'!$G$114:$K$114,CO5,'Assumptions Sheet'!$G$130:$K$130) -> 0
C42: Installation | E42: USD | G42: =SUM(K42:CO42) -> 25000000 | K42: =SUMIF('Assumptions Sheet'!$G$114:$K$114,'Operating Analysis'!K$5,'Assumptions Sheet'!$G131:$K131) -> 0 | L42: =SUMIF('Assumptions Sheet'!$G$114:$K$114,'Operating Analysis'!L$5,'Assumptions Sheet'!$G131:$K131) -> 5000000 | M42: =SUMIF('Assumptions Sheet'!$G$114:$K$114,'Operating Analysis'!M$5,'Assumptions Sheet'!$G131:$K131) -> 0 | N42: =SUMIF('Assumptions Sheet'!$G$114:$K$114,'Operating Analysis'!N$5,'Assumptions Sheet'!$G131:$K131) -> 0 | O42: =SUMIF('Assumptions Sheet'!$G$114:$K$114,'Operating Analysis'!O$5,'Assumptions Sheet'!$G131:$K131) -> 0 | P42: =SUMIF('Assumptions Sheet'!$G$114:$K$114,'Operating Analysis'!P$5,'Assumptions Sheet'!$G131:$K131) -> 0 | Q42: =SUMIF('Assumptions Sheet'!$G$114:$K$114,'Operating Analysis'!Q$5,'Assumptions Sheet'!$G131:$K131) -> 0 | R42: =SUMIF('Assumptions Sheet'!$G$114:$K$114,'Operating Analysis'!R$5,'Assumptions Sheet'!$G131:$K131) -> 5000000 | S42: =SUMIF('Assumptions Sheet'!$G$114:$K$114,'Operating Analysis'!S$5,'Assumptions Sheet'!$G131:$K131) -> 0 | T42: =SUMIF('Assumptions Sheet'!$G$114:$K$114,'Operating Analysis'!T$5,'Assumptions Sheet'!$G131:$K131) -> 0 | U42: =SUMIF('Assumptions Sheet'!$G$114:$K$114,'Operating Analysis'!U$5,'Assumptions Sheet'!$G131:$K131) -> 0 | V42: =SUMIF('Assumptions Sheet'!$G$114:$K$114,'Operating Analysis'!V$5,'Assumptions Sheet'!$G131:$K131) -> 0 | W42: =SUMIF('Assumptions Sheet'!$G$114:$K$114,'Operating Analysis'!W$5,'Assumptions Sheet'!$G131:$K131) -> 0 | X42: =SUMIF('Assumptions Sheet'!$G$114:$K$114,'Operating Analysis'!X$5,'Assumptions Sheet'!$G131:$K131) -> 5000000 | Y42: =SUMIF('Assumptions Sheet'!$G$114:$K$114,'Operating Analysis'!Y$5,'Assumptions Sheet'!$G131:$K131) -> 0 | Z42: =SUMIF('Assumptions Sheet'!$G$114:$K$114,'Operating Analysis'!Z$5,'Assumptions Sheet'!$G131:$K131) -> 0 | AA42: =SUMIF('Assumptions Sheet'!$G$114:$K$114,'Operating Analysis'!AA$5,'Assumptions Sheet'!$G131:$K131) -> 0 | AB42: =SUMIF('Assumptions Sheet'!$G$114:$K$114,'Operating Analysis'!AB$5,'Assumptions Sheet'!$G131:$K131) -> 0 | AC42: =SUMIF('Assumptions Sheet'!$G$114:$K$114,'Operating Analysis'!AC$5,'Assumptions Sheet'!$G131:$K131) -> 0 | AD42: =SUMIF('Assumptions Sheet'!$G$114:$K$114,'Operating Analysis'!AD$5,'Assumptions Sheet'!$G131:$K131) -> 5000000 | AE42: =SUMIF('Assumptions Sheet'!$G$114:$K$114,'Operating Analysis'!AE$5,'Assumptions Sheet'!$G131:$K131) -> 0 | AF42: =SUMIF('Assumptions Sheet'!$G$114:$K$114,'Operating Analysis'!AF$5,'Assumptions Sheet'!$G131:$K131) -> 0 | AG42: =SUMIF('Assumptions Sheet'!$G$114:$K$114,'Operating Analysis'!AG$5,'Assumptions Sheet'!$G131:$K131) -> 0 | AH42: =SUMIF('Assumptions Sheet'!$G$114:$K$114,'Operating Analysis'!AH$5,'Assumptions Sheet'!$G131:$K131) -> 0 | AI42: =SUMIF('Assumptions Sheet'!$G$114:$K$114,'Operating Analysis'!AI$5,'Assumptions Sheet'!$G131:$K131) -> 5000000 | AJ42: =SUMIF('Assumptions Sheet'!$G$114:$K$114,'Operating Analysis'!AJ$5,'Assumptions Sheet'!$G131:$K131) -> 0 | AK42: =SUMIF('Assumptions Sheet'!$G$114:$K$114,'Operating Analysis'!AK$5,'Assumptions Sheet'!$G131:$K131) -> 0 | AL42: =SUMIF('Assumptions Sheet'!$G$114:$K$114,'Operating Analysis'!AL$5,'Assumptions Sheet'!$G131:$K131) -> 0 | AM42: =SUMIF('Assumptions Sheet'!$G$114:$K$114,'Operating Analysis'!AM$5,'Assumptions Sheet'!$G131:$K131) -> 0 | AN42: =SUMIF('Assumptions Sheet'!$G$114:$K$114,'Operating Analysis'!AN$5,'Assumptions Sheet'!$G131:$K131) -> 0 | AO42: =SUMIF('Assumptions Sheet'!$G$114:$K$114,'Operating Analysis'!AO$5,'Assumptions Sheet'!$G131:$K131) -> 0 | AP42: =SUMIF('Assumptions Sheet'!$G$114:$K$114,'Operating Analysis'!AP$5,'Assumptions Sheet'!$G131:$K131) -> 0 | AQ42: =SUMIF('Assumptions Sheet'!$G$114:$K$114,'Operating Analysis'!AQ$5,'Assumptions Sheet'!$G131:$K131) -> 0 | AR42: =SUMIF('Assumptions Sheet'!$G$114:$K$114,'Operating Analysis'!AR$5,'Assumptions Sheet'!$G131:$K131) -> 0 | AS42: =SUMIF('Assumptions Sheet'!$G$114:$K$114,'Operating Analysis'!AS$5,'Assumptions Sheet'!$G131:$K131) -> 0 | AT42: =SUMIF('Assumptions Sheet'!$G$114:$K$114,'Operating Analysis'!AT$5,'Assumptions Sheet'!$G131:$K131) -> 0 | AU42: =SUMIF('Assumptions Sheet'!$G$114:$K$114,'Operating Analysis'!AU$5,'Assumptions Sheet'!$G131:$K131) -> 0 | AV42: =SUMIF('Assumptions Sheet'!$G$114:$K$114,'Operating Analysis'!AV$5,'Assumptions Sheet'!$G131:$K131) -> 0 | AW42: =SUMIF('Assumptions Sheet'!$G$114:$K$114,'Operating Analysis'!AW$5,'Assumptions Sheet'!$G131:$K131) -> 0 | AX42: =SUMIF('Assumptions Sheet'!$G$114:$K$114,'Operating Analysis'!AX$5,'Assumptions Sheet'!$G131:$K131) -> 0 | AY42: =SUMIF('Assumptions Sheet'!$G$114:$K$114,'Operating Analysis'!AY$5,'Assumptions Sheet'!$G131:$K131) -> 0 | AZ42: =SUMIF('Assumptions Sheet'!$G$114:$K$114,'Operating Analysis'!AZ$5,'Assumptions Sheet'!$G131:$K131) -> 0 | BA42: =SUMIF('Assumptions Sheet'!$G$114:$K$114,'Operating Analysis'!BA$5,'Assumptions Sheet'!$G131:$K131) -> 0 | BB42: =SUMIF('Assumptions Sheet'!$G$114:$K$114,'Operating Analysis'!BB$5,'Assumptions Sheet'!$G131:$K131) -> 0 | BC42: =SUMIF('Assumptions Sheet'!$G$114:$K$114,'Operating Analysis'!BC$5,'Assumptions Sheet'!$G131:$K131) -> 0 | BD42: =SUMIF('Assumptions Sheet'!$G$114:$K$114,'Operating Analysis'!BD$5,'Assumptions Sheet'!$G131:$K131) -> 0 | BE42: =SUMIF('Assumptions Sheet'!$G$114:$K$114,'Operating Analysis'!BE$5,'Assumptions Sheet'!$G131:$K131) -> 0 | BF42: =SUMIF('Assumptions Sheet'!$G$114:$K$114,'Operating Analysis'!BF$5,'Assumptions Sheet'!$G131:$K131) -> 0 | BG42: =SUMIF('Assumptions Sheet'!$G$114:$K$114,'Operating Analysis'!BG$5,'Assumptions Sheet'!$G131:$K131) -> 0 | BH42: =SUMIF('Assumptions Sheet'!$G$114:$K$114,'Operating Analysis'!BH$5,'Assumptions Sheet'!$G131:$K131) -> 0 | BI42: =SUMIF('Assumptions Sheet'!$G$114:$K$114,'Operating Analysis'!BI$5,'Assumptions Sheet'!$G131:$K131) -> 0 | BJ42: =SUMIF('Assumptions Sheet'!$G$114:$K$114,'Operating Analysis'!BJ$5,'Assumptions Sheet'!$G131:$K131) -> 0 | BK42: =SUMIF('Assumptions Sheet'!$G$114:$K$114,'Operating Analysis'!BK$5,'Assumptions Sheet'!$G131:$K131) -> 0 | BL42: =SUMIF('Assumptions Sheet'!$G$114:$K$114,'Operating Analysis'!BL$5,'Assumptions Sheet'!$G131:$K131) -> 0 | BM42: =SUMIF('Assumptions Sheet'!$G$114:$K$114,'Operating Analysis'!BM$5,'Assumptions Sheet'!$G131:$K131) -> 0 | BN42: =SUMIF('Assumptions Sheet'!$G$114:$K$114,'Operating Analysis'!BN$5,'Assumptions Sheet'!$G131:$K131) -> 0 | BO42: =SUMIF('Assumptions Sheet'!$G$114:$K$114,'Operating Analysis'!BO$5,'Assumptions Sheet'!$G131:$K131) -> 0 | BP42: =SUMIF('Assumptions Sheet'!$G$114:$K$114,'Operating Analysis'!BP$5,'Assumptions Sheet'!$G131:$K131) -> 0 | BQ42: =SUMIF('Assumptions Sheet'!$G$114:$K$114,'Operating Analysis'!BQ$5,'Assumptions Sheet'!$G131:$K131) -> 0 | BR42: =SUMIF('Assumptions Sheet'!$G$114:$K$114,'Operating Analysis'!BR$5,'Assumptions Sheet'!$G131:$K131) -> 0 | BS42: =SUMIF('Assumptions Sheet'!$G$114:$K$114,'Operating Analysis'!BS$5,'Assumptions Sheet'!$G131:$K131) -> 0 | BT42: =SUMIF('Assumptions Sheet'!$G$114:$K$114,'Operating Analysis'!BT$5,'Assumptions Sheet'!$G131:$K131) -> 0 | BU42: =SUMIF('Assumptions Sheet'!$G$114:$K$114,'Operating Analysis'!BU$5,'Assumptions Sheet'!$G131:$K131) -> 0 | BV42: =SUMIF('Assumptions Sheet'!$G$114:$K$114,'Operating Analysis'!BV$5,'Assumptions Sheet'!$G131:$K131) -> 0 | BW42: =SUMIF('Assumptions Sheet'!$G$114:$K$114,'Operating Analysis'!BW$5,'Assumptions Sheet'!$G131:$K131) -> 0 | BX42: =SUMIF('Assumptions Sheet'!$G$114:$K$114,'Operating Analysis'!BX$5,'Assumptions Sheet'!$G131:$K131) -> 0 | BY42: =SUMIF('Assumptions Sheet'!$G$114:$K$114,'Operating Analysis'!BY$5,'Assumptions Sheet'!$G131:$K131) -> 0 | BZ42: =SUMIF('Assumptions Sheet'!$G$114:$K$114,'Operating Analysis'!BZ$5,'Assumptions Sheet'!$G131:$K131) -> 0 | CA42: =SUMIF('Assumptions Sheet'!$G$114:$K$114,'Operating Analysis'!CA$5,'Assumptions Sheet'!$G131:$K131) -> 0 | CB42: =SUMIF('Assumptions Sheet'!$G$114:$K$114,'Operating Analysis'!CB$5,'Assumptions Sheet'!$G131:$K131) -> 0 | CC42: =SUMIF('Assumptions Sheet'!$G$114:$K$114,'Operating Analysis'!CC$5,'Assumptions Sheet'!$G131:$K131) -> 0 | CD42: =SUMIF('Assumptions Sheet'!$G$114:$K$114,'Operating Analysis'!CD$5,'Assumptions Sheet'!$G131:$K131) -> 0 | CE42: =SUMIF('Assumptions Sheet'!$G$114:$K$114,'Operating Analysis'!CE$5,'Assumptions Sheet'!$G131:$K131) -> 0 | CF42: =SUMIF('Assumptions Sheet'!$G$114:$K$114,'Operating Analysis'!CF$5,'Assumptions Sheet'!$G131:$K131) -> 0 | CG42: =SUMIF('Assumptions Sheet'!$G$114:$K$114,'Operating Analysis'!CG$5,'Assumptions Sheet'!$G131:$K131) -> 0 | CH42: =SUMIF('Assumptions Sheet'!$G$114:$K$114,'Operating Analysis'!CH$5,'Assumptions Sheet'!$G131:$K131) -> 0 | CI42: =SUMIF('Assumptions Sheet'!$G$114:$K$114,'Operating Analysis'!CI$5,'Assumptions Sheet'!$G131:$K131) -> 0 | CJ42: =SUMIF('Assumptions Sheet'!$G$114:$K$114,'Operating Analysis'!CJ$5,'Assumptions Sheet'!$G131:$K131) -> 0 | CK42: =SUMIF('Assumptions Sheet'!$G$114:$K$114,'Operating Analysis'!CK$5,'Assumptions Sheet'!$G131:$K131) -> 0 | CL42: =SUMIF('Assumptions Sheet'!$G$114:$K$114,'Operating Analysis'!CL$5,'Assumptions Sheet'!$G131:$K131) -> 0 | CM42: =SUMIF('Assumptions Sheet'!$G$114:$K$114,'Operating Analysis'!CM$5,'Assumptions Sheet'!$G131:$K131) -> 0 | CN42: =SUMIF('Assumptions Sheet'!$G$114:$K$114,'Operating Analysis'!CN$5,'Assumptions Sheet'!$G131:$K131) -> 0 | CO42: =SUMIF('Assumptions Sheet'!$G$114:$K$114,'Operating Analysis'!CO$5,'Assumptions Sheet'!$G131:$K131) -> 0
C43: Water Treatment | E43: USD | G43: 6500000 | K43: =SUMIF('Assumptions Sheet'!$G$114:$K$114,'Operating Analysis'!K$5,'Assumptions Sheet'!$G132:$K132) -> 0 | L43: =SUMIF('Assumptions Sheet'!$G$114:$K$114,'Operating Analysis'!L$5,'Assumptions Sheet'!$G132:$K132) -> 1300000 | M43: =SUMIF('Assumptions Sheet'!$G$114:$K$114,'Operating Analysis'!M$5,'Assumptions Sheet'!$G132:$K132) -> 0 | N43: =SUMIF('Assumptions Sheet'!$G$114:$K$114,'Operating Analysis'!N$5,'Assumptions Sheet'!$G132:$K132) -> 0 | O43: =SUMIF('Assumptions Sheet'!$G$114:$K$114,'Operating Analysis'!O$5,'Assumptions Sheet'!$G132:$K132) -> 0 | P43: =SUMIF('Assumptions Sheet'!$G$114:$K$114,'Operating Analysis'!P$5,'Assumptions Sheet'!$G132:$K132) -> 0 | Q43: =SUMIF('Assumptions Sheet'!$G$114:$K$114,'Operating Analysis'!Q$5,'Assumptions Sheet'!$G132:$K132) -> 0 | R43: =SUMIF('Assumptions Sheet'!$G$114:$K$114,'Operating Analysis'!R$5,'Assumptions Sheet'!$G132:$K132) -> 1300000 | S43: =SUMIF('Assumptions Sheet'!$G$114:$K$114,'Operating Analysis'!S$5,'Assumptions Sheet'!$G132:$K132) -> 0 | T43: =SUMIF('Assumptions Sheet'!$G$114:$K$114,'Operating Analysis'!T$5,'Assumptions Sheet'!$G132:$K132) -> 0 | U43: =SUMIF('Assumptions Sheet'!$G$114:$K$114,'Operating Analysis'!U$5,'Assumptions Sheet'!$G132:$K132) -> 0 | V43: =SUMIF('Assumptions Sheet'!$G$114:$K$114,'Operating Analysis'!V$5,'Assumptions Sheet'!$G132:$K132) -> 0 | W43: =SUMIF('Assumptions Sheet'!$G$114:$K$114,'Operating Analysis'!W$5,'Assumptions Sheet'!$G132:$K132) -> 0 | X43: =SUMIF('Assumptions Sheet'!$G$114:$K$114,'Operating Analysis'!X$5,'Assumptions Sheet'!$G132:$K132) -> 1300000 | Y43: =SUMIF('Assumptions Sheet'!$G$114:$K$114,'Operating Analysis'!Y$5,'Assumptions Sheet'!$G132:$K132) -> 0 | Z43: =SUMIF('Assumptions Sheet'!$G$114:$K$114,'Operating Analysis'!Z$5,'Assumptions Sheet'!$G132:$K132) -> 0 | AA43: =SUMIF('Assumptions Sheet'!$G$114:$K$114,'Operating Analysis'!AA$5,'Assumptions Sheet'!$G132:$K132) -> 0 | AB43: =SUMIF('Assumptions Sheet'!$G$114:$K$114,'Operating Analysis'!AB$5,'Assumptions Sheet'!$G132:$K132) -> 0 | AC43: =SUMIF('Assumptions Sheet'!$G$114:$K$114,'Operating Analysis'!AC$5,'Assumptions Sheet'!$G132:$K132) -> 0 | AD43: =SUMIF('Assumptions Sheet'!$G$114:$K$114,'Operating Analysis'!AD$5,'Assumptions Sheet'!$G132:$K132) -> 1300000 | AE43: =SUMIF('Assumptions Sheet'!$G$114:$K$114,'Operating Analysis'!AE$5,'Assumptions Sheet'!$G132:$K132) -> 0 | AF43: =SUMIF('Assumptions Sheet'!$G$114:$K$114,'Operating Analysis'!AF$5,'Assumptions Sheet'!$G132:$K132) -> 0 | AG43: =SUMIF('Assumptions Sheet'!$G$114:$K$114,'Operating Analysis'!AG$5,'Assumptions Sheet'!$G132:$K132) -> 0 | AH43: =SUMIF('Assumptions Sheet'!$G$114:$K$114,'Operating Analysis'!AH$5,'Assumptions Sheet'!$G132:$K132) -> 0 | AI43: =SUMIF('Assumptions Sheet'!$G$114:$K$114,'Operating Analysis'!AI$5,'Assumptions Sheet'!$G132:$K132) -> 1300000 | AJ43: =SUMIF('Assumptions Sheet'!$G$114:$K$114,'Operating Analysis'!AJ$5,'Assumptions Sheet'!$G132:$K132) -> 0 | AK43: =SUMIF('Assumptions Sheet'!$G$114:$K$114,'Operating Analysis'!AK$5,'Assumptions Sheet'!$G132:$K132) -> 0 | AL43: =SUMIF('Assumptions Sheet'!$G$114:$K$114,'Operating Analysis'!AL$5,'Assumptions Sheet'!$G132:$K132) -> 0 | AM43: =SUMIF('Assumptions Sheet'!$G$114:$K$114,'Operating Analysis'!AM$5,'Assumptions Sheet'!$G132:$K132) -> 0 | AN43: =SUMIF('Assumptions Sheet'!$G$114:$K$114,'Operating Analysis'!AN$5,'Assumptions Sheet'!$G132:$K132) -> 0 | AO43: =SUMIF('Assumptions Sheet'!$G$114:$K$114,'Operating Analysis'!AO$5,'Assumptions Sheet'!$G132:$K132) -> 0 | AP43: =SUMIF('Assumptions Sheet'!$G$114:$K$114,'Operating Analysis'!AP$5,'Assumptions Sheet'!$G132:$K132) -> 0 | AQ43: =SUMIF('Assumptions Sheet'!$G$114:$K$114,'Operating Analysis'!AQ$5,'Assumptions Sheet'!$G132:$K132) -> 0 | AR43: =SUMIF('Assumptions Sheet'!$G$114:$K$114,'Operating Analysis'!AR$5,'Assumptions Sheet'!$G132:$K132) -> 0 | AS43: =SUMIF('Assumptions Sheet'!$G$114:$K$114,'Operating Analysis'!AS$5,'Assumptions Sheet'!$G132:$K132) -> 0 | AT43: =SUMIF('Assumptions Sheet'!$G$114:$K$114,'Operating Analysis'!AT$5,'Assumptions Sheet'!$G132:$K132) -> 0 | AU43: =SUMIF('Assumptions Sheet'!$G$114:$K$114,'Operating Analysis'!AU$5,'Assumptions Sheet'!$G132:$K132) -> 0 | AV43: =SUMIF('Assumptions Sheet'!$G$114:$K$114,'Operating Analysis'!AV$5,'Assumptions Sheet'!$G132:$K132) -> 0 | AW43: =SUMIF('Assumptions Sheet'!$G$114:$K$114,'Operating Analysis'!AW$5,'Assumptions Sheet'!$G132:$K132) -> 0 | AX43: =SUMIF('Assumptions Sheet'!$G$114:$K$114,'Operating Analysis'!AX$5,'Assumptions Sheet'!$G132:$K132) -> 0 | AY43: =SUMIF('Assumptions Sheet'!$G$114:$K$114,'Operating Analysis'!AY$5,'Assumptions Sheet'!$G132:$K132) -> 0 | AZ43: =SUMIF('Assumptions Sheet'!$G$114:$K$114,'Operating Analysis'!AZ$5,'Assumptions Sheet'!$G132:$K132) -> 0 | BA43: =SUMIF('Assumptions Sheet'!$G$114:$K$114,'Operating Analysis'!BA$5,'Assumptions Sheet'!$G132:$K132) -> 0 | BB43: =SUMIF('Assumptions Sheet'!$G$114:$K$114,'Operating Analysis'!BB$5,'Assumptions Sheet'!$G132:$K132) -> 0 | BC43: =SUMIF('Assumptions Sheet'!$G$114:$K$114,'Operating Analysis'!BC$5,'Assumptions Sheet'!$G132:$K132) -> 0 | BD43: =SUMIF('Assumptions Sheet'!$G$114:$K$114,'Operating Analysis'!BD$5,'Assumptions Sheet'!$G132:$K132) -> 0 | BE43: =SUMIF('Assumptions Sheet'!$G$114:$K$114,'Operating Analysis'!BE$5,'Assumptions Sheet'!$G132:$K132) -> 0 | BF43: =SUMIF('Assumptions Sheet'!$G$114:$K$114,'Operating Analysis'!BF$5,'Assumptions Sheet'!$G132:$K132) -> 0 | BG43: =SUMIF('Assumptions Sheet'!$G$114:$K$114,'Operating Analysis'!BG$5,'Assumptions Sheet'!$G132:$K132) -> 0 | BH43: =SUMIF('Assumptions Sheet'!$G$114:$K$114,'Operating Analysis'!BH$5,'Assumptions Sheet'!$G132:$K132) -> 0 | BI43: =SUMIF('Assumptions Sheet'!$G$114:$K$114,'Operating Analysis'!BI$5,'Assumptions Sheet'!$G132:$K132) -> 0 | BJ43: =SUMIF('Assumptions Sheet'!$G$114:$K$114,'Operating Analysis'!BJ$5,'Assumptions Sheet'!$G132:$K132) -> 0 | BK43: =SUMIF('Assumptions Sheet'!$G$114:$K$114,'Operating Analysis'!BK$5,'Assumptions Sheet'!$G132:$K132) -> 0 | BL43: =SUMIF('Assumptions Sheet'!$G$114:$K$114,'Operating Analysis'!BL$5,'Assumptions Sheet'!$G132:$K132) -> 0 | BM43: =SUMIF('Assumptions Sheet'!$G$114:$K$114,'Operating Analysis'!BM$5,'Assumptions Sheet'!$G132:$K132) -> 0 | BN43: =SUMIF('Assumptions Sheet'!$G$114:$K$114,'Operating Analysis'!BN$5,'Assumptions Sheet'!$G132:$K132) -> 0 | BO43: =SUMIF('Assumptions Sheet'!$G$114:$K$114,'Operating Analysis'!BO$5,'Assumptions Sheet'!$G132:$K132) -> 0 | BP43: =SUMIF('Assumptions Sheet'!$G$114:$K$114,'Operating Analysis'!BP$5,'Assumptions Sheet'!$G132:$K132) -> 0 | BQ43: =SUMIF('Assumptions Sheet'!$G$114:$K$114,'Operating Analysis'!BQ$5,'Assumptions Sheet'!$G132:$K132) -> 0 | BR43: =SUMIF('Assumptions Sheet'!$G$114:$K$114,'Operating Analysis'!BR$5,'Assumptions Sheet'!$G132:$K132) -> 0 | BS43: =SUMIF('Assumptions Sheet'!$G$114:$K$114,'Operating Analysis'!BS$5,'Assumptions Sheet'!$G132:$K132) -> 0 | BT43: =SUMIF('Assumptions Sheet'!$G$114:$K$114,'Operating Analysis'!BT$5,'Assumptions Sheet'!$G132:$K132) -> 0 | BU43: =SUMIF('Assumptions Sheet'!$G$114:$K$114,'Operating Analysis'!BU$5,'Assumptions Sheet'!$G132:$K132) -> 0 | BV43: =SUMIF('Assumptions Sheet'!$G$114:$K$114,'Operating Analysis'!BV$5,'Assumptions Sheet'!$G132:$K132) -> 0 | BW43: =SUMIF('Assumptions Sheet'!$G$114:$K$114,'Operating Analysis'!BW$5,'Assumptions Sheet'!$G132:$K132) -> 0 | BX43: =SUMIF('Assumptions Sheet'!$G$114:$K$114,'Operating Analysis'!BX$5,'Assumptions Sheet'!$G132:$K132) -> 0 | BY43: =SUMIF('Assumptions Sheet'!$G$114:$K$114,'Operating Analysis'!BY$5,'Assumptions Sheet'!$G132:$K132) -> 0 | BZ43: =SUMIF('Assumptions Sheet'!$G$114:$K$114,'Operating Analysis'!BZ$5,'Assumptions Sheet'!$G132:$K132) -> 0 | CA43: =SUMIF('Assumptions Sheet'!$G$114:$K$114,'Operating Analysis'!CA$5,'Assumptions Sheet'!$G132:$K132) -> 0 | CB43: =SUMIF('Assumptions Sheet'!$G$114:$K$114,'Operating Analysis'!CB$5,'Assumptions Sheet'!$G132:$K132) -> 0 | CC43: =SUMIF('Assumptions Sheet'!$G$114:$K$114,'Operating Analysis'!CC$5,'Assumptions Sheet'!$G132:$K132) -> 0 | CD43: =SUMIF('Assumptions Sheet'!$G$114:$K$114,'Operating Analysis'!CD$5,'Assumptions Sheet'!$G132:$K132) -> 0 | CE43: =SUMIF('Assumptions Sheet'!$G$114:$K$114,'Operating Analysis'!CE$5,'Assumptions Sheet'!$G132:$K132) -> 0 | CF43: =SUMIF('Assumptions Sheet'!$G$114:$K$114,'Operating Analysis'!CF$5,'Assumptions Sheet'!$G132:$K132) -> 0 | CG43: =SUMIF('Assumptions Sheet'!$G$114:$K$114,'Operating Analysis'!CG$5,'Assumptions Sheet'!$G132:$K132) -> 0 | CH43: =SUMIF('Assumptions Sheet'!$G$114:$K$114,'Operating Analysis'!CH$5,'Assumptions Sheet'!$G132:$K132) -> 0 | CI43: =SUMIF('Assumptions Sheet'!$G$114:$K$114,'Operating Analysis'!CI$5,'Assumptions Sheet'!$G132:$K132) -> 0 | CJ43: =SUMIF('Assumptions Sheet'!$G$114:$K$114,'Operating Analysis'!CJ$5,'Assumptions Sheet'!$G132:$K132) -> 0 | CK43: =SUMIF('Assumptions Sheet'!$G$114:$K$114,'Operating Analysis'!CK$5,'Assumptions Sheet'!$G132:$K132) -> 0 | CL43: =SUMIF('Assumptions Sheet'!$G$114:$K$114,'Operating Analysis'!CL$5,'Assumptions Sheet'!$G132:$K132) -> 0 | CM43: =SUMIF('Assumptions Sheet'!$G$114:$K$114,'Operating Analysis'!CM$5,'Assumptions Sheet'!$G132:$K132) -> 0 | CN43: =SUMIF('Assumptions Sheet'!$G$114:$K$114,'Operating Analysis'!CN$5,'Assumptions Sheet'!$G132:$K132) -> 0 | CO43: =SUMIF('Assumptions Sheet'!$G$114:$K$114,'Operating Analysis'!CO$5,'Assumptions Sheet'!$G132:$K132) -> 0
C44: Converting Machinery | E44: USD | G44: 4200000 | K44: =SUMIF('Assumptions Sheet'!$G$114:$K$114,'Operating Analysis'!K$5,'Assumptions Sheet'!$G134:$K134) -> 0 | L44: =SUMIF('Assumptions Sheet'!$G$114:$K$114,'Operating Analysis'!L$5,'Assumptions Sheet'!$G134:$K134) -> 840000 | M44: =SUMIF('Assumptions Sheet'!$G$114:$K$114,'Operating Analysis'!M$5,'Assumptions Sheet'!$G134:$K134) -> 0 | N44: =SUMIF('Assumptions Sheet'!$G$114:$K$114,'Operating Analysis'!N$5,'Assumptions Sheet'!$G134:$K134) -> 0 | O44: =SUMIF('Assumptions Sheet'!$G$114:$K$114,'Operating Analysis'!O$5,'Assumptions Sheet'!$G134:$K134) -> 0 | P44: =SUMIF('Assumptions Sheet'!$G$114:$K$114,'Operating Analysis'!P$5,'Assumptions Sheet'!$G134:$K134) -> 0 | Q44: =SUMIF('Assumptions Sheet'!$G$114:$K$114,'Operating Analysis'!Q$5,'Assumptions Sheet'!$G134:$K134) -> 0 | R44: =SUMIF('Assumptions Sheet'!$G$114:$K$114,'Operating Analysis'!R$5,'Assumptions Sheet'!$G134:$K134) -> 840000 | S44: =SUMIF('Assumptions Sheet'!$G$114:$K$114,'Operating Analysis'!S$5,'Assumptions Sheet'!$G134:$K134) -> 0 | T44: =SUMIF('Assumptions Sheet'!$G$114:$K$114,'Operating Analysis'!T$5,'Assumptions Sheet'!$G134:$K134) -> 0 | U44: =SUMIF('Assumptions Sheet'!$G$114:$K$114,'Operating Analysis'!U$5,'Assumptions Sheet'!$G134:$K134) -> 0 | V44: =SUMIF('Assumptions Sheet'!$G$114:$K$114,'Operating Analysis'!V$5,'Assumptions Sheet'!$G134:$K134) -> 0 | W44: =SUMIF('Assumptions Sheet'!$G$114:$K$114,'Operating Analysis'!W$5,'Assumptions Sheet'!$G134:$K134) -> 0 | X44: =SUMIF('Assumptions Sheet'!$G$114:$K$114,'Operating Analysis'!X$5,'Assumptions Sheet'!$G134:$K134) -> 840000 | Y44: =SUMIF('Assumptions Sheet'!$G$114:$K$114,'Operating Analysis'!Y$5,'Assumptions Sheet'!$G134:$K134) -> 0 | Z44: =SUMIF('Assumptions Sheet'!$G$114:$K$114,'Operating Analysis'!Z$5,'Assumptions Sheet'!$G134:$K134) -> 0 | AA44: =SUMIF('Assumptions Sheet'!$G$114:$K$114,'Operating Analysis'!AA$5,'Assumptions Sheet'!$G134:$K134) -> 0 | AB44: =SUMIF('Assumptions Sheet'!$G$114:$K$114,'Operating Analysis'!AB$5,'Assumptions Sheet'!$G134:$K134) -> 0 | AC44: =SUMIF('Assumptions Sheet'!$G$114:$K$114,'Operating Analysis'!AC$5,'Assumptions Sheet'!$G134:$K134) -> 0 | AD44: =SUMIF('Assumptions Sheet'!$G$114:$K$114,'Operating Analysis'!AD$5,'Assumptions Sheet'!$G134:$K134) -> 840000 | AE44: =SUMIF('Assumptions Sheet'!$G$114:$K$114,'Operating Analysis'!AE$5,'Assumptions Sheet'!$G134:$K134) -> 0 | AF44: =SUMIF('Assumptions Sheet'!$G$114:$K$114,'Operating Analysis'!AF$5,'Assumptions Sheet'!$G134:$K134) -> 0 | AG44: =SUMIF('Assumptions Sheet'!$G$114:$K$114,'Operating Analysis'!AG$5,'Assumptions Sheet'!$G134:$K134) -> 0 | AH44: =SUMIF('Assumptions Sheet'!$G$114:$K$114,'Operating Analysis'!AH$5,'Assumptions Sheet'!$G134:$K134) -> 0 | AI44: =SUMIF('Assumptions Sheet'!$G$114:$K$114,'Operating Analysis'!AI$5,'Assumptions Sheet'!$G134:$K134) -> 840000 | AJ44: =SUMIF('Assumptions Sheet'!$G$114:$K$114,'Operating Analysis'!AJ$5,'Assumptions Sheet'!$G134:$K134) -> 0 | AK44: =SUMIF('Assumptions Sheet'!$G$114:$K$114,'Operating Analysis'!AK$5,'Assumptions Sheet'!$G134:$K134) -> 0 | AL44: =SUMIF('Assumptions Sheet'!$G$114:$K$114,'Operating Analysis'!AL$5,'Assumptions Sheet'!$G134:$K134) -> 0 | AM44: =SUMIF('Assumptions Sheet'!$G$114:$K$114,'Operating Analysis'!AM$5,'Assumptions Sheet'!$G134:$K134) -> 0 | AN44: =SUMIF('Assumptions Sheet'!$G$114:$K$114,'Operating Analysis'!AN$5,'Assumptions Sheet'!$G134:$K134) -> 0 | AO44: =SUMIF('Assumptions Sheet'!$G$114:$K$114,'Operating Analysis'!AO$5,'Assumptions Sheet'!$G134:$K134) -> 0 | AP44: =SUMIF('Assumptions Sheet'!$G$114:$K$114,'Operating Analysis'!AP$5,'Assumptions Sheet'!$G134:$K134) -> 0 | AQ44: =SUMIF('Assumptions Sheet'!$G$114:$K$114,'Operating Analysis'!AQ$5,'Assumptions Sheet'!$G134:$K134) -> 0 | AR44: =SUMIF('Assumptions Sheet'!$G$114:$K$114,'Operating Analysis'!AR$5,'Assumptions Sheet'!$G134:$K134) -> 0 | AS44: =SUMIF('Assumptions Sheet'!$G$114:$K$114,'Operating Analysis'!AS$5,'Assumptions Sheet'!$G134:$K134) -> 0 | AT44: =SUMIF('Assumptions Sheet'!$G$114:$K$114,'Operating Analysis'!AT$5,'Assumptions Sheet'!$G134:$K134) -> 0 | AU44: =SUMIF('Assumptions Sheet'!$G$114:$K$114,'Operating Analysis'!AU$5,'Assumptions Sheet'!$G134:$K134) -> 0 | AV44: =SUMIF('Assumptions Sheet'!$G$114:$K$114,'Operating Analysis'!AV$5,'Assumptions Sheet'!$G134:$K134) -> 0 | AW44: =SUMIF('Assumptions Sheet'!$G$114:$K$114,'Operating Analysis'!AW$5,'Assumptions Sheet'!$G134:$K134) -> 0 | AX44: =SUMIF('Assumptions Sheet'!$G$114:$K$114,'Operating Analysis'!AX$5,'Assumptions Sheet'!$G134:$K134) -> 0 | AY44: =SUMIF('Assumptions Sheet'!$G$114:$K$114,'Operating Analysis'!AY$5,'Assumptions Sheet'!$G134:$K134) -> 0 | AZ44: =SUMIF('Assumptions Sheet'!$G$114:$K$114,'Operating Analysis'!AZ$5,'Assumptions Sheet'!$G134:$K134) -> 0 | BA44: =SUMIF('Assumptions Sheet'!$G$114:$K$114,'Operating Analysis'!BA$5,'Assumptions Sheet'!$G134:$K134) -> 0 | BB44: =SUMIF('Assumptions Sheet'!$G$114:$K$114,'Operating Analysis'!BB$5,'Assumptions Sheet'!$G134:$K134) -> 0 | BC44: =SUMIF('Assumptions Sheet'!$G$114:$K$114,'Operating Analysis'!BC$5,'Assumptions Sheet'!$G134:$K134) -> 0 | BD44: =SUMIF('Assumptions Sheet'!$G$114:$K$114,'Operating Analysis'!BD$5,'Assumptions Sheet'!$G134:$K134) -> 0 | BE44: =SUMIF('Assumptions Sheet'!$G$114:$K$114,'Operating Analysis'!BE$5,'Assumptions Sheet'!$G134:$K134) -> 0 | BF44: =SUMIF('Assumptions Sheet'!$G$114:$K$114,'Operating Analysis'!BF$5,'Assumptions Sheet'!$G134:$K134) -> 0 | BG44: =SUMIF('Assumptions Sheet'!$G$114:$K$114,'Operating Analysis'!BG$5,'Assumptions Sheet'!$G134:$K134) -> 0 | BH44: =SUMIF('Assumptions Sheet'!$G$114:$K$114,'Operating Analysis'!BH$5,'Assumptions Sheet'!$G134:$K134) -> 0 | BI44: =SUMIF('Assumptions Sheet'!$G$114:$K$114,'Operating Analysis'!BI$5,'Assumptions Sheet'!$G134:$K134) -> 0 | BJ44: =SUMIF('Assumptions Sheet'!$G$114:$K$114,'Operating Analysis'!BJ$5,'Assumptions Sheet'!$G134:$K134) -> 0 | BK44: =SUMIF('Assumptions Sheet'!$G$114:$K$114,'Operating Analysis'!BK$5,'Assumptions Sheet'!$G134:$K134) -> 0 | BL44: =SUMIF('Assumptions Sheet'!$G$114:$K$114,'Operating Analysis'!BL$5,'Assumptions Sheet'!$G134:$K134) -> 0 | BM44: =SUMIF('Assumptions Sheet'!$G$114:$K$114,'Operating Analysis'!BM$5,'Assumptions Sheet'!$G134:$K134) -> 0 | BN44: =SUMIF('Assumptions Sheet'!$G$114:$K$114,'Operating Analysis'!BN$5,'Assumptions Sheet'!$G134:$K134) -> 0 | BO44: =SUMIF('Assumptions Sheet'!$G$114:$K$114,'Operating Analysis'!BO$5,'Assumptions Sheet'!$G134:$K134) -> 0 | BP44: =SUMIF('Assumptions Sheet'!$G$114:$K$114,'Operating Analysis'!BP$5,'Assumptions Sheet'!$G134:$K134) -> 0 | BQ44: =SUMIF('Assumptions Sheet'!$G$114:$K$114,'Operating Analysis'!BQ$5,'Assumptions Sheet'!$G134:$K134) -> 0 | BR44: =SUMIF('Assumptions Sheet'!$G$114:$K$114,'Operating Analysis'!BR$5,'Assumptions Sheet'!$G134:$K134) -> 0 | BS44: =SUMIF('Assumptions Sheet'!$G$114:$K$114,'Operating Analysis'!BS$5,'Assumptions Sheet'!$G134:$K134) -> 0 | BT44: =SUMIF('Assumptions Sheet'!$G$114:$K$114,'Operating Analysis'!BT$5,'Assumptions Sheet'!$G134:$K134) -> 0 | BU44: =SUMIF('Assumptions Sheet'!$G$114:$K$114,'Operating Analysis'!BU$5,'Assumptions Sheet'!$G134:$K134) -> 0 | BV44: =SUMIF('Assumptions Sheet'!$G$114:$K$114,'Operating Analysis'!BV$5,'Assumptions Sheet'!$G134:$K134) -> 0 | BW44: =SUMIF('Assumptions Sheet'!$G$114:$K$114,'Operating Analysis'!BW$5,'Assumptions Sheet'!$G134:$K134) -> 0 | BX44: =SUMIF('Assumptions Sheet'!$G$114:$K$114,'Operating Analysis'!BX$5,'Assumptions Sheet'!$G134:$K134) -> 0 | BY44: =SUMIF('Assumptions Sheet'!$G$114:$K$114,'Operating Analysis'!BY$5,'Assumptions Sheet'!$G134:$K134) -> 0 | BZ44: =SUMIF('Assumptions Sheet'!$G$114:$K$114,'Operating Analysis'!BZ$5,'Assumptions Sheet'!$G134:$K134) -> 0 | CA44: =SUMIF('Assumptions Sheet'!$G$114:$K$114,'Operating Analysis'!CA$5,'Assumptions Sheet'!$G134:$K134) -> 0 | CB44: =SUMIF('Assumptions Sheet'!$G$114:$K$114,'Operating Analysis'!CB$5,'Assumptions Sheet'!$G134:$K134) -> 0 | CC44: =SUMIF('Assumptions Sheet'!$G$114:$K$114,'Operating Analysis'!CC$5,'Assumptions Sheet'!$G134:$K134) -> 0 | CD44: =SUMIF('Assumptions Sheet'!$G$114:$K$114,'Operating Analysis'!CD$5,'Assumptions Sheet'!$G134:$K134) -> 0 | CE44: =SUMIF('Assumptions Sheet'!$G$114:$K$114,'Operating Analysis'!CE$5,'Assumptions Sheet'!$G134:$K134) -> 0 | CF44: =SUMIF('Assumptions Sheet'!$G$114:$K$114,'Operating Analysis'!CF$5,'Assumptions Sheet'!$G134:$K134) -> 0 | CG44: =SUMIF('Assumptions Sheet'!$G$114:$K$114,'Operating Analysis'!CG$5,'Assumptions Sheet'!$G134:$K134) -> 0 | CH44: =SUMIF('Assumptions Sheet'!$G$114:$K$114,'Operating Analysis'!CH$5,'Assumptions Sheet'!$G134:$K134) -> 0 | CI44: =SUMIF('Assumptions Sheet'!$G$114:$K$114,'Operating Analysis'!CI$5,'Assumptions Sheet'!$G134:$K134) -> 0 | CJ44: =SUMIF('Assumptions Sheet'!$G$114:$K$114,'Operating Analysis'!CJ$5,'Assumptions Sheet'!$G134:$K134) -> 0 | CK44: =SUMIF('Assumptions Sheet'!$G$114:$K$114,'Operating Analysis'!CK$5,'Assumptions Sheet'!$G134:$K134) -> 0 | CL44: =SUMIF('Assumptions Sheet'!$G$114:$K$114,'Operating Analysis'!CL$5,'Assumptions Sheet'!$G134:$K134) -> 0 | CM44: =SUMIF('Assumptions Sheet'!$G$114:$K$114,'Operating Analysis'!CM$5,'Assumptions Sheet'!$G134:$K134) -> 0 | CN44: =SUMIF('Assumptions Sheet'!$G$114:$K$114,'Operating Analysis'!CN$5,'Assumptions Sheet'!$G134:$K134) -> 0 | CO44: =SUMIF('Assumptions Sheet'!$G$114:$K$114,'Operating Analysis'!CO$5,'Assumptions Sheet'!$G134:$K134) -> 0
C45: Packaging Machinery | E45: USD | G45: 1800000 | K45: =SUMIF('Assumptions Sheet'!$G$114:$K$114,'Operating Analysis'!K$5,'Assumptions Sheet'!$G135:$K135) -> 0 | L45: =SUMIF('Assumptions Sheet'!$G$114:$K$114,'Operating Analysis'!L$5,'Assumptions Sheet'!$G135:$K135) -> 360000 | M45: =SUMIF('Assumptions Sheet'!$G$114:$K$114,'Operating Analysis'!M$5,'Assumptions Sheet'!$G135:$K135) -> 0 | N45: =SUMIF('Assumptions Sheet'!$G$114:$K$114,'Operating Analysis'!N$5,'Assumptions Sheet'!$G135:$K135) -> 0 | O45: =SUMIF('Assumptions Sheet'!$G$114:$K$114,'Operating Analysis'!O$5,'Assumptions Sheet'!$G135:$K135) -> 0 | P45: =SUMIF('Assumptions Sheet'!$G$114:$K$114,'Operating Analysis'!P$5,'Assumptions Sheet'!$G135:$K135) -> 0 | Q45: =SUMIF('Assumptions Sheet'!$G$114:$K$114,'Operating Analysis'!Q$5,'Assumptions Sheet'!$G135:$K135) -> 0 | R45: =SUMIF('Assumptions Sheet'!$G$114:$K$114,'Operating Analysis'!R$5,'Assumptions Sheet'!$G135:$K135) -> 360000 | S45: =SUMIF('Assumptions Sheet'!$G$114:$K$114,'Operating Analysis'!S$5,'Assumptions Sheet'!$G135:$K135) -> 0 | T45: =SUMIF('Assumptions Sheet'!$G$114:$K$114,'Operating Analysis'!T$5,'Assumptions Sheet'!$G135:$K135) -> 0 | U45: =SUMIF('Assumptions Sheet'!$G$114:$K$114,'Operating Analysis'!U$5,'Assumptions Sheet'!$G135:$K135) -> 0 | V45: =SUMIF('Assumptions Sheet'!$G$114:$K$114,'Operating Analysis'!V$5,'Assumptions Sheet'!$G135:$K135) -> 0 | W45: =SUMIF('Assumptions Sheet'!$G$114:$K$114,'Operating Analysis'!W$5,'Assumptions Sheet'!$G135:$K135) -> 0 | X45: =SUMIF('Assumptions Sheet'!$G$114:$K$114,'Operating Analysis'!X$5,'Assumptions Sheet'!$G135:$K135) -> 360000 | Y45: =SUMIF('Assumptions Sheet'!$G$114:$K$114,'Operating Analysis'!Y$5,'Assumptions Sheet'!$G135:$K135) -> 0 | Z45: =SUMIF('Assumptions Sheet'!$G$114:$K$114,'Operating Analysis'!Z$5,'Assumptions Sheet'!$G135:$K135) -> 0 | AA45: =SUMIF('Assumptions Sheet'!$G$114:$K$114,'Operating Analysis'!AA$5,'Assumptions Sheet'!$G135:$K135) -> 0 | AB45: =SUMIF('Assumptions Sheet'!$G$114:$K$114,'Operating Analysis'!AB$5,'Assumptions Sheet'!$G135:$K135) -> 0 | AC45: =SUMIF('Assumptions Sheet'!$G$114:$K$114,'Operating Analysis'!AC$5,'Assumptions Sheet'!$G135:$K135) -> 0 | AD45: =SUMIF('Assumptions Sheet'!$G$114:$K$114,'Operating Analysis'!AD$5,'Assumptions Sheet'!$G135:$K135) -> 360000 | AE45: =SUMIF('Assumptions Sheet'!$G$114:$K$114,'Operating Analysis'!AE$5,'Assumptions Sheet'!$G135:$K135) -> 0 | AF45: =SUMIF('Assumptions Sheet'!$G$114:$K$114,'Operating Analysis'!AF$5,'Assumptions Sheet'!$G135:$K135) -> 0 | AG45: =SUMIF('Assumptions Sheet'!$G$114:$K$114,'Operating Analysis'!AG$5,'Assumptions Sheet'!$G135:$K135) -> 0 | AH45: =SUMIF('Assumptions Sheet'!$G$114:$K$114,'Operating Analysis'!AH$5,'Assumptions Sheet'!$G135:$K135) -> 0 | AI45: =SUMIF('Assumptions Sheet'!$G$114:$K$114,'Operating Analysis'!AI$5,'Assumptions Sheet'!$G135:$K135) -> 360000 | AJ45: =SUMIF('Assumptions Sheet'!$G$114:$K$114,'Operating Analysis'!AJ$5,'Assumptions Sheet'!$G135:$K135) -> 0 | AK45: =SUMIF('Assumptions Sheet'!$G$114:$K$114,'Operating Analysis'!AK$5,'Assumptions Sheet'!$G135:$K135) -> 0 | AL45: =SUMIF('Assumptions Sheet'!$G$114:$K$114,'Operating Analysis'!AL$5,'Assumptions Sheet'!$G135:$K135) -> 0 | AM45: =SUMIF('Assumptions Sheet'!$G$114:$K$114,'Operating Analysis'!AM$5,'Assumptions Sheet'!$G135:$K135) -> 0 | AN45: =SUMIF('Assumptions Sheet'!$G$114:$K$114,'Operating Analysis'!AN$5,'Assumptions Sheet'!$G135:$K135) -> 0 | AO45: =SUMIF('Assumptions Sheet'!$G$114:$K$114,'Operating Analysis'!AO$5,'Assumptions Sheet'!$G135:$K135) -> 0 | AP45: =SUMIF('Assumptions Sheet'!$G$114:$K$114,'Operating Analysis'!AP$5,'Assumptions Sheet'!$G135:$K135) -> 0 | AQ45: =SUMIF('Assumptions Sheet'!$G$114:$K$114,'Operating Analysis'!AQ$5,'Assumptions Sheet'!$G135:$K135) -> 0 | AR45: =SUMIF('Assumptions Sheet'!$G$114:$K$114,'Operating Analysis'!AR$5,'Assumptions Sheet'!$G135:$K135) -> 0 | AS45: =SUMIF('Assumptions Sheet'!$G$114:$K$114,'Operating Analysis'!AS$5,'Assumptions Sheet'!$G135:$K135) -> 0 | AT45: =SUMIF('Assumptions Sheet'!$G$114:$K$114,'Operating Analysis'!AT$5,'Assumptions Sheet'!$G135:$K135) -> 0 | AU45: =SUMIF('Assumptions Sheet'!$G$114:$K$114,'Operating Analysis'!AU$5,'Assumptions Sheet'!$G135:$K135) -> 0 | AV45: =SUMIF('Assumptions Sheet'!$G$114:$K$114,'Operating Analysis'!AV$5,'Assumptions Sheet'!$G135:$K135) -> 0 | AW45: =SUMIF('Assumptions Sheet'!$G$114:$K$114,'Operating Analysis'!AW$5,'Assumptions Sheet'!$G135:$K135) -> 0 | AX45: =SUMIF('Assumptions Sheet'!$G$114:$K$114,'Operating Analysis'!AX$5,'Assumptions Sheet'!$G135:$K135) -> 0 | AY45: =SUMIF('Assumptions Sheet'!$G$114:$K$114,'Operating Analysis'!AY$5,'Assumptions Sheet'!$G135:$K135) -> 0 | AZ45: =SUMIF('Assumptions Sheet'!$G$114:$K$114,'Operating Analysis'!AZ$5,'Assumptions Sheet'!$G135:$K135) -> 0 | BA45: =SUMIF('Assumptions Sheet'!$G$114:$K$114,'Operating Analysis'!BA$5,'Assumptions Sheet'!$G135:$K135) -> 0 | BB45: =SUMIF('Assumptions Sheet'!$G$114:$K$114,'Operating Analysis'!BB$5,'Assumptions Sheet'!$G135:$K135) -> 0 | BC45: =SUMIF('Assumptions Sheet'!$G$114:$K$114,'Operating Analysis'!BC$5,'Assumptions Sheet'!$G135:$K135) -> 0 | BD45: =SUMIF('Assumptions Sheet'!$G$114:$K$114,'Operating Analysis'!BD$5,'Assumptions Sheet'!$G135:$K135) -> 0 | BE45: =SUMIF('Assumptions Sheet'!$G$114:$K$114,'Operating Analysis'!BE$5,'Assumptions Sheet'!$G135:$K135) -> 0 | BF45: =SUMIF('Assumptions Sheet'!$G$114:$K$114,'Operating Analysis'!BF$5,'Assumptions Sheet'!$G135:$K135) -> 0 | BG45: =SUMIF('Assumptions Sheet'!$G$114:$K$114,'Operating Analysis'!BG$5,'Assumptions Sheet'!$G135:$K135) -> 0 | BH45: =SUMIF('Assumptions Sheet'!$G$114:$K$114,'Operating Analysis'!BH$5,'Assumptions Sheet'!$G135:$K135) -> 0 | BI45: =SUMIF('Assumptions Sheet'!$G$114:$K$114,'Operating Analysis'!BI$5,'Assumptions Sheet'!$G135:$K135) -> 0 | BJ45: =SUMIF('Assumptions Sheet'!$G$114:$K$114,'Operating Analysis'!BJ$5,'Assumptions Sheet'!$G135:$K135) -> 0 | BK45: =SUMIF('Assumptions Sheet'!$G$114:$K$114,'Operating Analysis'!BK$5,'Assumptions Sheet'!$G135:$K135) -> 0 | BL45: =SUMIF('Assumptions Sheet'!$G$114:$K$114,'Operating Analysis'!BL$5,'Assumptions Sheet'!$G135:$K135) -> 0 | BM45: =SUMIF('Assumptions Sheet'!$G$114:$K$114,'Operating Analysis'!BM$5,'Assumptions Sheet'!$G135:$K135) -> 0 | BN45: =SUMIF('Assumptions Sheet'!$G$114:$K$114,'Operating Analysis'!BN$5,'Assumptions Sheet'!$G135:$K135) -> 0 | BO45: =SUMIF('Assumptions Sheet'!$G$114:$K$114,'Operating Analysis'!BO$5,'Assumptions Sheet'!$G135:$K135) -> 0 | BP45: =SUMIF('Assumptions Sheet'!$G$114:$K$114,'Operating Analysis'!BP$5,'Assumptions Sheet'!$G135:$K135) -> 0 | BQ45: =SUMIF('Assumptions Sheet'!$G$114:$K$114,'Operating Analysis'!BQ$5,'Assumptions Sheet'!$G135:$K135) -> 0 | BR45: =SUMIF('Assumptions Sheet'!$G$114:$K$114,'Operating Analysis'!BR$5,'Assumptions Sheet'!$G135:$K135) -> 0 | BS45: =SUMIF('Assumptions Sheet'!$G$114:$K$114,'Operating Analysis'!BS$5,'Assumptions Sheet'!$G135:$K135) -> 0 | BT45: =SUMIF('Assumptions Sheet'!$G$114:$K$114,'Operating Analysis'!BT$5,'Assumptions Sheet'!$G135:$K135) -> 0 | BU45: =SUMIF('Assumptions Sheet'!$G$114:$K$114,'Operating Analysis'!BU$5,'Assumptions Sheet'!$G135:$K135) -> 0 | BV45: =SUMIF('Assumptions Sheet'!$G$114:$K$114,'Operating Analysis'!BV$5,'Assumptions Sheet'!$G135:$K135) -> 0 | BW45: =SUMIF('Assumptions Sheet'!$G$114:$K$114,'Operating Analysis'!BW$5,'Assumptions Sheet'!$G135:$K135) -> 0 | BX45: =SUMIF('Assumptions Sheet'!$G$114:$K$114,'Operating Analysis'!BX$5,'Assumptions Sheet'!$G135:$K135) -> 0 | BY45: =SUMIF('Assumptions Sheet'!$G$114:$K$114,'Operating Analysis'!BY$5,'Assumptions Sheet'!$G135:$K135) -> 0 | BZ45: =SUMIF('Assumptions Sheet'!$G$114:$K$114,'Operating Analysis'!BZ$5,'Assumptions Sheet'!$G135:$K135) -> 0 | CA45: =SUMIF('Assumptions Sheet'!$G$114:$K$114,'Operating Analysis'!CA$5,'Assumptions Sheet'!$G135:$K135) -> 0 | CB45: =SUMIF('Assumptions Sheet'!$G$114:$K$114,'Operating Analysis'!CB$5,'Assumptions Sheet'!$G135:$K135) -> 0 | CC45: =SUMIF('Assumptions Sheet'!$G$114:$K$114,'Operating Analysis'!CC$5,'Assumptions Sheet'!$G135:$K135) -> 0 | CD45: =SUMIF('Assumptions Sheet'!$G$114:$K$114,'Operating Analysis'!CD$5,'Assumptions Sheet'!$G135:$K135) -> 0 | CE45: =SUMIF('Assumptions Sheet'!$G$114:$K$114,'Operating Analysis'!CE$5,'Assumptions Sheet'!$G135:$K135) -> 0 | CF45: =SUMIF('Assumptions Sheet'!$G$114:$K$114,'Operating Analysis'!CF$5,'Assumptions Sheet'!$G135:$K135) -> 0 | CG45: =SUMIF('Assumptions Sheet'!$G$114:$K$114,'Operating Analysis'!CG$5,'Assumptions Sheet'!$G135:$K135) -> 0 | CH45: =SUMIF('Assumptions Sheet'!$G$114:$K$114,'Operating Analysis'!CH$5,'Assumptions Sheet'!$G135:$K135) -> 0 | CI45: =SUMIF('Assumptions Sheet'!$G$114:$K$114,'Operating Analysis'!CI$5,'Assumptions Sheet'!$G135:$K135) -> 0 | CJ45: =SUMIF('Assumptions Sheet'!$G$114:$K$114,'Operating Analysis'!CJ$5,'Assumptions Sheet'!$G135:$K135) -> 0 | CK45: =SUMIF('Assumptions Sheet'!$G$114:$K$114,'Operating Analysis'!CK$5,'Assumptions Sheet'!$G135:$K135) -> 0 | CL45: =SUMIF('Assumptions Sheet'!$G$114:$K$114,'Operating Analysis'!CL$5,'Assumptions Sheet'!$G135:$K135) -> 0 | CM45: =SUMIF('Assumptions Sheet'!$G$114:$K$114,'Operating Analysis'!CM$5,'Assumptions Sheet'!$G135:$K135) -> 0 | CN45: =SUMIF('Assumptions Sheet'!$G$114:$K$114,'Operating Analysis'!CN$5,'Assumptions Sheet'!$G135:$K135) -> 0 | CO45: =SUMIF('Assumptions Sheet'!$G$114:$K$114,'Operating Analysis'!CO$5,'Assumptions Sheet'!$G135:$K135) -> 0
C46: Power Generation Plant | E46: USD | G46: 16000000 | K46: =SUMIF('Assumptions Sheet'!$G$114:$K$114,'Operating Analysis'!K$5,'Assumptions Sheet'!$G136:$K136) -> 0 | L46: =SUMIF('Assumptions Sheet'!$G$114:$K$114,'Operating Analysis'!L$5,'Assumptions Sheet'!$G136:$K136) -> 3200000 | M46: =SUMIF('Assumptions Sheet'!$G$114:$K$114,'Operating Analysis'!M$5,'Assumptions Sheet'!$G136:$K136) -> 0 | N46: =SUMIF('Assumptions Sheet'!$G$114:$K$114,'Operating Analysis'!N$5,'Assumptions Sheet'!$G136:$K136) -> 0 | O46: =SUMIF('Assumptions Sheet'!$G$114:$K$114,'Operating Analysis'!O$5,'Assumptions Sheet'!$G136:$K136) -> 0 | P46: =SUMIF('Assumptions Sheet'!$G$114:$K$114,'Operating Analysis'!P$5,'Assumptions Sheet'!$G136:$K136) -> 0 | Q46: =SUMIF('Assumptions Sheet'!$G$114:$K$114,'Operating Analysis'!Q$5,'Assumptions Sheet'!$G136:$K136) -> 0 | R46: =SUMIF('Assumptions Sheet'!$G$114:$K$114,'Operating Analysis'!R$5,'Assumptions Sheet'!$G136:$K136) -> 3200000 | S46: =SUMIF('Assumptions Sheet'!$G$114:$K$114,'Operating Analysis'!S$5,'Assumptions Sheet'!$G136:$K136) -> 0 | T46: =SUMIF('Assumptions Sheet'!$G$114:$K$114,'Operating Analysis'!T$5,'Assumptions Sheet'!$G136:$K136) -> 0 | U46: =SUMIF('Assumptions Sheet'!$G$114:$K$114,'Operating Analysis'!U$5,'Assumptions Sheet'!$G136:$K136) -> 0 | V46: =SUMIF('Assumptions Sheet'!$G$114:$K$114,'Operating Analysis'!V$5,'Assumptions Sheet'!$G136:$K136) -> 0 | W46: =SUMIF('Assumptions Sheet'!$G$114:$K$114,'Operating Analysis'!W$5,'Assumptions Sheet'!$G136:$K136) -> 0 | X46: =SUMIF('Assumptions Sheet'!$G$114:$K$114,'Operating Analysis'!X$5,'Assumptions Sheet'!$G136:$K136) -> 3200000 | Y46: =SUMIF('Assumptions Sheet'!$G$114:$K$114,'Operating Analysis'!Y$5,'Assumptions Sheet'!$G136:$K136) -> 0 | Z46: =SUMIF('Assumptions Sheet'!$G$114:$K$114,'Operating Analysis'!Z$5,'Assumptions Sheet'!$G136:$K136) -> 0 | AA46: =SUMIF('Assumptions Sheet'!$G$114:$K$114,'Operating Analysis'!AA$5,'Assumptions Sheet'!$G136:$K136) -> 0 | AB46: =SUMIF('Assumptions Sheet'!$G$114:$K$114,'Operating Analysis'!AB$5,'Assumptions Sheet'!$G136:$K136) -> 0 | AC46: =SUMIF('Assumptions Sheet'!$G$114:$K$114,'Operating Analysis'!AC$5,'Assumptions Sheet'!$G136:$K136) -> 0 | AD46: =SUMIF('Assumptions Sheet'!$G$114:$K$114,'Operating Analysis'!AD$5,'Assumptions Sheet'!$G136:$K136) -> 3200000 | AE46: =SUMIF('Assumptions Sheet'!$G$114:$K$114,'Operating Analysis'!AE$5,'Assumptions Sheet'!$G136:$K136) -> 0 | AF46: =SUMIF('Assumptions Sheet'!$G$114:$K$114,'Operating Analysis'!AF$5,'Assumptions Sheet'!$G136:$K136) -> 0 | AG46: =SUMIF('Assumptions Sheet'!$G$114:$K$114,'Operating Analysis'!AG$5,'Assumptions Sheet'!$G136:$K136) -> 0 | AH46: =SUMIF('Assumptions Sheet'!$G$114:$K$114,'Operating Analysis'!AH$5,'Assumptions Sheet'!$G136:$K136) -> 0 | AI46: =SUMIF('Assumptions Sheet'!$G$114:$K$114,'Operating Analysis'!AI$5,'Assumptions Sheet'!$G136:$K136) -> 3200000 | AJ46: =SUMIF('Assumptions Sheet'!$G$114:$K$114,'Operating Analysis'!AJ$5,'Assumptions Sheet'!$G136:$K136) -> 0 | AK46: =SUMIF('Assumptions Sheet'!$G$114:$K$114,'Operating Analysis'!AK$5,'Assumptions Sheet'!$G136:$K136) -> 0 | AL46: =SUMIF('Assumptions Sheet'!$G$114:$K$114,'Operating Analysis'!AL$5,'Assumptions Sheet'!$G136:$K136) -> 0 | AM46: =SUMIF('Assumptions Sheet'!$G$114:$K$114,'Operating Analysis'!AM$5,'Assumptions Sheet'!$G136:$K136) -> 0 | AN46: =SUMIF('Assumptions Sheet'!$G$114:$K$114,'Operating Analysis'!AN$5,'Assumptions Sheet'!$G136:$K136) -> 0 | AO46: =SUMIF('Assumptions Sheet'!$G$114:$K$114,'Operating Analysis'!AO$5,'Assumptions Sheet'!$G136:$K136) -> 0 | AP46: =SUMIF('Assumptions Sheet'!$G$114:$K$114,'Operating Analysis'!AP$5,'Assumptions Sheet'!$G136:$K136) -> 0 | AQ46: =SUMIF('Assumptions Sheet'!$G$114:$K$114,'Operating Analysis'!AQ$5,'Assumptions Sheet'!$G136:$K136) -> 0 | AR46: =SUMIF('Assumptions Sheet'!$G$114:$K$114,'Operating Analysis'!AR$5,'Assumptions Sheet'!$G136:$K136) -> 0 | AS46: =SUMIF('Assumptions Sheet'!$G$114:$K$114,'Operating Analysis'!AS$5,'Assumptions Sheet'!$G136:$K136) -> 0 | AT46: =SUMIF('Assumptions Sheet'!$G$114:$K$114,'Operating Analysis'!AT$5,'Assumptions Sheet'!$G136:$K136) -> 0 | AU46: =SUMIF('Assumptions Sheet'!$G$114:$K$114,'Operating Analysis'!AU$5,'Assumptions Sheet'!$G136:$K136) -> 0 | AV46: =SUMIF('Assumptions Sheet'!$G$114:$K$114,'Operating Analysis'!AV$5,'Assumptions Sheet'!$G136:$K136) -> 0 | AW46: =SUMIF('Assumptions Sheet'!$G$114:$K$114,'Operating Analysis'!AW$5,'Assumptions Sheet'!$G136:$K136) -> 0 | AX46: =SUMIF('Assumptions Sheet'!$G$114:$K$114,'Operating Analysis'!AX$5,'Assumptions Sheet'!$G136:$K136) -> 0 | AY46: =SUMIF('Assumptions Sheet'!$G$114:$K$114,'Operating Analysis'!AY$5,'Assumptions Sheet'!$G136:$K136) -> 0 | AZ46: =SUMIF('Assumptions Sheet'!$G$114:$K$114,'Operating Analysis'!AZ$5,'Assumptions Sheet'!$G136:$K136) -> 0 | BA46: =SUMIF('Assumptions Sheet'!$G$114:$K$114,'Operating Analysis'!BA$5,'Assumptions Sheet'!$G136:$K136) -> 0 | BB46: =SUMIF('Assumptions Sheet'!$G$114:$K$114,'Operating Analysis'!BB$5,'Assumptions Sheet'!$G136:$K136) -> 0 | BC46: =SUMIF('Assumptions Sheet'!$G$114:$K$114,'Operating Analysis'!BC$5,'Assumptions Sheet'!$G136:$K136) -> 0 | BD46: =SUMIF('Assumptions Sheet'!$G$114:$K$114,'Operating Analysis'!BD$5,'Assumptions Sheet'!$G136:$K136) -> 0 | BE46: =SUMIF('Assumptions Sheet'!$G$114:$K$114,'Operating Analysis'!BE$5,'Assumptions Sheet'!$G136:$K136) -> 0 | BF46: =SUMIF('Assumptions Sheet'!$G$114:$K$114,'Operating Analysis'!BF$5,'Assumptions Sheet'!$G136:$K136) -> 0 | BG46: =SUMIF('Assumptions Sheet'!$G$114:$K$114,'Operating Analysis'!BG$5,'Assumptions Sheet'!$G136:$K136) -> 0 | BH46: =SUMIF('Assumptions Sheet'!$G$114:$K$114,'Operating Analysis'!BH$5,'Assumptions Sheet'!$G136:$K136) -> 0 | BI46: =SUMIF('Assumptions Sheet'!$G$114:$K$114,'Operating Analysis'!BI$5,'Assumptions Sheet'!$G136:$K136) -> 0 | BJ46: =SUMIF('Assumptions Sheet'!$G$114:$K$114,'Operating Analysis'!BJ$5,'Assumptions Sheet'!$G136:$K136) -> 0 | BK46: =SUMIF('Assumptions Sheet'!$G$114:$K$114,'Operating Analysis'!BK$5,'Assumptions Sheet'!$G136:$K136) -> 0 | BL46: =SUMIF('Assumptions Sheet'!$G$114:$K$114,'Operating Analysis'!BL$5,'Assumptions Sheet'!$G136:$K136) -> 0 | BM46: =SUMIF('Assumptions Sheet'!$G$114:$K$114,'Operating Analysis'!BM$5,'Assumptions Sheet'!$G136:$K136) -> 0 | BN46: =SUMIF('Assumptions Sheet'!$G$114:$K$114,'Operating Analysis'!BN$5,'Assumptions Sheet'!$G136:$K136) -> 0 | BO46: =SUMIF('Assumptions Sheet'!$G$114:$K$114,'Operating Analysis'!BO$5,'Assumptions Sheet'!$G136:$K136) -> 0 | BP46: =SUMIF('Assumptions Sheet'!$G$114:$K$114,'Operating Analysis'!BP$5,'Assumptions Sheet'!$G136:$K136) -> 0 | BQ46: =SUMIF('Assumptions Sheet'!$G$114:$K$114,'Operating Analysis'!BQ$5,'Assumptions Sheet'!$G136:$K136) -> 0 | BR46: =SUMIF('Assumptions Sheet'!$G$114:$K$114,'Operating Analysis'!BR$5,'Assumptions Sheet'!$G136:$K136) -> 0 | BS46: =SUMIF('Assumptions Sheet'!$G$114:$K$114,'Operating Analysis'!BS$5,'Assumptions Sheet'!$G136:$K136) -> 0 | BT46: =SUMIF('Assumptions Sheet'!$G$114:$K$114,'Operating Analysis'!BT$5,'Assumptions Sheet'!$G136:$K136) -> 0 | BU46: =SUMIF('Assumptions Sheet'!$G$114:$K$114,'Operating Analysis'!BU$5,'Assumptions Sheet'!$G136:$K136) -> 0 | BV46: =SUMIF('Assumptions Sheet'!$G$114:$K$114,'Operating Analysis'!BV$5,'Assumptions Sheet'!$G136:$K136) -> 0 | BW46: =SUMIF('Assumptions Sheet'!$G$114:$K$114,'Operating Analysis'!BW$5,'Assumptions Sheet'!$G136:$K136) -> 0 | BX46: =SUMIF('Assumptions Sheet'!$G$114:$K$114,'Operating Analysis'!BX$5,'Assumptions Sheet'!$G136:$K136) -> 0 | BY46: =SUMIF('Assumptions Sheet'!$G$114:$K$114,'Operating Analysis'!BY$5,'Assumptions Sheet'!$G136:$K136) -> 0 | BZ46: =SUMIF('Assumptions Sheet'!$G$114:$K$114,'Operating Analysis'!BZ$5,'Assumptions Sheet'!$G136:$K136) -> 0 | CA46: =SUMIF('Assumptions Sheet'!$G$114:$K$114,'Operating Analysis'!CA$5,'Assumptions Sheet'!$G136:$K136) -> 0 | CB46: =SUMIF('Assumptions Sheet'!$G$114:$K$114,'Operating Analysis'!CB$5,'Assumptions Sheet'!$G136:$K136) -> 0 | CC46: =SUMIF('Assumptions Sheet'!$G$114:$K$114,'Operating Analysis'!CC$5,'Assumptions Sheet'!$G136:$K136) -> 0 | CD46: =SUMIF('Assumptions Sheet'!$G$114:$K$114,'Operating Analysis'!CD$5,'Assumptions Sheet'!$G136:$K136) -> 0 | CE46: =SUMIF('Assumptions Sheet'!$G$114:$K$114,'Operating Analysis'!CE$5,'Assumptions Sheet'!$G136:$K136) -> 0 | CF46: =SUMIF('Assumptions Sheet'!$G$114:$K$114,'Operating Analysis'!CF$5,'Assumptions Sheet'!$G136:$K136) -> 0 | CG46: =SUMIF('Assumptions Sheet'!$G$114:$K$114,'Operating Analysis'!CG$5,'Assumptions Sheet'!$G136:$K136) -> 0 | CH46: =SUMIF('Assumptions Sheet'!$G$114:$K$114,'Operating Analysis'!CH$5,'Assumptions Sheet'!$G136:$K136) -> 0 | CI46: =SUMIF('Assumptions Sheet'!$G$114:$K$114,'Operating Analysis'!CI$5,'Assumptions Sheet'!$G136:$K136) -> 0 | CJ46: =SUMIF('Assumptions Sheet'!$G$114:$K$114,'Operating Analysis'!CJ$5,'Assumptions Sheet'!$G136:$K136) -> 0 | CK46: =SUMIF('Assumptions Sheet'!$G$114:$K$114,'Operating Analysis'!CK$5,'Assumptions Sheet'!$G136:$K136) -> 0 | CL46: =SUMIF('Assumptions Sheet'!$G$114:$K$114,'Operating Analysis'!CL$5,'Assumptions Sheet'!$G136:$K136) -> 0 | CM46: =SUMIF('Assumptions Sheet'!$G$114:$K$114,'Operating Analysis'!CM$5,'Assumptions Sheet'!$G136:$K136) -> 0 | CN46: =SUMIF('Assumptions Sheet'!$G$114:$K$114,'Operating Analysis'!CN$5,'Assumptions Sheet'!$G136:$K136) -> 0 | CO46: =SUMIF('Assumptions Sheet'!$G$114:$K$114,'Operating Analysis'!CO$5,'Assumptions Sheet'!$G136:$K136) -> 0
D47: Sub-total | E47: USD | G47: 118365125 | K47: =SUM(K39:K46) -> 6010000 | L47: =SUM(L39:L46) -> 22471025 | M47: 0 | N47: 0 | O47: 0 | P47: 0 | Q47: 0 | R47: 22471025 | S47: 0 | T47: 0 | U47: 0 | V47: 0 | W47: 0 | X47: 22471025 | Y47: 0 | Z47: 0 | AA47: 0 | AB47: 0 | AC47: 0 | AD47: 22471025 | AE47: 0 | AF47: 0 | AG47: 0 | AH47: 0 | AI47: 22471025 | AJ47: 0 | AK47: 0 | AL47: 0 | AM47: 0 | AN47: 0 | AO47: 0 | AP47: 0 | AQ47: 0 | AR47: 0 | AS47: 0 | AT47: 0 | AU47: 0 | AV47: 0 | AW47: 0 | AX47: 0 | AY47: 0 | AZ47: 0 | BA47: 0 | BB47: 0 | BC47: 0 | BD47: 0 | BE47: 0 | BF47: 0 | BG47: 0 | BH47: 0 | BI47: 0 | BJ47: 0 | BK47: 0 | BL47: 0 | BM47: 0 | BN47: 0 | BO47: 0 | BP47: 0 | BQ47: 0 | BR47: 0 | BS47: 0 | BT47: 0 | BU47: 0 | BV47: 0 | BW47: 0 | BX47: =SUM(BX39:BX46) -> 0 | BY47: 0 | BZ47: 0 | CA47: 0 | CB47: 0 | CC47: 0 | CD47: 0 | CE47: 0 | CF47: 0 | CG47: 0 | CH47: 0 | CI47: 0 | CJ47: 0 | CK47: 0 | CL47: 0 | CM47: 0 | CN47: 0 | CO47: 0
C48: Land | E48: USD | G48: 520000 | K48: =SUMIF('Assumptions Sheet'!$G$114:$K$114,'Operating Analysis'!K$5,'Assumptions Sheet'!$G138:$K138) -> 0 | L48: =SUMIF('Assumptions Sheet'!$G$114:$K$114,'Operating Analysis'!L$5,'Assumptions Sheet'!$G138:$K138) -> 211998.9813 | M48: =SUMIF('Assumptions Sheet'!$G$114:$K$114,'Operating Analysis'!M$5,'Assumptions Sheet'!$G138:$K138) -> 0 | N48: =SUMIF('Assumptions Sheet'!$G$114:$K$114,'Operating Analysis'!N$5,'Assumptions Sheet'!$G138:$K138) -> 0 | O48: =SUMIF('Assumptions Sheet'!$G$114:$K$114,'Operating Analysis'!O$5,'Assumptions Sheet'!$G138:$K138) -> 0 | P48: =SUMIF('Assumptions Sheet'!$G$114:$K$114,'Operating Analysis'!P$5,'Assumptions Sheet'!$G138:$K138) -> 0 | Q48: =SUMIF('Assumptions Sheet'!$G$114:$K$114,'Operating Analysis'!Q$5,'Assumptions Sheet'!$G138:$K138) -> 0 | R48: =SUMIF('Assumptions Sheet'!$G$114:$K$114,'Operating Analysis'!R$5,'Assumptions Sheet'!$G138:$K138) -> 68000.33958 | S48: =SUMIF('Assumptions Sheet'!$G$114:$K$114,'Operating Analysis'!S$5,'Assumptions Sheet'!$G138:$K138) -> 0 | T48: =SUMIF('Assumptions Sheet'!$G$114:$K$114,'Operating Analysis'!T$5,'Assumptions Sheet'!$G138:$K138) -> 0 | U48: =SUMIF('Assumptions Sheet'!$G$114:$K$114,'Operating Analysis'!U$5,'Assumptions Sheet'!$G138:$K138) -> 0 | V48: =SUMIF('Assumptions Sheet'!$G$114:$K$114,'Operating Analysis'!V$5,'Assumptions Sheet'!$G138:$K138) -> 0 | W48: =SUMIF('Assumptions Sheet'!$G$114:$K$114,'Operating Analysis'!W$5,'Assumptions Sheet'!$G138:$K138) -> 0 | X48: =SUMIF('Assumptions Sheet'!$G$114:$K$114,'Operating Analysis'!X$5,'Assumptions Sheet'!$G138:$K138) -> 121999.8302 | Y48: =SUMIF('Assumptions Sheet'!$G$114:$K$114,'Operating Analysis'!Y$5,'Assumptions Sheet'!$G138:$K138) -> 0 | Z48: =SUMIF('Assumptions Sheet'!$G$114:$K$114,'Operating Analysis'!Z$5,'Assumptions Sheet'!$G138:$K138) -> 0 | AA48: =SUMIF('Assumptions Sheet'!$G$114:$K$114,'Operating Analysis'!AA$5,'Assumptions Sheet'!$G138:$K138) -> 0 | AB48: =SUMIF('Assumptions Sheet'!$G$114:$K$114,'Operating Analysis'!AB$5,'Assumptions Sheet'!$G138:$K138) -> 0 | AC48: =SUMIF('Assumptions Sheet'!$G$114:$K$114,'Operating Analysis'!AC$5,'Assumptions Sheet'!$G138:$K138) -> 0 | AD48: =SUMIF('Assumptions Sheet'!$G$114:$K$114,'Operating Analysis'!AD$5,'Assumptions Sheet'!$G138:$K138) -> 104000 | AE48: =SUMIF('Assumptions Sheet'!$G$114:$K$114,'Operating Analysis'!AE$5,'Assumptions Sheet'!$G138:$K138) -> 0 | AF48: =SUMIF('Assumptions Sheet'!$G$114:$K$114,'Operating Analysis'!AF$5,'Assumptions Sheet'!$G138:$K138) -> 0 | AG48: =SUMIF('Assumptions Sheet'!$G$114:$K$114,'Operating Analysis'!AG$5,'Assumptions Sheet'!$G138:$K138) -> 0 | AH48: =SUMIF('Assumptions Sheet'!$G$114:$K$114,'Operating Analysis'!AH$5,'Assumptions Sheet'!$G138:$K138) -> 0 | AI48: =SUMIF('Assumptions Sheet'!$G$114:$K$114,'Operating Analysis'!AI$5,'Assumptions Sheet'!$G138:$K138) -> 14000.84895 | AJ48: =SUMIF('Assumptions Sheet'!$G$114:$K$114,'Operating Analysis'!AJ$5,'Assumptions Sheet'!$G138:$K138) -> 0 | AK48: =SUMIF('Assumptions Sheet'!$G$114:$K$114,'Operating Analysis'!AK$5,'Assumptions Sheet'!$G138:$K138) -> 0 | AL48: =SUMIF('Assumptions Sheet'!$G$114:$K$114,'Operating Analysis'!AL$5,'Assumptions Sheet'!$G138:$K138) -> 0 | AM48: =SUMIF('Assumptions Sheet'!$G$114:$K$114,'Operating Analysis'!AM$5,'Assumptions Sheet'!$G138:$K138) -> 0 | AN48: =SUMIF('Assumptions Sheet'!$G$114:$K$114,'Operating Analysis'!AN$5,'Assumptions Sheet'!$G138:$K138) -> 0 | AO48: =SUMIF('Assumptions Sheet'!$G$114:$K$114,'Operating Analysis'!AO$5,'Assumptions Sheet'!$G138:$K138) -> 0 | AP48: =SUMIF('Assumptions Sheet'!$G$114:$K$114,'Operating Analysis'!AP$5,'Assumptions Sheet'!$G138:$K138) -> 0 | AQ48: =SUMIF('Assumptions Sheet'!$G$114:$K$114,'Operating Analysis'!AQ$5,'Assumptions Sheet'!$G138:$K138) -> 0 | AR48: =SUMIF('Assumptions Sheet'!$G$114:$K$114,'Operating Analysis'!AR$5,'Assumptions Sheet'!$G138:$K138) -> 0 | AS48: =SUMIF('Assumptions Sheet'!$G$114:$K$114,'Operating Analysis'!AS$5,'Assumptions Sheet'!$G138:$K138) -> 0 | AT48: =SUMIF('Assumptions Sheet'!$G$114:$K$114,'Operating Analysis'!AT$5,'Assumptions Sheet'!$G138:$K138) -> 0 | AU48: =SUMIF('Assumptions Sheet'!$G$114:$K$114,'Operating Analysis'!AU$5,'Assumptions Sheet'!$G138:$K138) -> 0 | AV48: =SUMIF('Assumptions Sheet'!$G$114:$K$114,'Operating Analysis'!AV$5,'Assumptions Sheet'!$G138:$K138) -> 0 | AW48: =SUMIF('Assumptions Sheet'!$G$114:$K$114,'Operating Analysis'!AW$5,'Assumptions Sheet'!$G138:$K138) -> 0 | AX48: =SUMIF('Assumptions Sheet'!$G$114:$K$114,'Operating Analysis'!AX$5,'Assumptions Sheet'!$G138:$K138) -> 0 | AY48: =SUMIF('Assumptions Sheet'!$G$114:$K$114,'Operating Analysis'!AY$5,'Assumptions Sheet'!$G138:$K138) -> 0 | AZ48: =SUMIF('Assumptions Sheet'!$G$114:$K$114,'Operating Analysis'!AZ$5,'Assumptions Sheet'!$G138:$K138) -> 0 | BA48: =SUMIF('Assumptions Sheet'!$G$114:$K$114,'Operating Analysis'!BA$5,'Assumptions Sheet'!$G138:$K138) -> 0 | BB48: =SUMIF('Assumptions Sheet'!$G$114:$K$114,'Operating Analysis'!BB$5,'Assumptions Sheet'!$G138:$K138) -> 0 | BC48: =SUMIF('Assumptions Sheet'!$G$114:$K$114,'Operating Analysis'!BC$5,'Assumptions Sheet'!$G138:$K138) -> 0 | BD48: =SUMIF('Assumptions Sheet'!$G$114:$K$114,'Operating Analysis'!BD$5,'Assumptions Sheet'!$G138:$K138) -> 0 | BE48: =SUMIF('Assumptions Sheet'!$G$114:$K$114,'Operating Analysis'!BE$5,'Assumptions Sheet'!$G138:$K138) -> 0 | BF48: =SUMIF('Assumptions Sheet'!$G$114:$K$114,'Operating Analysis'!BF$5,'Assumptions Sheet'!$G138:$K138) -> 0 | BG48: =SUMIF('Assumptions Sheet'!$G$114:$K$114,'Operating Analysis'!BG$5,'Assumptions Sheet'!$G138:$K138) -> 0 | BH48: =SUMIF('Assumptions Sheet'!$G$114:$K$114,'Operating Analysis'!BH$5,'Assumptions Sheet'!$G138:$K138) -> 0 | BI48: =SUMIF('Assumptions Sheet'!$G$114:$K$114,'Operating Analysis'!BI$5,'Assumptions Sheet'!$G138:$K138) -> 0 | BJ48: =SUMIF('Assumptions Sheet'!$G$114:$K$114,'Operating Analysis'!BJ$5,'Assumptions Sheet'!$G138:$K138) -> 0 | BK48: =SUMIF('Assumptions Sheet'!$G$114:$K$114,'Operating Analysis'!BK$5,'Assumptions Sheet'!$G138:$K138) -> 0 | BL48: =SUMIF('Assumptions Sheet'!$G$114:$K$114,'Operating Analysis'!BL$5,'Assumptions Sheet'!$G138:$K138) -> 0 | BM48: =SUMIF('Assumptions Sheet'!$G$114:$K$114,'Operating Analysis'!BM$5,'Assumptions Sheet'!$G138:$K138) -> 0 | BN48: =SUMIF('Assumptions Sheet'!$G$114:$K$114,'Operating Analysis'!BN$5,'Assumptions Sheet'!$G138:$K138) -> 0 | BO48: =SUMIF('Assumptions Sheet'!$G$114:$K$114,'Operating Analysis'!BO$5,'Assumptions Sheet'!$G138:$K138) -> 0 | BP48: =SUMIF('Assumptions Sheet'!$G$114:$K$114,'Operating Analysis'!BP$5,'Assumptions Sheet'!$G138:$K138) -> 0 | BQ48: =SUMIF('Assumptions Sheet'!$G$114:$K$114,'Operating Analysis'!BQ$5,'Assumptions Sheet'!$G138:$K138) -> 0 | BR48: =SUMIF('Assumptions Sheet'!$G$114:$K$114,'Operating Analysis'!BR$5,'Assumptions Sheet'!$G138:$K138) -> 0 | BS48: =SUMIF('Assumptions Sheet'!$G$114:$K$114,'Operating Analysis'!BS$5,'Assumptions Sheet'!$G138:$K138) -> 0 | BT48: =SUMIF('Assumptions Sheet'!$G$114:$K$114,'Operating Analysis'!BT$5,'Assumptions Sheet'!$G138:$K138) -> 0 | BU48: =SUMIF('Assumptions Sheet'!$G$114:$K$114,'Operating Analysis'!BU$5,'Assumptions Sheet'!$G138:$K138) -> 0 | BV48: =SUMIF('Assumptions Sheet'!$G$114:$K$114,'Operating Analysis'!BV$5,'Assumptions Sheet'!$G138:$K138) -> 0 | BW48: =SUMIF('Assumptions Sheet'!$G$114:$K$114,'Operating Analysis'!BW$5,'Assumptions Sheet'!$G138:$K138) -> 0 | BX48: =SUMIF('Assumptions Sheet'!$G$114:$K$114,'Operating Analysis'!BX$5,'Assumptions Sheet'!$G138:$K138) -> 0 | BY48: =SUMIF('Assumptions Sheet'!$G$114:$K$114,'Operating Analysis'!BY$5,'Assumptions Sheet'!$G138:$K138) -> 0 | BZ48: =SUMIF('Assumptions Sheet'!$G$114:$K$114,'Operating Analysis'!BZ$5,'Assumptions Sheet'!$G138:$K138) -> 0 | CA48: =SUMIF('Assumptions Sheet'!$G$114:$K$114,'Operating Analysis'!CA$5,'Assumptions Sheet'!$G138:$K138) -> 0 | CB48: =SUMIF('Assumptions Sheet'!$G$114:$K$114,'Operating Analysis'!CB$5,'Assumptions Sheet'!$G138:$K138) -> 0 | CC48: =SUMIF('Assumptions Sheet'!$G$114:$K$114,'Operating Analysis'!CC$5,'Assumptions Sheet'!$G138:$K138) -> 0 | CD48: =SUMIF('Assumptions Sheet'!$G$114:$K$114,'Operating Analysis'!CD$5,'Assumptions Sheet'!$G138:$K138) -> 0 | CE48: =SUMIF('Assumptions Sheet'!$G$114:$K$114,'Operating Analysis'!CE$5,'Assumptions Sheet'!$G138:$K138) -> 0 | CF48: =SUMIF('Assumptions Sheet'!$G$114:$K$114,'Operating Analysis'!CF$5,'Assumptions Sheet'!$G138:$K138) -> 0 | CG48: =SUMIF('Assumptions Sheet'!$G$114:$K$114,'Operating Analysis'!CG$5,'Assumptions Sheet'!$G138:$K138) -> 0 | CH48: =SUMIF('Assumptions Sheet'!$G$114:$K$114,'Operating Analysis'!CH$5,'Assumptions Sheet'!$G138:$K138) -> 0 | CI48: =SUMIF('Assumptions Sheet'!$G$114:$K$114,'Operating Analysis'!CI$5,'Assumptions Sheet'!$G138:$K138) -> 0 | CJ48: =SUMIF('Assumptions Sheet'!$G$114:$K$114,'Operating Analysis'!CJ$5,'Assumptions Sheet'!$G138:$K138) -> 0 | CK48: =SUMIF('Assumptions Sheet'!$G$114:$K$114,'Operating Analysis'!CK$5,'Assumptions Sheet'!$G138:$K138) -> 0 | CL48: =SUMIF('Assumptions Sheet'!$G$114:$K$114,'Operating Analysis'!CL$5,'Assumptions Sheet'!$G138:$K138) -> 0 | CM48: =SUMIF('Assumptions Sheet'!$G$114:$K$114,'Operating Analysis'!CM$5,'Assumptions Sheet'!$G138:$K138) -> 0 | CN48: =SUMIF('Assumptions Sheet'!$G$114:$K$114,'Operating Analysis'!CN$5,'Assumptions Sheet'!$G138:$K138) -> 0 | CO48: =SUMIF('Assumptions Sheet'!$G$114:$K$114,'Operating Analysis'!CO$5,'Assumptions Sheet'!$G138:$K138) -> 0
C49: Land, Admin and Vehicles | E49: USD | G49: 680000 | K49: =SUMIF('Assumptions Sheet'!$G$114:$K$114,'Operating Analysis'!K$5,'Assumptions Sheet'!$G139:$K139) -> 0 | L49: =SUMIF('Assumptions Sheet'!$G$114:$K$114,'Operating Analysis'!L$5,'Assumptions Sheet'!$G139:$K139) -> 277229.437 | M49: =SUMIF('Assumptions Sheet'!$G$114:$K$114,'Operating Analysis'!M$5,'Assumptions Sheet'!$G139:$K139) -> 0 | N49: =SUMIF('Assumptions Sheet'!$G$114:$K$114,'Operating Analysis'!N$5,'Assumptions Sheet'!$G139:$K139) -> 0 | O49: =SUMIF('Assumptions Sheet'!$G$114:$K$114,'Operating Analysis'!O$5,'Assumptions Sheet'!$G139:$K139) -> 0 | P49: =SUMIF('Assumptions Sheet'!$G$114:$K$114,'Operating Analysis'!P$5,'Assumptions Sheet'!$G139:$K139) -> 0 | Q49: =SUMIF('Assumptions Sheet'!$G$114:$K$114,'Operating Analysis'!Q$5,'Assumptions Sheet'!$G139:$K139) -> 0 | R49: =SUMIF('Assumptions Sheet'!$G$114:$K$114,'Operating Analysis'!R$5,'Assumptions Sheet'!$G139:$K139) -> 88923.52099 | S49: =SUMIF('Assumptions Sheet'!$G$114:$K$114,'Operating Analysis'!S$5,'Assumptions Sheet'!$G139:$K139) -> 0 | T49: =SUMIF('Assumptions Sheet'!$G$114:$K$114,'Operating Analysis'!T$5,'Assumptions Sheet'!$G139:$K139) -> 0 | U49: =SUMIF('Assumptions Sheet'!$G$114:$K$114,'Operating Analysis'!U$5,'Assumptions Sheet'!$G139:$K139) -> 0 | V49: =SUMIF('Assumptions Sheet'!$G$114:$K$114,'Operating Analysis'!V$5,'Assumptions Sheet'!$G139:$K139) -> 0 | W49: =SUMIF('Assumptions Sheet'!$G$114:$K$114,'Operating Analysis'!W$5,'Assumptions Sheet'!$G139:$K139) -> 0 | X49: =SUMIF('Assumptions Sheet'!$G$114:$K$114,'Operating Analysis'!X$5,'Assumptions Sheet'!$G139:$K139) -> 159538.2395 | Y49: =SUMIF('Assumptions Sheet'!$G$114:$K$114,'Operating Analysis'!Y$5,'Assumptions Sheet'!$G139:$K139) -> 0 | Z49: =SUMIF('Assumptions Sheet'!$G$114:$K$114,'Operating Analysis'!Z$5,'Assumptions Sheet'!$G139:$K139) -> 0 | AA49: =SUMIF('Assumptions Sheet'!$G$114:$K$114,'Operating Analysis'!AA$5,'Assumptions Sheet'!$G139:$K139) -> 0 | AB49: =SUMIF('Assumptions Sheet'!$G$114:$K$114,'Operating Analysis'!AB$5,'Assumptions Sheet'!$G139:$K139) -> 0 | AC49: =SUMIF('Assumptions Sheet'!$G$114:$K$114,'Operating Analysis'!AC$5,'Assumptions Sheet'!$G139:$K139) -> 0 | AD49: =SUMIF('Assumptions Sheet'!$G$114:$K$114,'Operating Analysis'!AD$5,'Assumptions Sheet'!$G139:$K139) -> 136000 | AE49: =SUMIF('Assumptions Sheet'!$G$114:$K$114,'Operating Analysis'!AE$5,'Assumptions Sheet'!$G139:$K139) -> 0 | AF49: =SUMIF('Assumptions Sheet'!$G$114:$K$114,'Operating Analysis'!AF$5,'Assumptions Sheet'!$G139:$K139) -> 0 | AG49: =SUMIF('Assumptions Sheet'!$G$114:$K$114,'Operating Analysis'!AG$5,'Assumptions Sheet'!$G139:$K139) -> 0 | AH49: =SUMIF('Assumptions Sheet'!$G$114:$K$114,'Operating Analysis'!AH$5,'Assumptions Sheet'!$G139:$K139) -> 0 | AI49: =SUMIF('Assumptions Sheet'!$G$114:$K$114,'Operating Analysis'!AI$5,'Assumptions Sheet'!$G139:$K139) -> 18308.80247 | AJ49: =SUMIF('Assumptions Sheet'!$G$114:$K$114,'Operating Analysis'!AJ$5,'Assumptions Sheet'!$G139:$K139) -> 0 | AK49: =SUMIF('Assumptions Sheet'!$G$114:$K$114,'Operating Analysis'!AK$5,'Assumptions Sheet'!$G139:$K139) -> 0 | AL49: =SUMIF('Assumptions Sheet'!$G$114:$K$114,'Operating Analysis'!AL$5,'Assumptions Sheet'!$G139:$K139) -> 0 | AM49: =SUMIF('Assumptions Sheet'!$G$114:$K$114,'Operating Analysis'!AM$5,'Assumptions Sheet'!$G139:$K139) -> 0 | AN49: =SUMIF('Assumptions Sheet'!$G$114:$K$114,'Operating Analysis'!AN$5,'Assumptions Sheet'!$G139:$K139) -> 0 | AO49: =SUMIF('Assumptions Sheet'!$G$114:$K$114,'Operating Analysis'!AO$5,'Assumptions Sheet'!$G139:$K139) -> 0 | AP49: =SUMIF('Assumptions Sheet'!$G$114:$K$114,'Operating Analysis'!AP$5,'Assumptions Sheet'!$G139:$K139) -> 0 | AQ49: =SUMIF('Assumptions Sheet'!$G$114:$K$114,'Operating Analysis'!AQ$5,'Assumptions Sheet'!$G139:$K139) -> 0 | AR49: =SUMIF('Assumptions Sheet'!$G$114:$K$114,'Operating Analysis'!AR$5,'Assumptions Sheet'!$G139:$K139) -> 0 | AS49: =SUMIF('Assumptions Sheet'!$G$114:$K$114,'Operating Analysis'!AS$5,'Assumptions Sheet'!$G139:$K139) -> 0 | AT49: =SUMIF('Assumptions Sheet'!$G$114:$K$114,'Operating Analysis'!AT$5,'Assumptions Sheet'!$G139:$K139) -> 0 | AU49: =SUMIF('Assumptions Sheet'!$G$114:$K$114,'Operating Analysis'!AU$5,'Assumptions Sheet'!$G139:$K139) -> 0 | AV49: =SUMIF('Assumptions Sheet'!$G$114:$K$114,'Operating Analysis'!AV$5,'Assumptions Sheet'!$G139:$K139) -> 0 | AW49: =SUMIF('Assumptions Sheet'!$G$114:$K$114,'Operating Analysis'!AW$5,'Assumptions Sheet'!$G139:$K139) -> 0 | AX49: =SUMIF('Assumptions Sheet'!$G$114:$K$114,'Operating Analysis'!AX$5,'Assumptions Sheet'!$G139:$K139) -> 0 | AY49: =SUMIF('Assumptions Sheet'!$G$114:$K$114,'Operating Analysis'!AY$5,'Assumptions Sheet'!$G139:$K139) -> 0 | AZ49: =SUMIF('Assumptions Sheet'!$G$114:$K$114,'Operating Analysis'!AZ$5,'Assumptions Sheet'!$G139:$K139) -> 0 | BA49: =SUMIF('Assumptions Sheet'!$G$114:$K$114,'Operating Analysis'!BA$5,'Assumptions Sheet'!$G139:$K139) -> 0 | BB49: =SUMIF('Assumptions Sheet'!$G$114:$K$114,'Operating Analysis'!BB$5,'Assumptions Sheet'!$G139:$K139) -> 0 | BC49: =SUMIF('Assumptions Sheet'!$G$114:$K$114,'Operating Analysis'!BC$5,'Assumptions Sheet'!$G139:$K139) -> 0 | BD49: =SUMIF('Assumptions Sheet'!$G$114:$K$114,'Operating Analysis'!BD$5,'Assumptions Sheet'!$G139:$K139) -> 0 | BE49: =SUMIF('Assumptions Sheet'!$G$114:$K$114,'Operating Analysis'!BE$5,'Assumptions Sheet'!$G139:$K139) -> 0 | BF49: =SUMIF('Assumptions Sheet'!$G$114:$K$114,'Operating Analysis'!BF$5,'Assumptions Sheet'!$G139:$K139) -> 0 | BG49: =SUMIF('Assumptions Sheet'!$G$114:$K$114,'Operating Analysis'!BG$5,'Assumptions Sheet'!$G139:$K139) -> 0 | BH49: =SUMIF('Assumptions Sheet'!$G$114:$K$114,'Operating Analysis'!BH$5,'Assumptions Sheet'!$G139:$K139) -> 0 | BI49: =SUMIF('Assumptions Sheet'!$G$114:$K$114,'Operating Analysis'!BI$5,'Assumptions Sheet'!$G139:$K139) -> 0 | BJ49: =SUMIF('Assumptions Sheet'!$G$114:$K$114,'Operating Analysis'!BJ$5,'Assumptions Sheet'!$G139:$K139) -> 0 | BK49: =SUMIF('Assumptions Sheet'!$G$114:$K$114,'Operating Analysis'!BK$5,'Assumptions Sheet'!$G139:$K139) -> 0 | BL49: =SUMIF('Assumptions Sheet'!$G$114:$K$114,'Operating Analysis'!BL$5,'Assumptions Sheet'!$G139:$K139) -> 0 | BM49: =SUMIF('Assumptions Sheet'!$G$114:$K$114,'Operating Analysis'!BM$5,'Assumptions Sheet'!$G139:$K139) -> 0 | BN49: =SUMIF('Assumptions Sheet'!$G$114:$K$114,'Operating Analysis'!BN$5,'Assumptions Sheet'!$G139:$K139) -> 0 | BO49: =SUMIF('Assumptions Sheet'!$G$114:$K$114,'Operating Analysis'!BO$5,'Assumptions Sheet'!$G139:$K139) -> 0 | BP49: =SUMIF('Assumptions Sheet'!$G$114:$K$114,'Operating Analysis'!BP$5,'Assumptions Sheet'!$G139:$K139) -> 0 | BQ49: =SUMIF('Assumptions Sheet'!$G$114:$K$114,'Operating Analysis'!BQ$5,'Assumptions Sheet'!$G139:$K139) -> 0 | BR49: =SUMIF('Assumptions Sheet'!$G$114:$K$114,'Operating Analysis'!BR$5,'Assumptions Sheet'!$G139:$K139) -> 0 | BS49: =SUMIF('Assumptions Sheet'!$G$114:$K$114,'Operating Analysis'!BS$5,'Assumptions Sheet'!$G139:$K139) -> 0 | BT49: =SUMIF('Assumptions Sheet'!$G$114:$K$114,'Operating Analysis'!BT$5,'Assumptions Sheet'!$G139:$K139) -> 0 | BU49: =SUMIF('Assumptions Sheet'!$G$114:$K$114,'Operating Analysis'!BU$5,'Assumptions Sheet'!$G139:$K139) -> 0 | BV49: =SUMIF('Assumptions Sheet'!$G$114:$K$114,'Operating Analysis'!BV$5,'Assumptions Sheet'!$G139:$K139) -> 0 | BW49: =SUMIF('Assumptions Sheet'!$G$114:$K$114,'Operating Analysis'!BW$5,'Assumptions Sheet'!$G139:$K139) -> 0 | BX49: =SUMIF('Assumptions Sheet'!$G$114:$K$114,'Operating Analysis'!BX$5,'Assumptions Sheet'!$G139:$K139) -> 0 | BY49: =SUMIF('Assumptions Sheet'!$G$114:$K$114,'Operating Analysis'!BY$5,'Assumptions Sheet'!$G139:$K139) -> 0 | BZ49: =SUMIF('Assumptions Sheet'!$G$114:$K$114,'Operating Analysis'!BZ$5,'Assumptions Sheet'!$G139:$K139) -> 0 | CA49: =SUMIF('Assumptions Sheet'!$G$114:$K$114,'Operating Analysis'!CA$5,'Assumptions Sheet'!$G139:$K139) -> 0 | CB49: =SUMIF('Assumptions Sheet'!$G$114:$K$114,'Operating Analysis'!CB$5,'Assumptions Sheet'!$G139:$K139) -> 0 | CC49: =SUMIF('Assumptions Sheet'!$G$114:$K$114,'Operating Analysis'!CC$5,'Assumptions Sheet'!$G139:$K139) -> 0 | CD49: =SUMIF('Assumptions Sheet'!$G$114:$K$114,'Operating Analysis'!CD$5,'Assumptions Sheet'!$G139:$K139) -> 0 | CE49: =SUMIF('Assumptions Sheet'!$G$114:$K$114,'Operating Analysis'!CE$5,'Assumptions Sheet'!$G139:$K139) -> 0 | CF49: =SUMIF('Assumptions Sheet'!$G$114:$K$114,'Operating Analysis'!CF$5,'Assumptions Sheet'!$G139:$K139) -> 0 | CG49: =SUMIF('Assumptions Sheet'!$G$114:$K$114,'Operating Analysis'!CG$5,'Assumptions Sheet'!$G139:$K139) -> 0 | CH49: =SUMIF('Assumptions Sheet'!$G$114:$K$114,'Operating Analysis'!CH$5,'Assumptions Sheet'!$G139:$K139) -> 0 | CI49: =SUMIF('Assumptions Sheet'!$G$114:$K$114,'Operating Analysis'!CI$5,'Assumptions Sheet'!$G139:$K139) -> 0 | CJ49: =SUMIF('Assumptions Sheet'!$G$114:$K$114,'Operating Analysis'!CJ$5,'Assumptions Sheet'!$G139:$K139) -> 0 | CK49: =SUMIF('Assumptions Sheet'!$G$114:$K$114,'Operating Analysis'!CK$5,'Assumptions Sheet'!$G139:$K139) -> 0 | CL49: =SUMIF('Assumptions Sheet'!$G$114:$K$114,'Operating Analysis'!CL$5,'Assumptions Sheet'!$G139:$K139) -> 0 | CM49: =SUMIF('Assumptions Sheet'!$G$114:$K$114,'Operating Analysis'!CM$5,'Assumptions Sheet'!$G139:$K139) -> 0 | CN49: =SUMIF('Assumptions Sheet'!$G$114:$K$114,'Operating Analysis'!CN$5,'Assumptions Sheet'!$G139:$K139) -> 0 | CO49: =SUMIF('Assumptions Sheet'!$G$114:$K$114,'Operating Analysis'!CO$5,'Assumptions Sheet'!$G139:$K139) -> 0
C50: Contingency | E50: USD | G50: 17033268.75 | K50: =SUMIF('Assumptions Sheet'!$G$114:$K$114,'Operating Analysis'!K$5,'Assumptions Sheet'!$G140:$K140) -> 0 | L50: =SUMIF('Assumptions Sheet'!$G$114:$K$114,'Operating Analysis'!L$5,'Assumptions Sheet'!$G140:$K140) -> 6944299.274 | M50: =SUMIF('Assumptions Sheet'!$G$114:$K$114,'Operating Analysis'!M$5,'Assumptions Sheet'!$G140:$K140) -> 0 | N50: =SUMIF('Assumptions Sheet'!$G$114:$K$114,'Operating Analysis'!N$5,'Assumptions Sheet'!$G140:$K140) -> 0 | O50: =SUMIF('Assumptions Sheet'!$G$114:$K$114,'Operating Analysis'!O$5,'Assumptions Sheet'!$G140:$K140) -> 0 | P50: =SUMIF('Assumptions Sheet'!$G$114:$K$114,'Operating Analysis'!P$5,'Assumptions Sheet'!$G140:$K140) -> 0 | Q50: =SUMIF('Assumptions Sheet'!$G$114:$K$114,'Operating Analysis'!Q$5,'Assumptions Sheet'!$G140:$K140) -> 0 | R50: =SUMIF('Assumptions Sheet'!$G$114:$K$114,'Operating Analysis'!R$5,'Assumptions Sheet'!$G140:$K140) -> 2227438.575 | S50: =SUMIF('Assumptions Sheet'!$G$114:$K$114,'Operating Analysis'!S$5,'Assumptions Sheet'!$G140:$K140) -> 0 | T50: =SUMIF('Assumptions Sheet'!$G$114:$K$114,'Operating Analysis'!T$5,'Assumptions Sheet'!$G140:$K140) -> 0 | U50: =SUMIF('Assumptions Sheet'!$G$114:$K$114,'Operating Analysis'!U$5,'Assumptions Sheet'!$G140:$K140) -> 0 | V50: =SUMIF('Assumptions Sheet'!$G$114:$K$114,'Operating Analysis'!V$5,'Assumptions Sheet'!$G140:$K140) -> 0 | W50: =SUMIF('Assumptions Sheet'!$G$114:$K$114,'Operating Analysis'!W$5,'Assumptions Sheet'!$G140:$K140) -> 0 | X50: =SUMIF('Assumptions Sheet'!$G$114:$K$114,'Operating Analysis'!X$5,'Assumptions Sheet'!$G140:$K140) -> 3996261.337 | Y50: =SUMIF('Assumptions Sheet'!$G$114:$K$114,'Operating Analysis'!Y$5,'Assumptions Sheet'!$G140:$K140) -> 0 | Z50: =SUMIF('Assumptions Sheet'!$G$114:$K$114,'Operating Analysis'!Z$5,'Assumptions Sheet'!$G140:$K140) -> 0 | AA50: =SUMIF('Assumptions Sheet'!$G$114:$K$114,'Operating Analysis'!AA$5,'Assumptions Sheet'!$G140:$K140) -> 0 | AB50: =SUMIF('Assumptions Sheet'!$G$114:$K$114,'Operating Analysis'!AB$5,'Assumptions Sheet'!$G140:$K140) -> 0 | AC50: =SUMIF('Assumptions Sheet'!$G$114:$K$114,'Operating Analysis'!AC$5,'Assumptions Sheet'!$G140:$K140) -> 0 | AD50: =SUMIF('Assumptions Sheet'!$G$114:$K$114,'Operating Analysis'!AD$5,'Assumptions Sheet'!$G140:$K140) -> 3406653.75 | AE50: =SUMIF('Assumptions Sheet'!$G$114:$K$114,'Operating Analysis'!AE$5,'Assumptions Sheet'!$G140:$K140) -> 0 | AF50: =SUMIF('Assumptions Sheet'!$G$114:$K$114,'Operating Analysis'!AF$5,'Assumptions Sheet'!$G140:$K140) -> 0 | AG50: =SUMIF('Assumptions Sheet'!$G$114:$K$114,'Operating Analysis'!AG$5,'Assumptions Sheet'!$G140:$K140) -> 0 | AH50: =SUMIF('Assumptions Sheet'!$G$114:$K$114,'Operating Analysis'!AH$5,'Assumptions Sheet'!$G140:$K140) -> 0 | AI50: =SUMIF('Assumptions Sheet'!$G$114:$K$114,'Operating Analysis'!AI$5,'Assumptions Sheet'!$G140:$K140) -> 458615.8131 | AJ50: =SUMIF('Assumptions Sheet'!$G$114:$K$114,'Operating Analysis'!AJ$5,'Assumptions Sheet'!$G140:$K140) -> 0 | AK50: =SUMIF('Assumptions Sheet'!$G$114:$K$114,'Operating Analysis'!AK$5,'Assumptions Sheet'!$G140:$K140) -> 0 | AL50: =SUMIF('Assumptions Sheet'!$G$114:$K$114,'Operating Analysis'!AL$5,'Assumptions Sheet'!$G140:$K140) -> 0 | AM50: =SUMIF('Assumptions Sheet'!$G$114:$K$114,'Operating Analysis'!AM$5,'Assumptions Sheet'!$G140:$K140) -> 0 | AN50: =SUMIF('Assumptions Sheet'!$G$114:$K$114,'Operating Analysis'!AN$5,'Assumptions Sheet'!$G140:$K140) -> 0 | AO50: =SUMIF('Assumptions Sheet'!$G$114:$K$114,'Operating Analysis'!AO$5,'Assumptions Sheet'!$G140:$K140) -> 0 | AP50: =SUMIF('Assumptions Sheet'!$G$114:$K$114,'Operating Analysis'!AP$5,'Assumptions Sheet'!$G140:$K140) -> 0 | AQ50: =SUMIF('Assumptions Sheet'!$G$114:$K$114,'Operating Analysis'!AQ$5,'Assumptions Sheet'!$G140:$K140) -> 0 | AR50: =SUMIF('Assumptions Sheet'!$G$114:$K$114,'Operating Analysis'!AR$5,'Assumptions Sheet'!$G140:$K140) -> 0 | AS50: =SUMIF('Assumptions Sheet'!$G$114:$K$114,'Operating Analysis'!AS$5,'Assumptions Sheet'!$G140:$K140) -> 0 | AT50: =SUMIF('Assumptions Sheet'!$G$114:$K$114,'Operating Analysis'!AT$5,'Assumptions Sheet'!$G140:$K140) -> 0 | AU50: =SUMIF('Assumptions Sheet'!$G$114:$K$114,'Operating Analysis'!AU$5,'Assumptions Sheet'!$G140:$K140) -> 0 | AV50: =SUMIF('Assumptions Sheet'!$G$114:$K$114,'Operating Analysis'!AV$5,'Assumptions Sheet'!$G140:$K140) -> 0 | AW50: =SUMIF('Assumptions Sheet'!$G$114:$K$114,'Operating Analysis'!AW$5,'Assumptions Sheet'!$G140:$K140) -> 0 | AX50: =SUMIF('Assumptions Sheet'!$G$114:$K$114,'Operating Analysis'!AX$5,'Assumptions Sheet'!$G140:$K140) -> 0 | AY50: =SUMIF('Assumptions Sheet'!$G$114:$K$114,'Operating Analysis'!AY$5,'Assumptions Sheet'!$G140:$K140) -> 0 | AZ50: =SUMIF('Assumptions Sheet'!$G$114:$K$114,'Operating Analysis'!AZ$5,'Assumptions Sheet'!$G140:$K140) -> 0 | BA50: =SUMIF('Assumptions Sheet'!$G$114:$K$114,'Operating Analysis'!BA$5,'Assumptions Sheet'!$G140:$K140) -> 0 | BB50: =SUMIF('Assumptions Sheet'!$G$114:$K$114,'Operating Analysis'!BB$5,'Assumptions Sheet'!$G140:$K140) -> 0 | BC50: =SUMIF('Assumptions Sheet'!$G$114:$K$114,'Operating Analysis'!BC$5,'Assumptions Sheet'!$G140:$K140) -> 0 | BD50: =SUMIF('Assumptions Sheet'!$G$114:$K$114,'Operating Analysis'!BD$5,'Assumptions Sheet'!$G140:$K140) -> 0 | BE50: =SUMIF('Assumptions Sheet'!$G$114:$K$114,'Operating Analysis'!BE$5,'Assumptions Sheet'!$G140:$K140) -> 0 | BF50: =SUMIF('Assumptions Sheet'!$G$114:$K$114,'Operating Analysis'!BF$5,'Assumptions Sheet'!$G140:$K140) -> 0 | BG50: =SUMIF('Assumptions Sheet'!$G$114:$K$114,'Operating Analysis'!BG$5,'Assumptions Sheet'!$G140:$K140) -> 0 | BH50: =SUMIF('Assumptions Sheet'!$G$114:$K$114,'Operating Analysis'!BH$5,'Assumptions Sheet'!$G140:$K140) -> 0 | BI50: =SUMIF('Assumptions Sheet'!$G$114:$K$114,'Operating Analysis'!BI$5,'Assumptions Sheet'!$G140:$K140) -> 0 | BJ50: =SUMIF('Assumptions Sheet'!$G$114:$K$114,'Operating Analysis'!BJ$5,'Assumptions Sheet'!$G140:$K140) -> 0 | BK50: =SUMIF('Assumptions Sheet'!$G$114:$K$114,'Operating Analysis'!BK$5,'Assumptions Sheet'!$G140:$K140) -> 0 | BL50: =SUMIF('Assumptions Sheet'!$G$114:$K$114,'Operating Analysis'!BL$5,'Assumptions Sheet'!$G140:$K140) -> 0 | BM50: =SUMIF('Assumptions Sheet'!$G$114:$K$114,'Operating Analysis'!BM$5,'Assumptions Sheet'!$G140:$K140) -> 0 | BN50: =SUMIF('Assumptions Sheet'!$G$114:$K$114,'Operating Analysis'!BN$5,'Assumptions Sheet'!$G140:$K140) -> 0 | BO50: =SUMIF('Assumptions Sheet'!$G$114:$K$114,'Operating Analysis'!BO$5,'Assumptions Sheet'!$G140:$K140) -> 0 | BP50: =SUMIF('Assumptions Sheet'!$G$114:$K$114,'Operating Analysis'!BP$5,'Assumptions Sheet'!$G140:$K140) -> 0 | BQ50: =SUMIF('Assumptions Sheet'!$G$114:$K$114,'Operating Analysis'!BQ$5,'Assumptions Sheet'!$G140:$K140) -> 0 | BR50: =SUMIF('Assumptions Sheet'!$G$114:$K$114,'Operating Analysis'!BR$5,'Assumptions Sheet'!$G140:$K140) -> 0 | BS50: =SUMIF('Assumptions Sheet'!$G$114:$K$114,'Operating Analysis'!BS$5,'Assumptions Sheet'!$G140:$K140) -> 0 | BT50: =SUMIF('Assumptions Sheet'!$G$114:$K$114,'Operating Analysis'!BT$5,'Assumptions Sheet'!$G140:$K140) -> 0 | BU50: =SUMIF('Assumptions Sheet'!$G$114:$K$114,'Operating Analysis'!BU$5,'Assumptions Sheet'!$G140:$K140) -> 0 | BV50: =SUMIF('Assumptions Sheet'!$G$114:$K$114,'Operating Analysis'!BV$5,'Assumptions Sheet'!$G140:$K140) -> 0 | BW50: =SUMIF('Assumptions Sheet'!$G$114:$K$114,'Operating Analysis'!BW$5,'Assumptions Sheet'!$G140:$K140) -> 0 | BX50: =SUMIF('Assumptions Sheet'!$G$114:$K$114,'Operating Analysis'!BX$5,'Assumptions Sheet'!$G140:$K140) -> 0 | BY50: =SUMIF('Assumptions Sheet'!$G$114:$K$114,'Operating Analysis'!BY$5,'Assumptions Sheet'!$G140:$K140) -> 0 | BZ50: =SUMIF('Assumptions Sheet'!$G$114:$K$114,'Operating Analysis'!BZ$5,'Assumptions Sheet'!$G140:$K140) -> 0 | CA50: =SUMIF('Assumptions Sheet'!$G$114:$K$114,'Operating Analysis'!CA$5,'Assumptions Sheet'!$G140:$K140) -> 0 | CB50: =SUMIF('Assumptions Sheet'!$G$114:$K$114,'Operating Analysis'!CB$5,'Assumptions Sheet'!$G140:$K140) -> 0 | CC50: =SUMIF('Assumptions Sheet'!$G$114:$K$114,'Operating Analysis'!CC$5,'Assumptions Sheet'!$G140:$K140) -> 0 | CD50: =SUMIF('Assumptions Sheet'!$G$114:$K$114,'Operating Analysis'!CD$5,'Assumptions Sheet'!$G140:$K140) -> 0 | CE50: =SUMIF('Assumptions Sheet'!$G$114:$K$114,'Operating Analysis'!CE$5,'Assumptions Sheet'!$G140:$K140) -> 0 | CF50: =SUMIF('Assumptions Sheet'!$G$114:$K$114,'Operating Analysis'!CF$5,'Assumptions Sheet'!$G140:$K140) -> 0 | CG50: =SUMIF('Assumptions Sheet'!$G$114:$K$114,'Operating Analysis'!CG$5,'Assumptions Sheet'!$G140:$K140) -> 0 | CH50: =SUMIF('Assumptions Sheet'!$G$114:$K$114,'Operating Analysis'!CH$5,'Assumptions Sheet'!$G140:$K140) -> 0 | CI50: =SUMIF('Assumptions Sheet'!$G$114:$K$114,'Operating Analysis'!CI$5,'Assumptions Sheet'!$G140:$K140) -> 0 | CJ50: =SUMIF('Assumptions Sheet'!$G$114:$K$114,'Operating Analysis'!CJ$5,'Assumptions Sheet'!$G140:$K140) -> 0 | CK50: =SUMIF('Assumptions Sheet'!$G$114:$K$114,'Operating Analysis'!CK$5,'Assumptions Sheet'!$G140:$K140) -> 0 | CL50: =SUMIF('Assumptions Sheet'!$G$114:$K$114,'Operating Analysis'!CL$5,'Assumptions Sheet'!$G140:$K140) -> 0 | CM50: =SUMIF('Assumptions Sheet'!$G$114:$K$114,'Operating Analysis'!CM$5,'Assumptions Sheet'!$G140:$K140) -> 0 | CN50: =SUMIF('Assumptions Sheet'!$G$114:$K$114,'Operating Analysis'!CN$5,'Assumptions Sheet'!$G140:$K140) -> 0 | CO50: =SUMIF('Assumptions Sheet'!$G$114:$K$114,'Operating Analysis'!CO$5,'Assumptions Sheet'!$G140:$K140) -> 0
C51: Un-Reconciled | E51: USD | G51: 0 | K51: =SUMIF('Assumptions Sheet'!$G$114:$K$114,'Operating Analysis'!K$5,'Assumptions Sheet'!$G141:$K141) -> 0 | L51: =SUMIF('Assumptions Sheet'!$G$114:$K$114,'Operating Analysis'!L$5,'Assumptions Sheet'!$G141:$K141) -> 0 | M51: =SUMIF('Assumptions Sheet'!$G$114:$K$114,'Operating Analysis'!M$5,'Assumptions Sheet'!$G141:$K141) -> 0 | N51: =SUMIF('Assumptions Sheet'!$G$114:$K$114,'Operating Analysis'!N$5,'Assumptions Sheet'!$G141:$K141) -> 0 | O51: =SUMIF('Assumptions Sheet'!$G$114:$K$114,'Operating Analysis'!O$5,'Assumptions Sheet'!$G141:$K141) -> 0 | P51: =SUMIF('Assumptions Sheet'!$G$114:$K$114,'Operating Analysis'!P$5,'Assumptions Sheet'!$G141:$K141) -> 0 | Q51: =SUMIF('Assumptions Sheet'!$G$114:$K$114,'Operating Analysis'!Q$5,'Assumptions Sheet'!$G141:$K141) -> 0 | R51: =SUMIF('Assumptions Sheet'!$G$114:$K$114,'Operating Analysis'!R$5,'Assumptions Sheet'!$G141:$K141) -> 0 | S51: =SUMIF('Assumptions Sheet'!$G$114:$K$114,'Operating Analysis'!S$5,'Assumptions Sheet'!$G141:$K141) -> 0 | T51: =SUMIF('Assumptions Sheet'!$G$114:$K$114,'Operating Analysis'!T$5,'Assumptions Sheet'!$G141:$K141) -> 0 | U51: =SUMIF('Assumptions Sheet'!$G$114:$K$114,'Operating Analysis'!U$5,'Assumptions Sheet'!$G141:$K141) -> 0 | V51: =SUMIF('Assumptions Sheet'!$G$114:$K$114,'Operating Analysis'!V$5,'Assumptions Sheet'!$G141:$K141) -> 0 | W51: =SUMIF('Assumptions Sheet'!$G$114:$K$114,'Operating Analysis'!W$5,'Assumptions Sheet'!$G141:$K141) -> 0 | X51: =SUMIF('Assumptions Sheet'!$G$114:$K$114,'Operating Analysis'!X$5,'Assumptions Sheet'!$G141:$K141) -> 0 | Y51: =SUMIF('Assumptions Sheet'!$G$114:$K$114,'Operating Analysis'!Y$5,'Assumptions Sheet'!$G141:$K141) -> 0 | Z51: =SUMIF('Assumptions Sheet'!$G$114:$K$114,'Operating Analysis'!Z$5,'Assumptions Sheet'!$G141:$K141) -> 0 | AA51: =SUMIF('Assumptions Sheet'!$G$114:$K$114,'Operating Analysis'!AA$5,'Assumptions Sheet'!$G141:$K141) -> 0 | AB51: =SUMIF('Assumptions Sheet'!$G$114:$K$114,'Operating Analysis'!AB$5,'Assumptions Sheet'!$G141:$K141) -> 0 | AC51: =SUMIF('Assumptions Sheet'!$G$114:$K$114,'Operating Analysis'!AC$5,'Assumptions Sheet'!$G141:$K141) -> 0 | AD51: =SUMIF('Assumptions Sheet'!$G$114:$K$114,'Operating Analysis'!AD$5,'Assumptions Sheet'!$G141:$K141) -> 0 | AE51: =SUMIF('Assumptions Sheet'!$G$114:$K$114,'Operating Analysis'!AE$5,'Assumptions Sheet'!$G141:$K141) -> 0 | AF51: =SUMIF('Assumptions Sheet'!$G$114:$K$114,'Operating Analysis'!AF$5,'Assumptions Sheet'!$G141:$K141) -> 0 | AG51: =SUMIF('Assumptions Sheet'!$G$114:$K$114,'Operating Analysis'!AG$5,'Assumptions Sheet'!$G141:$K141) -> 0 | AH51: =SUMIF('Assumptions Sheet'!$G$114:$K$114,'Operating Analysis'!AH$5,'Assumptions Sheet'!$G141:$K141) -> 0 | AI51: =SUMIF('Assumptions Sheet'!$G$114:$K$114,'Operating Analysis'!AI$5,'Assumptions Sheet'!$G141:$K141) -> 0 | AJ51: =SUMIF('Assumptions Sheet'!$G$114:$K$114,'Operating Analysis'!AJ$5,'Assumptions Sheet'!$G141:$K141) -> 0 | AK51: =SUMIF('Assumptions Sheet'!$G$114:$K$114,'Operating Analysis'!AK$5,'Assumptions Sheet'!$G141:$K141) -> 0 | AL51: =SUMIF('Assumptions Sheet'!$G$114:$K$114,'Operating Analysis'!AL$5,'Assumptions Sheet'!$G141:$K141) -> 0 | AM51: =SUMIF('Assumptions Sheet'!$G$114:$K$114,'Operating Analysis'!AM$5,'Assumptions Sheet'!$G141:$K141) -> 0 | AN51: =SUMIF('Assumptions Sheet'!$G$114:$K$114,'Operating Analysis'!AN$5,'Assumptions Sheet'!$G141:$K141) -> 0 | AO51: =SUMIF('Assumptions Sheet'!$G$114:$K$114,'Operating Analysis'!AO$5,'Assumptions Sheet'!$G141:$K141) -> 0 | AP51: =SUMIF('Assumptions Sheet'!$G$114:$K$114,'Operating Analysis'!AP$5,'Assumptions Sheet'!$G141:$K141) -> 0 | AQ51: =SUMIF('Assumptions Sheet'!$G$114:$K$114,'Operating Analysis'!AQ$5,'Assumptions Sheet'!$G141:$K141) -> 0 | AR51: =SUMIF('Assumptions Sheet'!$G$114:$K$114,'Operating Analysis'!AR$5,'Assumptions Sheet'!$G141:$K141) -> 0 | AS51: =SUMIF('Assumptions Sheet'!$G$114:$K$114,'Operating Analysis'!AS$5,'Assumptions Sheet'!$G141:$K141) -> 0 | AT51: =SUMIF('Assumptions Sheet'!$G$114:$K$114,'Operating Analysis'!AT$5,'Assumptions Sheet'!$G141:$K141) -> 0 | AU51: =SUMIF('Assumptions Sheet'!$G$114:$K$114,'Operating Analysis'!AU$5,'Assumptions Sheet'!$G141:$K141) -> 0 | AV51: =SUMIF('Assumptions Sheet'!$G$114:$K$114,'Operating Analysis'!AV$5,'Assumptions Sheet'!$G141:$K141) -> 0 | AW51: =SUMIF('Assumptions Sheet'!$G$114:$K$114,'Operating Analysis'!AW$5,'Assumptions Sheet'!$G141:$K141) -> 0 | AX51: =SUMIF('Assumptions Sheet'!$G$114:$K$114,'Operating Analysis'!AX$5,'Assumptions Sheet'!$G141:$K141) -> 0 | AY51: =SUMIF('Assumptions Sheet'!$G$114:$K$114,'Operating Analysis'!AY$5,'Assumptions Sheet'!$G141:$K141) -> 0 | AZ51: =SUMIF('Assumptions Sheet'!$G$114:$K$114,'Operating Analysis'!AZ$5,'Assumptions Sheet'!$G141:$K141) -> 0 | BA51: =SUMIF('Assumptions Sheet'!$G$114:$K$114,'Operating Analysis'!BA$5,'Assumptions Sheet'!$G141:$K141) -> 0 | BB51: =SUMIF('Assumptions Sheet'!$G$114:$K$114,'Operating Analysis'!BB$5,'Assumptions Sheet'!$G141:$K141) -> 0 | BC51: =SUMIF('Assumptions Sheet'!$G$114:$K$114,'Operating Analysis'!BC$5,'Assumptions Sheet'!$G141:$K141) -> 0 | BD51: =SUMIF('Assumptions Sheet'!$G$114:$K$114,'Operating Analysis'!BD$5,'Assumptions Sheet'!$G141:$K141) -> 0 | BE51: =SUMIF('Assumptions Sheet'!$G$114:$K$114,'Operating Analysis'!BE$5,'Assumptions Sheet'!$G141:$K141) -> 0 | BF51: =SUMIF('Assumptions Sheet'!$G$114:$K$114,'Operating Analysis'!BF$5,'Assumptions Sheet'!$G141:$K141) -> 0 | BG51: =SUMIF('Assumptions Sheet'!$G$114:$K$114,'Operating Analysis'!BG$5,'Assumptions Sheet'!$G141:$K141) -> 0 | BH51: =SUMIF('Assumptions Sheet'!$G$114:$K$114,'Operating Analysis'!BH$5,'Assumptions Sheet'!$G141:$K141) -> 0 | BI51: =SUMIF('Assumptions Sheet'!$G$114:$K$114,'Operating Analysis'!BI$5,'Assumptions Sheet'!$G141:$K141) -> 0 | BJ51: =SUMIF('Assumptions Sheet'!$G$114:$K$114,'Operating Analysis'!BJ$5,'Assumptions Sheet'!$G141:$K141) -> 0 | BK51: =SUMIF('Assumptions Sheet'!$G$114:$K$114,'Operating Analysis'!BK$5,'Assumptions Sheet'!$G141:$K141) -> 0 | BL51: =SUMIF('Assumptions Sheet'!$G$114:$K$114,'Operating Analysis'!BL$5,'Assumptions Sheet'!$G141:$K141) -> 0 | BM51: =SUMIF('Assumptions Sheet'!$G$114:$K$114,'Operating Analysis'!BM$5,'Assumptions Sheet'!$G141:$K141) -> 0 | BN51: =SUMIF('Assumptions Sheet'!$G$114:$K$114,'Operating Analysis'!BN$5,'Assumptions Sheet'!$G141:$K141) -> 0 | BO51: =SUMIF('Assumptions Sheet'!$G$114:$K$114,'Operating Analysis'!BO$5,'Assumptions Sheet'!$G141:$K141) -> 0 | BP51: =SUMIF('Assumptions Sheet'!$G$114:$K$114,'Operating Analysis'!BP$5,'Assumptions Sheet'!$G141:$K141) -> 0 | BQ51: =SUMIF('Assumptions Sheet'!$G$114:$K$114,'Operating Analysis'!BQ$5,'Assumptions Sheet'!$G141:$K141) -> 0 | BR51: =SUMIF('Assumptions Sheet'!$G$114:$K$114,'Operating Analysis'!BR$5,'Assumptions Sheet'!$G141:$K141) -> 0 | BS51: =SUMIF('Assumptions Sheet'!$G$114:$K$114,'Operating Analysis'!BS$5,'Assumptions Sheet'!$G141:$K141) -> 0 | BT51: =SUMIF('Assumptions Sheet'!$G$114:$K$114,'Operating Analysis'!BT$5,'Assumptions Sheet'!$G141:$K141) -> 0 | BU51: =SUMIF('Assumptions Sheet'!$G$114:$K$114,'Operating Analysis'!BU$5,'Assumptions Sheet'!$G141:$K141) -> 0 | BV51: =SUMIF('Assumptions Sheet'!$G$114:$K$114,'Operating Analysis'!BV$5,'Assumptions Sheet'!$G141:$K141) -> 0 | BW51: =SUMIF('Assumptions Sheet'!$G$114:$K$114,'Operating Analysis'!BW$5,'Assumptions Sheet'!$G141:$K141) -> 0 | BX51: =SUMIF('Assumptions Sheet'!$G$114:$K$114,'Operating Analysis'!BX$5,'Assumptions Sheet'!$G141:$K141) -> 0 | BY51: =SUMIF('Assumptions Sheet'!$G$114:$K$114,'Operating Analysis'!BY$5,'Assumptions Sheet'!$G141:$K141) -> 0 | BZ51: =SUMIF('Assumptions Sheet'!$G$114:$K$114,'Operating Analysis'!BZ$5,'Assumptions Sheet'!$G141:$K141) -> 0 | CA51: =SUMIF('Assumptions Sheet'!$G$114:$K$114,'Operating Analysis'!CA$5,'Assumptions Sheet'!$G141:$K141) -> 0 | CB51: =SUMIF('Assumptions Sheet'!$G$114:$K$114,'Operating Analysis'!CB$5,'Assumptions Sheet'!$G141:$K141) -> 0 | CC51: =SUMIF('Assumptions Sheet'!$G$114:$K$114,'Operating Analysis'!CC$5,'Assumptions Sheet'!$G141:$K141) -> 0 | CD51: =SUMIF('Assumptions Sheet'!$G$114:$K$114,'Operating Analysis'!CD$5,'Assumptions Sheet'!$G141:$K141) -> 0 | CE51: =SUMIF('Assumptions Sheet'!$G$114:$K$114,'Operating Analysis'!CE$5,'Assumptions Sheet'!$G141:$K141) -> 0 | CF51: =SUMIF('Assumptions Sheet'!$G$114:$K$114,'Operating Analysis'!CF$5,'Assumptions Sheet'!$G141:$K141) -> 0 | CG51: =SUMIF('Assumptions Sheet'!$G$114:$K$114,'Operating Analysis'!CG$5,'Assumptions Sheet'!$G141:$K141) -> 0 | CH51: =SUMIF('Assumptions Sheet'!$G$114:$K$114,'Operating Analysis'!CH$5,'Assumptions Sheet'!$G141:$K141) -> 0 | CI51: =SUMIF('Assumptions Sheet'!$G$114:$K$114,'Operating Analysis'!CI$5,'Assumptions Sheet'!$G141:$K141) -> 0 | CJ51: =SUMIF('Assumptions Sheet'!$G$114:$K$114,'Operating Analysis'!CJ$5,'Assumptions Sheet'!$G141:$K141) -> 0 | CK51: =SUMIF('Assumptions Sheet'!$G$114:$K$114,'Operating Analysis'!CK$5,'Assumptions Sheet'!$G141:$K141) -> 0 | CL51: =SUMIF('Assumptions Sheet'!$G$114:$K$114,'Operating Analysis'!CL$5,'Assumptions Sheet'!$G141:$K141) -> 0 | CM51: =SUMIF('Assumptions Sheet'!$G$114:$K$114,'Operating Analysis'!CM$5,'Assumptions Sheet'!$G141:$K141) -> 0 | CN51: =SUMIF('Assumptions Sheet'!$G$114:$K$114,'Operating Analysis'!CN$5,'Assumptions Sheet'!$G141:$K141) -> 0 | CO51: =SUMIF('Assumptions Sheet'!$G$114:$K$114,'Operating Analysis'!CO$5,'Assumptions Sheet'!$G141:$K141) -> 0
D52: Grand Total Capital Expenditures | E52: USD | G52: 136598393.8 | K52: =SUM(K47:K51) -> 6010000 | L52: =SUM(L47:L51) -> 29904552.69 | M52: 0 | N52: 0 | O52: 0 | P52: 0 | Q52: 0 | R52: 24855387.44 | S52: 0 | T52: 0 | U52: 0 | V52: 0 | W52: 0 | X52: 26748824.41 | Y52: 0 | Z52: 0 | AA52: 0 | AB52: 0 | AC52: 0 | AD52: 26117678.75 | AE52: 0 | AF52: 0 | AG52: 0 | AH52: 0 | AI52: 22961950.46 | AJ52: 0 | AK52: 0 | AL52: 0 | AM52: 0 | AN52: 0 | AO52: 0 | AP52: 0 | AQ52: 0 | AR52: 0 | AS52: 0 | AT52: 0 | AU52: 0 | AV52: 0 | AW52: 0 | AX52: 0 | AY52: 0 | AZ52: 0 | BA52: 0 | BB52: 0 | BC52: 0 | BD52: 0 | BE52: 0 | BF52: 0 | BG52: 0 | BH52: 0 | BI52: 0 | BJ52: 0 | BK52: 0 | BL52: 0 | BM52: 0 | BN52: 0 | BO52: 0 | BP52: 0 | BQ52: 0 | BR52: 0 | BS52: 0 | BT52: 0 | BU52: 0 | BV52: 0 | BW52: 0 | BX52: =SUM(BX47:BX51) -> 0 | BY52: 0 | BZ52: 0 | CA52: 0 | CB52: 0 | CC52: 0 | CD52: 0 | CE52: 0 | CF52: 0 | CG52: 0 | CH52: 0 | CI52: 0 | CJ52: 0 | CK52: 0 | CL52: 0 | CM52: 0 | CN52: 0 | CO52: 0
C54: Percent of Total For Funding | K54: =K52/$G$52 -> 0.0439975891 | L54: =L52/$G$52 -> 0.218923165 | M54: 0 | N54: 0 | O54: 0 | P54: 0 | Q54: 0 | R54: 0.1819595879 | S54: 0 | T54: 0 | U54: 0 | V54: 0 | W54: 0 | X54: 0.1958209293 | Y54: 0 | Z54: 0 | AA54: 0 | AB54: 0 | AC54: 0 | AD54: 0.1912004822 | AE54: 0 | AF54: 0 | AG54: 0 | AH54: 0 | AI54: 0.1680982465 | AJ54: 0 | AK54: 0 | AL54: 0 | AM54: 0 | AN54: 0 | AO54: 0 | AP54: 0 | AQ54: 0 | AR54: 0 | AS54: 0 | AT54: 0 | AU54: 0 | AV54: 0 | AW54: 0 | AX54: 0 | AY54: 0 | AZ54: 0 | BA54: 0 | BB54: 0 | BC54: 0 | BD54: 0 | BE54: 0 | BF54: 0 | BG54: 0 | BH54: 0 | BI54: 0 | BJ54: 0 | BK54: 0 | BL54: 0 | BM54: 0 | BN54: 0 | BO54: 0 | BP54: 0 | BQ54: 0 | BR54: 0 | BS54: 0 | BT54: 0 | BU54: 0 | BV54: 0 | BW54: 0 | BX54: =BX52/$G$52 -> 0 | BY54: 0 | BZ54: 0 | CA54: 0 | CB54: 0 | CC54: 0 | CD54: 0 | CE54: 0 | CF54: 0 | CG54: 0 | CH54: 0 | CI54: 0 | CJ54: 0 | CK54: 0 | CL54: 0 | CM54: 0 | CN54: 0 | CO54: 0
A56: Revenues
B57: Volumes
C58: Bulk Product Sold in Period | E58: Tons p.p. | K58: =K34 -> 0 | L58: 0 | M58: 0 | N58: 0 | O58: 0 | P58: 0 | Q58: 0 | R58: 0 | S58: 0 | T58: 0 | U58: 0 | V58: 0 | W58: 0 | X58: 0 | Y58: 0 | Z58: 0 | AA58: 0 | AB58: 0 | AC58: 0 | AD58: 0 | AE58: 0 | AF58: 0 | AG58: 0 | AH58: 0 | AI58: 0 | AJ58: 0 | AK58: 10887.26126 | AL58: 10887.26126 | AM58: 13308.8397 | AN58: 13308.8397 | AO58: 13785.9103 | AP58: 13785.9103 | AQ58: =AQ34 -> 14018.14071 | AR58: 14018.14071 | AS58: 14018.14071 | AT58: 14018.14071 | AU58: 14018.14071 | AV58: 14018.14071 | AW58: 14018.14071 | AX58: 14018.14071 | AY58: 14018.14071 | AZ58: 14018.14071 | BA58: 14018.14071 | BB58: 14018.14071 | BC58: 0 | BD58: 0 | BE58: 0 | BF58: 0 | BG58: 0 | BH58: 0 | BI58: 0 | BJ58: 0 | BK58: 0 | BL58: 0 | BM58: 0 | BN58: 0 | BO58: 0 | BP58: 0 | BQ58: 0 | BR58: 0 | BS58: 0 | BT58: 0 | BU58: 0 | BV58: 0 | BW58: =BW34 -> 0 | BX58: 0 | BY58: 0 | BZ58: 0 | CA58: 0 | CB58: 0 | CC58: 0 | CD58: 0 | CE58: 0 | CF58: 0 | CG58: 0 | CH58: 0 | CI58: 0 | CJ58: 0 | CK58: 0 | CL58: 0 | CM58: 0 | CN58: 0 | CO58: 0
C59: =C35 -> Converted Product [Tons] - Export | E59: Tons p.p. | K59: =K35 -> 0 | L59: 0 | M59: 0 | N59: 0 | O59: 0 | P59: 0 | Q59: 0 | R59: 0 | S59: 0 | T59: 0 | U59: 0 | V59: 0 | W59: 0 | X59: 0 | Y59: 0 | Z59: 0 | AA59: 0 | AB59: 0 | AC59: 0 | AD59: 0 | AE59: 0 | AF59: 0 | AG59: 0 | AH59: 0 | AI59: 0 | AJ59: 0 | AK59: 1399.790733 | AL59: 1399.790733 | AM59: 1711.136533 | AN59: 1711.136533 | AO59: 1772.474182 | AP59: 1772.474182 | AQ59: =AQ35 -> 1802.332378 | AR59: 1802.332378 | AS59: 1802.332378 | AT59: 1802.332378 | AU59: 1802.332378 | AV59: 1802.332378 | AW59: 1802.332378 | AX59: 1802.332378 | AY59: 1802.332378 | AZ59: 1802.332378 | BA59: 1802.332378 | BB59: 1802.332378 | BC59: 0 | BD59: 0 | BE59: 0 | BF59: 0 | BG59: 0 | BH59: 0 | BI59: 0 | BJ59: 0 | BK59: 0 | BL59: 0 | BM59: 0 | BN59: 0 | BO59: 0 | BP59: 0 | BQ59: 0 | BR59: 0 | BS59: 0 | BT59: 0 | BU59: 0 | BV59: 0 | BW59: =BW35 -> 0 | BX59: 0 | BY59: 0 | BZ59: 0 | CA59: 0 | CB59: 0 | CC59: 0 | CD59: 0 | CE59: 0 | CF59: 0 | CG59: 0 | CH59: 0 | CI59: 0 | CJ59: 0 | CK59: 0 | CL59: 0 | CM59: 0 | CN59: 0 | CO59: 0
C60: =C36 -> Converted Product [Tons] - Local | E60: Tons p.p. | K60: =K36 -> 0 | L60: 0 | M60: 0 | N60: 0 | O60: 0 | P60: 0 | Q60: 0 | R60: 0 | S60: 0 | T60: 0 | U60: 0 | V60: 0 | W60: 0 | X60: 0 | Y60: 0 | Z60: 0 | AA60: 0 | AB60: 0 | AC60: 0 | AD60: 0 | AE60: 0 | AF60: 0 | AG60: 0 | AH60: 0 | AI60: 0 | AJ60: 0 | AK60: 3266.178377 | AL60: 3266.178377 | AM60: 3992.651911 | AN60: 3992.651911 | AO60: 4135.773091 | AP60: 4135.773091 | AQ60: =AQ36 -> 4205.442214 | AR60: 4205.442214 | AS60: 4205.442214 | AT60: 4205.442214 | AU60: 4205.442214 | AV60: 4205.442214 | AW60: 4205.442214 | AX60: 4205.442214 | AY60: 4205.442214 | AZ60: 4205.442214 | BA60: 4205.442214 | BB60: 4205.442214 | BC60: 0 | BD60: 0 | BE60: 0 | BF60: 0 | BG60: 0 | BH60: 0 | BI60: 0 | BJ60: 0 | BK60: 0 | BL60: 0 | BM60: 0 | BN60: 0 | BO60: 0 | BP60: 0 | BQ60: 0 | BR60: 0 | BS60: 0 | BT60: 0 | BU60: 0 | BV60: 0 | BW60: =BW36 -> 0 | BX60: 0 | BY60: 0 | BZ60: 0 | CA60: 0 | CB60: 0 | CC60: 0 | CD60: 0 | CE60: 0 | CF60: 0 | CG60: 0 | CH60: 0 | CI60: 0 | CJ60: 0 | CK60: 0 | CL60: 0 | CM60: 0 | CN60: 0 | CO60: 0
D61: Total | E61: Tons p.p. | K61: =SUM(K58:K60) -> 0 | L61: =SUM(L58:L60) -> 0 | M61: 0 | N61: 0 | O61: 0 | P61: 0 | Q61: 0 | R61: 0 | S61: 0 | T61: 0 | U61: 0 | V61: 0 | W61: 0 | X61: 0 | Y61: 0 | Z61: 0 | AA61: 0 | AB61: 0 | AC61: 0 | AD61: 0 | AE61: 0 | AF61: 0 | AG61: 0 | AH61: 0 | AI61: 0 | AJ61: 0 | AK61: 15553.23037 | AL61: 15553.23037 | AM61: 19012.62815 | AN61: 19012.62815 | AO61: 19694.15758 | AP61: 19694.15758 | AQ61: 20025.91531 | AR61: 20025.91531 | AS61: 20025.91531 | AT61: 20025.91531 | AU61: 20025.91531 | AV61: 20025.91531 | AW61: 20025.91531 | AX61: 20025.91531 | AY61: 20025.91531 | AZ61: 20025.91531 | BA61: 20025.91531 | BB61: 20025.91531 | BC61: 0 | BD61: 0 | BE61: 0 | BF61: 0 | BG61: 0 | BH61: 0 | BI61: 0 | BJ61: 0 | BK61: 0 | BL61: 0 | BM61: 0 | BN61: 0 | BO61: 0 | BP61: 0 | BQ61: 0 | BR61: 0 | BS61: 0 | BT61: 0 | BU61: 0 | BV61: 0 | BW61: 0 | BX61: =SUM(BX58:BX60) -> 0 | BY61: 0 | BZ61: 0 | CA61: 0 | CB61: 0 | CC61: 0 | CD61: 0 | CE61: 0 | CF61: 0 | CG61: 0 | CH61: 0 | CI61: 0 | CJ61: 0 | CK61: 0 | CL61: 0 | CM61: 0 | CN61: 0 | CO61: 0
B63: Prices
C64: Prices for Bulk | E64: USD/Ton | K64: =LOOKUP(K14,'Assumptions Sheet'!$F$155:$Q$155,'Assumptions Sheet'!$F$159:$Q$159) -> 0 | L64: =LOOKUP(L14,'Assumptions Sheet'!$F$155:$Q$155,'Assumptions Sheet'!$F$159:$Q$159) -> 0 | M64: =LOOKUP(M14,'Assumptions Sheet'!$F$155:$Q$155,'Assumptions Sheet'!$F$159:$Q$159) -> 1350 | N64: =LOOKUP(N14,'Assumptions Sheet'!$F$155:$Q$155,'Assumptions Sheet'!$F$159:$Q$159) -> 1350 | O64: =LOOKUP(O14,'Assumptions Sheet'!$F$155:$Q$155,'Assumptions Sheet'!$F$159:$Q$159) -> 1350 | P64: =LOOKUP(P14,'Assumptions Sheet'!$F$155:$Q$155,'Assumptions Sheet'!$F$159:$Q$159) -> 1350 | Q64: =LOOKUP(Q14,'Assumptions Sheet'!$F$155:$Q$155,'Assumptions Sheet'!$F$159:$Q$159) -> 1350 | R64: =LOOKUP(R14,'Assumptions Sheet'!$F$155:$Q$155,'Assumptions Sheet'!$F$159:$Q$159) -> 1350 | S64: =LOOKUP(S14,'Assumptions Sheet'!$F$155:$Q$155,'Assumptions Sheet'!$F$159:$Q$159) -> 1350 | T64: =LOOKUP(T14,'Assumptions Sheet'!$F$155:$Q$155,'Assumptions Sheet'!$F$159:$Q$159) -> 1350 | U64: =LOOKUP(U14,'Assumptions Sheet'!$F$155:$Q$155,'Assumptions Sheet'!$F$159:$Q$159) -> 1350 | V64: =LOOKUP(V14,'Assumptions Sheet'!$F$155:$Q$155,'Assumptions Sheet'!$F$159:$Q$159) -> 1350 | W64: =LOOKUP(W14,'Assumptions Sheet'!$F$155:$Q$155,'Assumptions Sheet'!$F$159:$Q$159) -> 1350 | X64: =LOOKUP(X14,'Assumptions Sheet'!$F$155:$Q$155,'Assumptions Sheet'!$F$159:$Q$159) -> 1350 | Y64: =LOOKUP(Y14,'Assumptions Sheet'!$F$155:$Q$155,'Assumptions Sheet'!$F$159:$Q$159) -> 1390.5 | Z64: =LOOKUP(Z14,'Assumptions Sheet'!$F$155:$Q$155,'Assumptions Sheet'!$F$159:$Q$159) -> 1390.5 | AA64: =LOOKUP(AA14,'Assumptions Sheet'!$F$155:$Q$155,'Assumptions Sheet'!$F$159:$Q$159) -> 1390.5 | AB64: =LOOKUP(AB14,'Assumptions Sheet'!$F$155:$Q$155,'Assumptions Sheet'!$F$159:$Q$159) -> 1390.5 | AC64: =LOOKUP(AC14,'Assumptions Sheet'!$F$155:$Q$155,'Assumptions Sheet'!$F$159:$Q$159) -> 1390.5 | AD64: =LOOKUP(AD14,'Assumptions Sheet'!$F$155:$Q$155,'Assumptions Sheet'!$F$159:$Q$159) -> 1390.5 | AE64: =LOOKUP(AE14,'Assumptions Sheet'!$F$155:$Q$155,'Assumptions Sheet'!$F$159:$Q$159) -> 1390.5 | AF64: =LOOKUP(AF14,'Assumptions Sheet'!$F$155:$Q$155,'Assumptions Sheet'!$F$159:$Q$159) -> 1390.5 | AG64: =LOOKUP(AG14,'Assumptions Sheet'!$F$155:$Q$155,'Assumptions Sheet'!$F$159:$Q$159) -> 1390.5 | AH64: =LOOKUP(AH14,'Assumptions Sheet'!$F$155:$Q$155,'Assumptions Sheet'!$F$159:$Q$159) -> 1390.5 | AI64: =LOOKUP(AI14,'Assumptions Sheet'!$F$155:$Q$155,'Assumptions Sheet'!$F$159:$Q$159) -> 1390.5 | AJ64: =LOOKUP(AJ14,'Assumptions Sheet'!$F$155:$Q$155,'Assumptions Sheet'!$F$159:$Q$159) -> 1390.5 | AK64: =LOOKUP(AK14,'Assumptions Sheet'!$F$155:$Q$155,'Assumptions Sheet'!$F$159:$Q$159) -> 1432.215 | AL64: =LOOKUP(AL14,'Assumptions Sheet'!$F$155:$Q$155,'Assumptions Sheet'!$F$159:$Q$159) -> 1432.215 | AM64: =LOOKUP(AM14,'Assumptions Sheet'!$F$155:$Q$155,'Assumptions Sheet'!$F$159:$Q$159) -> 1475.18145 | AN64: =LOOKUP(AN14,'Assumptions Sheet'!$F$155:$Q$155,'Assumptions Sheet'!$F$159:$Q$159) -> 1475.18145 | AO64: =LOOKUP(AO14,'Assumptions Sheet'!$F$155:$Q$155,'Assumptions Sheet'!$F$159:$Q$159) -> 1519.436894 | AP64: =LOOKUP(AP14,'Assumptions Sheet'!$F$155:$Q$155,'Assumptions Sheet'!$F$159:$Q$159) -> 1519.436894 | AQ64: =LOOKUP(AQ14,'Assumptions Sheet'!$F$155:$Q$155,'Assumptions Sheet'!$F$159:$Q$159) -> 1565.02 | AR64: =LOOKUP(AR14,'Assumptions Sheet'!$F$155:$Q$155,'Assumptions Sheet'!$F$159:$Q$159) -> 1565.02 | AS64: =LOOKUP(AS14,'Assumptions Sheet'!$F$155:$Q$155,'Assumptions Sheet'!$F$159:$Q$159) -> 1611.9706 | AT64: =LOOKUP(AT14,'Assumptions Sheet'!$F$155:$Q$155,'Assumptions Sheet'!$F$159:$Q$159) -> 1611.9706 | AU64: =LOOKUP(AU14,'Assumptions Sheet'!$F$155:$Q$155,'Assumptions Sheet'!$F$159:$Q$159) -> 1660.329718 | AV64: =LOOKUP(AV14,'Assumptions Sheet'!$F$155:$Q$155,'Assumptions Sheet'!$F$159:$Q$159) -> 1660.329718 | AW64: =LOOKUP(AW14,'Assumptions Sheet'!$F$155:$Q$155,'Assumptions Sheet'!$F$159:$Q$159) -> 1710.13961 | AX64: =LOOKUP(AX14,'Assumptions Sheet'!$F$155:$Q$155,'Assumptions Sheet'!$F$159:$Q$159) -> 1710.13961 | AY64: =LOOKUP(AY14,'Assumptions Sheet'!$F$155:$Q$155,'Assumptions Sheet'!$F$159:$Q$159) -> 1761.443798 | AZ64: =LOOKUP(AZ14,'Assumptions Sheet'!$F$155:$Q$155,'Assumptions Sheet'!$F$159:$Q$159) -> 1761.443798 | BA64: =LOOKUP(BA14,'Assumptions Sheet'!$F$155:$Q$155,'Assumptions Sheet'!$F$159:$Q$159) -> 1814.287112 | BB64: =LOOKUP(BB14,'Assumptions Sheet'!$F$155:$Q$155,'Assumptions Sheet'!$F$159:$Q$159) -> 1814.287112 | BC64: =LOOKUP(BC14,'Assumptions Sheet'!$F$155:$Q$155,'Assumptions Sheet'!$F$159:$Q$159) -> 0 | BD64: =LOOKUP(BD14,'Assumptions Sheet'!$F$155:$Q$155,'Assumptions Sheet'!$F$159:$Q$159) -> 0 | BE64: =LOOKUP(BE14,'Assumptions Sheet'!$F$155:$Q$155,'Assumptions Sheet'!$F$159:$Q$159) -> 0 | BF64: =LOOKUP(BF14,'Assumptions Sheet'!$F$155:$Q$155,'Assumptions Sheet'!$F$159:$Q$159) -> 0 | BG64: =LOOKUP(BG14,'Assumptions Sheet'!$F$155:$Q$155,'Assumptions Sheet'!$F$159:$Q$159) -> 0 | BH64: =LOOKUP(BH14,'Assumptions Sheet'!$F$155:$Q$155,'Assumptions Sheet'!$F$159:$Q$159) -> 0 | BI64: =LOOKUP(BI14,'Assumptions Sheet'!$F$155:$Q$155,'Assumptions Sheet'!$F$159:$Q$159) -> 0 | BJ64: =LOOKUP(BJ14,'Assumptions Sheet'!$F$155:$Q$155,'Assumptions Sheet'!$F$159:$Q$159) -> 0 | BK64: =LOOKUP(BK14,'Assumptions Sheet'!$F$155:$Q$155,'Assumptions Sheet'!$F$159:$Q$159) -> 0 | BL64: =LOOKUP(BL14,'Assumptions Sheet'!$F$155:$Q$155,'Assumptions Sheet'!$F$159:$Q$159) -> 0 | BM64: =LOOKUP(BM14,'Assumptions Sheet'!$F$155:$Q$155,'Assumptions Sheet'!$F$159:$Q$159) -> 0 | BN64: =LOOKUP(BN14,'Assumptions Sheet'!$F$155:$Q$155,'Assumptions Sheet'!$F$159:$Q$159) -> 0 | BO64: =LOOKUP(BO14,'Assumptions Sheet'!$F$155:$Q$155,'Assumptions Sheet'!$F$159:$Q$159) -> 0 | BP64: =LOOKUP(BP14,'Assumptions Sheet'!$F$155:$Q$155,'Assumptions Sheet'!$F$159:$Q$159) -> 0 | BQ64: =LOOKUP(BQ14,'Assumptions Sheet'!$F$155:$Q$155,'Assumptions Sheet'!$F$159:$Q$159) -> 0 | BR64: =LOOKUP(BR14,'Assumptions Sheet'!$F$155:$Q$155,'Assumptions Sheet'!$F$159:$Q$159) -> 0 | BS64: =LOOKUP(BS14,'Assumptions Sheet'!$F$155:$Q$155,'Assumptions Sheet'!$F$159:$Q$159) -> 0 | BT64: =LOOKUP(BT14,'Assumptions Sheet'!$F$155:$Q$155,'Assumptions Sheet'!$F$159:$Q$159) -> 0 | BU64: =LOOKUP(BU14,'Assumptions Sheet'!$F$155:$Q$155,'Assumptions Sheet'!$F$159:$Q$159) -> 0 | BV64: =LOOKUP(BV14,'Assumptions Sheet'!$F$155:$Q$155,'Assumptions Sheet'!$F$159:$Q$159) -> 0 | BW64: =LOOKUP(BW14,'Assumptions Sheet'!$F$155:$Q$155,'Assumptions Sheet'!$F$159:$Q$159) -> 0 | BX64: =LOOKUP(BX14,'Assumptions Sheet'!$F$155:$Q$155,'Assumptions Sheet'!$F$159:$Q$159) -> 0 | BY64: =LOOKUP(BY14,'Assumptions Sheet'!$F$155:$Q$155,'Assumptions Sheet'!$F$159:$Q$159) -> 0 | BZ64: =LOOKUP(BZ14,'Assumptions Sheet'!$F$155:$Q$155,'Assumptions Sheet'!$F$159:$Q$159) -> 0 | CA64: =LOOKUP(CA14,'Assumptions Sheet'!$F$155:$Q$155,'Assumptions Sheet'!$F$159:$Q$159) -> 0 | CB64: =LOOKUP(CB14,'Assumptions Sheet'!$F$155:$Q$155,'Assumptions Sheet'!$F$159:$Q$159) -> 0 | CC64: =LOOKUP(CC14,'Assumptions Sheet'!$F$155:$Q$155,'Assumptions Sheet'!$F$159:$Q$159) -> 0 | CD64: =LOOKUP(CD14,'Assumptions Sheet'!$F$155:$Q$155,'Assumptions Sheet'!$F$159:$Q$159) -> 0 | CE64: =LOOKUP(CE14,'Assumptions Sheet'!$F$155:$Q$155,'Assumptions Sheet'!$F$159:$Q$159) -> 0 | CF64: =LOOKUP(CF14,'Assumptions Sheet'!$F$155:$Q$155,'Assumptions Sheet'!$F$159:$Q$159) -> 0 | CG64: =LOOKUP(CG14,'Assumptions Sheet'!$F$155:$Q$155,'Assumptions Sheet'!$F$159:$Q$159) -> 0 | CH64: =LOOKUP(CH14,'Assumptions Sheet'!$F$155:$Q$155,'Assumptions Sheet'!$F$159:$Q$159) -> 0 | CI64: =LOOKUP(CI14,'Assumptions Sheet'!$F$155:$Q$155,'Assumptions Sheet'!$F$159:$Q$159) -> 0 | CJ64: =LOOKUP(CJ14,'Assumptions Sheet'!$F$155:$Q$155,'Assumptions Sheet'!$F$159:$Q$159) -> 0 | CK64: =LOOKUP(CK14,'Assumptions Sheet'!$F$155:$Q$155,'Assumptions Sheet'!$F$159:$Q$159) -> 0 | CL64: =LOOKUP(CL14,'Assumptions Sheet'!$F$155:$Q$155,'Assumptions Sheet'!$F$159:$Q$159) -> 0 | CM64: =LOOKUP(CM14,'Assumptions Sheet'!$F$155:$Q$155,'Assumptions Sheet'!$F$159:$Q$159) -> 0 | CN64: =LOOKUP(CN14,'Assumptions Sheet'!$F$155:$Q$155,'Assumptions Sheet'!$F$159:$Q$159) -> 0 | CO64: =LOOKUP(CO14,'Assumptions Sheet'!$F$155:$Q$155,'Assumptions Sheet'!$F$159:$Q$159) -> 0
C65: Prices for Converted Product | E65: USD/Ton | K65: =LOOKUP(K$14,'Assumptions Sheet'!$F$167:$Q$167,'Assumptions Sheet'!$F$171:$Q$171) -> 0 | L65: =LOOKUP(L$14,'Assumptions Sheet'!$F$167:$Q$167,'Assumptions Sheet'!$F$171:$Q$171) -> 0 | M65: =LOOKUP(M$14,'Assumptions Sheet'!$F$167:$Q$167,'Assumptions Sheet'!$F$171:$Q$171) -> 3100 | N65: =LOOKUP(N$14,'Assumptions Sheet'!$F$167:$Q$167,'Assumptions Sheet'!$F$171:$Q$171) -> 3100 | O65: =LOOKUP(O$14,'Assumptions Sheet'!$F$167:$Q$167,'Assumptions Sheet'!$F$171:$Q$171) -> 3100 | P65: =LOOKUP(P$14,'Assumptions Sheet'!$F$167:$Q$167,'Assumptions Sheet'!$F$171:$Q$171) -> 3100 | Q65: =LOOKUP(Q$14,'Assumptions Sheet'!$F$167:$Q$167,'Assumptions Sheet'!$F$171:$Q$171) -> 3100 | R65: =LOOKUP(R$14,'Assumptions Sheet'!$F$167:$Q$167,'Assumptions Sheet'!$F$171:$Q$171) -> 3100 | S65: =LOOKUP(S$14,'Assumptions Sheet'!$F$167:$Q$167,'Assumptions Sheet'!$F$171:$Q$171) -> 3100 | T65: =LOOKUP(T$14,'Assumptions Sheet'!$F$167:$Q$167,'Assumptions Sheet'!$F$171:$Q$171) -> 3100 | U65: =LOOKUP(U$14,'Assumptions Sheet'!$F$167:$Q$167,'Assumptions Sheet'!$F$171:$Q$171) -> 3100 | V65: =LOOKUP(V$14,'Assumptions Sheet'!$F$167:$Q$167,'Assumptions Sheet'!$F$171:$Q$171) -> 3100 | W65: =LOOKUP(W$14,'Assumptions Sheet'!$F$167:$Q$167,'Assumptions Sheet'!$F$171:$Q$171) -> 3100 | X65: =LOOKUP(X$14,'Assumptions Sheet'!$F$167:$Q$167,'Assumptions Sheet'!$F$171:$Q$171) -> 3100 | Y65: =LOOKUP(Y$14,'Assumptions Sheet'!$F$167:$Q$167,'Assumptions Sheet'!$F$171:$Q$171) -> 3193 | Z65: =LOOKUP(Z$14,'Assumptions Sheet'!$F$167:$Q$167,'Assumptions Sheet'!$F$171:$Q$171) -> 3193 | AA65: =LOOKUP(AA$14,'Assumptions Sheet'!$F$167:$Q$167,'Assumptions Sheet'!$F$171:$Q$171) -> 3193 | AB65: =LOOKUP(AB$14,'Assumptions Sheet'!$F$167:$Q$167,'Assumptions Sheet'!$F$171:$Q$171) -> 3193 | AC65: =LOOKUP(AC$14,'Assumptions Sheet'!$F$167:$Q$167,'Assumptions Sheet'!$F$171:$Q$171) -> 3193 | AD65: =LOOKUP(AD$14,'Assumptions Sheet'!$F$167:$Q$167,'Assumptions Sheet'!$F$171:$Q$171) -> 3193 | AE65: =LOOKUP(AE$14,'Assumptions Sheet'!$F$167:$Q$167,'Assumptions Sheet'!$F$171:$Q$171) -> 3193 | AF65: =LOOKUP(AF$14,'Assumptions Sheet'!$F$167:$Q$167,'Assumptions Sheet'!$F$171:$Q$171) -> 3193 | AG65: =LOOKUP(AG$14,'Assumptions Sheet'!$F$167:$Q$167,'Assumptions Sheet'!$F$171:$Q$171) -> 3193 | AH65: =LOOKUP(AH$14,'Assumptions Sheet'!$F$167:$Q$167,'Assumptions Sheet'!$F$171:$Q$171) -> 3193 | AI65: =LOOKUP(AI$14,'Assumptions Sheet'!$F$167:$Q$167,'Assumptions Sheet'!$F$171:$Q$171) -> 3193 | AJ65: =LOOKUP(AJ$14,'Assumptions Sheet'!$F$167:$Q$167,'Assumptions Sheet'!$F$171:$Q$171) -> 3193 | AK65: =LOOKUP(AK$14,'Assumptions Sheet'!$F$167:$Q$167,'Assumptions Sheet'!$F$171:$Q$171) -> 3288.79 | AL65: =LOOKUP(AL$14,'Assumptions Sheet'!$F$167:$Q$167,'Assumptions Sheet'!$F$171:$Q$171) -> 3288.79 | AM65: =LOOKUP(AM$14,'Assumptions Sheet'!$F$167:$Q$167,'Assumptions Sheet'!$F$171:$Q$171) -> 3387.4537 | AN65: =LOOKUP(AN$14,'Assumptions Sheet'!$F$167:$Q$167,'Assumptions Sheet'!$F$171:$Q$171) -> 3387.4537 | AO65: =LOOKUP(AO$14,'Assumptions Sheet'!$F$167:$Q$167,'Assumptions Sheet'!$F$171:$Q$171) -> 3489.077311 | AP65: =LOOKUP(AP$14,'Assumptions Sheet'!$F$167:$Q$167,'Assumptions Sheet'!$F$171:$Q$171) -> 3489.077311 | AQ65: =LOOKUP(AQ$14,'Assumptions Sheet'!$F$167:$Q$167,'Assumptions Sheet'!$F$171:$Q$171) -> 3593.74963 | AR65: =LOOKUP(AR$14,'Assumptions Sheet'!$F$167:$Q$167,'Assumptions Sheet'!$F$171:$Q$171) -> 3593.74963 | AS65: =LOOKUP(AS$14,'Assumptions Sheet'!$F$167:$Q$167,'Assumptions Sheet'!$F$171:$Q$171) -> 3701.562119 | AT65: =LOOKUP(AT$14,'Assumptions Sheet'!$F$167:$Q$167,'Assumptions Sheet'!$F$171:$Q$171) -> 3701.562119 | AU65: =LOOKUP(AU$14,'Assumptions Sheet'!$F$167:$Q$167,'Assumptions Sheet'!$F$171:$Q$171) -> 3812.608983 | AV65: =LOOKUP(AV$14,'Assumptions Sheet'!$F$167:$Q$167,'Assumptions Sheet'!$F$171:$Q$171) -> 3812.608983 | AW65: =LOOKUP(AW$14,'Assumptions Sheet'!$F$167:$Q$167,'Assumptions Sheet'!$F$171:$Q$171) -> 3926.987252 | AX65: =LOOKUP(AX$14,'Assumptions Sheet'!$F$167:$Q$167,'Assumptions Sheet'!$F$171:$Q$171) -> 3926.987252 | AY65: =LOOKUP(AY$14,'Assumptions Sheet'!$F$167:$Q$167,'Assumptions Sheet'!$F$171:$Q$171) -> 4044.79687 | AZ65: =LOOKUP(AZ$14,'Assumptions Sheet'!$F$167:$Q$167,'Assumptions Sheet'!$F$171:$Q$171) -> 4044.79687 | BA65: =LOOKUP(BA$14,'Assumptions Sheet'!$F$167:$Q$167,'Assumptions Sheet'!$F$171:$Q$171) -> 4166.140776 | BB65: =LOOKUP(BB$14,'Assumptions Sheet'!$F$167:$Q$167,'Assumptions Sheet'!$F$171:$Q$171) -> 4166.140776 | BC65: =LOOKUP(BC$14,'Assumptions Sheet'!$F$167:$Q$167,'Assumptions Sheet'!$F$171:$Q$171) -> 0 | BD65: =LOOKUP(BD$14,'Assumptions Sheet'!$F$167:$Q$167,'Assumptions Sheet'!$F$171:$Q$171) -> 0 | BE65: =LOOKUP(BE$14,'Assumptions Sheet'!$F$167:$Q$167,'Assumptions Sheet'!$F$171:$Q$171) -> 0 | BF65: =LOOKUP(BF$14,'Assumptions Sheet'!$F$167:$Q$167,'Assumptions Sheet'!$F$171:$Q$171) -> 0 | BG65: =LOOKUP(BG$14,'Assumptions Sheet'!$F$167:$Q$167,'Assumptions Sheet'!$F$171:$Q$171) -> 0 | BH65: =LOOKUP(BH$14,'Assumptions Sheet'!$F$167:$Q$167,'Assumptions Sheet'!$F$171:$Q$171) -> 0 | BI65: =LOOKUP(BI$14,'Assumptions Sheet'!$F$167:$Q$167,'Assumptions Sheet'!$F$171:$Q$171) -> 0 | BJ65: =LOOKUP(BJ$14,'Assumptions Sheet'!$F$167:$Q$167,'Assumptions Sheet'!$F$171:$Q$171) -> 0 | BK65: =LOOKUP(BK$14,'Assumptions Sheet'!$F$167:$Q$167,'Assumptions Sheet'!$F$171:$Q$171) -> 0 | BL65: =LOOKUP(BL$14,'Assumptions Sheet'!$F$167:$Q$167,'Assumptions Sheet'!$F$171:$Q$171) -> 0 | BM65: =LOOKUP(BM$14,'Assumptions Sheet'!$F$167:$Q$167,'Assumptions Sheet'!$F$171:$Q$171) -> 0 | BN65: =LOOKUP(BN$14,'Assumptions Sheet'!$F$167:$Q$167,'Assumptions Sheet'!$F$171:$Q$171) -> 0 | BO65: =LOOKUP(BO$14,'Assumptions Sheet'!$F$167:$Q$167,'Assumptions Sheet'!$F$171:$Q$171) -> 0 | BP65: =LOOKUP(BP$14,'Assumptions Sheet'!$F$167:$Q$167,'Assumptions Sheet'!$F$171:$Q$171) -> 0 | BQ65: =LOOKUP(BQ$14,'Assumptions Sheet'!$F$167:$Q$167,'Assumptions Sheet'!$F$171:$Q$171) -> 0 | BR65: =LOOKUP(BR$14,'Assumptions Sheet'!$F$167:$Q$167,'Assumptions Sheet'!$F$171:$Q$171) -> 0 | BS65: =LOOKUP(BS$14,'Assumptions Sheet'!$F$167:$Q$167,'Assumptions Sheet'!$F$171:$Q$171) -> 0 | BT65: =LOOKUP(BT$14,'Assumptions Sheet'!$F$167:$Q$167,'Assumptions Sheet'!$F$171:$Q$171) -> 0 | BU65: =LOOKUP(BU$14,'Assumptions Sheet'!$F$167:$Q$167,'Assumptions Sheet'!$F$171:$Q$171) -> 0 | BV65: =LOOKUP(BV$14,'Assumptions Sheet'!$F$167:$Q$167,'Assumptions Sheet'!$F$171:$Q$171) -> 0 | BW65: =LOOKUP(BW$14,'Assumptions Sheet'!$F$167:$Q$167,'Assumptions Sheet'!$F$171:$Q$171) -> 0 | BX65: =LOOKUP(BX$14,'Assumptions Sheet'!$F$167:$Q$167,'Assumptions Sheet'!$F$171:$Q$171) -> 0 | BY65: =LOOKUP(BY$14,'Assumptions Sheet'!$F$167:$Q$167,'Assumptions Sheet'!$F$171:$Q$171) -> 0 | BZ65: =LOOKUP(BZ$14,'Assumptions Sheet'!$F$167:$Q$167,'Assumptions Sheet'!$F$171:$Q$171) -> 0 | CA65: =LOOKUP(CA$14,'Assumptions Sheet'!$F$167:$Q$167,'Assumptions Sheet'!$F$171:$Q$171) -> 0 | CB65: =LOOKUP(CB$14,'Assumptions Sheet'!$F$167:$Q$167,'Assumptions Sheet'!$F$171:$Q$171) -> 0 | CC65: =LOOKUP(CC$14,'Assumptions Sheet'!$F$167:$Q$167,'Assumptions Sheet'!$F$171:$Q$171) -> 0 | CD65: =LOOKUP(CD$14,'Assumptions Sheet'!$F$167:$Q$167,'Assumptions Sheet'!$F$171:$Q$171) -> 0 | CE65: =LOOKUP(CE$14,'Assumptions Sheet'!$F$167:$Q$167,'Assumptions Sheet'!$F$171:$Q$171) -> 0 | CF65: =LOOKUP(CF$14,'Assumptions Sheet'!$F$167:$Q$167,'Assumptions Sheet'!$F$171:$Q$171) -> 0 | CG65: =LOOKUP(CG$14,'Assumptions Sheet'!$F$167:$Q$167,'Assumptions Sheet'!$F$171:$Q$171) -> 0 | CH65: =LOOKUP(CH$14,'Assumptions Sheet'!$F$167:$Q$167,'Assumptions Sheet'!$F$171:$Q$171) -> 0 | CI65: =LOOKUP(CI$14,'Assumptions Sheet'!$F$167:$Q$167,'Assumptions Sheet'!$F$171:$Q$171) -> 0 | CJ65: =LOOKUP(CJ$14,'Assumptions Sheet'!$F$167:$Q$167,'Assumptions Sheet'!$F$171:$Q$171) -> 0 | CK65: =LOOKUP(CK$14,'Assumptions Sheet'!$F$167:$Q$167,'Assumptions Sheet'!$F$171:$Q$171) -> 0 | CL65: =LOOKUP(CL$14,'Assumptions Sheet'!$F$167:$Q$167,'Assumptions Sheet'!$F$171:$Q$171) -> 0 | CM65: =LOOKUP(CM$14,'Assumptions Sheet'!$F$167:$Q$167,'Assumptions Sheet'!$F$171:$Q$171) -> 0 | CN65: =LOOKUP(CN$14,'Assumptions Sheet'!$F$167:$Q$167,'Assumptions Sheet'!$F$171:$Q$171) -> 0 | CO65: =LOOKUP(CO$14,'Assumptions Sheet'!$F$167:$Q$167,'Assumptions Sheet'!$F$171:$Q$171) -> 0
B67: Revenues
C68: Bulk Product | E68: USD | K68: =K64*K58 -> 0 | L68: =L64*L58 -> 0 | M68: 0 | N68: 0 | O68: 0 | P68: 0 | Q68: 0 | R68: 0 | S68: 0 | T68: 0 | U68: 0 | V68: 0 | W68: 0 | X68: 0 | Y68: 0 | Z68: 0 | AA68: 0 | AB68: 0 | AC68: 0 | AD68: 0 | AE68: 0 | AF68: 0 | AG68: 0 | AH68: 0 | AI68: 0 | AJ68: 0 | AK68: 15592898.88 | AL68: 15592898.88 | AM68: 19632953.45 | AN68: 19632953.45 | AO68: 20946820.73 | AP68: 20946820.73 | AQ68: 21938670.59 | AR68: 21938670.59 | AS68: 22596830.7 | AT68: 22596830.7 | AU68: 23274735.62 | AV68: 23274735.62 | AW68: 23972977.69 | AX68: 23972977.69 | AY68: 24692167.02 | AZ68: 24692167.02 | BA68: 25432932.03 | BB68: 25432932.03 | BC68: 0 | BD68: 0 | BE68: 0 | BF68: 0 | BG68: 0 | BH68: 0 | BI68: 0 | BJ68: 0 | BK68: 0 | BL68: 0 | BM68: 0 | BN68: 0 | BO68: 0 | BP68: 0 | BQ68: 0 | BR68: 0 | BS68: 0 | BT68: 0 | BU68: 0 | BV68: 0 | BW68: 0 | BX68: =BX64*BX58 -> 0 | BY68: 0 | BZ68: 0 | CA68: 0 | CB68: 0 | CC68: 0 | CD68: 0 | CE68: 0 | CF68: 0 | CG68: 0 | CH68: 0 | CI68: 0 | CJ68: 0 | CK68: 0 | CL68: 0 | CM68: 0 | CN68: 0 | CO68: 0
C69: =C44 -> Converting Machinery | E69: USD | K69: =K65*K59 -> 0 | L69: 0 | M69: 0 | N69: 0 | O69: 0 | P69: 0 | Q69: 0 | R69: 0 | S69: 0 | T69: 0 | U69: 0 | V69: 0 | W69: 0 | X69: 0 | Y69: 0 | Z69: 0 | AA69: 0 | AB69: 0 | AC69: 0 | AD69: 0 | AE69: 0 | AF69: 0 | AG69: 0 | AH69: 0 | AI69: 0 | AJ69: 0 | AK69: 4603617.765 | AL69: 4603617.765 | AM69: 5796395.781 | AN69: 5796395.781 | AO69: 6184299.452 | AP69: 6184299.452 | AQ69: 6477131.316 | AR69: 6477131.316 | AS69: 6671445.255 | AT69: 6671445.255 | AU69: 6871588.613 | AV69: 6871588.613 | AW69: 7077736.271 | AX69: 7077736.271 | AY69: 7290068.359 | AZ69: 7290068.359 | BA69: 7508770.41 | BB69: 7508770.41 | BC69: 0 | BD69: 0 | BE69: 0 | BF69: 0 | BG69: 0 | BH69: 0 | BI69: 0 | BJ69: 0 | BK69: 0 | BL69: 0 | BM69: 0 | BN69: 0 | BO69: 0 | BP69: 0 | BQ69: 0 | BR69: 0 | BS69: 0 | BT69: 0 | BU69: 0 | BV69: 0 | BW69: 0 | BX69: 0 | BY69: 0 | BZ69: 0 | CA69: 0 | CB69: 0 | CC69: 0 | CD69: 0 | CE69: 0 | CF69: 0 | CG69: 0 | CH69: 0 | CI69: 0 | CJ69: 0 | CK69: 0 | CL69: 0 | CM69: 0 | CN69: 0 | CO69: 0
C70: =C45 -> Packaging Machinery | E70: USD | K70: =K65*K60 -> 0 | L70: =L65*L60 -> 0 | M70: 0 | N70: 0 | O70: 0 | P70: 0 | Q70: 0 | R70: 0 | S70: 0 | T70: 0 | U70: 0 | V70: 0 | W70: 0 | X70: 0 | Y70: 0 | Z70: 0 | AA70: 0 | AB70: 0 | AC70: 0 | AD70: 0 | AE70: 0 | AF70: 0 | AG70: 0 | AH70: 0 | AI70: 0 | AJ70: 0 | AK70: 10741774.79 | AL70: 10741774.79 | AM70: 13524923.49 | AN70: 13524923.49 | AO70: 14430032.06 | AP70: 14430032.06 | AQ70: 15113306.4 | AR70: 15113306.4 | AS70: 15566705.6 | AT70: 15566705.6 | AU70: 16033706.76 | AV70: 16033706.76 | AW70: 16514717.97 | AX70: 16514717.97 | AY70: 17010159.51 | AZ70: 17010159.51 | BA70: 17520464.29 | BB70: 17520464.29 | BC70: 0 | BD70: 0 | BE70: 0 | BF70: 0 | BG70: 0 | BH70: 0 | BI70: 0 | BJ70: 0 | BK70: 0 | BL70: 0 | BM70: 0 | BN70: 0 | BO70: 0 | BP70: 0 | BQ70: 0 | BR70: 0 | BS70: 0 | BT70: 0 | BU70: 0 | BV70: 0 | BW70: 0 | BX70: =BX65*BX60 -> 0 | BY70: 0 | BZ70: 0 | CA70: 0 | CB70: 0 | CC70: 0 | CD70: 0 | CE70: 0 | CF70: 0 | CG70: 0 | CH70: 0 | CI70: 0 | CJ70: 0 | CK70: 0 | CL70: 0 | CM70: 0 | CN70: 0 | CO70: 0
D71: Total Revenues | E71: USD | K71: =SUM(K68:K70) -> 0 | L71: =SUM(L68:L70) -> 0 | M71: 0 | N71: 0 | O71: 0 | P71: 0 | Q71: 0 | R71: 0 | S71: 0 | T71: 0 | U71: 0 | V71: 0 | W71: 0 | X71: 0 | Y71: 0 | Z71: 0 | AA71: 0 | AB71: 0 | AC71: 0 | AD71: 0 | AE71: 0 | AF71: 0 | AG71: 0 | AH71: 0 | AI71: 0 | AJ71: 0 | AK71: 30938291.43 | AL71: 30938291.43 | AM71: 38954272.72 | AN71: 38954272.72 | AO71: 41561152.23 | AP71: 41561152.23 | AQ71: 43529108.3 | AR71: 43529108.3 | AS71: 44834981.55 | AT71: 44834981.55 | AU71: 46180031 | AV71: 46180031 | AW71: 47565431.93 | AX71: 47565431.93 | AY71: 48992394.89 | AZ71: 48992394.89 | BA71: 50462166.73 | BB71: 50462166.73 | BC71: 0 | BD71: 0 | BE71: 0 | BF71: 0 | BG71: 0 | BH71: 0 | BI71: 0 | BJ71: 0 | BK71: 0 | BL71: 0 | BM71: 0 | BN71: 0 | BO71: 0 | BP71: 0 | BQ71: 0 | BR71: 0 | BS71: 0 | BT71: 0 | BU71: 0 | BV71: 0 | BW71: 0 | BX71: =SUM(BX68:BX70) -> 0 | BY71: 0 | BZ71: 0 | CA71: 0 | CB71: 0 | CC71: 0 | CD71: 0 | CE71: 0 | CF71: 0 | CG71: 0 | CH71: 0 | CI71: 0 | CJ71: 0 | CK71: 0 | CL71: 0 | CM71: 0 | CN71: 0 | CO71: 0
A73: Operating Expenses
B74: Variable Expenses
C75: Total Production | E75: Tons p.p. | K75: =K61 -> 0 | L75: =L61 -> 0 | M75: 0 | N75: 0 | O75: 0 | P75: 0 | Q75: 0 | R75: 0 | S75: 0 | T75: 0 | U75: 0 | V75: 0 | W75: 0 | X75: 0 | Y75: 0 | Z75: 0 | AA75: 0 | AB75: 0 | AC75: 0 | AD75: 0 | AE75: 0 | AF75: 0 | AG75: 0 | AH75: 0 | AI75: 0 | AJ75: 0 | AK75: 15553.23037 | AL75: 15553.23037 | AM75: 19012.62815 | AN75: 19012.62815 | AO75: 19694.15758 | AP75: 19694.15758 | AQ75: 20025.91531 | AR75: 20025.91531 | AS75: 20025.91531 | AT75: 20025.91531 | AU75: 20025.91531 | AV75: 20025.91531 | AW75: 20025.91531 | AX75: 20025.91531 | AY75: 20025.91531 | AZ75: 20025.91531 | BA75: 20025.91531 | BB75: 20025.91531 | BC75: 0 | BD75: 0 | BE75: 0 | BF75: 0 | BG75: 0 | BH75: 0 | BI75: 0 | BJ75: 0 | BK75: 0 | BL75: 0 | BM75: 0 | BN75: 0 | BO75: 0 | BP75: 0 | BQ75: 0 | BR75: 0 | BS75: 0 | BT75: 0 | BU75: 0 | BV75: 0 | BW75: 0 | BX75: =BX61 -> 0 | BY75: 0 | BZ75: 0 | CA75: 0 | CB75: 0 | CC75: 0 | CD75: 0 | CE75: 0 | CF75: 0 | CG75: 0 | CH75: 0 | CI75: 0 | CJ75: 0 | CK75: 0 | CL75: 0 | CM75: 0 | CN75: 0 | CO75: 0
C76: Cost of Fiber Per Ton | E76: USD/Ton | K76: =LOOKUP(K$14,'Assumptions Sheet'!$F$167:$Q$167,'Assumptions Sheet'!$F$195:$Q$195) -> 0 | L76: =LOOKUP(L$14,'Assumptions Sheet'!$F$167:$Q$167,'Assumptions Sheet'!$F$195:$Q$195) -> 0 | M76: =LOOKUP(M$14,'Assumptions Sheet'!$F$167:$Q$167,'Assumptions Sheet'!$F$195:$Q$195) -> 0 | N76: =LOOKUP(N$14,'Assumptions Sheet'!$F$167:$Q$167,'Assumptions Sheet'!$F$195:$Q$195) -> 0 | O76: =LOOKUP(O$14,'Assumptions Sheet'!$F$167:$Q$167,'Assumptions Sheet'!$F$195:$Q$195) -> 0 | P76: =LOOKUP(P$14,'Assumptions Sheet'!$F$167:$Q$167,'Assumptions Sheet'!$F$195:$Q$195) -> 0 | Q76: =LOOKUP(Q$14,'Assumptions Sheet'!$F$167:$Q$167,'Assumptions Sheet'!$F$195:$Q$195) -> 0 | R76: =LOOKUP(R$14,'Assumptions Sheet'!$F$167:$Q$167,'Assumptions Sheet'!$F$195:$Q$195) -> 0 | S76: =LOOKUP(S$14,'Assumptions Sheet'!$F$167:$Q$167,'Assumptions Sheet'!$F$195:$Q$195) -> 0 | T76: =LOOKUP(T$14,'Assumptions Sheet'!$F$167:$Q$167,'Assumptions Sheet'!$F$195:$Q$195) -> 0 | U76: =LOOKUP(U$14,'Assumptions Sheet'!$F$167:$Q$167,'Assumptions Sheet'!$F$195:$Q$195) -> 0 | V76: =LOOKUP(V$14,'Assumptions Sheet'!$F$167:$Q$167,'Assumptions Sheet'!$F$195:$Q$195) -> 0 | W76: =LOOKUP(W$14,'Assumptions Sheet'!$F$167:$Q$167,'Assumptions Sheet'!$F$195:$Q$195) -> 0 | X76: =LOOKUP(X$14,'Assumptions Sheet'!$F$167:$Q$167,'Assumptions Sheet'!$F$195:$Q$195) -> 0 | Y76: =LOOKUP(Y$14,'Assumptions Sheet'!$F$167:$Q$167,'Assumptions Sheet'!$F$195:$Q$195) -> 570.1372212 | Z76: =LOOKUP(Z$14,'Assumptions Sheet'!$F$167:$Q$167,'Assumptions Sheet'!$F$195:$Q$195) -> 570.1372212 | AA76: =LOOKUP(AA$14,'Assumptions Sheet'!$F$167:$Q$167,'Assumptions Sheet'!$F$195:$Q$195) -> 570.1372212 | AB76: =LOOKUP(AB$14,'Assumptions Sheet'!$F$167:$Q$167,'Assumptions Sheet'!$F$195:$Q$195) -> 570.1372212 | AC76: =LOOKUP(AC$14,'Assumptions Sheet'!$F$167:$Q$167,'Assumptions Sheet'!$F$195:$Q$195) -> 570.1372212 | AD76: =LOOKUP(AD$14,'Assumptions Sheet'!$F$167:$Q$167,'Assumptions Sheet'!$F$195:$Q$195) -> 570.1372212 | AE76: =LOOKUP(AE$14,'Assumptions Sheet'!$F$167:$Q$167,'Assumptions Sheet'!$F$195:$Q$195) -> 570.1372212 | AF76: =LOOKUP(AF$14,'Assumptions Sheet'!$F$167:$Q$167,'Assumptions Sheet'!$F$195:$Q$195) -> 570.1372212 | AG76: =LOOKUP(AG$14,'Assumptions Sheet'!$F$167:$Q$167,'Assumptions Sheet'!$F$195:$Q$195) -> 570.1372212 | AH76: =LOOKUP(AH$14,'Assumptions Sheet'!$F$167:$Q$167,'Assumptions Sheet'!$F$195:$Q$195) -> 570.1372212 | AI76: =LOOKUP(AI$14,'Assumptions Sheet'!$F$167:$Q$167,'Assumptions Sheet'!$F$195:$Q$195) -> 570.1372212 | AJ76: =LOOKUP(AJ$14,'Assumptions Sheet'!$F$167:$Q$167,'Assumptions Sheet'!$F$195:$Q$195) -> 570.1372212 | AK76: =LOOKUP(AK$14,'Assumptions Sheet'!$F$167:$Q$167,'Assumptions Sheet'!$F$195:$Q$195) -> 570.1372212 | AL76: =LOOKUP(AL$14,'Assumptions Sheet'!$F$167:$Q$167,'Assumptions Sheet'!$F$195:$Q$195) -> 570.1372212 | AM76: =LOOKUP(AM$14,'Assumptions Sheet'!$F$167:$Q$167,'Assumptions Sheet'!$F$195:$Q$195) -> 560.7758147 | AN76: =LOOKUP(AN$14,'Assumptions Sheet'!$F$167:$Q$167,'Assumptions Sheet'!$F$195:$Q$195) -> 560.7758147 | AO76: =LOOKUP(AO$14,'Assumptions Sheet'!$F$167:$Q$167,'Assumptions Sheet'!$F$195:$Q$195) -> 550.3396003 | AP76: =LOOKUP(AP$14,'Assumptions Sheet'!$F$167:$Q$167,'Assumptions Sheet'!$F$195:$Q$195) -> 550.3396003 | AQ76: =LOOKUP(AQ$14,'Assumptions Sheet'!$F$167:$Q$167,'Assumptions Sheet'!$F$195:$Q$195) -> 566.8497883 | AR76: =LOOKUP(AR$14,'Assumptions Sheet'!$F$167:$Q$167,'Assumptions Sheet'!$F$195:$Q$195) -> 566.8497883 | AS76: =LOOKUP(AS$14,'Assumptions Sheet'!$F$167:$Q$167,'Assumptions Sheet'!$F$195:$Q$195) -> 583.8552819 | AT76: =LOOKUP(AT$14,'Assumptions Sheet'!$F$167:$Q$167,'Assumptions Sheet'!$F$195:$Q$195) -> 583.8552819 | AU76: =LOOKUP(AU$14,'Assumptions Sheet'!$F$167:$Q$167,'Assumptions Sheet'!$F$195:$Q$195) -> 601.3709404 | AV76: =LOOKUP(AV$14,'Assumptions Sheet'!$F$167:$Q$167,'Assumptions Sheet'!$F$195:$Q$195) -> 601.3709404 | AW76: =LOOKUP(AW$14,'Assumptions Sheet'!$F$167:$Q$167,'Assumptions Sheet'!$F$195:$Q$195) -> 619.4120686 | AX76: =LOOKUP(AX$14,'Assumptions Sheet'!$F$167:$Q$167,'Assumptions Sheet'!$F$195:$Q$195) -> 619.4120686 | AY76: =LOOKUP(AY$14,'Assumptions Sheet'!$F$167:$Q$167,'Assumptions Sheet'!$F$195:$Q$195) -> 637.9944307 | AZ76: =LOOKUP(AZ$14,'Assumptions Sheet'!$F$167:$Q$167,'Assumptions Sheet'!$F$195:$Q$195) -> 637.9944307 | BA76: =LOOKUP(BA$14,'Assumptions Sheet'!$F$167:$Q$167,'Assumptions Sheet'!$F$195:$Q$195) -> 657.1342636 | BB76: =LOOKUP(BB$14,'Assumptions Sheet'!$F$167:$Q$167,'Assumptions Sheet'!$F$195:$Q$195) -> 657.1342636 | BC76: =LOOKUP(BC$14,'Assumptions Sheet'!$F$167:$Q$167,'Assumptions Sheet'!$F$195:$Q$195) -> 0 | BD76: =LOOKUP(BD$14,'Assumptions Sheet'!$F$167:$Q$167,'Assumptions Sheet'!$F$195:$Q$195) -> 0 | BE76: =LOOKUP(BE$14,'Assumptions Sheet'!$F$167:$Q$167,'Assumptions Sheet'!$F$195:$Q$195) -> 0 | BF76: =LOOKUP(BF$14,'Assumptions Sheet'!$F$167:$Q$167,'Assumptions Sheet'!$F$195:$Q$195) -> 0 | BG76: =LOOKUP(BG$14,'Assumptions Sheet'!$F$167:$Q$167,'Assumptions Sheet'!$F$195:$Q$195) -> 0 | BH76: =LOOKUP(BH$14,'Assumptions Sheet'!$F$167:$Q$167,'Assumptions Sheet'!$F$195:$Q$195) -> 0 | BI76: =LOOKUP(BI$14,'Assumptions Sheet'!$F$167:$Q$167,'Assumptions Sheet'!$F$195:$Q$195) -> 0 | BJ76: =LOOKUP(BJ$14,'Assumptions Sheet'!$F$167:$Q$167,'Assumptions Sheet'!$F$195:$Q$195) -> 0 | BK76: =LOOKUP(BK$14,'Assumptions Sheet'!$F$167:$Q$167,'Assumptions Sheet'!$F$195:$Q$195) -> 0 | BL76: =LOOKUP(BL$14,'Assumptions Sheet'!$F$167:$Q$167,'Assumptions Sheet'!$F$195:$Q$195) -> 0 | BM76: =LOOKUP(BM$14,'Assumptions Sheet'!$F$167:$Q$167,'Assumptions Sheet'!$F$195:$Q$195) -> 0 | BN76: =LOOKUP(BN$14,'Assumptions Sheet'!$F$167:$Q$167,'Assumptions Sheet'!$F$195:$Q$195) -> 0 | BO76: =LOOKUP(BO$14,'Assumptions Sheet'!$F$167:$Q$167,'Assumptions Sheet'!$F$195:$Q$195) -> 0 | BP76: =LOOKUP(BP$14,'Assumptions Sheet'!$F$167:$Q$167,'Assumptions Sheet'!$F$195:$Q$195) -> 0 | BQ76: =LOOKUP(BQ$14,'Assumptions Sheet'!$F$167:$Q$167,'Assumptions Sheet'!$F$195:$Q$195) -> 0 | BR76: =LOOKUP(BR$14,'Assumptions Sheet'!$F$167:$Q$167,'Assumptions Sheet'!$F$195:$Q$195) -> 0 | BS76: =LOOKUP(BS$14,'Assumptions Sheet'!$F$167:$Q$167,'Assumptions Sheet'!$F$195:$Q$195) -> 0 | BT76: =LOOKUP(BT$14,'Assumptions Sheet'!$F$167:$Q$167,'Assumptions Sheet'!$F$195:$Q$195) -> 0 | BU76: =LOOKUP(BU$14,'Assumptions Sheet'!$F$167:$Q$167,'Assumptions Sheet'!$F$195:$Q$195) -> 0 | BV76: =LOOKUP(BV$14,'Assumptions Sheet'!$F$167:$Q$167,'Assumptions Sheet'!$F$195:$Q$195) -> 0 | BW76: =LOOKUP(BW$14,'Assumptions Sheet'!$F$167:$Q$167,'Assumptions Sheet'!$F$195:$Q$195) -> 0 | BX76: =LOOKUP(BX$14,'Assumptions Sheet'!$F$167:$Q$167,'Assumptions Sheet'!$F$195:$Q$195) -> 0 | BY76: =LOOKUP(BY$14,'Assumptions Sheet'!$F$167:$Q$167,'Assumptions Sheet'!$F$195:$Q$195) -> 0 | BZ76: =LOOKUP(BZ$14,'Assumptions Sheet'!$F$167:$Q$167,'Assumptions Sheet'!$F$195:$Q$195) -> 0 | CA76: =LOOKUP(CA$14,'Assumptions Sheet'!$F$167:$Q$167,'Assumptions Sheet'!$F$195:$Q$195) -> 0 | CB76: =LOOKUP(CB$14,'Assumptions Sheet'!$F$167:$Q$167,'Assumptions Sheet'!$F$195:$Q$195) -> 0 | CC76: =LOOKUP(CC$14,'Assumptions Sheet'!$F$167:$Q$167,'Assumptions Sheet'!$F$195:$Q$195) -> 0 | CD76: =LOOKUP(CD$14,'Assumptions Sheet'!$F$167:$Q$167,'Assumptions Sheet'!$F$195:$Q$195) -> 0 | CE76: =LOOKUP(CE$14,'Assumptions Sheet'!$F$167:$Q$167,'Assumptions Sheet'!$F$195:$Q$195) -> 0 | CF76: =LOOKUP(CF$14,'Assumptions Sheet'!$F$167:$Q$167,'Assumptions Sheet'!$F$195:$Q$195) -> 0 | CG76: =LOOKUP(CG$14,'Assumptions Sheet'!$F$167:$Q$167,'Assumptions Sheet'!$F$195:$Q$195) -> 0 | CH76: =LOOKUP(CH$14,'Assumptions Sheet'!$F$167:$Q$167,'Assumptions Sheet'!$F$195:$Q$195) -> 0 | CI76: =LOOKUP(CI$14,'Assumptions Sheet'!$F$167:$Q$167,'Assumptions Sheet'!$F$195:$Q$195) -> 0 | CJ76: =LOOKUP(CJ$14,'Assumptions Sheet'!$F$167:$Q$167,'Assumptions Sheet'!$F$195:$Q$195) -> 0 | CK76: =LOOKUP(CK$14,'Assumptions Sheet'!$F$167:$Q$167,'Assumptions Sheet'!$F$195:$Q$195) -> 0 | CL76: =LOOKUP(CL$14,'Assumptions Sheet'!$F$167:$Q$167,'Assumptions Sheet'!$F$195:$Q$195) -> 0 | CM76: =LOOKUP(CM$14,'Assumptions Sheet'!$F$167:$Q$167,'Assumptions Sheet'!$F$195:$Q$195) -> 0 | CN76: =LOOKUP(CN$14,'Assumptions Sheet'!$F$167:$Q$167,'Assumptions Sheet'!$F$195:$Q$195) -> 0 | CO76: =LOOKUP(CO$14,'Assumptions Sheet'!$F$167:$Q$167,'Assumptions Sheet'!$F$195:$Q$195) -> 0
D77: Fibre Cost | E77: USD | K77: =K75*K76 -> 0 | L77: =L75*L76 -> 0 | M77: 0 | N77: 0 | O77: 0 | P77: 0 | Q77: 0 | R77: 0 | S77: 0 | T77: 0 | U77: 0 | V77: 0 | W77: 0 | X77: 0 | Y77: 0 | Z77: 0 | AA77: 0 | AB77: 0 | AC77: 0 | AD77: 0 | AE77: 0 | AF77: 0 | AG77: 0 | AH77: 0 | AI77: 0 | AJ77: 0 | AK77: 8867475.543 | AL77: 8867475.543 | AM77: 10661822.04 | AN77: 10661822.04 | AO77: 10838474.81 | AP77: 10838474.81 | AQ77: 11351685.85 | AR77: 11351685.85 | AS77: 11692236.43 | AT77: 11692236.43 | AU77: 12043003.52 | AV77: 12043003.52 | AW77: 12404293.63 | AX77: 12404293.63 | AY77: 12776422.43 | AZ77: 12776422.43 | BA77: 13159715.11 | BB77: 13159715.11 | BC77: 0 | BD77: 0 | BE77: 0 | BF77: 0 | BG77: 0 | BH77: 0 | BI77: 0 | BJ77: 0 | BK77: 0 | BL77: 0 | BM77: 0 | BN77: 0 | BO77: 0 | BP77: 0 | BQ77: 0 | BR77: 0 | BS77: 0 | BT77: 0 | BU77: 0 | BV77: 0 | BW77: 0 | BX77: =BX75*BX76 -> 0 | BY77: 0 | BZ77: 0 | CA77: 0 | CB77: 0 | CC77: 0 | CD77: 0 | CE77: 0 | CF77: 0 | CG77: 0 | CH77: 0 | CI77: 0 | CJ77: 0 | CK77: 0 | CL77: 0 | CM77: 0 | CN77: 0 | CO77: 0
C79: Chemincal Cost per Ton | E79: USD/Ton | K79: =LOOKUP(K$14,'Assumptions Sheet'!$F$167:$Q$167,'Assumptions Sheet'!$F$197:$Q$197) -> 75 | L79: =LOOKUP(L$14,'Assumptions Sheet'!$F$167:$Q$167,'Assumptions Sheet'!$F$197:$Q$197) -> 75 | M79: =LOOKUP(M$14,'Assumptions Sheet'!$F$167:$Q$167,'Assumptions Sheet'!$F$197:$Q$197) -> 75 | N79: =LOOKUP(N$14,'Assumptions Sheet'!$F$167:$Q$167,'Assumptions Sheet'!$F$197:$Q$197) -> 75 | O79: =LOOKUP(O$14,'Assumptions Sheet'!$F$167:$Q$167,'Assumptions Sheet'!$F$197:$Q$197) -> 75 | P79: =LOOKUP(P$14,'Assumptions Sheet'!$F$167:$Q$167,'Assumptions Sheet'!$F$197:$Q$197) -> 75 | Q79: =LOOKUP(Q$14,'Assumptions Sheet'!$F$167:$Q$167,'Assumptions Sheet'!$F$197:$Q$197) -> 75 | R79: =LOOKUP(R$14,'Assumptions Sheet'!$F$167:$Q$167,'Assumptions Sheet'!$F$197:$Q$197) -> 75 | S79: =LOOKUP(S$14,'Assumptions Sheet'!$F$167:$Q$167,'Assumptions Sheet'!$F$197:$Q$197) -> 75 | T79: =LOOKUP(T$14,'Assumptions Sheet'!$F$167:$Q$167,'Assumptions Sheet'!$F$197:$Q$197) -> 75 | U79: =LOOKUP(U$14,'Assumptions Sheet'!$F$167:$Q$167,'Assumptions Sheet'!$F$197:$Q$197) -> 75 | V79: =LOOKUP(V$14,'Assumptions Sheet'!$F$167:$Q$167,'Assumptions Sheet'!$F$197:$Q$197) -> 75 | W79: =LOOKUP(W$14,'Assumptions Sheet'!$F$167:$Q$167,'Assumptions Sheet'!$F$197:$Q$197) -> 75 | X79: =LOOKUP(X$14,'Assumptions Sheet'!$F$167:$Q$167,'Assumptions Sheet'!$F$197:$Q$197) -> 75 | Y79: =LOOKUP(Y$14,'Assumptions Sheet'!$F$167:$Q$167,'Assumptions Sheet'!$F$197:$Q$197) -> 75 | Z79: =LOOKUP(Z$14,'Assumptions Sheet'!$F$167:$Q$167,'Assumptions Sheet'!$F$197:$Q$197) -> 75 | AA79: =LOOKUP(AA$14,'Assumptions Sheet'!$F$167:$Q$167,'Assumptions Sheet'!$F$197:$Q$197) -> 75 | AB79: =LOOKUP(AB$14,'Assumptions Sheet'!$F$167:$Q$167,'Assumptions Sheet'!$F$197:$Q$197) -> 75 | AC79: =LOOKUP(AC$14,'Assumptions Sheet'!$F$167:$Q$167,'Assumptions Sheet'!$F$197:$Q$197) -> 75 | AD79: =LOOKUP(AD$14,'Assumptions Sheet'!$F$167:$Q$167,'Assumptions Sheet'!$F$197:$Q$197) -> 75 | AE79: =LOOKUP(AE$14,'Assumptions Sheet'!$F$167:$Q$167,'Assumptions Sheet'!$F$197:$Q$197) -> 75 | AF79: =LOOKUP(AF$14,'Assumptions Sheet'!$F$167:$Q$167,'Assumptions Sheet'!$F$197:$Q$197) -> 75 | AG79: =LOOKUP(AG$14,'Assumptions Sheet'!$F$167:$Q$167,'Assumptions Sheet'!$F$197:$Q$197) -> 75 | AH79: =LOOKUP(AH$14,'Assumptions Sheet'!$F$167:$Q$167,'Assumptions Sheet'!$F$197:$Q$197) -> 75 | AI79: =LOOKUP(AI$14,'Assumptions Sheet'!$F$167:$Q$167,'Assumptions Sheet'!$F$197:$Q$197) -> 75 | AJ79: =LOOKUP(AJ$14,'Assumptions Sheet'!$F$167:$Q$167,'Assumptions Sheet'!$F$197:$Q$197) -> 75 | AK79: =LOOKUP(AK$14,'Assumptions Sheet'!$F$167:$Q$167,'Assumptions Sheet'!$F$197:$Q$197) -> 75 | AL79: =LOOKUP(AL$14,'Assumptions Sheet'!$F$167:$Q$167,'Assumptions Sheet'!$F$197:$Q$197) -> 75 | AM79: =LOOKUP(AM$14,'Assumptions Sheet'!$F$167:$Q$167,'Assumptions Sheet'!$F$197:$Q$197) -> 77.25 | AN79: =LOOKUP(AN$14,'Assumptions Sheet'!$F$167:$Q$167,'Assumptions Sheet'!$F$197:$Q$197) -> 77.25 | AO79: =LOOKUP(AO$14,'Assumptions Sheet'!$F$167:$Q$167,'Assumptions Sheet'!$F$197:$Q$197) -> 79.5675 | AP79: =LOOKUP(AP$14,'Assumptions Sheet'!$F$167:$Q$167,'Assumptions Sheet'!$F$197:$Q$197) -> 79.5675 | AQ79: =LOOKUP(AQ$14,'Assumptions Sheet'!$F$167:$Q$167,'Assumptions Sheet'!$F$197:$Q$197) -> 81.954525 | AR79: =LOOKUP(AR$14,'Assumptions Sheet'!$F$167:$Q$167,'Assumptions Sheet'!$F$197:$Q$197) -> 81.954525 | AS79: =LOOKUP(AS$14,'Assumptions Sheet'!$F$167:$Q$167,'Assumptions Sheet'!$F$197:$Q$197) -> 84.41316075 | AT79: =LOOKUP(AT$14,'Assumptions Sheet'!$F$167:$Q$167,'Assumptions Sheet'!$F$197:$Q$197) -> 84.41316075 | AU79: =LOOKUP(AU$14,'Assumptions Sheet'!$F$167:$Q$167,'Assumptions Sheet'!$F$197:$Q$197) -> 86.94555557 | AV79: =LOOKUP(AV$14,'Assumptions Sheet'!$F$167:$Q$167,'Assumptions Sheet'!$F$197:$Q$197) -> 86.94555557 | AW79: =LOOKUP(AW$14,'Assumptions Sheet'!$F$167:$Q$167,'Assumptions Sheet'!$F$197:$Q$197) -> 89.55392224 | AX79: =LOOKUP(AX$14,'Assumptions Sheet'!$F$167:$Q$167,'Assumptions Sheet'!$F$197:$Q$197) -> 89.55392224 | AY79: =LOOKUP(AY$14,'Assumptions Sheet'!$F$167:$Q$167,'Assumptions Sheet'!$F$197:$Q$197) -> 92.24053991 | AZ79: =LOOKUP(AZ$14,'Assumptions Sheet'!$F$167:$Q$167,'Assumptions Sheet'!$F$197:$Q$197) -> 92.24053991 | BA79: =LOOKUP(BA$14,'Assumptions Sheet'!$F$167:$Q$167,'Assumptions Sheet'!$F$197:$Q$197) -> 95.0077561 | BB79: =LOOKUP(BB$14,'Assumptions Sheet'!$F$167:$Q$167,'Assumptions Sheet'!$F$197:$Q$197) -> 95.0077561 | BC79: =LOOKUP(BC$14,'Assumptions Sheet'!$F$167:$Q$167,'Assumptions Sheet'!$F$197:$Q$197) -> 75 | BD79: =LOOKUP(BD$14,'Assumptions Sheet'!$F$167:$Q$167,'Assumptions Sheet'!$F$197:$Q$197) -> 75 | BE79: =LOOKUP(BE$14,'Assumptions Sheet'!$F$167:$Q$167,'Assumptions Sheet'!$F$197:$Q$197) -> 75 | BF79: =LOOKUP(BF$14,'Assumptions Sheet'!$F$167:$Q$167,'Assumptions Sheet'!$F$197:$Q$197) -> 75 | BG79: =LOOKUP(BG$14,'Assumptions Sheet'!$F$167:$Q$167,'Assumptions Sheet'!$F$197:$Q$197) -> 75 | BH79: =LOOKUP(BH$14,'Assumptions Sheet'!$F$167:$Q$167,'Assumptions Sheet'!$F$197:$Q$197) -> 75 | BI79: =LOOKUP(BI$14,'Assumptions Sheet'!$F$167:$Q$167,'Assumptions Sheet'!$F$197:$Q$197) -> 75 | BJ79: =LOOKUP(BJ$14,'Assumptions Sheet'!$F$167:$Q$167,'Assumptions Sheet'!$F$197:$Q$197) -> 75 | BK79: =LOOKUP(BK$14,'Assumptions Sheet'!$F$167:$Q$167,'Assumptions Sheet'!$F$197:$Q$197) -> 75 | BL79: =LOOKUP(BL$14,'Assumptions Sheet'!$F$167:$Q$167,'Assumptions Sheet'!$F$197:$Q$197) -> 75 | BM79: =LOOKUP(BM$14,'Assumptions Sheet'!$F$167:$Q$167,'Assumptions Sheet'!$F$197:$Q$197) -> 75 | BN79: =LOOKUP(BN$14,'Assumptions Sheet'!$F$167:$Q$167,'Assumptions Sheet'!$F$197:$Q$197) -> 75 | BO79: =LOOKUP(BO$14,'Assumptions Sheet'!$F$167:$Q$167,'Assumptions Sheet'!$F$197:$Q$197) -> 75 | BP79: =LOOKUP(BP$14,'Assumptions Sheet'!$F$167:$Q$167,'Assumptions Sheet'!$F$197:$Q$197) -> 75 | BQ79: =LOOKUP(BQ$14,'Assumptions Sheet'!$F$167:$Q$167,'Assumptions Sheet'!$F$197:$Q$197) -> 75 | BR79: =LOOKUP(BR$14,'Assumptions Sheet'!$F$167:$Q$167,'Assumptions Sheet'!$F$197:$Q$197) -> 75 | BS79: =LOOKUP(BS$14,'Assumptions Sheet'!$F$167:$Q$167,'Assumptions Sheet'!$F$197:$Q$197) -> 75 | BT79: =LOOKUP(BT$14,'Assumptions Sheet'!$F$167:$Q$167,'Assumptions Sheet'!$F$197:$Q$197) -> 75 | BU79: =LOOKUP(BU$14,'Assumptions Sheet'!$F$167:$Q$167,'Assumptions Sheet'!$F$197:$Q$197) -> 75 | BV79: =LOOKUP(BV$14,'Assumptions Sheet'!$F$167:$Q$167,'Assumptions Sheet'!$F$197:$Q$197) -> 75 | BW79: =LOOKUP(BW$14,'Assumptions Sheet'!$F$167:$Q$167,'Assumptions Sheet'!$F$197:$Q$197) -> 75 | BX79: =LOOKUP(BX$14,'Assumptions Sheet'!$F$167:$Q$167,'Assumptions Sheet'!$F$197:$Q$197) -> 75 | BY79: =LOOKUP(BY$14,'Assumptions Sheet'!$F$167:$Q$167,'Assumptions Sheet'!$F$197:$Q$197) -> 75 | BZ79: =LOOKUP(BZ$14,'Assumptions Sheet'!$F$167:$Q$167,'Assumptions Sheet'!$F$197:$Q$197) -> 75 | CA79: =LOOKUP(CA$14,'Assumptions Sheet'!$F$167:$Q$167,'Assumptions Sheet'!$F$197:$Q$197) -> 75 | CB79: =LOOKUP(CB$14,'Assumptions Sheet'!$F$167:$Q$167,'Assumptions Sheet'!$F$197:$Q$197) -> 75 | CC79: =LOOKUP(CC$14,'Assumptions Sheet'!$F$167:$Q$167,'Assumptions Sheet'!$F$197:$Q$197) -> 75 | CD79: =LOOKUP(CD$14,'Assumptions Sheet'!$F$167:$Q$167,'Assumptions Sheet'!$F$197:$Q$197) -> 75 | CE79: =LOOKUP(CE$14,'Assumptions Sheet'!$F$167:$Q$167,'Assumptions Sheet'!$F$197:$Q$197) -> 75 | CF79: =LOOKUP(CF$14,'Assumptions Sheet'!$F$167:$Q$167,'Assumptions Sheet'!$F$197:$Q$197) -> 75 | CG79: =LOOKUP(CG$14,'Assumptions Sheet'!$F$167:$Q$167,'Assumptions Sheet'!$F$197:$Q$197) -> 75 | CH79: =LOOKUP(CH$14,'Assumptions Sheet'!$F$167:$Q$167,'Assumptions Sheet'!$F$197:$Q$197) -> 75 | CI79: =LOOKUP(CI$14,'Assumptions Sheet'!$F$167:$Q$167,'Assumptions Sheet'!$F$197:$Q$197) -> 75 | CJ79: =LOOKUP(CJ$14,'Assumptions Sheet'!$F$167:$Q$167,'Assumptions Sheet'!$F$197:$Q$197) -> 75 | CK79: =LOOKUP(CK$14,'Assumptions Sheet'!$F$167:$Q$167,'Assumptions Sheet'!$F$197:$Q$197) -> 75 | CL79: =LOOKUP(CL$14,'Assumptions Sheet'!$F$167:$Q$167,'Assumptions Sheet'!$F$197:$Q$197) -> 75 | CM79: =LOOKUP(CM$14,'Assumptions Sheet'!$F$167:$Q$167,'Assumptions Sheet'!$F$197:$Q$197) -> 75 | CN79: =LOOKUP(CN$14,'Assumptions Sheet'!$F$167:$Q$167,'Assumptions Sheet'!$F$197:$Q$197) -> 75 | CO79: =LOOKUP(CO$14,'Assumptions Sheet'!$F$167:$Q$167,'Assumptions Sheet'!$F$197:$Q$197) -> 75
D80: Chemincal Cost | E80: USD | K80: =K79*K75 -> 0 | L80: =L79*L75 -> 0 | M80: 0 | N80: 0 | O80: 0 | P80: 0 | Q80: 0 | R80: 0 | S80: 0 | T80: 0 | U80: 0 | V80: 0 | W80: 0 | X80: 0 | Y80: 0 | Z80: 0 | AA80: 0 | AB80: 0 | AC80: 0 | AD80: 0 | AE80: 0 | AF80: 0 | AG80: 0 | AH80: 0 | AI80: 0 | AJ80: 0 | AK80: 1166492.278 | AL80: 1166492.278 | AM80: 1468725.525 | AN80: 1468725.525 | AO80: 1567014.883 | AP80: 1567014.883 | AQ80: 1641214.377 | AR80: 1641214.377 | AS80: 1690450.808 | AT80: 1690450.808 | AU80: 1741164.332 | AV80: 1741164.332 | AW80: 1793399.262 | AX80: 1793399.262 | AY80: 1847201.24 | AZ80: 1847201.24 | BA80: 1902617.277 | BB80: 1902617.277 | BC80: 0 | BD80: 0 | BE80: 0 | BF80: 0 | BG80: 0 | BH80: 0 | BI80: 0 | BJ80: 0 | BK80: 0 | BL80: 0 | BM80: 0 | BN80: 0 | BO80: 0 | BP80: 0 | BQ80: 0 | BR80: 0 | BS80: 0 | BT80: 0 | BU80: 0 | BV80: 0 | BW80: 0 | BX80: =BX79*BX75 -> 0 | BY80: 0 | BZ80: 0 | CA80: 0 | CB80: 0 | CC80: 0 | CD80: 0 | CE80: 0 | CF80: 0 | CG80: 0 | CH80: 0 | CI80: 0 | CJ80: 0 | CK80: 0 | CL80: 0 | CM80: 0 | CN80: 0 | CO80: 0
C82: Water Treatment per Ton | E82: USD/Ton | K82: =LOOKUP(K$14,'Assumptions Sheet'!$F$167:$Q$167,'Assumptions Sheet'!$F$198:$Q$198) -> 0 | L82: =LOOKUP(L$14,'Assumptions Sheet'!$F$167:$Q$167,'Assumptions Sheet'!$F$198:$Q$198) -> 0 | M82: =LOOKUP(M$14,'Assumptions Sheet'!$F$167:$Q$167,'Assumptions Sheet'!$F$198:$Q$198) -> 0 | N82: =LOOKUP(N$14,'Assumptions Sheet'!$F$167:$Q$167,'Assumptions Sheet'!$F$198:$Q$198) -> 0 | O82: =LOOKUP(O$14,'Assumptions Sheet'!$F$167:$Q$167,'Assumptions Sheet'!$F$198:$Q$198) -> 0 | P82: =LOOKUP(P$14,'Assumptions Sheet'!$F$167:$Q$167,'Assumptions Sheet'!$F$198:$Q$198) -> 0 | Q82: =LOOKUP(Q$14,'Assumptions Sheet'!$F$167:$Q$167,'Assumptions Sheet'!$F$198:$Q$198) -> 0 | R82: =LOOKUP(R$14,'Assumptions Sheet'!$F$167:$Q$167,'Assumptions Sheet'!$F$198:$Q$198) -> 0 | S82: =LOOKUP(S$14,'Assumptions Sheet'!$F$167:$Q$167,'Assumptions Sheet'!$F$198:$Q$198) -> 0 | T82: =LOOKUP(T$14,'Assumptions Sheet'!$F$167:$Q$167,'Assumptions Sheet'!$F$198:$Q$198) -> 0 | U82: =LOOKUP(U$14,'Assumptions Sheet'!$F$167:$Q$167,'Assumptions Sheet'!$F$198:$Q$198) -> 0 | V82: =LOOKUP(V$14,'Assumptions Sheet'!$F$167:$Q$167,'Assumptions Sheet'!$F$198:$Q$198) -> 0 | W82: =LOOKUP(W$14,'Assumptions Sheet'!$F$167:$Q$167,'Assumptions Sheet'!$F$198:$Q$198) -> 0 | X82: =LOOKUP(X$14,'Assumptions Sheet'!$F$167:$Q$167,'Assumptions Sheet'!$F$198:$Q$198) -> 0 | Y82: =LOOKUP(Y$14,'Assumptions Sheet'!$F$167:$Q$167,'Assumptions Sheet'!$F$198:$Q$198) -> 0 | Z82: =LOOKUP(Z$14,'Assumptions Sheet'!$F$167:$Q$167,'Assumptions Sheet'!$F$198:$Q$198) -> 0 | AA82: =LOOKUP(AA$14,'Assumptions Sheet'!$F$167:$Q$167,'Assumptions Sheet'!$F$198:$Q$198) -> 0 | AB82: =LOOKUP(AB$14,'Assumptions Sheet'!$F$167:$Q$167,'Assumptions Sheet'!$F$198:$Q$198) -> 0 | AC82: =LOOKUP(AC$14,'Assumptions Sheet'!$F$167:$Q$167,'Assumptions Sheet'!$F$198:$Q$198) -> 0 | AD82: =LOOKUP(AD$14,'Assumptions Sheet'!$F$167:$Q$167,'Assumptions Sheet'!$F$198:$Q$198) -> 0 | AE82: =LOOKUP(AE$14,'Assumptions Sheet'!$F$167:$Q$167,'Assumptions Sheet'!$F$198:$Q$198) -> 0 | AF82: =LOOKUP(AF$14,'Assumptions Sheet'!$F$167:$Q$167,'Assumptions Sheet'!$F$198:$Q$198) -> 0 | AG82: =LOOKUP(AG$14,'Assumptions Sheet'!$F$167:$Q$167,'Assumptions Sheet'!$F$198:$Q$198) -> 0 | AH82: =LOOKUP(AH$14,'Assumptions Sheet'!$F$167:$Q$167,'Assumptions Sheet'!$F$198:$Q$198) -> 0 | AI82: =LOOKUP(AI$14,'Assumptions Sheet'!$F$167:$Q$167,'Assumptions Sheet'!$F$198:$Q$198) -> 0 | AJ82: =LOOKUP(AJ$14,'Assumptions Sheet'!$F$167:$Q$167,'Assumptions Sheet'!$F$198:$Q$198) -> 0 | AK82: =LOOKUP(AK$14,'Assumptions Sheet'!$F$167:$Q$167,'Assumptions Sheet'!$F$198:$Q$198) -> 0 | AL82: =LOOKUP(AL$14,'Assumptions Sheet'!$F$167:$Q$167,'Assumptions Sheet'!$F$198:$Q$198) -> 0 | AM82: =LOOKUP(AM$14,'Assumptions Sheet'!$F$167:$Q$167,'Assumptions Sheet'!$F$198:$Q$198) -> 0 | AN82: =LOOKUP(AN$14,'Assumptions Sheet'!$F$167:$Q$167,'Assumptions Sheet'!$F$198:$Q$198) -> 0 | AO82: =LOOKUP(AO$14,'Assumptions Sheet'!$F$167:$Q$167,'Assumptions Sheet'!$F$198:$Q$198) -> 0 | AP82: =LOOKUP(AP$14,'Assumptions Sheet'!$F$167:$Q$167,'Assumptions Sheet'!$F$198:$Q$198) -> 0 | AQ82: =LOOKUP(AQ$14,'Assumptions Sheet'!$F$167:$Q$167,'Assumptions Sheet'!$F$198:$Q$198) -> 0 | AR82: =LOOKUP(AR$14,'Assumptions Sheet'!$F$167:$Q$167,'Assumptions Sheet'!$F$198:$Q$198) -> 0 | AS82: =LOOKUP(AS$14,'Assumptions Sheet'!$F$167:$Q$167,'Assumptions Sheet'!$F$198:$Q$198) -> 0 | AT82: =LOOKUP(AT$14,'Assumptions Sheet'!$F$167:$Q$167,'Assumptions Sheet'!$F$198:$Q$198) -> 0 | AU82: =LOOKUP(AU$14,'Assumptions Sheet'!$F$167:$Q$167,'Assumptions Sheet'!$F$198:$Q$198) -> 0 | AV82: =LOOKUP(AV$14,'Assumptions Sheet'!$F$167:$Q$167,'Assumptions Sheet'!$F$198:$Q$198) -> 0 | AW82: =LOOKUP(AW$14,'Assumptions Sheet'!$F$167:$Q$167,'Assumptions Sheet'!$F$198:$Q$198) -> 0 | AX82: =LOOKUP(AX$14,'Assumptions Sheet'!$F$167:$Q$167,'Assumptions Sheet'!$F$198:$Q$198) -> 0 | AY82: =LOOKUP(AY$14,'Assumptions Sheet'!$F$167:$Q$167,'Assumptions Sheet'!$F$198:$Q$198) -> 0 | AZ82: =LOOKUP(AZ$14,'Assumptions Sheet'!$F$167:$Q$167,'Assumptions Sheet'!$F$198:$Q$198) -> 0 | BA82: =LOOKUP(BA$14,'Assumptions Sheet'!$F$167:$Q$167,'Assumptions Sheet'!$F$198:$Q$198) -> 0 | BB82: =LOOKUP(BB$14,'Assumptions Sheet'!$F$167:$Q$167,'Assumptions Sheet'!$F$198:$Q$198) -> 0 | BC82: =LOOKUP(BC$14,'Assumptions Sheet'!$F$167:$Q$167,'Assumptions Sheet'!$F$198:$Q$198) -> 0 | BD82: =LOOKUP(BD$14,'Assumptions Sheet'!$F$167:$Q$167,'Assumptions Sheet'!$F$198:$Q$198) -> 0 | BE82: =LOOKUP(BE$14,'Assumptions Sheet'!$F$167:$Q$167,'Assumptions Sheet'!$F$198:$Q$198) -> 0 | BF82: =LOOKUP(BF$14,'Assumptions Sheet'!$F$167:$Q$167,'Assumptions Sheet'!$F$198:$Q$198) -> 0 | BG82: =LOOKUP(BG$14,'Assumptions Sheet'!$F$167:$Q$167,'Assumptions Sheet'!$F$198:$Q$198) -> 0 | BH82: =LOOKUP(BH$14,'Assumptions Sheet'!$F$167:$Q$167,'Assumptions Sheet'!$F$198:$Q$198) -> 0 | BI82: =LOOKUP(BI$14,'Assumptions Sheet'!$F$167:$Q$167,'Assumptions Sheet'!$F$198:$Q$198) -> 0 | BJ82: =LOOKUP(BJ$14,'Assumptions Sheet'!$F$167:$Q$167,'Assumptions Sheet'!$F$198:$Q$198) -> 0 | BK82: =LOOKUP(BK$14,'Assumptions Sheet'!$F$167:$Q$167,'Assumptions Sheet'!$F$198:$Q$198) -> 0 | BL82: =LOOKUP(BL$14,'Assumptions Sheet'!$F$167:$Q$167,'Assumptions Sheet'!$F$198:$Q$198) -> 0 | BM82: =LOOKUP(BM$14,'Assumptions Sheet'!$F$167:$Q$167,'Assumptions Sheet'!$F$198:$Q$198) -> 0 | BN82: =LOOKUP(BN$14,'Assumptions Sheet'!$F$167:$Q$167,'Assumptions Sheet'!$F$198:$Q$198) -> 0 | BO82: =LOOKUP(BO$14,'Assumptions Sheet'!$F$167:$Q$167,'Assumptions Sheet'!$F$198:$Q$198) -> 0 | BP82: =LOOKUP(BP$14,'Assumptions Sheet'!$F$167:$Q$167,'Assumptions Sheet'!$F$198:$Q$198) -> 0 | BQ82: =LOOKUP(BQ$14,'Assumptions Sheet'!$F$167:$Q$167,'Assumptions Sheet'!$F$198:$Q$198) -> 0 | BR82: =LOOKUP(BR$14,'Assumptions Sheet'!$F$167:$Q$167,'Assumptions Sheet'!$F$198:$Q$198) -> 0 | BS82: =LOOKUP(BS$14,'Assumptions Sheet'!$F$167:$Q$167,'Assumptions Sheet'!$F$198:$Q$198) -> 0 | BT82: =LOOKUP(BT$14,'Assumptions Sheet'!$F$167:$Q$167,'Assumptions Sheet'!$F$198:$Q$198) -> 0 | BU82: =LOOKUP(BU$14,'Assumptions Sheet'!$F$167:$Q$167,'Assumptions Sheet'!$F$198:$Q$198) -> 0 | BV82: =LOOKUP(BV$14,'Assumptions Sheet'!$F$167:$Q$167,'Assumptions Sheet'!$F$198:$Q$198) -> 0 | BW82: =LOOKUP(BW$14,'Assumptions Sheet'!$F$167:$Q$167,'Assumptions Sheet'!$F$198:$Q$198) -> 0 | BX82: =LOOKUP(BX$14,'Assumptions Sheet'!$F$167:$Q$167,'Assumptions Sheet'!$F$198:$Q$198) -> 0 | BY82: =LOOKUP(BY$14,'Assumptions Sheet'!$F$167:$Q$167,'Assumptions Sheet'!$F$198:$Q$198) -> 0 | BZ82: =LOOKUP(BZ$14,'Assumptions Sheet'!$F$167:$Q$167,'Assumptions Sheet'!$F$198:$Q$198) -> 0 | CA82: =LOOKUP(CA$14,'Assumptions Sheet'!$F$167:$Q$167,'Assumptions Sheet'!$F$198:$Q$198) -> 0 | CB82: =LOOKUP(CB$14,'Assumptions Sheet'!$F$167:$Q$167,'Assumptions Sheet'!$F$198:$Q$198) -> 0 | CC82: =LOOKUP(CC$14,'Assumptions Sheet'!$F$167:$Q$167,'Assumptions Sheet'!$F$198:$Q$198) -> 0 | CD82: =LOOKUP(CD$14,'Assumptions Sheet'!$F$167:$Q$167,'Assumptions Sheet'!$F$198:$Q$198) -> 0 | CE82: =LOOKUP(CE$14,'Assumptions Sheet'!$F$167:$Q$167,'Assumptions Sheet'!$F$198:$Q$198) -> 0 | CF82: =LOOKUP(CF$14,'Assumptions Sheet'!$F$167:$Q$167,'Assumptions Sheet'!$F$198:$Q$198) -> 0 | CG82: =LOOKUP(CG$14,'Assumptions Sheet'!$F$167:$Q$167,'Assumptions Sheet'!$F$198:$Q$198) -> 0 | CH82: =LOOKUP(CH$14,'Assumptions Sheet'!$F$167:$Q$167,'Assumptions Sheet'!$F$198:$Q$198) -> 0 | CI82: =LOOKUP(CI$14,'Assumptions Sheet'!$F$167:$Q$167,'Assumptions Sheet'!$F$198:$Q$198) -> 0 | CJ82: =LOOKUP(CJ$14,'Assumptions Sheet'!$F$167:$Q$167,'Assumptions Sheet'!$F$198:$Q$198) -> 0 | CK82: =LOOKUP(CK$14,'Assumptions Sheet'!$F$167:$Q$167,'Assumptions Sheet'!$F$198:$Q$198) -> 0 | CL82: =LOOKUP(CL$14,'Assumptions Sheet'!$F$167:$Q$167,'Assumptions Sheet'!$F$198:$Q$198) -> 0 | CM82: =LOOKUP(CM$14,'Assumptions Sheet'!$F$167:$Q$167,'Assumptions Sheet'!$F$198:$Q$198) -> 0 | CN82: =LOOKUP(CN$14,'Assumptions Sheet'!$F$167:$Q$167,'Assumptions Sheet'!$F$198:$Q$198) -> 0 | CO82: =LOOKUP(CO$14,'Assumptions Sheet'!$F$167:$Q$167,'Assumptions Sheet'!$F$198:$Q$198) -> 0
D83: Water Treatment Cost | E83: USD | K83: =K82*K75 -> 0 | L83: =L82*L75 -> 0 | M83: 0 | N83: 0 | O83: 0 | P83: 0 | Q83: 0 | R83: 0 | S83: 0 | T83: 0 | U83: 0 | V83: 0 | W83: 0 | X83: 0 | Y83: 0 | Z83: 0 | AA83: 0 | AB83: 0 | AC83: 0 | AD83: 0 | AE83: 0 | AF83: 0 | AG83: 0 | AH83: 0 | AI83: 0 | AJ83: 0 | AK83: 0 | AL83: 0 | AM83: 0 | AN83: 0 | AO83: 0 | AP83: 0 | AQ83: 0 | AR83: 0 | AS83: 0 | AT83: 0 | AU83: 0 | AV83: 0 | AW83: 0 | AX83: 0 | AY83: 0 | AZ83: 0 | BA83: 0 | BB83: 0 | BC83: 0 | BD83: 0 | BE83: 0 | BF83: 0 | BG83: 0 | BH83: 0 | BI83: 0 | BJ83: 0 | BK83: 0 | BL83: 0 | BM83: 0 | BN83: 0 | BO83: 0 | BP83: 0 | BQ83: 0 | BR83: 0 | BS83: 0 | BT83: 0 | BU83: 0 | BV83: 0 | BW83: 0 | BX83: =BX82*BX75 -> 0 | BY83: 0 | BZ83: 0 | CA83: 0 | CB83: 0 | CC83: 0 | CD83: 0 | CE83: 0 | CF83: 0 | CG83: 0 | CH83: 0 | CI83: 0 | CJ83: 0 | CK83: 0 | CL83: 0 | CM83: 0 | CN83: 0 | CO83: 0
C85: Custom Charge Percent | E85: % | F85: ='Assumptions Sheet'!F41 -> 0.04 | K85: =$F$85 -> 0.04 | L85: =$F$85 -> 0.04 | M85: 0.04 | N85: 0.04 | O85: 0.04 | P85: 0.04 | Q85: 0.04 | R85: 0.04 | S85: 0.04 | T85: 0.04 | U85: 0.04 | V85: 0.04 | W85: 0.04 | X85: 0.04 | Y85: 0.04 | Z85: 0.04 | AA85: 0.04 | AB85: 0.04 | AC85: 0.04 | AD85: 0.04 | AE85: 0.04 | AF85: 0.04 | AG85: 0.04 | AH85: 0.04 | AI85: 0.04 | AJ85: 0.04 | AK85: 0.04 | AL85: 0.04 | AM85: 0.04 | AN85: 0.04 | AO85: 0.04 | AP85: 0.04 | AQ85: 0.04 | AR85: 0.04 | AS85: 0.04 | AT85: 0.04 | AU85: 0.04 | AV85: 0.04 | AW85: 0.04 | AX85: 0.04 | AY85: 0.04 | AZ85: 0.04 | BA85: 0.04 | BB85: 0.04 | BC85: 0.04 | BD85: 0.04 | BE85: 0.04 | BF85: 0.04 | BG85: 0.04 | BH85: 0.04 | BI85: 0.04 | BJ85: 0.04 | BK85: 0.04 | BL85: 0.04 | BM85: 0.04 | BN85: 0.04 | BO85: 0.04 | BP85: 0.04 | BQ85: 0.04 | BR85: 0.04 | BS85: 0.04 | BT85: 0.04 | BU85: 0.04 | BV85: 0.04 | BW85: 0.04 | BX85: =$F$85 -> 0.04 | BY85: 0.04 | BZ85: 0.04 | CA85: 0.04 | CB85: 0.04 | CC85: 0.04 | CD85: 0.04 | CE85: 0.04 | CF85: 0.04 | CG85: 0.04 | CH85: 0.04 | CI85: 0.04 | CJ85: 0.04 | CK85: 0.04 | CL85: 0.04 | CM85: 0.04 | CN85: 0.04 | CO85: 0.04
C86: Total Costs as Basis for Customs | E86: USD | K86: =K77+K80+K83 -> 0 | L86: =L77+L80+L83 -> 0 | M86: 0 | N86: 0 | O86: 0 | P86: 0 | Q86: 0 | R86: 0 | S86: 0 | T86: 0 | U86: 0 | V86: 0 | W86: 0 | X86: 0 | Y86: 0 | Z86: 0 | AA86: 0 | AB86: 0 | AC86: 0 | AD86: 0 | AE86: 0 | AF86: 0 | AG86: 0 | AH86: 0 | AI86: 0 | AJ86: 0 | AK86: 10033967.82 | AL86: 10033967.82 | AM86: 12130547.56 | AN86: 12130547.56 | AO86: 12405489.69 | AP86: 12405489.69 | AQ86: 12992900.23 | AR86: 12992900.23 | AS86: 13382687.24 | AT86: 13382687.24 | AU86: 13784167.85 | AV86: 13784167.85 | AW86: 14197692.89 | AX86: 14197692.89 | AY86: 14623623.67 | AZ86: 14623623.67 | BA86: 15062332.39 | BB86: 15062332.39 | BC86: 0 | BD86: 0 | BE86: 0 | BF86: 0 | BG86: 0 | BH86: 0 | BI86: 0 | BJ86: 0 | BK86: 0 | BL86: 0 | BM86: 0 | BN86: 0 | BO86: 0 | BP86: 0 | BQ86: 0 | BR86: 0 | BS86: 0 | BT86: 0 | BU86: 0 | BV86: 0 | BW86: 0 | BX86: =BX77+BX80+BX83 -> 0 | BY86: 0 | BZ86: 0 | CA86: 0 | CB86: 0 | CC86: 0 | CD86: 0 | CE86: 0 | CF86: 0 | CG86: 0 | CH86: 0 | CI86: 0 | CJ86: 0 | CK86: 0 | CL86: 0 | CM86: 0 | CN86: 0 | CO86: 0
D87: Total Custom Charges | E87: USD | K87: =K86*K85 -> 0 | L87: =L86*L85 -> 0 | M87: 0 | N87: 0 | O87: 0 | P87: 0 | Q87: 0 | R87: 0 | S87: 0 | T87: 0 | U87: 0 | V87: 0 | W87: 0 | X87: 0 | Y87: 0 | Z87: 0 | AA87: 0 | AB87: 0 | AC87: 0 | AD87: 0 | AE87: 0 | AF87: 0 | AG87: 0 | AH87: 0 | AI87: 0 | AJ87: 0 | AK87: 401358.7128 | AL87: 401358.7128 | AM87: 485221.9026 | AN87: 485221.9026 | AO87: 496219.5877 | AP87: 496219.5877 | AQ87: 519716.0091 | AR87: 519716.0091 | AS87: 535307.4894 | AT87: 535307.4894 | AU87: 551366.7141 | AV87: 551366.7141 | AW87: 567907.7155 | AX87: 567907.7155 | AY87: 584944.947 | AZ87: 584944.947 | BA87: 602493.2954 | BB87: 602493.2954 | BC87: 0 | BD87: 0 | BE87: 0 | BF87: 0 | BG87: 0 | BH87: 0 | BI87: 0 | BJ87: 0 | BK87: 0 | BL87: 0 | BM87: 0 | BN87: 0 | BO87: 0 | BP87: 0 | BQ87: 0 | BR87: 0 | BS87: 0 | BT87: 0 | BU87: 0 | BV87: 0 | BW87: 0 | BX87: =BX86*BX85 -> 0 | BY87: 0 | BZ87: 0 | CA87: 0 | CB87: 0 | CC87: 0 | CD87: 0 | CE87: 0 | CF87: 0 | CG87: 0 | CH87: 0 | CI87: 0 | CJ87: 0 | CK87: 0 | CL87: 0 | CM87: 0 | CN87: 0 | CO87: 0
C89: Converted Product | E89: Tons p.p. | K89: =K59+K60 -> 0 | L89: =L59+L60 -> 0 | M89: 0 | N89: 0 | O89: 0 | P89: 0 | Q89: 0 | R89: 0 | S89: 0 | T89: 0 | U89: 0 | V89: 0 | W89: 0 | X89: 0 | Y89: 0 | Z89: 0 | AA89: 0 | AB89: 0 | AC89: 0 | AD89: 0 | AE89: 0 | AF89: 0 | AG89: 0 | AH89: 0 | AI89: 0 | AJ89: 0 | AK89: 4665.96911 | AL89: 4665.96911 | AM89: 5703.788445 | AN89: 5703.788445 | AO89: 5908.247273 | AP89: 5908.247273 | AQ89: 6007.774592 | AR89: 6007.774592 | AS89: 6007.774592 | AT89: 6007.774592 | AU89: 6007.774592 | AV89: 6007.774592 | AW89: 6007.774592 | AX89: 6007.774592 | AY89: 6007.774592 | AZ89: 6007.774592 | BA89: 6007.774592 | BB89: 6007.774592 | BC89: 0 | BD89: 0 | BE89: 0 | BF89: 0 | BG89: 0 | BH89: 0 | BI89: 0 | BJ89: 0 | BK89: 0 | BL89: 0 | BM89: 0 | BN89: 0 | BO89: 0 | BP89: 0 | BQ89: 0 | BR89: 0 | BS89: 0 | BT89: 0 | BU89: 0 | BV89: 0 | BW89: 0 | BX89: =BX59+BX60 -> 0 | BY89: 0 | BZ89: 0 | CA89: 0 | CB89: 0 | CC89: 0 | CD89: 0 | CE89: 0 | CF89: 0 | CG89: 0 | CH89: 0 | CI89: 0 | CJ89: 0 | CK89: 0 | CL89: 0 | CM89: 0 | CN89: 0 | CO89: 0
C90: Price of Bulk | E90: USD/Ton | K90: =K64 -> 0 | L90: =L64 -> 0 | M90: 1350 | N90: 1350 | O90: 1350 | P90: 1350 | Q90: 1350 | R90: 1350 | S90: 1350 | T90: 1350 | U90: 1350 | V90: 1350 | W90: 1350 | X90: 1350 | Y90: 1390.5 | Z90: 1390.5 | AA90: 1390.5 | AB90: 1390.5 | AC90: 1390.5 | AD90: 1390.5 | AE90: 1390.5 | AF90: 1390.5 | AG90: 1390.5 | AH90: 1390.5 | AI90: 1390.5 | AJ90: 1390.5 | AK90: 1432.215 | AL90: 1432.215 | AM90: 1475.18145 | AN90: 1475.18145 | AO90: 1519.436894 | AP90: 1519.436894 | AQ90: 1565.02 | AR90: 1565.02 | AS90: 1611.9706 | AT90: 1611.9706 | AU90: 1660.329718 | AV90: 1660.329718 | AW90: 1710.13961 | AX90: 1710.13961 | AY90: 1761.443798 | AZ90: 1761.443798 | BA90: 1814.287112 | BB90: 1814.287112 | BC90: 0 | BD90: 0 | BE90: 0 | BF90: 0 | BG90: 0 | BH90: 0 | BI90: 0 | BJ90: 0 | BK90: 0 | BL90: 0 | BM90: 0 | BN90: 0 | BO90: 0 | BP90: 0 | BQ90: 0 | BR90: 0 | BS90: 0 | BT90: 0 | BU90: 0 | BV90: 0 | BW90: 0 | BX90: =BX64 -> 0 | BY90: 0 | BZ90: 0 | CA90: 0 | CB90: 0 | CC90: 0 | CD90: 0 | CE90: 0 | CF90: 0 | CG90: 0 | CH90: 0 | CI90: 0 | CJ90: 0 | CK90: 0 | CL90: 0 | CM90: 0 | CN90: 0 | CO90: 0
C91: Trim Loss Percent | E91: % | F91: ='Assumptions Sheet'!F199 -> 0.03 | K91: =$F$91 -> 0.03 | L91: =$F$91 -> 0.03 | M91: 0.03 | N91: 0.03 | O91: 0.03 | P91: 0.03 | Q91: 0.03 | R91: 0.03 | S91: 0.03 | T91: 0.03 | U91: 0.03 | V91: 0.03 | W91: 0.03 | X91: 0.03 | Y91: 0.03 | Z91: 0.03 | AA91: 0.03 | AB91: 0.03 | AC91: 0.03 | AD91: 0.03 | AE91: 0.03 | AF91: 0.03 | AG91: 0.03 | AH91: 0.03 | AI91: 0.03 | AJ91: 0.03 | AK91: 0.03 | AL91: 0.03 | AM91: 0.03 | AN91: 0.03 | AO91: 0.03 | AP91: 0.03 | AQ91: 0.03 | AR91: 0.03 | AS91: 0.03 | AT91: 0.03 | AU91: 0.03 | AV91: 0.03 | AW91: 0.03 | AX91: 0.03 | AY91: 0.03 | AZ91: 0.03 | BA91: 0.03 | BB91: 0.03 | BC91: 0.03 | BD91: 0.03 | BE91: 0.03 | BF91: 0.03 | BG91: 0.03 | BH91: 0.03 | BI91: 0.03 | BJ91: 0.03 | BK91: 0.03 | BL91: 0.03 | BM91: 0.03 | BN91: 0.03 | BO91: 0.03 | BP91: 0.03 | BQ91: 0.03 | BR91: 0.03 | BS91: 0.03 | BT91: 0.03 | BU91: 0.03 | BV91: 0.03 | BW91: 0.03 | BX91: =$F$91 -> 0.03 | BY91: 0.03 | BZ91: 0.03 | CA91: 0.03 | CB91: 0.03 | CC91: 0.03 | CD91: 0.03 | CE91: 0.03 | CF91: 0.03 | CG91: 0.03 | CH91: 0.03 | CI91: 0.03 | CJ91: 0.03 | CK91: 0.03 | CL91: 0.03 | CM91: 0.03 | CN91: 0.03 | CO91: 0.03
D92: Total Trim Expense | E92: USD | K92: =K89*K90*K91 -> 0 | L92: =L89*L90*L91 -> 0 | M92: 0 | N92: 0 | O92: 0 | P92: 0 | Q92: 0 | R92: 0 | S92: 0 | T92: 0 | U92: 0 | V92: 0 | W92: 0 | X92: 0 | Y92: 0 | Z92: 0 | AA92: 0 | AB92: 0 | AC92: 0 | AD92: 0 | AE92: 0 | AF92: 0 | AG92: 0 | AH92: 0 | AI92: 0 | AJ92: 0 | AK92: 200480.1285 | AL92: 200480.1285 | AM92: 252423.6873 | AN92: 252423.6873 | AO92: 269316.2665 | AP92: 269316.2665 | AQ92: 282068.6218 | AR92: 282068.6218 | AS92: 290530.6805 | AT92: 290530.6805 | AU92: 299246.6009 | AV92: 299246.6009 | AW92: 308223.9989 | AX92: 308223.9989 | AY92: 317470.7189 | AZ92: 317470.7189 | BA92: 326994.8404 | BB92: 326994.8404 | BC92: 0 | BD92: 0 | BE92: 0 | BF92: 0 | BG92: 0 | BH92: 0 | BI92: 0 | BJ92: 0 | BK92: 0 | BL92: 0 | BM92: 0 | BN92: 0 | BO92: 0 | BP92: 0 | BQ92: 0 | BR92: 0 | BS92: 0 | BT92: 0 | BU92: 0 | BV92: 0 | BW92: 0 | BX92: =BX89*BX90*BX91 -> 0 | BY92: 0 | BZ92: 0 | CA92: 0 | CB92: 0 | CC92: 0 | CD92: 0 | CE92: 0 | CF92: 0 | CG92: 0 | CH92: 0 | CI92: 0 | CJ92: 0 | CK92: 0 | CL92: 0 | CM92: 0 | CN92: 0 | CO92: 0
C94: Annual By-product Cost | E94: USD | K94: =LOOKUP(K$14,'Assumptions Sheet'!$F$167:$Q$167,'Assumptions Sheet'!$F$209:$Q$209) -> 0 | L94: =LOOKUP(L$14,'Assumptions Sheet'!$F$167:$Q$167,'Assumptions Sheet'!$F$209:$Q$209) -> 0 | M94: =LOOKUP(M$14,'Assumptions Sheet'!$F$167:$Q$167,'Assumptions Sheet'!$F$209:$Q$209) -> 0 | N94: =LOOKUP(N$14,'Assumptions Sheet'!$F$167:$Q$167,'Assumptions Sheet'!$F$209:$Q$209) -> 0 | O94: =LOOKUP(O$14,'Assumptions Sheet'!$F$167:$Q$167,'Assumptions Sheet'!$F$209:$Q$209) -> 0 | P94: =LOOKUP(P$14,'Assumptions Sheet'!$F$167:$Q$167,'Assumptions Sheet'!$F$209:$Q$209) -> 0 | Q94: =LOOKUP(Q$14,'Assumptions Sheet'!$F$167:$Q$167,'Assumptions Sheet'!$F$209:$Q$209) -> 0 | R94: =LOOKUP(R$14,'Assumptions Sheet'!$F$167:$Q$167,'Assumptions Sheet'!$F$209:$Q$209) -> 0 | S94: =LOOKUP(S$14,'Assumptions Sheet'!$F$167:$Q$167,'Assumptions Sheet'!$F$209:$Q$209) -> 0 | T94: =LOOKUP(T$14,'Assumptions Sheet'!$F$167:$Q$167,'Assumptions Sheet'!$F$209:$Q$209) -> 0 | U94: =LOOKUP(U$14,'Assumptions Sheet'!$F$167:$Q$167,'Assumptions Sheet'!$F$209:$Q$209) -> 0 | V94: =LOOKUP(V$14,'Assumptions Sheet'!$F$167:$Q$167,'Assumptions Sheet'!$F$209:$Q$209) -> 0 | W94: =LOOKUP(W$14,'Assumptions Sheet'!$F$167:$Q$167,'Assumptions Sheet'!$F$209:$Q$209) -> 0 | X94: =LOOKUP(X$14,'Assumptions Sheet'!$F$167:$Q$167,'Assumptions Sheet'!$F$209:$Q$209) -> 0 | Y94: =LOOKUP(Y$14,'Assumptions Sheet'!$F$167:$Q$167,'Assumptions Sheet'!$F$209:$Q$209) -> 0 | Z94: =LOOKUP(Z$14,'Assumptions Sheet'!$F$167:$Q$167,'Assumptions Sheet'!$F$209:$Q$209) -> 0 | AA94: =LOOKUP(AA$14,'Assumptions Sheet'!$F$167:$Q$167,'Assumptions Sheet'!$F$209:$Q$209) -> 0 | AB94: =LOOKUP(AB$14,'Assumptions Sheet'!$F$167:$Q$167,'Assumptions Sheet'!$F$209:$Q$209) -> 0 | AC94: =LOOKUP(AC$14,'Assumptions Sheet'!$F$167:$Q$167,'Assumptions Sheet'!$F$209:$Q$209) -> 0 | AD94: =LOOKUP(AD$14,'Assumptions Sheet'!$F$167:$Q$167,'Assumptions Sheet'!$F$209:$Q$209) -> 0 | AE94: =LOOKUP(AE$14,'Assumptions Sheet'!$F$167:$Q$167,'Assumptions Sheet'!$F$209:$Q$209) -> 0 | AF94: =LOOKUP(AF$14,'Assumptions Sheet'!$F$167:$Q$167,'Assumptions Sheet'!$F$209:$Q$209) -> 0 | AG94: =LOOKUP(AG$14,'Assumptions Sheet'!$F$167:$Q$167,'Assumptions Sheet'!$F$209:$Q$209) -> 0 | AH94: =LOOKUP(AH$14,'Assumptions Sheet'!$F$167:$Q$167,'Assumptions Sheet'!$F$209:$Q$209) -> 0 | AI94: =LOOKUP(AI$14,'Assumptions Sheet'!$F$167:$Q$167,'Assumptions Sheet'!$F$209:$Q$209) -> 0 | AJ94: =LOOKUP(AJ$14,'Assumptions Sheet'!$F$167:$Q$167,'Assumptions Sheet'!$F$209:$Q$209) -> 0 | AK94: =LOOKUP(AK$14,'Assumptions Sheet'!$F$167:$Q$167,'Assumptions Sheet'!$F$209:$Q$209) -> 260080 | AL94: =LOOKUP(AL$14,'Assumptions Sheet'!$F$167:$Q$167,'Assumptions Sheet'!$F$209:$Q$209) -> 260080 | AM94: =LOOKUP(AM$14,'Assumptions Sheet'!$F$167:$Q$167,'Assumptions Sheet'!$F$209:$Q$209) -> 327458 | AN94: =LOOKUP(AN$14,'Assumptions Sheet'!$F$167:$Q$167,'Assumptions Sheet'!$F$209:$Q$209) -> 327458 | AO94: =LOOKUP(AO$14,'Assumptions Sheet'!$F$167:$Q$167,'Assumptions Sheet'!$F$209:$Q$209) -> 349409 | AP94: =LOOKUP(AP$14,'Assumptions Sheet'!$F$167:$Q$167,'Assumptions Sheet'!$F$209:$Q$209) -> 349409 | AQ94: =LOOKUP(AQ$14,'Assumptions Sheet'!$F$167:$Q$167,'Assumptions Sheet'!$F$209:$Q$209) -> 366024 | AR94: =LOOKUP(AR$14,'Assumptions Sheet'!$F$167:$Q$167,'Assumptions Sheet'!$F$209:$Q$209) -> 366024 | AS94: =LOOKUP(AS$14,'Assumptions Sheet'!$F$167:$Q$167,'Assumptions Sheet'!$F$209:$Q$209) -> 377075 | AT94: =LOOKUP(AT$14,'Assumptions Sheet'!$F$167:$Q$167,'Assumptions Sheet'!$F$209:$Q$209) -> 377075 | AU94: =LOOKUP(AU$14,'Assumptions Sheet'!$F$167:$Q$167,'Assumptions Sheet'!$F$209:$Q$209) -> 388461 | AV94: =LOOKUP(AV$14,'Assumptions Sheet'!$F$167:$Q$167,'Assumptions Sheet'!$F$209:$Q$209) -> 388461 | AW94: =LOOKUP(AW$14,'Assumptions Sheet'!$F$167:$Q$167,'Assumptions Sheet'!$F$209:$Q$209) -> 400182 | AX94: =LOOKUP(AX$14,'Assumptions Sheet'!$F$167:$Q$167,'Assumptions Sheet'!$F$209:$Q$209) -> 400182 | AY94: =LOOKUP(AY$14,'Assumptions Sheet'!$F$167:$Q$167,'Assumptions Sheet'!$F$209:$Q$209) -> 412237 | AZ94: =LOOKUP(AZ$14,'Assumptions Sheet'!$F$167:$Q$167,'Assumptions Sheet'!$F$209:$Q$209) -> 412237 | BA94: =LOOKUP(BA$14,'Assumptions Sheet'!$F$167:$Q$167,'Assumptions Sheet'!$F$209:$Q$209) -> 424628 | BB94: =LOOKUP(BB$14,'Assumptions Sheet'!$F$167:$Q$167,'Assumptions Sheet'!$F$209:$Q$209) -> 424628 | BC94: =LOOKUP(BC$14,'Assumptions Sheet'!$F$167:$Q$167,'Assumptions Sheet'!$F$209:$Q$209) -> 0 | BD94: =LOOKUP(BD$14,'Assumptions Sheet'!$F$167:$Q$167,'Assumptions Sheet'!$F$209:$Q$209) -> 0 | BE94: =LOOKUP(BE$14,'Assumptions Sheet'!$F$167:$Q$167,'Assumptions Sheet'!$F$209:$Q$209) -> 0 | BF94: =LOOKUP(BF$14,'Assumptions Sheet'!$F$167:$Q$167,'Assumptions Sheet'!$F$209:$Q$209) -> 0 | BG94: =LOOKUP(BG$14,'Assumptions Sheet'!$F$167:$Q$167,'Assumptions Sheet'!$F$209:$Q$209) -> 0 | BH94: =LOOKUP(BH$14,'Assumptions Sheet'!$F$167:$Q$167,'Assumptions Sheet'!$F$209:$Q$209) -> 0 | BI94: =LOOKUP(BI$14,'Assumptions Sheet'!$F$167:$Q$167,'Assumptions Sheet'!$F$209:$Q$209) -> 0 | BJ94: =LOOKUP(BJ$14,'Assumptions Sheet'!$F$167:$Q$167,'Assumptions Sheet'!$F$209:$Q$209) -> 0 | BK94: =LOOKUP(BK$14,'Assumptions Sheet'!$F$167:$Q$167,'Assumptions Sheet'!$F$209:$Q$209) -> 0 | BL94: =LOOKUP(BL$14,'Assumptions Sheet'!$F$167:$Q$167,'Assumptions Sheet'!$F$209:$Q$209) -> 0 | BM94: =LOOKUP(BM$14,'Assumptions Sheet'!$F$167:$Q$167,'Assumptions Sheet'!$F$209:$Q$209) -> 0 | BN94: =LOOKUP(BN$14,'Assumptions Sheet'!$F$167:$Q$167,'Assumptions Sheet'!$F$209:$Q$209) -> 0 | BO94: =LOOKUP(BO$14,'Assumptions Sheet'!$F$167:$Q$167,'Assumptions Sheet'!$F$209:$Q$209) -> 0 | BP94: =LOOKUP(BP$14,'Assumptions Sheet'!$F$167:$Q$167,'Assumptions Sheet'!$F$209:$Q$209) -> 0 | BQ94: =LOOKUP(BQ$14,'Assumptions Sheet'!$F$167:$Q$167,'Assumptions Sheet'!$F$209:$Q$209) -> 0 | BR94: =LOOKUP(BR$14,'Assumptions Sheet'!$F$167:$Q$167,'Assumptions Sheet'!$F$209:$Q$209) -> 0 | BS94: =LOOKUP(BS$14,'Assumptions Sheet'!$F$167:$Q$167,'Assumptions Sheet'!$F$209:$Q$209) -> 0 | BT94: =LOOKUP(BT$14,'Assumptions Sheet'!$F$167:$Q$167,'Assumptions Sheet'!$F$209:$Q$209) -> 0 | BU94: =LOOKUP(BU$14,'Assumptions Sheet'!$F$167:$Q$167,'Assumptions Sheet'!$F$209:$Q$209) -> 0 | BV94: =LOOKUP(BV$14,'Assumptions Sheet'!$F$167:$Q$167,'Assumptions Sheet'!$F$209:$Q$209) -> 0 | BW94: =LOOKUP(BW$14,'Assumptions Sheet'!$F$167:$Q$167,'Assumptions Sheet'!$F$209:$Q$209) -> 0 | BX94: =LOOKUP(BX$14,'Assumptions Sheet'!$F$167:$Q$167,'Assumptions Sheet'!$F$209:$Q$209) -> 0 | BY94: =LOOKUP(BY$14,'Assumptions Sheet'!$F$167:$Q$167,'Assumptions Sheet'!$F$209:$Q$209) -> 0 | BZ94: =LOOKUP(BZ$14,'Assumptions Sheet'!$F$167:$Q$167,'Assumptions Sheet'!$F$209:$Q$209) -> 0 | CA94: =LOOKUP(CA$14,'Assumptions Sheet'!$F$167:$Q$167,'Assumptions Sheet'!$F$209:$Q$209) -> 0 | CB94: =LOOKUP(CB$14,'Assumptions Sheet'!$F$167:$Q$167,'Assumptions Sheet'!$F$209:$Q$209) -> 0 | CC94: =LOOKUP(CC$14,'Assumptions Sheet'!$F$167:$Q$167,'Assumptions Sheet'!$F$209:$Q$209) -> 0 | CD94: =LOOKUP(CD$14,'Assumptions Sheet'!$F$167:$Q$167,'Assumptions Sheet'!$F$209:$Q$209) -> 0 | CE94: =LOOKUP(CE$14,'Assumptions Sheet'!$F$167:$Q$167,'Assumptions Sheet'!$F$209:$Q$209) -> 0 | CF94: =LOOKUP(CF$14,'Assumptions Sheet'!$F$167:$Q$167,'Assumptions Sheet'!$F$209:$Q$209) -> 0 | CG94: =LOOKUP(CG$14,'Assumptions Sheet'!$F$167:$Q$167,'Assumptions Sheet'!$F$209:$Q$209) -> 0 | CH94: =LOOKUP(CH$14,'Assumptions Sheet'!$F$167:$Q$167,'Assumptions Sheet'!$F$209:$Q$209) -> 0 | CI94: =LOOKUP(CI$14,'Assumptions Sheet'!$F$167:$Q$167,'Assumptions Sheet'!$F$209:$Q$209) -> 0 | CJ94: =LOOKUP(CJ$14,'Assumptions Sheet'!$F$167:$Q$167,'Assumptions Sheet'!$F$209:$Q$209) -> 0 | CK94: =LOOKUP(CK$14,'Assumptions Sheet'!$F$167:$Q$167,'Assumptions Sheet'!$F$209:$Q$209) -> 0 | CL94: =LOOKUP(CL$14,'Assumptions Sheet'!$F$167:$Q$167,'Assumptions Sheet'!$F$209:$Q$209) -> 0 | CM94: =LOOKUP(CM$14,'Assumptions Sheet'!$F$167:$Q$167,'Assumptions Sheet'!$F$209:$Q$209) -> 0 | CN94: =LOOKUP(CN$14,'Assumptions Sheet'!$F$167:$Q$167,'Assumptions Sheet'!$F$209:$Q$209) -> 0 | CO94: =LOOKUP(CO$14,'Assumptions Sheet'!$F$167:$Q$167,'Assumptions Sheet'!$F$209:$Q$209) -> 0
C95: Fraction | E95: % | K95: =K30 -> 0.08333333333 | L95: 0.08333333333 | M95: 0.08333333333 | N95: 0.08333333333 | O95: 0.08333333333 | P95: 0.08333333333 | Q95: 0.08333333333 | R95: 0.08333333333 | S95: 0.08333333333 | T95: 0.08333333333 | U95: 0.08333333333 | V95: 0.08333333333 | W95: 0.08333333333 | X95: 0.08333333333 | Y95: 0.08333333333 | Z95: 0.08333333333 | AA95: 0.08333333333 | AB95: 0.08333333333 | AC95: 0.08333333333 | AD95: 0.08333333333 | AE95: 0.08333333333 | AF95: 0.08333333333 | AG95: 0.08333333333 | AH95: 0.08333333333 | AI95: 0.08333333333 | AJ95: 0.08333333333 | AK95: 0.5 | AL95: 0.5 | AM95: 0.5 | AN95: 0.5 | AO95: 0.5 | AP95: 0.5 | AQ95: =AQ30 -> 0.5 | AR95: 0.5 | AS95: 0.5 | AT95: 0.5 | AU95: 0.5 | AV95: 0.5 | AW95: 0.5 | AX95: 0.5 | AY95: 0.5 | AZ95: 0.5 | BA95: 0.5 | BB95: 0.5 | BC95: 0.5 | BD95: 0.5 | BE95: 0.5 | BF95: 0.5 | BG95: 0.5 | BH95: 0.5 | BI95: 0.5 | BJ95: 0.5 | BK95: 0.5 | BL95: 0.5 | BM95: 0.5 | BN95: 0.5 | BO95: 0.5 | BP95: 0.5 | BQ95: 0.5 | BR95: 0.5 | BS95: 0.5 | BT95: 0.5 | BU95: 0.5 | BV95: 0.5 | BW95: =BW30 -> 0.5 | BX95: 0.5 | BY95: 0.5 | BZ95: 0.5 | CA95: 0.5 | CB95: 0.5 | CC95: 0.5 | CD95: 0.5 | CE95: 0.5 | CF95: 0.5 | CG95: 0.5 | CH95: 0.5 | CI95: 0.5 | CJ95: 0.5 | CK95: 0.5 | CL95: 0.5 | CM95: 0.5 | CN95: 0.5 | CO95: 0.5
D96: Total By-Product Expense | E96: USD | K96: =K94*K95 -> 0 | L96: =L94*L95 -> 0 | M96: 0 | N96: 0 | O96: 0 | P96: 0 | Q96: 0 | R96: 0 | S96: 0 | T96: 0 | U96: 0 | V96: 0 | W96: 0 | X96: 0 | Y96: 0 | Z96: 0 | AA96: 0 | AB96: 0 | AC96: 0 | AD96: 0 | AE96: 0 | AF96: 0 | AG96: 0 | AH96: 0 | AI96: 0 | AJ96: 0 | AK96: 130040 | AL96: 130040 | AM96: 163729 | AN96: 163729 | AO96: 174704.5 | AP96: 174704.5 | AQ96: 183012 | AR96: 183012 | AS96: 188537.5 | AT96: 188537.5 | AU96: 194230.5 | AV96: 194230.5 | AW96: 200091 | AX96: 200091 | AY96: 206118.5 | AZ96: 206118.5 | BA96: 212314 | BB96: 212314 | BC96: 0 | BD96: 0 | BE96: 0 | BF96: 0 | BG96: 0 | BH96: 0 | BI96: 0 | BJ96: 0 | BK96: 0 | BL96: 0 | BM96: 0 | BN96: 0 | BO96: 0 | BP96: 0 | BQ96: 0 | BR96: 0 | BS96: 0 | BT96: 0 | BU96: 0 | BV96: 0 | BW96: 0 | BX96: =BX94*BX95 -> 0 | BY96: 0 | BZ96: 0 | CA96: 0 | CB96: 0 | CC96: 0 | CD96: 0 | CE96: 0 | CF96: 0 | CG96: 0 | CH96: 0 | CI96: 0 | CJ96: 0 | CK96: 0 | CL96: 0 | CM96: 0 | CN96: 0 | CO96: 0
D98: Total Variable Expenses | E98: USD | K98: =K96+K92+K87+K83+K80+K77 -> 0 | L98: =L96+L92+L87+L83+L80+L77 -> 0 | M98: 0 | N98: 0 | O98: 0 | P98: 0 | Q98: 0 | R98: 0 | S98: 0 | T98: 0 | U98: 0 | V98: 0 | W98: 0 | X98: 0 | Y98: 0 | Z98: 0 | AA98: 0 | AB98: 0 | AC98: 0 | AD98: 0 | AE98: 0 | AF98: 0 | AG98: 0 | AH98: 0 | AI98: 0 | AJ98: 0 | AK98: 10765846.66 | AL98: 10765846.66 | AM98: 13031922.15 | AN98: 13031922.15 | AO98: 13345730.05 | AP98: 13345730.05 | AQ98: 13977696.86 | AR98: 13977696.86 | AS98: 14397062.91 | AT98: 14397062.91 | AU98: 14829011.67 | AV98: 14829011.67 | AW98: 15273915.6 | AX98: 15273915.6 | AY98: 15732157.84 | AZ98: 15732157.84 | BA98: 16204134.52 | BB98: 16204134.52 | BC98: 0 | BD98: 0 | BE98: 0 | BF98: 0 | BG98: 0 | BH98: 0 | BI98: 0 | BJ98: 0 | BK98: 0 | BL98: 0 | BM98: 0 | BN98: 0 | BO98: 0 | BP98: 0 | BQ98: 0 | BR98: 0 | BS98: 0 | BT98: 0 | BU98: 0 | BV98: 0 | BW98: 0 | BX98: =BX96+BX92+BX87+BX83+BX80+BX77 -> 0 | BY98: 0 | BZ98: 0 | CA98: 0 | CB98: 0 | CC98: 0 | CD98: 0 | CE98: 0 | CF98: 0 | CG98: 0 | CH98: 0 | CI98: 0 | CJ98: 0 | CK98: 0 | CL98: 0 | CM98: 0 | CN98: 0 | CO98: 0
B100: Fixed Operating Cost
C101: Fuel Cost per Ton | E101: USD/Ton | K101: =LOOKUP(K$14,'Assumptions Sheet'!$F$167:$Q$167,'Assumptions Sheet'!$F$217:$Q$217) -> 269.6182048 | L101: =LOOKUP(L$14,'Assumptions Sheet'!$F$167:$Q$167,'Assumptions Sheet'!$F$217:$Q$217) -> 269.6182048 | M101: =LOOKUP(M$14,'Assumptions Sheet'!$F$167:$Q$167,'Assumptions Sheet'!$F$217:$Q$217) -> 269.6182048 | N101: =LOOKUP(N$14,'Assumptions Sheet'!$F$167:$Q$167,'Assumptions Sheet'!$F$217:$Q$217) -> 269.6182048 | O101: =LOOKUP(O$14,'Assumptions Sheet'!$F$167:$Q$167,'Assumptions Sheet'!$F$217:$Q$217) -> 269.6182048 | P101: =LOOKUP(P$14,'Assumptions Sheet'!$F$167:$Q$167,'Assumptions Sheet'!$F$217:$Q$217) -> 269.6182048 | Q101: =LOOKUP(Q$14,'Assumptions Sheet'!$F$167:$Q$167,'Assumptions Sheet'!$F$217:$Q$217) -> 269.6182048 | R101: =LOOKUP(R$14,'Assumptions Sheet'!$F$167:$Q$167,'Assumptions Sheet'!$F$217:$Q$217) -> 269.6182048 | S101: =LOOKUP(S$14,'Assumptions Sheet'!$F$167:$Q$167,'Assumptions Sheet'!$F$217:$Q$217) -> 269.6182048 | T101: =LOOKUP(T$14,'Assumptions Sheet'!$F$167:$Q$167,'Assumptions Sheet'!$F$217:$Q$217) -> 269.6182048 | U101: =LOOKUP(U$14,'Assumptions Sheet'!$F$167:$Q$167,'Assumptions Sheet'!$F$217:$Q$217) -> 269.6182048 | V101: =LOOKUP(V$14,'Assumptions Sheet'!$F$167:$Q$167,'Assumptions Sheet'!$F$217:$Q$217) -> 269.6182048 | W101: =LOOKUP(W$14,'Assumptions Sheet'!$F$167:$Q$167,'Assumptions Sheet'!$F$217:$Q$217) -> 269.6182048 | X101: =LOOKUP(X$14,'Assumptions Sheet'!$F$167:$Q$167,'Assumptions Sheet'!$F$217:$Q$217) -> 269.6182048 | Y101: =LOOKUP(Y$14,'Assumptions Sheet'!$F$167:$Q$167,'Assumptions Sheet'!$F$217:$Q$217) -> 269.6182048 | Z101: =LOOKUP(Z$14,'Assumptions Sheet'!$F$167:$Q$167,'Assumptions Sheet'!$F$217:$Q$217) -> 269.6182048 | AA101: =LOOKUP(AA$14,'Assumptions Sheet'!$F$167:$Q$167,'Assumptions Sheet'!$F$217:$Q$217) -> 269.6182048 | AB101: =LOOKUP(AB$14,'Assumptions Sheet'!$F$167:$Q$167,'Assumptions Sheet'!$F$217:$Q$217) -> 269.6182048 | AC101: =LOOKUP(AC$14,'Assumptions Sheet'!$F$167:$Q$167,'Assumptions Sheet'!$F$217:$Q$217) -> 269.6182048 | AD101: =LOOKUP(AD$14,'Assumptions Sheet'!$F$167:$Q$167,'Assumptions Sheet'!$F$217:$Q$217) -> 269.6182048 | AE101: =LOOKUP(AE$14,'Assumptions Sheet'!$F$167:$Q$167,'Assumptions Sheet'!$F$217:$Q$217) -> 269.6182048 | AF101: =LOOKUP(AF$14,'Assumptions Sheet'!$F$167:$Q$167,'Assumptions Sheet'!$F$217:$Q$217) -> 269.6182048 | AG101: =LOOKUP(AG$14,'Assumptions Sheet'!$F$167:$Q$167,'Assumptions Sheet'!$F$217:$Q$217) -> 269.6182048 | AH101: =LOOKUP(AH$14,'Assumptions Sheet'!$F$167:$Q$167,'Assumptions Sheet'!$F$217:$Q$217) -> 269.6182048 | AI101: =LOOKUP(AI$14,'Assumptions Sheet'!$F$167:$Q$167,'Assumptions Sheet'!$F$217:$Q$217) -> 269.6182048 | AJ101: =LOOKUP(AJ$14,'Assumptions Sheet'!$F$167:$Q$167,'Assumptions Sheet'!$F$217:$Q$217) -> 269.6182048 | AK101: =LOOKUP(AK$14,'Assumptions Sheet'!$F$167:$Q$167,'Assumptions Sheet'!$F$217:$Q$217) -> 269.6182048 | AL101: =LOOKUP(AL$14,'Assumptions Sheet'!$F$167:$Q$167,'Assumptions Sheet'!$F$217:$Q$217) -> 269.6182048 | AM101: =LOOKUP(AM$14,'Assumptions Sheet'!$F$167:$Q$167,'Assumptions Sheet'!$F$217:$Q$217) -> 277.706751 | AN101: =LOOKUP(AN$14,'Assumptions Sheet'!$F$167:$Q$167,'Assumptions Sheet'!$F$217:$Q$217) -> 277.706751 | AO101: =LOOKUP(AO$14,'Assumptions Sheet'!$F$167:$Q$167,'Assumptions Sheet'!$F$217:$Q$217) -> 286.0379535 | AP101: =LOOKUP(AP$14,'Assumptions Sheet'!$F$167:$Q$167,'Assumptions Sheet'!$F$217:$Q$217) -> 286.0379535 | AQ101: =LOOKUP(AQ$14,'Assumptions Sheet'!$F$167:$Q$167,'Assumptions Sheet'!$F$217:$Q$217) -> 294.6190921 | AR101: =LOOKUP(AR$14,'Assumptions Sheet'!$F$167:$Q$167,'Assumptions Sheet'!$F$217:$Q$217) -> 294.6190921 | AS101: =LOOKUP(AS$14,'Assumptions Sheet'!$F$167:$Q$167,'Assumptions Sheet'!$F$217:$Q$217) -> 303.4576649 | AT101: =LOOKUP(AT$14,'Assumptions Sheet'!$F$167:$Q$167,'Assumptions Sheet'!$F$217:$Q$217) -> 303.4576649 | AU101: =LOOKUP(AU$14,'Assumptions Sheet'!$F$167:$Q$167,'Assumptions Sheet'!$F$217:$Q$217) -> 312.5613948 | AV101: =LOOKUP(AV$14,'Assumptions Sheet'!$F$167:$Q$167,'Assumptions Sheet'!$F$217:$Q$217) -> 312.5613948 | AW101: =LOOKUP(AW$14,'Assumptions Sheet'!$F$167:$Q$167,'Assumptions Sheet'!$F$217:$Q$217) -> 321.9382367 | AX101: =LOOKUP(AX$14,'Assumptions Sheet'!$F$167:$Q$167,'Assumptions Sheet'!$F$217:$Q$217) -> 321.9382367 | AY101: =LOOKUP(AY$14,'Assumptions Sheet'!$F$167:$Q$167,'Assumptions Sheet'!$F$217:$Q$217) -> 331.5963838 | AZ101: =LOOKUP(AZ$14,'Assumptions Sheet'!$F$167:$Q$167,'Assumptions Sheet'!$F$217:$Q$217) -> 331.5963838 | BA101: =LOOKUP(BA$14,'Assumptions Sheet'!$F$167:$Q$167,'Assumptions Sheet'!$F$217:$Q$217) -> 341.5442753 | BB101: =LOOKUP(BB$14,'Assumptions Sheet'!$F$167:$Q$167,'Assumptions Sheet'!$F$217:$Q$217) -> 341.5442753 | BC101: =LOOKUP(BC$14,'Assumptions Sheet'!$F$167:$Q$167,'Assumptions Sheet'!$F$217:$Q$217) -> 269.6182048 | BD101: =LOOKUP(BD$14,'Assumptions Sheet'!$F$167:$Q$167,'Assumptions Sheet'!$F$217:$Q$217) -> 269.6182048 | BE101: =LOOKUP(BE$14,'Assumptions Sheet'!$F$167:$Q$167,'Assumptions Sheet'!$F$217:$Q$217) -> 269.6182048 | BF101: =LOOKUP(BF$14,'Assumptions Sheet'!$F$167:$Q$167,'Assumptions Sheet'!$F$217:$Q$217) -> 269.6182048 | BG101: =LOOKUP(BG$14,'Assumptions Sheet'!$F$167:$Q$167,'Assumptions Sheet'!$F$217:$Q$217) -> 269.6182048 | BH101: =LOOKUP(BH$14,'Assumptions Sheet'!$F$167:$Q$167,'Assumptions Sheet'!$F$217:$Q$217) -> 269.6182048 | BI101: =LOOKUP(BI$14,'Assumptions Sheet'!$F$167:$Q$167,'Assumptions Sheet'!$F$217:$Q$217) -> 269.6182048 | BJ101: =LOOKUP(BJ$14,'Assumptions Sheet'!$F$167:$Q$167,'Assumptions Sheet'!$F$217:$Q$217) -> 269.6182048 | BK101: =LOOKUP(BK$14,'Assumptions Sheet'!$F$167:$Q$167,'Assumptions Sheet'!$F$217:$Q$217) -> 269.6182048 | BL101: =LOOKUP(BL$14,'Assumptions Sheet'!$F$167:$Q$167,'Assumptions Sheet'!$F$217:$Q$217) -> 269.6182048 | BM101: =LOOKUP(BM$14,'Assumptions Sheet'!$F$167:$Q$167,'Assumptions Sheet'!$F$217:$Q$217) -> 269.6182048 | BN101: =LOOKUP(BN$14,'Assumptions Sheet'!$F$167:$Q$167,'Assumptions Sheet'!$F$217:$Q$217) -> 269.6182048 | BO101: =LOOKUP(BO$14,'Assumptions Sheet'!$F$167:$Q$167,'Assumptions Sheet'!$F$217:$Q$217) -> 269.6182048 | BP101: =LOOKUP(BP$14,'Assumptions Sheet'!$F$167:$Q$167,'Assumptions Sheet'!$F$217:$Q$217) -> 269.6182048 | BQ101: =LOOKUP(BQ$14,'Assumptions Sheet'!$F$167:$Q$167,'Assumptions Sheet'!$F$217:$Q$217) -> 269.6182048 | BR101: =LOOKUP(BR$14,'Assumptions Sheet'!$F$167:$Q$167,'Assumptions Sheet'!$F$217:$Q$217) -> 269.6182048 | BS101: =LOOKUP(BS$14,'Assumptions Sheet'!$F$167:$Q$167,'Assumptions Sheet'!$F$217:$Q$217) -> 269.6182048 | BT101: =LOOKUP(BT$14,'Assumptions Sheet'!$F$167:$Q$167,'Assumptions Sheet'!$F$217:$Q$217) -> 269.6182048 | BU101: =LOOKUP(BU$14,'Assumptions Sheet'!$F$167:$Q$167,'Assumptions Sheet'!$F$217:$Q$217) -> 269.6182048 | BV101: =LOOKUP(BV$14,'Assumptions Sheet'!$F$167:$Q$167,'Assumptions Sheet'!$F$217:$Q$217) -> 269.6182048 | BW101: =LOOKUP(BW$14,'Assumptions Sheet'!$F$167:$Q$167,'Assumptions Sheet'!$F$217:$Q$217) -> 269.6182048 | BX101: =LOOKUP(BX$14,'Assumptions Sheet'!$F$167:$Q$167,'Assumptions Sheet'!$F$217:$Q$217) -> 269.6182048 | BY101: =LOOKUP(BY$14,'Assumptions Sheet'!$F$167:$Q$167,'Assumptions Sheet'!$F$217:$Q$217) -> 269.6182048 | BZ101: =LOOKUP(BZ$14,'Assumptions Sheet'!$F$167:$Q$167,'Assumptions Sheet'!$F$217:$Q$217) -> 269.6182048 | CA101: =LOOKUP(CA$14,'Assumptions Sheet'!$F$167:$Q$167,'Assumptions Sheet'!$F$217:$Q$217) -> 269.6182048 | CB101: =LOOKUP(CB$14,'Assumptions Sheet'!$F$167:$Q$167,'Assumptions Sheet'!$F$217:$Q$217) -> 269.6182048 | CC101: =LOOKUP(CC$14,'Assumptions Sheet'!$F$167:$Q$167,'Assumptions Sheet'!$F$217:$Q$217) -> 269.6182048 | CD101: =LOOKUP(CD$14,'Assumptions Sheet'!$F$167:$Q$167,'Assumptions Sheet'!$F$217:$Q$217) -> 269.6182048 | CE101: =LOOKUP(CE$14,'Assumptions Sheet'!$F$167:$Q$167,'Assumptions Sheet'!$F$217:$Q$217) -> 269.6182048 | CF101: =LOOKUP(CF$14,'Assumptions Sheet'!$F$167:$Q$167,'Assumptions Sheet'!$F$217:$Q$217) -> 269.6182048 | CG101: =LOOKUP(CG$14,'Assumptions Sheet'!$F$167:$Q$167,'Assumptions Sheet'!$F$217:$Q$217) -> 269.6182048 | CH101: =LOOKUP(CH$14,'Assumptions Sheet'!$F$167:$Q$167,'Assumptions Sheet'!$F$217:$Q$217) -> 269.6182048 | CI101: =LOOKUP(CI$14,'Assumptions Sheet'!$F$167:$Q$167,'Assumptions Sheet'!$F$217:$Q$217) -> 269.6182048 | CJ101: =LOOKUP(CJ$14,'Assumptions Sheet'!$F$167:$Q$167,'Assumptions Sheet'!$F$217:$Q$217) -> 269.6182048 | CK101: =LOOKUP(CK$14,'Assumptions Sheet'!$F$167:$Q$167,'Assumptions Sheet'!$F$217:$Q$217) -> 269.6182048 | CL101: =LOOKUP(CL$14,'Assumptions Sheet'!$F$167:$Q$167,'Assumptions Sheet'!$F$217:$Q$217) -> 269.6182048 | CM101: =LOOKUP(CM$14,'Assumptions Sheet'!$F$167:$Q$167,'Assumptions Sheet'!$F$217:$Q$217) -> 269.6182048 | CN101: =LOOKUP(CN$14,'Assumptions Sheet'!$F$167:$Q$167,'Assumptions Sheet'!$F$217:$Q$217) -> 269.6182048 | CO101: =LOOKUP(CO$14,'Assumptions Sheet'!$F$167:$Q$167,'Assumptions Sheet'!$F$217:$Q$217) -> 269.6182048
C102: Total Production | E102: Tons p.p. | K102: =K61 -> 0 | L102: =L61 -> 0 | M102: 0 | N102: 0 | O102: 0 | P102: 0 | Q102: 0 | R102: 0 | S102: 0 | T102: 0 | U102: 0 | V102: 0 | W102: 0 | X102: 0 | Y102: 0 | Z102: 0 | AA102: 0 | AB102: 0 | AC102: 0 | AD102: 0 | AE102: 0 | AF102: 0 | AG102: 0 | AH102: 0 | AI102: 0 | AJ102: 0 | AK102: 15553.23037 | AL102: 15553.23037 | AM102: 19012.62815 | AN102: 19012.62815 | AO102: 19694.15758 | AP102: 19694.15758 | AQ102: 20025.91531 | AR102: 20025.91531 | AS102: 20025.91531 | AT102: 20025.91531 | AU102: 20025.91531 | AV102: 20025.91531 | AW102: 20025.91531 | AX102: 20025.91531 | AY102: 20025.91531 | AZ102: 20025.91531 | BA102: 20025.91531 | BB102: 20025.91531 | BC102: 0 | BD102: 0 | BE102: 0 | BF102: 0 | BG102: 0 | BH102: 0 | BI102: 0 | BJ102: 0 | BK102: 0 | BL102: 0 | BM102: 0 | BN102: 0 | BO102: 0 | BP102: 0 | BQ102: 0 | BR102: 0 | BS102: 0 | BT102: 0 | BU102: 0 | BV102: 0 | BW102: 0 | BX102: =BX61 -> 0 | BY102: 0 | BZ102: 0 | CA102: 0 | CB102: 0 | CC102: 0 | CD102: 0 | CE102: 0 | CF102: 0 | CG102: 0 | CH102: 0 | CI102: 0 | CJ102: 0 | CK102: 0 | CL102: 0 | CM102: 0 | CN102: 0 | CO102: 0
D103: Total Fuel Expense | E103: USD | K103: =K101*K102 -> 0 | L103: =L101*L102 -> 0 | M103: 0 | N103: 0 | O103: 0 | P103: 0 | Q103: 0 | R103: 0 | S103: 0 | T103: 0 | U103: 0 | V103: 0 | W103: 0 | X103: 0 | Y103: 0 | Z103: 0 | AA103: 0 | AB103: 0 | AC103: 0 | AD103: 0 | AE103: 0 | AF103: 0 | AG103: 0 | AH103: 0 | AI103: 0 | AJ103: 0 | AK103: 4193434.051 | AL103: 4193434.051 | AM103: 5279935.191 | AN103: 5279935.191 | AO103: 5633276.529 | AP103: 5633276.529 | AQ103: 5900016.986 | AR103: 5900016.986 | AS103: 6077017.496 | AT103: 6077017.496 | AU103: 6259328.021 | AV103: 6259328.021 | AW103: 6447107.861 | AX103: 6447107.861 | AY103: 6640521.097 | AZ103: 6640521.097 | BA103: 6839736.73 | BB103: 6839736.73 | BC103: 0 | BD103: 0 | BE103: 0 | BF103: 0 | BG103: 0 | BH103: 0 | BI103: 0 | BJ103: 0 | BK103: 0 | BL103: 0 | BM103: 0 | BN103: 0 | BO103: 0 | BP103: 0 | BQ103: 0 | BR103: 0 | BS103: 0 | BT103: 0 | BU103: 0 | BV103: 0 | BW103: 0 | BX103: =BX101*BX102 -> 0 | BY103: 0 | BZ103: 0 | CA103: 0 | CB103: 0 | CC103: 0 | CD103: 0 | CE103: 0 | CF103: 0 | CG103: 0 | CH103: 0 | CI103: 0 | CJ103: 0 | CK103: 0 | CL103: 0 | CM103: 0 | CN103: 0 | CO103: 0
C105: Labour with Taxes and Benefits - Monthly | E105: USD | K105: =IFERROR(LOOKUP(K$15,'Personnel (M)'!$K$3:$AH$3,'Personnel (M)'!$K$57:$AH$57),0) -> 0 | L105: =IFERROR(LOOKUP(L$15,'Personnel (M)'!$K$3:$AH$3,'Personnel (M)'!$K$57:$AH$57),0) -> 0 | M105: =IFERROR(LOOKUP(M$15,'Personnel (M)'!$K$3:$AH$3,'Personnel (M)'!$K$57:$AH$57),0) -> 0 | N105: =IFERROR(LOOKUP(N$15,'Personnel (M)'!$K$3:$AH$3,'Personnel (M)'!$K$57:$AH$57),0) -> 0 | O105: =IFERROR(LOOKUP(O$15,'Personnel (M)'!$K$3:$AH$3,'Personnel (M)'!$K$57:$AH$57),0) -> 0 | P105: =IFERROR(LOOKUP(P$15,'Personnel (M)'!$K$3:$AH$3,'Personnel (M)'!$K$57:$AH$57),0) -> 0 | Q105: =IFERROR(LOOKUP(Q$15,'Personnel (M)'!$K$3:$AH$3,'Personnel (M)'!$K$57:$AH$57),0) -> 0 | R105: =IFERROR(LOOKUP(R$15,'Personnel (M)'!$K$3:$AH$3,'Personnel (M)'!$K$57:$AH$57),0) -> 0 | S105: =IFERROR(LOOKUP(S$15,'Personnel (M)'!$K$3:$AH$3,'Personnel (M)'!$K$57:$AH$57),0) -> 0 | T105: =IFERROR(LOOKUP(T$15,'Personnel (M)'!$K$3:$AH$3,'Personnel (M)'!$K$57:$AH$57),0) -> 0 | U105: =IFERROR(LOOKUP(U$15,'Personnel (M)'!$K$3:$AH$3,'Personnel (M)'!$K$57:$AH$57),0) -> 0 | V105: =IFERROR(LOOKUP(V$15,'Personnel (M)'!$K$3:$AH$3,'Personnel (M)'!$K$57:$AH$57),0) -> 0 | W105: =IFERROR(LOOKUP(W$15,'Personnel (M)'!$K$3:$AH$3,'Personnel (M)'!$K$57:$AH$57),0) -> 0 | X105: =IFERROR(LOOKUP(X$15,'Personnel (M)'!$K$3:$AH$3,'Personnel (M)'!$K$57:$AH$57),0) -> 0 | Y105: =IFERROR(LOOKUP(Y$15,'Personnel (M)'!$K$3:$AH$3,'Personnel (M)'!$K$57:$AH$57),0) -> 0 | Z105: =IFERROR(LOOKUP(Z$15,'Personnel (M)'!$K$3:$AH$3,'Personnel (M)'!$K$57:$AH$57),0) -> 0 | AA105: =IFERROR(LOOKUP(AA$15,'Personnel (M)'!$K$3:$AH$3,'Personnel (M)'!$K$57:$AH$57),0) -> 0 | AB105: =IFERROR(LOOKUP(AB$15,'Personnel (M)'!$K$3:$AH$3,'Personnel (M)'!$K$57:$AH$57),0) -> 0 | AC105: =IFERROR(LOOKUP(AC$15,'Personnel (M)'!$K$3:$AH$3,'Personnel (M)'!$K$57:$AH$57),0) -> 18667.04 | AD105: =IFERROR(LOOKUP(AD$15,'Personnel (M)'!$K$3:$AH$3,'Personnel (M)'!$K$57:$AH$57),0) -> 85303.52 | AE105: =IFERROR(LOOKUP(AE$15,'Personnel (M)'!$K$3:$AH$3,'Personnel (M)'!$K$57:$AH$57),0) -> 108952.52 | AF105: =IFERROR(LOOKUP(AF$15,'Personnel (M)'!$K$3:$AH$3,'Personnel (M)'!$K$57:$AH$57),0) -> 108952.52 | AG105: =IFERROR(LOOKUP(AG$15,'Personnel (M)'!$K$3:$AH$3,'Personnel (M)'!$K$57:$AH$57),0) -> 108952.52 | AH105: =IFERROR(LOOKUP(AH$15,'Personnel (M)'!$K$3:$AH$3,'Personnel (M)'!$K$57:$AH$57),0) -> 110712.52 | AI105: =IFERROR(LOOKUP(AI$15,'Personnel (M)'!$K$3:$AH$3,'Personnel (M)'!$K$57:$AH$57),0) -> 113292.52 | AJ105: =IFERROR(LOOKUP(AJ$15,'Personnel (M)'!$K$3:$AH$3,'Personnel (M)'!$K$57:$AH$57),0) -> 113292.52 | AK105: =IFERROR(LOOKUP(AK$15,'Personnel (M)'!$K$3:$AH$3,'Personnel (M)'!$K$57:$AH$57),0) -> 0 | AL105: =IFERROR(LOOKUP(AL$15,'Personnel (M)'!$K$3:$AH$3,'Personnel (M)'!$K$57:$AH$57),0) -> 0 | AM105: =IFERROR(LOOKUP(AM$15,'Personnel (M)'!$K$3:$AH$3,'Personnel (M)'!$K$57:$AH$57),0) -> 0 | AN105: =IFERROR(LOOKUP(AN$15,'Personnel (M)'!$K$3:$AH$3,'Personnel (M)'!$K$57:$AH$57),0) -> 0 | AO105: =IFERROR(LOOKUP(AO$15,'Personnel (M)'!$K$3:$AH$3,'Personnel (M)'!$K$57:$AH$57),0) -> 0 | AP105: =IFERROR(LOOKUP(AP$15,'Personnel (M)'!$K$3:$AH$3,'Personnel (M)'!$K$57:$AH$57),0) -> 0 | AQ105: =IFERROR(LOOKUP(AQ$15,'Personnel (M)'!$K$3:$AH$3,'Personnel (M)'!$K$57:$AH$57),0) -> 0 | AR105: =IFERROR(LOOKUP(AR$15,'Personnel (M)'!$K$3:$AH$3,'Personnel (M)'!$K$57:$AH$57),0) -> 0 | AS105: =IFERROR(LOOKUP(AS$15,'Personnel (M)'!$K$3:$AH$3,'Personnel (M)'!$K$57:$AH$57),0) -> 0 | AT105: =IFERROR(LOOKUP(AT$15,'Personnel (M)'!$K$3:$AH$3,'Personnel (M)'!$K$57:$AH$57),0) -> 0 | AU105: =IFERROR(LOOKUP(AU$15,'Personnel (M)'!$K$3:$AH$3,'Personnel (M)'!$K$57:$AH$57),0) -> 0 | AV105: =IFERROR(LOOKUP(AV$15,'Personnel (M)'!$K$3:$AH$3,'Personnel (M)'!$K$57:$AH$57),0) -> 0 | AW105: =IFERROR(LOOKUP(AW$15,'Personnel (M)'!$K$3:$AH$3,'Personnel (M)'!$K$57:$AH$57),0) -> 0 | AX105: =IFERROR(LOOKUP(AX$15,'Personnel (M)'!$K$3:$AH$3,'Personnel (M)'!$K$57:$AH$57),0) -> 0 | AY105: =IFERROR(LOOKUP(AY$15,'Personnel (M)'!$K$3:$AH$3,'Personnel (M)'!$K$57:$AH$57),0) -> 0 | AZ105: =IFERROR(LOOKUP(AZ$15,'Personnel (M)'!$K$3:$AH$3,'Personnel (M)'!$K$57:$AH$57),0) -> 0 | BA105: =IFERROR(LOOKUP(BA$15,'Personnel (M)'!$K$3:$AH$3,'Personnel (M)'!$K$57:$AH$57),0) -> 0 | BB105: =IFERROR(LOOKUP(BB$15,'Personnel (M)'!$K$3:$AH$3,'Personnel (M)'!$K$57:$AH$57),0) -> 0 | BC105: =IFERROR(LOOKUP(BC$15,'Personnel (M)'!$K$3:$AH$3,'Personnel (M)'!$K$57:$AH$57),0) -> 0 | BD105: =IFERROR(LOOKUP(BD$15,'Personnel (M)'!$K$3:$AH$3,'Personnel (M)'!$K$57:$AH$57),0) -> 0 | BE105: =IFERROR(LOOKUP(BE$15,'Personnel (M)'!$K$3:$AH$3,'Personnel (M)'!$K$57:$AH$57),0) -> 0 | BF105: =IFERROR(LOOKUP(BF$15,'Personnel (M)'!$K$3:$AH$3,'Personnel (M)'!$K$57:$AH$57),0) -> 0 | BG105: =IFERROR(LOOKUP(BG$15,'Personnel (M)'!$K$3:$AH$3,'Personnel (M)'!$K$57:$AH$57),0) -> 0 | BH105: =IFERROR(LOOKUP(BH$15,'Personnel (M)'!$K$3:$AH$3,'Personnel (M)'!$K$57:$AH$57),0) -> 0 | BI105: =IFERROR(LOOKUP(BI$15,'Personnel (M)'!$K$3:$AH$3,'Personnel (M)'!$K$57:$AH$57),0) -> 0 | BJ105: =IFERROR(LOOKUP(BJ$15,'Personnel (M)'!$K$3:$AH$3,'Personnel (M)'!$K$57:$AH$57),0) -> 0 | BK105: =IFERROR(LOOKUP(BK$15,'Personnel (M)'!$K$3:$AH$3,'Personnel (M)'!$K$57:$AH$57),0) -> 0 | BL105: =IFERROR(LOOKUP(BL$15,'Personnel (M)'!$K$3:$AH$3,'Personnel (M)'!$K$57:$AH$57),0) -> 0 | BM105: =IFERROR(LOOKUP(BM$15,'Personnel (M)'!$K$3:$AH$3,'Personnel (M)'!$K$57:$AH$57),0) -> 0 | BN105: =IFERROR(LOOKUP(BN$15,'Personnel (M)'!$K$3:$AH$3,'Personnel (M)'!$K$57:$AH$57),0) -> 0 | BO105: =IFERROR(LOOKUP(BO$15,'Personnel (M)'!$K$3:$AH$3,'Personnel (M)'!$K$57:$AH$57),0) -> 0 | BP105: =IFERROR(LOOKUP(BP$15,'Personnel (M)'!$K$3:$AH$3,'Personnel (M)'!$K$57:$AH$57),0) -> 0 | BQ105: =IFERROR(LOOKUP(BQ$15,'Personnel (M)'!$K$3:$AH$3,'Personnel (M)'!$K$57:$AH$57),0) -> 0 | BR105: =IFERROR(LOOKUP(BR$15,'Personnel (M)'!$K$3:$AH$3,'Personnel (M)'!$K$57:$AH$57),0) -> 0 | BS105: =IFERROR(LOOKUP(BS$15,'Personnel (M)'!$K$3:$AH$3,'Personnel (M)'!$K$57:$AH$57),0) -> 0 | BT105: =IFERROR(LOOKUP(BT$15,'Personnel (M)'!$K$3:$AH$3,'Personnel (M)'!$K$57:$AH$57),0) -> 0 | BU105: =IFERROR(LOOKUP(BU$15,'Personnel (M)'!$K$3:$AH$3,'Personnel (M)'!$K$57:$AH$57),0) -> 0 | BV105: =IFERROR(LOOKUP(BV$15,'Personnel (M)'!$K$3:$AH$3,'Personnel (M)'!$K$57:$AH$57),0) -> 0 | BW105: =IFERROR(LOOKUP(BW$15,'Personnel (M)'!$K$3:$AH$3,'Personnel (M)'!$K$57:$AH$57),0) -> 0 | BX105: =IFERROR(LOOKUP(BX$15,'Personnel (M)'!$K$3:$AH$3,'Personnel (M)'!$K$57:$AH$57),0) -> 0 | BY105: =IFERROR(LOOKUP(BY$15,'Personnel (M)'!$K$3:$AH$3,'Personnel (M)'!$K$57:$AH$57),0) -> 0 | BZ105: =IFERROR(LOOKUP(BZ$15,'Personnel (M)'!$K$3:$AH$3,'Personnel (M)'!$K$57:$AH$57),0) -> 0 | CA105: =IFERROR(LOOKUP(CA$15,'Personnel (M)'!$K$3:$AH$3,'Personnel (M)'!$K$57:$AH$57),0) -> 0 | CB105: =IFERROR(LOOKUP(CB$15,'Personnel (M)'!$K$3:$AH$3,'Personnel (M)'!$K$57:$AH$57),0) -> 0 | CC105: =IFERROR(LOOKUP(CC$15,'Personnel (M)'!$K$3:$AH$3,'Personnel (M)'!$K$57:$AH$57),0) -> 0 | CD105: =IFERROR(LOOKUP(CD$15,'Personnel (M)'!$K$3:$AH$3,'Personnel (M)'!$K$57:$AH$57),0) -> 0 | CE105: =IFERROR(LOOKUP(CE$15,'Personnel (M)'!$K$3:$AH$3,'Personnel (M)'!$K$57:$AH$57),0) -> 0 | CF105: =IFERROR(LOOKUP(CF$15,'Personnel (M)'!$K$3:$AH$3,'Personnel (M)'!$K$57:$AH$57),0) -> 0 | CG105: =IFERROR(LOOKUP(CG$15,'Personnel (M)'!$K$3:$AH$3,'Personnel (M)'!$K$57:$AH$57),0) -> 0 | CH105: =IFERROR(LOOKUP(CH$15,'Personnel (M)'!$K$3:$AH$3,'Personnel (M)'!$K$57:$AH$57),0) -> 0 | CI105: =IFERROR(LOOKUP(CI$15,'Personnel (M)'!$K$3:$AH$3,'Personnel (M)'!$K$57:$AH$57),0) -> 0 | CJ105: =IFERROR(LOOKUP(CJ$15,'Personnel (M)'!$K$3:$AH$3,'Personnel (M)'!$K$57:$AH$57),0) -> 0 | CK105: =IFERROR(LOOKUP(CK$15,'Personnel (M)'!$K$3:$AH$3,'Personnel (M)'!$K$57:$AH$57),0) -> 0 | CL105: =IFERROR(LOOKUP(CL$15,'Personnel (M)'!$K$3:$AH$3,'Personnel (M)'!$K$57:$AH$57),0) -> 0 | CM105: =IFERROR(LOOKUP(CM$15,'Personnel (M)'!$K$3:$AH$3,'Personnel (M)'!$K$57:$AH$57),0) -> 0 | CN105: =IFERROR(LOOKUP(CN$15,'Personnel (M)'!$K$3:$AH$3,'Personnel (M)'!$K$57:$AH$57),0) -> 0 | CO105: =IFERROR(LOOKUP(CO$15,'Personnel (M)'!$K$3:$AH$3,'Personnel (M)'!$K$57:$AH$57),0) -> 0
C106: Labour with Taxes and Benefits - Semi-Annual | E106: USD | K106: =IF(K7,LOOKUP(K14,'Personnel (A)'!$J$6:$T$6,'Personnel (A)'!$J$32:$T$32))*1*K95 -> 0 | L106: =IF(L7,LOOKUP(L14,'Personnel (A)'!$J$6:$T$6,'Personnel (A)'!$J$32:$T$32))*1*L95 -> 0 | M106: =IF(M7,LOOKUP(M14,'Personnel (A)'!$J$6:$T$6,'Personnel (A)'!$J$32:$T$32))*1*M95 -> 0 | N106: =IF(N7,LOOKUP(N14,'Personnel (A)'!$J$6:$T$6,'Personnel (A)'!$J$32:$T$32))*1*N95 -> 0 | O106: =IF(O7,LOOKUP(O14,'Personnel (A)'!$J$6:$T$6,'Personnel (A)'!$J$32:$T$32))*1*O95 -> 0 | P106: =IF(P7,LOOKUP(P14,'Personnel (A)'!$J$6:$T$6,'Personnel (A)'!$J$32:$T$32))*1*P95 -> 0 | Q106: =IF(Q7,LOOKUP(Q14,'Personnel (A)'!$J$6:$T$6,'Personnel (A)'!$J$32:$T$32))*1*Q95 -> 0 | R106: =IF(R7,LOOKUP(R14,'Personnel (A)'!$J$6:$T$6,'Personnel (A)'!$J$32:$T$32))*1*R95 -> 0 | S106: =IF(S7,LOOKUP(S14,'Personnel (A)'!$J$6:$T$6,'Personnel (A)'!$J$32:$T$32))*1*S95 -> 0 | T106: =IF(T7,LOOKUP(T14,'Personnel (A)'!$J$6:$T$6,'Personnel (A)'!$J$32:$T$32))*1*T95 -> 0 | U106: =IF(U7,LOOKUP(U14,'Personnel (A)'!$J$6:$T$6,'Personnel (A)'!$J$32:$T$32))*1*U95 -> 0 | V106: =IF(V7,LOOKUP(V14,'Personnel (A)'!$J$6:$T$6,'Personnel (A)'!$J$32:$T$32))*1*V95 -> 0 | W106: =IF(W7,LOOKUP(W14,'Personnel (A)'!$J$6:$T$6,'Personnel (A)'!$J$32:$T$32))*1*W95 -> 0 | X106: =IF(X7,LOOKUP(X14,'Personnel (A)'!$J$6:$T$6,'Personnel (A)'!$J$32:$T$32))*1*X95 -> 0 | Y106: =IF(Y7,LOOKUP(Y14,'Personnel (A)'!$J$6:$T$6,'Personnel (A)'!$J$32:$T$32))*1*Y95 -> 0 | Z106: =IF(Z7,LOOKUP(Z14,'Personnel (A)'!$J$6:$T$6,'Personnel (A)'!$J$32:$T$32))*1*Z95 -> 0 | AA106: =IF(AA7,LOOKUP(AA14,'Personnel (A)'!$J$6:$T$6,'Personnel (A)'!$J$32:$T$32))*1*AA95 -> 0 | AB106: =IF(AB7,LOOKUP(AB14,'Personnel (A)'!$J$6:$T$6,'Personnel (A)'!$J$32:$T$32))*1*AB95 -> 0 | AC106: =IF(AC7,LOOKUP(AC14,'Personnel (A)'!$J$6:$T$6,'Personnel (A)'!$J$32:$T$32))*1*AC95 -> 0 | AD106: =IF(AD7,LOOKUP(AD14,'Personnel (A)'!$J$6:$T$6,'Personnel (A)'!$J$32:$T$32))*1*AD95 -> 0 | AE106: =IF(AE7,LOOKUP(AE14,'Personnel (A)'!$J$6:$T$6,'Personnel (A)'!$J$32:$T$32))*1*AE95 -> 0 | AF106: =IF(AF7,LOOKUP(AF14,'Personnel (A)'!$J$6:$T$6,'Personnel (A)'!$J$32:$T$32))*1*AF95 -> 0 | AG106: =IF(AG7,LOOKUP(AG14,'Personnel (A)'!$J$6:$T$6,'Personnel (A)'!$J$32:$T$32))*1*AG95 -> 0 | AH106: =IF(AH7,LOOKUP(AH14,'Personnel (A)'!$J$6:$T$6,'Personnel (A)'!$J$32:$T$32))*1*AH95 -> 0 | AI106: =IF(AI7,LOOKUP(AI14,'Personnel (A)'!$J$6:$T$6,'Personnel (A)'!$J$32:$T$32))*1*AI95 -> 0 | AJ106: =IF(AJ7,LOOKUP(AJ14,'Personnel (A)'!$J$6:$T$6,'Personnel (A)'!$J$32:$T$32))*1*AJ95 -> 0 | AK106: =IF(AK7,LOOKUP(AK14,'Personnel (A)'!$J$6:$T$6,'Personnel (A)'!$J$32:$T$32))*1*AK95 -> 413230 | AL106: =IF(AL7,LOOKUP(AL14,'Personnel (A)'!$J$6:$T$6,'Personnel (A)'!$J$32:$T$32))*1*AL95 -> 413230 | AM106: =IF(AM7,LOOKUP(AM14,'Personnel (A)'!$J$6:$T$6,'Personnel (A)'!$J$32:$T$32))*1*AM95 -> 425626.5 | AN106: =IF(AN7,LOOKUP(AN14,'Personnel (A)'!$J$6:$T$6,'Personnel (A)'!$J$32:$T$32))*1*AN95 -> 425626.5 | AO106: =IF(AO7,LOOKUP(AO14,'Personnel (A)'!$J$6:$T$6,'Personnel (A)'!$J$32:$T$32))*1*AO95 -> 438395.925 | AP106: =IF(AP7,LOOKUP(AP14,'Personnel (A)'!$J$6:$T$6,'Personnel (A)'!$J$32:$T$32))*1*AP95 -> 438395.925 | AQ106: =IF(AQ7,LOOKUP(AQ14,'Personnel (A)'!$J$6:$T$6,'Personnel (A)'!$J$32:$T$32))*1*AQ95 -> 451547.2727 | AR106: =IF(AR7,LOOKUP(AR14,'Personnel (A)'!$J$6:$T$6,'Personnel (A)'!$J$32:$T$32))*1*AR95 -> 451547.2727 | AS106: =IF(AS7,LOOKUP(AS14,'Personnel (A)'!$J$6:$T$6,'Personnel (A)'!$J$32:$T$32))*1*AS95 -> 465093.8109 | AT106: =IF(AT7,LOOKUP(AT14,'Personnel (A)'!$J$6:$T$6,'Personnel (A)'!$J$32:$T$32))*1*AT95 -> 465093.8109 | AU106: =IF(AU7,LOOKUP(AU14,'Personnel (A)'!$J$6:$T$6,'Personnel (A)'!$J$32:$T$32))*1*AU95 -> 479047.0853 | AV106: =IF(AV7,LOOKUP(AV14,'Personnel (A)'!$J$6:$T$6,'Personnel (A)'!$J$32:$T$32))*1*AV95 -> 479047.0853 | AW106: =IF(AW7,LOOKUP(AW14,'Personnel (A)'!$J$6:$T$6,'Personnel (A)'!$J$32:$T$32))*1*AW95 -> 493417.9278 | AX106: =IF(AX7,LOOKUP(AX14,'Personnel (A)'!$J$6:$T$6,'Personnel (A)'!$J$32:$T$32))*1*AX95 -> 493417.9278 | AY106: =IF(AY7,LOOKUP(AY14,'Personnel (A)'!$J$6:$T$6,'Personnel (A)'!$J$32:$T$32))*1*AY95 -> 508220.4657 | AZ106: =IF(AZ7,LOOKUP(AZ14,'Personnel (A)'!$J$6:$T$6,'Personnel (A)'!$J$32:$T$32))*1*AZ95 -> 508220.4657 | BA106: =IF(BA7,LOOKUP(BA14,'Personnel (A)'!$J$6:$T$6,'Personnel (A)'!$J$32:$T$32))*1*BA95 -> 523467.1296 | BB106: =IF(BB7,LOOKUP(BB14,'Personnel (A)'!$J$6:$T$6,'Personnel (A)'!$J$32:$T$32))*1*BB95 -> 523467.1296 | BC106: =IF(BC7,LOOKUP(BC14,'Personnel (A)'!$J$6:$T$6,'Personnel (A)'!$J$32:$T$32))*1*BC95 -> 0 | BD106: =IF(BD7,LOOKUP(BD14,'Personnel (A)'!$J$6:$T$6,'Personnel (A)'!$J$32:$T$32))*1*BD95 -> 0 | BE106: =IF(BE7,LOOKUP(BE14,'Personnel (A)'!$J$6:$T$6,'Personnel (A)'!$J$32:$T$32))*1*BE95 -> 0 | BF106: =IF(BF7,LOOKUP(BF14,'Personnel (A)'!$J$6:$T$6,'Personnel (A)'!$J$32:$T$32))*1*BF95 -> 0 | BG106: =IF(BG7,LOOKUP(BG14,'Personnel (A)'!$J$6:$T$6,'Personnel (A)'!$J$32:$T$32))*1*BG95 -> 0 | BH106: =IF(BH7,LOOKUP(BH14,'Personnel (A)'!$J$6:$T$6,'Personnel (A)'!$J$32:$T$32))*1*BH95 -> 0 | BI106: =IF(BI7,LOOKUP(BI14,'Personnel (A)'!$J$6:$T$6,'Personnel (A)'!$J$32:$T$32))*1*BI95 -> 0 | BJ106: =IF(BJ7,LOOKUP(BJ14,'Personnel (A)'!$J$6:$T$6,'Personnel (A)'!$J$32:$T$32))*1*BJ95 -> 0 | BK106: =IF(BK7,LOOKUP(BK14,'Personnel (A)'!$J$6:$T$6,'Personnel (A)'!$J$32:$T$32))*1*BK95 -> 0 | BL106: =IF(BL7,LOOKUP(BL14,'Personnel (A)'!$J$6:$T$6,'Personnel (A)'!$J$32:$T$32))*1*BL95 -> 0 | BM106: =IF(BM7,LOOKUP(BM14,'Personnel (A)'!$J$6:$T$6,'Personnel (A)'!$J$32:$T$32))*1*BM95 -> 0 | BN106: =IF(BN7,LOOKUP(BN14,'Personnel (A)'!$J$6:$T$6,'Personnel (A)'!$J$32:$T$32))*1*BN95 -> 0 | BO106: =IF(BO7,LOOKUP(BO14,'Personnel (A)'!$J$6:$T$6,'Personnel (A)'!$J$32:$T$32))*1*BO95 -> 0 | BP106: =IF(BP7,LOOKUP(BP14,'Personnel (A)'!$J$6:$T$6,'Personnel (A)'!$J$32:$T$32))*1*BP95 -> 0 | BQ106: =IF(BQ7,LOOKUP(BQ14,'Personnel (A)'!$J$6:$T$6,'Personnel (A)'!$J$32:$T$32))*1*BQ95 -> 0 | BR106: =IF(BR7,LOOKUP(BR14,'Personnel (A)'!$J$6:$T$6,'Personnel (A)'!$J$32:$T$32))*1*BR95 -> 0 | BS106: =IF(BS7,LOOKUP(BS14,'Personnel (A)'!$J$6:$T$6,'Personnel (A)'!$J$32:$T$32))*1*BS95 -> 0 | BT106: =IF(BT7,LOOKUP(BT14,'Personnel (A)'!$J$6:$T$6,'Personnel (A)'!$J$32:$T$32))*1*BT95 -> 0 | BU106: =IF(BU7,LOOKUP(BU14,'Personnel (A)'!$J$6:$T$6,'Personnel (A)'!$J$32:$T$32))*1*BU95 -> 0 | BV106: =IF(BV7,LOOKUP(BV14,'Personnel (A)'!$J$6:$T$6,'Personnel (A)'!$J$32:$T$32))*1*BV95 -> 0 | BW106: =IF(BW7,LOOKUP(BW14,'Personnel (A)'!$J$6:$T$6,'Personnel (A)'!$J$32:$T$32))*1*BW95 -> 0 | BX106: =IF(BX7,LOOKUP(BX14,'Personnel (A)'!$J$6:$T$6,'Personnel (A)'!$J$32:$T$32))*1*BX95 -> 0 | BY106: =IF(BY7,LOOKUP(BY14,'Personnel (A)'!$J$6:$T$6,'Personnel (A)'!$J$32:$T$32))*1*BY95 -> 0 | BZ106: =IF(BZ7,LOOKUP(BZ14,'Personnel (A)'!$J$6:$T$6,'Personnel (A)'!$J$32:$T$32))*1*BZ95 -> 0 | CA106: =IF(CA7,LOOKUP(CA14,'Personnel (A)'!$J$6:$T$6,'Personnel (A)'!$J$32:$T$32))*1*CA95 -> 0 | CB106: =IF(CB7,LOOKUP(CB14,'Personnel (A)'!$J$6:$T$6,'Personnel (A)'!$J$32:$T$32))*1*CB95 -> 0 | CC106: =IF(CC7,LOOKUP(CC14,'Personnel (A)'!$J$6:$T$6,'Personnel (A)'!$J$32:$T$32))*1*CC95 -> 0 | CD106: =IF(CD7,LOOKUP(CD14,'Personnel (A)'!$J$6:$T$6,'Personnel (A)'!$J$32:$T$32))*1*CD95 -> 0 | CE106: =IF(CE7,LOOKUP(CE14,'Personnel (A)'!$J$6:$T$6,'Personnel (A)'!$J$32:$T$32))*1*CE95 -> 0 | CF106: =IF(CF7,LOOKUP(CF14,'Personnel (A)'!$J$6:$T$6,'Personnel (A)'!$J$32:$T$32))*1*CF95 -> 0 | CG106: =IF(CG7,LOOKUP(CG14,'Personnel (A)'!$J$6:$T$6,'Personnel (A)'!$J$32:$T$32))*1*CG95 -> 0 | CH106: =IF(CH7,LOOKUP(CH14,'Personnel (A)'!$J$6:$T$6,'Personnel (A)'!$J$32:$T$32))*1*CH95 -> 0 | CI106: =IF(CI7,LOOKUP(CI14,'Personnel (A)'!$J$6:$T$6,'Personnel (A)'!$J$32:$T$32))*1*CI95 -> 0 | CJ106: =IF(CJ7,LOOKUP(CJ14,'Personnel (A)'!$J$6:$T$6,'Personnel (A)'!$J$32:$T$32))*1*CJ95 -> 0 | CK106: =IF(CK7,LOOKUP(CK14,'Personnel (A)'!$J$6:$T$6,'Personnel (A)'!$J$32:$T$32))*1*CK95 -> 0 | CL106: =IF(CL7,LOOKUP(CL14,'Personnel (A)'!$J$6:$T$6,'Personnel (A)'!$J$32:$T$32))*1*CL95 -> 0 | CM106: =IF(CM7,LOOKUP(CM14,'Personnel (A)'!$J$6:$T$6,'Personnel (A)'!$J$32:$T$32))*1*CM95 -> 0 | CN106: =IF(CN7,LOOKUP(CN14,'Personnel (A)'!$J$6:$T$6,'Personnel (A)'!$J$32:$T$32))*1*CN95 -> 0 | CO106: =IF(CO7,LOOKUP(CO14,'Personnel (A)'!$J$6:$T$6,'Personnel (A)'!$J$32:$T$32))*1*CO95 -> 0
D107: Total Labour | E107: USD | K107: =SUM(K105:K106) -> 0 | L107: =SUM(L105:L106) -> 0 | M107: 0 | N107: 0 | O107: 0 | P107: 0 | Q107: 0 | R107: 0 | S107: 0 | T107: 0 | U107: 0 | V107: 0 | W107: 0 | X107: 0 | Y107: 0 | Z107: 0 | AA107: 0 | AB107: 0 | AC107: 18667.04 | AD107: 85303.52 | AE107: 108952.52 | AF107: 108952.52 | AG107: 108952.52 | AH107: 110712.52 | AI107: 113292.52 | AJ107: 113292.52 | AK107: 413230 | AL107: 413230 | AM107: 425626.5 | AN107: 425626.5 | AO107: 438395.925 | AP107: 438395.925 | AQ107: 451547.2727 | AR107: 451547.2727 | AS107: 465093.8109 | AT107: 465093.8109 | AU107: 479047.0853 | AV107: 479047.0853 | AW107: 493417.9278 | AX107: 493417.9278 | AY107: 508220.4657 | AZ107: 508220.4657 | BA107: 523467.1296 | BB107: 523467.1296 | BC107: 0 | BD107: 0 | BE107: 0 | BF107: 0 | BG107: 0 | BH107: 0 | BI107: 0 | BJ107: 0 | BK107: 0 | BL107: 0 | BM107: 0 | BN107: 0 | BO107: 0 | BP107: 0 | BQ107: 0 | BR107: 0 | BS107: 0 | BT107: 0 | BU107: 0 | BV107: 0 | BW107: 0 | BX107: =SUM(BX105:BX106) -> 0 | BY107: 0 | BZ107: 0 | CA107: 0 | CB107: 0 | CC107: 0 | CD107: 0 | CE107: 0 | CF107: 0 | CG107: 0 | CH107: 0 | CI107: 0 | CJ107: 0 | CK107: 0 | CL107: 0 | CM107: 0 | CN107: 0 | CO107: 0
C109: Accommodation per ton | E109: USD/Ton | K109: =LOOKUP(K$14,'Assumptions Sheet'!$F$167:$Q$167,'Assumptions Sheet'!$F$218:$Q$218) -> 0 | L109: =LOOKUP(L$14,'Assumptions Sheet'!$F$167:$Q$167,'Assumptions Sheet'!$F$218:$Q$218) -> 0 | M109: =LOOKUP(M$14,'Assumptions Sheet'!$F$167:$Q$167,'Assumptions Sheet'!$F$218:$Q$218) -> 0 | N109: =LOOKUP(N$14,'Assumptions Sheet'!$F$167:$Q$167,'Assumptions Sheet'!$F$218:$Q$218) -> 0 | O109: =LOOKUP(O$14,'Assumptions Sheet'!$F$167:$Q$167,'Assumptions Sheet'!$F$218:$Q$218) -> 0 | P109: =LOOKUP(P$14,'Assumptions Sheet'!$F$167:$Q$167,'Assumptions Sheet'!$F$218:$Q$218) -> 0 | Q109: =LOOKUP(Q$14,'Assumptions Sheet'!$F$167:$Q$167,'Assumptions Sheet'!$F$218:$Q$218) -> 0 | R109: =LOOKUP(R$14,'Assumptions Sheet'!$F$167:$Q$167,'Assumptions Sheet'!$F$218:$Q$218) -> 0 | S109: =LOOKUP(S$14,'Assumptions Sheet'!$F$167:$Q$167,'Assumptions Sheet'!$F$218:$Q$218) -> 0 | T109: =LOOKUP(T$14,'Assumptions Sheet'!$F$167:$Q$167,'Assumptions Sheet'!$F$218:$Q$218) -> 0 | U109: =LOOKUP(U$14,'Assumptions Sheet'!$F$167:$Q$167,'Assumptions Sheet'!$F$218:$Q$218) -> 0 | V109: =LOOKUP(V$14,'Assumptions Sheet'!$F$167:$Q$167,'Assumptions Sheet'!$F$218:$Q$218) -> 0 | W109: =LOOKUP(W$14,'Assumptions Sheet'!$F$167:$Q$167,'Assumptions Sheet'!$F$218:$Q$218) -> 0 | X109: =LOOKUP(X$14,'Assumptions Sheet'!$F$167:$Q$167,'Assumptions Sheet'!$F$218:$Q$218) -> 0 | Y109: =LOOKUP(Y$14,'Assumptions Sheet'!$F$167:$Q$167,'Assumptions Sheet'!$F$218:$Q$218) -> 0 | Z109: =LOOKUP(Z$14,'Assumptions Sheet'!$F$167:$Q$167,'Assumptions Sheet'!$F$218:$Q$218) -> 0 | AA109: =LOOKUP(AA$14,'Assumptions Sheet'!$F$167:$Q$167,'Assumptions Sheet'!$F$218:$Q$218) -> 0 | AB109: =LOOKUP(AB$14,'Assumptions Sheet'!$F$167:$Q$167,'Assumptions Sheet'!$F$218:$Q$218) -> 0 | AC109: =LOOKUP(AC$14,'Assumptions Sheet'!$F$167:$Q$167,'Assumptions Sheet'!$F$218:$Q$218) -> 0 | AD109: =LOOKUP(AD$14,'Assumptions Sheet'!$F$167:$Q$167,'Assumptions Sheet'!$F$218:$Q$218) -> 0 | AE109: =LOOKUP(AE$14,'Assumptions Sheet'!$F$167:$Q$167,'Assumptions Sheet'!$F$218:$Q$218) -> 0 | AF109: =LOOKUP(AF$14,'Assumptions Sheet'!$F$167:$Q$167,'Assumptions Sheet'!$F$218:$Q$218) -> 0 | AG109: =LOOKUP(AG$14,'Assumptions Sheet'!$F$167:$Q$167,'Assumptions Sheet'!$F$218:$Q$218) -> 0 | AH109: =LOOKUP(AH$14,'Assumptions Sheet'!$F$167:$Q$167,'Assumptions Sheet'!$F$218:$Q$218) -> 0 | AI109: =LOOKUP(AI$14,'Assumptions Sheet'!$F$167:$Q$167,'Assumptions Sheet'!$F$218:$Q$218) -> 0 | AJ109: =LOOKUP(AJ$14,'Assumptions Sheet'!$F$167:$Q$167,'Assumptions Sheet'!$F$218:$Q$218) -> 0 | AK109: =LOOKUP(AK$14,'Assumptions Sheet'!$F$167:$Q$167,'Assumptions Sheet'!$F$218:$Q$218) -> 0 | AL109: =LOOKUP(AL$14,'Assumptions Sheet'!$F$167:$Q$167,'Assumptions Sheet'!$F$218:$Q$218) -> 0 | AM109: =LOOKUP(AM$14,'Assumptions Sheet'!$F$167:$Q$167,'Assumptions Sheet'!$F$218:$Q$218) -> 0 | AN109: =LOOKUP(AN$14,'Assumptions Sheet'!$F$167:$Q$167,'Assumptions Sheet'!$F$218:$Q$218) -> 0 | AO109: =LOOKUP(AO$14,'Assumptions Sheet'!$F$167:$Q$167,'Assumptions Sheet'!$F$218:$Q$218) -> 0 | AP109: =LOOKUP(AP$14,'Assumptions Sheet'!$F$167:$Q$167,'Assumptions Sheet'!$F$218:$Q$218) -> 0 | AQ109: =LOOKUP(AQ$14,'Assumptions Sheet'!$F$167:$Q$167,'Assumptions Sheet'!$F$218:$Q$218) -> 0 | AR109: =LOOKUP(AR$14,'Assumptions Sheet'!$F$167:$Q$167,'Assumptions Sheet'!$F$218:$Q$218) -> 0 | AS109: =LOOKUP(AS$14,'Assumptions Sheet'!$F$167:$Q$167,'Assumptions Sheet'!$F$218:$Q$218) -> 0 | AT109: =LOOKUP(AT$14,'Assumptions Sheet'!$F$167:$Q$167,'Assumptions Sheet'!$F$218:$Q$218) -> 0 | AU109: =LOOKUP(AU$14,'Assumptions Sheet'!$F$167:$Q$167,'Assumptions Sheet'!$F$218:$Q$218) -> 0 | AV109: =LOOKUP(AV$14,'Assumptions Sheet'!$F$167:$Q$167,'Assumptions Sheet'!$F$218:$Q$218) -> 0 | AW109: =LOOKUP(AW$14,'Assumptions Sheet'!$F$167:$Q$167,'Assumptions Sheet'!$F$218:$Q$218) -> 0 | AX109: =LOOKUP(AX$14,'Assumptions Sheet'!$F$167:$Q$167,'Assumptions Sheet'!$F$218:$Q$218) -> 0 | AY109: =LOOKUP(AY$14,'Assumptions Sheet'!$F$167:$Q$167,'Assumptions Sheet'!$F$218:$Q$218) -> 0 | AZ109: =LOOKUP(AZ$14,'Assumptions Sheet'!$F$167:$Q$167,'Assumptions Sheet'!$F$218:$Q$218) -> 0 | BA109: =LOOKUP(BA$14,'Assumptions Sheet'!$F$167:$Q$167,'Assumptions Sheet'!$F$218:$Q$218) -> 0 | BB109: =LOOKUP(BB$14,'Assumptions Sheet'!$F$167:$Q$167,'Assumptions Sheet'!$F$218:$Q$218) -> 0 | BC109: =LOOKUP(BC$14,'Assumptions Sheet'!$F$167:$Q$167,'Assumptions Sheet'!$F$218:$Q$218) -> 0 | BD109: =LOOKUP(BD$14,'Assumptions Sheet'!$F$167:$Q$167,'Assumptions Sheet'!$F$218:$Q$218) -> 0 | BE109: =LOOKUP(BE$14,'Assumptions Sheet'!$F$167:$Q$167,'Assumptions Sheet'!$F$218:$Q$218) -> 0 | BF109: =LOOKUP(BF$14,'Assumptions Sheet'!$F$167:$Q$167,'Assumptions Sheet'!$F$218:$Q$218) -> 0 | BG109: =LOOKUP(BG$14,'Assumptions Sheet'!$F$167:$Q$167,'Assumptions Sheet'!$F$218:$Q$218) -> 0 | BH109: =LOOKUP(BH$14,'Assumptions Sheet'!$F$167:$Q$167,'Assumptions Sheet'!$F$218:$Q$218) -> 0 | BI109: =LOOKUP(BI$14,'Assumptions Sheet'!$F$167:$Q$167,'Assumptions Sheet'!$F$218:$Q$218) -> 0 | BJ109: =LOOKUP(BJ$14,'Assumptions Sheet'!$F$167:$Q$167,'Assumptions Sheet'!$F$218:$Q$218) -> 0 | BK109: =LOOKUP(BK$14,'Assumptions Sheet'!$F$167:$Q$167,'Assumptions Sheet'!$F$218:$Q$218) -> 0 | BL109: =LOOKUP(BL$14,'Assumptions Sheet'!$F$167:$Q$167,'Assumptions Sheet'!$F$218:$Q$218) -> 0 | BM109: =LOOKUP(BM$14,'Assumptions Sheet'!$F$167:$Q$167,'Assumptions Sheet'!$F$218:$Q$218) -> 0 | BN109: =LOOKUP(BN$14,'Assumptions Sheet'!$F$167:$Q$167,'Assumptions Sheet'!$F$218:$Q$218) -> 0 | BO109: =LOOKUP(BO$14,'Assumptions Sheet'!$F$167:$Q$167,'Assumptions Sheet'!$F$218:$Q$218) -> 0 | BP109: =LOOKUP(BP$14,'Assumptions Sheet'!$F$167:$Q$167,'Assumptions Sheet'!$F$218:$Q$218) -> 0 | BQ109: =LOOKUP(BQ$14,'Assumptions Sheet'!$F$167:$Q$167,'Assumptions Sheet'!$F$218:$Q$218) -> 0 | BR109: =LOOKUP(BR$14,'Assumptions Sheet'!$F$167:$Q$167,'Assumptions Sheet'!$F$218:$Q$218) -> 0 | BS109: =LOOKUP(BS$14,'Assumptions Sheet'!$F$167:$Q$167,'Assumptions Sheet'!$F$218:$Q$218) -> 0 | BT109: =LOOKUP(BT$14,'Assumptions Sheet'!$F$167:$Q$167,'Assumptions Sheet'!$F$218:$Q$218) -> 0 | BU109: =LOOKUP(BU$14,'Assumptions Sheet'!$F$167:$Q$167,'Assumptions Sheet'!$F$218:$Q$218) -> 0 | BV109: =LOOKUP(BV$14,'Assumptions Sheet'!$F$167:$Q$167,'Assumptions Sheet'!$F$218:$Q$218) -> 0 | BW109: =LOOKUP(BW$14,'Assumptions Sheet'!$F$167:$Q$167,'Assumptions Sheet'!$F$218:$Q$218) -> 0 | BX109: =LOOKUP(BX$14,'Assumptions Sheet'!$F$167:$Q$167,'Assumptions Sheet'!$F$218:$Q$218) -> 0 | BY109: =LOOKUP(BY$14,'Assumptions Sheet'!$F$167:$Q$167,'Assumptions Sheet'!$F$218:$Q$218) -> 0 | BZ109: =LOOKUP(BZ$14,'Assumptions Sheet'!$F$167:$Q$167,'Assumptions Sheet'!$F$218:$Q$218) -> 0 | CA109: =LOOKUP(CA$14,'Assumptions Sheet'!$F$167:$Q$167,'Assumptions Sheet'!$F$218:$Q$218) -> 0 | CB109: =LOOKUP(CB$14,'Assumptions Sheet'!$F$167:$Q$167,'Assumptions Sheet'!$F$218:$Q$218) -> 0 | CC109: =LOOKUP(CC$14,'Assumptions Sheet'!$F$167:$Q$167,'Assumptions Sheet'!$F$218:$Q$218) -> 0 | CD109: =LOOKUP(CD$14,'Assumptions Sheet'!$F$167:$Q$167,'Assumptions Sheet'!$F$218:$Q$218) -> 0 | CE109: =LOOKUP(CE$14,'Assumptions Sheet'!$F$167:$Q$167,'Assumptions Sheet'!$F$218:$Q$218) -> 0 | CF109: =LOOKUP(CF$14,'Assumptions Sheet'!$F$167:$Q$167,'Assumptions Sheet'!$F$218:$Q$218) -> 0 | CG109: =LOOKUP(CG$14,'Assumptions Sheet'!$F$167:$Q$167,'Assumptions Sheet'!$F$218:$Q$218) -> 0 | CH109: =LOOKUP(CH$14,'Assumptions Sheet'!$F$167:$Q$167,'Assumptions Sheet'!$F$218:$Q$218) -> 0 | CI109: =LOOKUP(CI$14,'Assumptions Sheet'!$F$167:$Q$167,'Assumptions Sheet'!$F$218:$Q$218) -> 0 | CJ109: =LOOKUP(CJ$14,'Assumptions Sheet'!$F$167:$Q$167,'Assumptions Sheet'!$F$218:$Q$218) -> 0 | CK109: =LOOKUP(CK$14,'Assumptions Sheet'!$F$167:$Q$167,'Assumptions Sheet'!$F$218:$Q$218) -> 0 | CL109: =LOOKUP(CL$14,'Assumptions Sheet'!$F$167:$Q$167,'Assumptions Sheet'!$F$218:$Q$218) -> 0 | CM109: =LOOKUP(CM$14,'Assumptions Sheet'!$F$167:$Q$167,'Assumptions Sheet'!$F$218:$Q$218) -> 0 | CN109: =LOOKUP(CN$14,'Assumptions Sheet'!$F$167:$Q$167,'Assumptions Sheet'!$F$218:$Q$218) -> 0 | CO109: =LOOKUP(CO$14,'Assumptions Sheet'!$F$167:$Q$167,'Assumptions Sheet'!$F$218:$Q$218) -> 0
C110: Total Tons | E110: Tons p.p. | K110: =K102 -> 0 | L110: =L102 -> 0 | M110: 0 | N110: 0 | O110: 0 | P110: 0 | Q110: 0 | R110: 0 | S110: 0 | T110: 0 | U110: 0 | V110: 0 | W110: 0 | X110: 0 | Y110: 0 | Z110: 0 | AA110: 0 | AB110: 0 | AC110: 0 | AD110: 0 | AE110: 0 | AF110: 0 | AG110: 0 | AH110: 0 | AI110: 0 | AJ110: 0 | AK110: 15553.23037 | AL110: 15553.23037 | AM110: 19012.62815 | AN110: 19012.62815 | AO110: 19694.15758 | AP110: 19694.15758 | AQ110: 20025.91531 | AR110: 20025.91531 | AS110: 20025.91531 | AT110: 20025.91531 | AU110: 20025.91531 | AV110: 20025.91531 | AW110: 20025.91531 | AX110: 20025.91531 | AY110: 20025.91531 | AZ110: 20025.91531 | BA110: 20025.91531 | BB110: 20025.91531 | BC110: 0 | BD110: 0 | BE110: 0 | BF110: 0 | BG110: 0 | BH110: 0 | BI110: 0 | BJ110: 0 | BK110: 0 | BL110: 0 | BM110: 0 | BN110: 0 | BO110: 0 | BP110: 0 | BQ110: 0 | BR110: 0 | BS110: 0 | BT110: 0 | BU110: 0 | BV110: 0 | BW110: 0 | BX110: =BX102 -> 0 | BY110: 0 | BZ110: 0 | CA110: 0 | CB110: 0 | CC110: 0 | CD110: 0 | CE110: 0 | CF110: 0 | CG110: 0 | CH110: 0 | CI110: 0 | CJ110: 0 | CK110: 0 | CL110: 0 | CM110: 0 | CN110: 0 | CO110: 0
D111: Total Accomodation | E111: USD | K111: =K109*K110 -> 0 | L111: =L109*L110 -> 0 | M111: 0 | N111: 0 | O111: 0 | P111: 0 | Q111: 0 | R111: 0 | S111: 0 | T111: 0 | U111: 0 | V111: 0 | W111: 0 | X111: 0 | Y111: 0 | Z111: 0 | AA111: 0 | AB111: 0 | AC111: 0 | AD111: 0 | AE111: 0 | AF111: 0 | AG111: 0 | AH111: 0 | AI111: 0 | AJ111: 0 | AK111: 0 | AL111: 0 | AM111: 0 | AN111: 0 | AO111: 0 | AP111: 0 | AQ111: 0 | AR111: 0 | AS111: 0 | AT111: 0 | AU111: 0 | AV111: 0 | AW111: 0 | AX111: 0 | AY111: 0 | AZ111: 0 | BA111: 0 | BB111: 0 | BC111: 0 | BD111: 0 | BE111: 0 | BF111: 0 | BG111: 0 | BH111: 0 | BI111: 0 | BJ111: 0 | BK111: 0 | BL111: 0 | BM111: 0 | BN111: 0 | BO111: 0 | BP111: 0 | BQ111: 0 | BR111: 0 | BS111: 0 | BT111: 0 | BU111: 0 | BV111: 0 | BW111: 0 | BX111: =BX109*BX110 -> 0 | BY111: 0 | BZ111: 0 | CA111: 0 | CB111: 0 | CC111: 0 | CD111: 0 | CE111: 0 | CF111: 0 | CG111: 0 | CH111: 0 | CI111: 0 | CJ111: 0 | CK111: 0 | CL111: 0 | CM111: 0 | CN111: 0 | CO111: 0
